Workbook

Sheet DATABASE (hidden)
C3: DATABASE
C4: 资料库
C7: OUTLET BAR | D7: TMA
C8: 分行吧台
C10: YEAR / MONTH | D10: AUGUST 2013
C11: 年/月
B14: ITEM | C14: CATEGORIES | D14: SUPPLIER | E14: PRODUCT DESCRIPTION | F14: PRICE | G14: UOM | H14: PACK.SIZE
B15: 项目 | C15: 分类 | D15: 供应商 | E15: 食材产品 | F15: 价格 | G15: 单位 | H15: 包装
B21: MAIN BEVERAGE MATERIAL 主要饮料的食材
B22: 1 | C22: SRYUP | D22: FUN HUT | E22: SYRUP CHAMPAGNE GRAPE | F22: 0.006125 | G22: ML | H22: 01drum × 4000ml
B23: =+B22+1 -> 2 | C23: SRYUP | D23: FUN HUT | E23: SYRUP GREEN APPLE | F23: 0.00675 | G23: ML | H23: 01drum × 4000ml
B24: =+B23+1 -> 3 | C24: SRYUP | D24: FUN HUT | E24: SYRUP PASSION FRUIT | F24: 0.006125 | G24: ML | H24: 01drum × 4000ml
B25: 4 | C25: SRYUP | D25: FUN HUT | E25: SYRUP HONEY | F25: 0.012 | G25: ML | H25: 01drum × 2000ml
B26: 5 | C26: SRYUP | D26: FUN HUT | E26: SYRUP MANGO | F26: 0.00575 | G26: ML | H26: 01drum × 4000ml
B27: 6 | C27: SRYUP | D27: G&K FOOD TRADING | E27: SYRUP HONEY | F27: 0.009 | G27: ML | H27: 01drum × 2000ml
B28: 7 | C28: SRYUP | D28: G&K FOOD TRADING | E28: SYRUP MANGO | F28: 0.00575 | G28: ML | H28: 01drum × 4000ml
B29: 8 | C29: SRYUP | D29: YOONG SHING | E29: SYRUP RIBENA | F29: 0.01 | G29: ML | H29: 01ctn × 06btl × 1000ml
B30: 9 | C30: TEABAG | D30: G&K FOOD TRADING | E30: TEA BAG JASMINE GREEN | F30: 0.8333333333 | G30: BAG | H30: 01pkt × 24bag
B31: 10 | C31: TEABAG | D31: TEONG MOH | E31: TEA BAG LIPTON CHAMOMILE | F31: 0.46 | G31: BAG | H31: 01box × 25bag
B32: 11 | C32: TEABAG | D32: TEONG MOH | E32: TEA BAG LIPTON DARJEELING | F32: 0.46 | G32: BAG | H32: 01box × 25bag
B33: 12 | C33: TEABAG | D33: TEONG MOH | E33: TEA BAG LIPTON EARLGREY | F33: 0.46 | G33: BAG | H33: 01box × 25bag
B34: 13 | C34: TEABAG | D34: TEONG MOH | E34: TEA BAG LIPTON RED CATERING | F34: 0.325 | G34: BAG | H34: 01ctn × 12pkt × 20bag
B35: 14 | C35: POWDER | D35: G&K FOOD TRADING | E35: POWDER CAPPUCCINO | F35: 0.021 | G35: GM | H35: 01pkt × 1000g
B36: 15 | C36: POWDER | D36: G&K FOOD TRADING | E36: POWDER CHOCOLATE | F36: 0.017 | G36: GM | H36: 01pkt × 1000g
B37: 16 | C37: POWDER | D37: G&K FOOD TRADING | E37: POWDER MOCHA | F37: 0.021 | G37: GM | H37: 01pkt × 1000g
B38: 17 | C38: POWDER | D38: TEONG MOH | E38: POWDER LIME | F38: 0.02375 | G38: GM | H38: 01ctn × 12pkt × 400g
B39: 18 | C39: POWDER | D39: KWANG SENG | E39: POWDER MILO | F39: 0.01546875 | G39: GM | H39: 01ctn × 06pkt × 3200g
B40: 19 | C40: POWDER | D40: KWANG SENG | E40: POWDER NESCAFE ICE | F40: 0.01921333333 | G40: GM | H40: 01pkt × 750g
B41: 20 | C41: POWDER | D41: KWANG SENG | E41: POWDER NESCAFE WHITE | F41: 0.02021 | G41: GM | H41: 01pkt × 1000g
B42: 21 | C42: CREAMER & SUGAR | D42: MODERNPACK ENTERPRISE | E42: SACHET DAIRY CREAMER | F42: 0.06 | G42: PCS | H42: 01ctn × 10pkt × 200pcs
B43: 22 | C43: CREAMER & SUGAR | D43: WHIPEX ENTER | E43: SACHET SUGAR WHITE | F43: 0.0335 | G43: PCS | H43: 01ctn × 10pkt × 200pcs
B44: 23 | C44: CREAMER & SUGAR | D44: KWONG SENG HUP KEE | E44: SACHET DAIRY CREAMER | F44: 0.1134 | G44: PCS | H44: 01ctn × 2pkt × 500pcs
B45: 24 | C45: CREAMER & SUGAR | D45: TEONG MOH TRADING | E45: SUGAR FINE WHITE | F45: 0.003 | G45: GM | H45: 01ctn × 24pkt × 1000g
B46: 25 | C46: CREAMER & SUGAR | D46: FUN HUT F&B | E46: POWDER DAIRY CREAMER | F46: 0.0078 | G46: GM | H46: 01pkt × 1000g
B47: 26 | C47: CREAMER & SUGAR | D47: G&K FOOD TRADING | E47: POWDER DAIRY CREAMER | F47: 0.0095 | G47: GM | H47: 01pkt × 1000g
B48: 27 | C48: MINERAL WATER | D48: PURE OCEAN | E48: MINERAL WATER | F48: 0.38 | G48: BTL | H48: 01ctn × 24 btl
B49: 28 | C49: MINERAL WATER | D49: PERMANIS SANDILAND | E49: MINERAL WATER | F49: =14.38/24 -> 0.5991666667 | G49: BTL | H49: 01ctn × 24 btl
B50: 29 | C50: SOFT DRINKS | D50: PERMANIS SANDILAND | E50: BIB PEPSI | F50: 166.37 | G50: BIB | H50: 01bib × 20lit
B51: 30 | C51: SOFT DRINKS | D51: PERMANIS SANDILAND | E51: BIB 7UP | F51: 166.37 | G51: BIB | H51: 01bib × 20lit
B52: 31 | C52: SOFT DRINKS | D52: PERMANIS SANDILAND | E52: BIB 7UP REVIVE | F52: 166.37 | G52: BIB | H52: 01bib × 20lit
B53: 32 | C53: TIDBITS | D53: SERDAP FOOD | E53: MIXED TIDBITS | F53: 0.009 | G53: GM | H53: 01pkt x 2500g
B54: 33 | C54: BEER | D54: GAB | E54: BEER GUINNESS | F54: 6.81041 | G54: PINT | H54: 01ctn × 24btl
B55: 34 | C55: BEER | D55: GAB | E55: BEER HEINEKEN | F55: 8.11458 | G55: PINT | H55: 01ctn × 24btl
B56: 35 | C56: BEER | D56: GAB | E56: BEER TIGER | F56: 6 | G56: PINT | H56: 01ctn × 24btl
B57: 36 | C57: BEER | D57: GAB | E57: STRONGBOW | F57: 9.74 | G57: PINT | H57: 01ctn × 24btl
B58: 37 | C58: BEER | D58: GAB | E58: PAULANAR | F58: 12 | G58: PINT | H58: 01ctn × 24btl
B59: 38 | C59: BEER | D59: KAI SENG | E59: SOMERSBY APPLE CIDER | F59: 9.571 | G59: PINT | H59: 01ctn × 24btl
B60: 39 | C60: BEER | D60: LUEN HENG | E60: HOEGAARDEN | F60: 10.95 | G60: PINT | H60: 01ctn × 24btl
B61: 40 | C61: COCKTAIL MATERIAL | D61: SIN LI | E61: RAZZIA RED WINE MERLOT | F61: 18.5 | G61: BTL | H61: 01btl x 750ml
B62: 41 | C62: COCKTAIL MATERIAL | D62: CSS | E62: ABSOLUT VODKA | F62: 93 | G62: BTL | H62: 01btl x 750ml
B63: 42 | C63: COCKTAIL MATERIAL | D63: CSS | E63: JOSE CUERVO TEQUILA | F63: 88 | G63: BTL | H63: 01btl x 750ml
B64: 43 | C64: COCKTAIL MATERIAL | D64: CSS | E64: GRENADINE SYRUP | F64: 29 | G64: BTL | H64: 01btl x 1lit
B65: 44 | C65: COCKTAIL MATERIAL | D65: CONTRA | E65: PEEL FRESH ORANGE JUICE | F65: 5.5 | G65: PKT | H65: 01pkt x 1 lit
B66: 45 | C66: COCKTAIL MATERIAL | D66: CHUN YIP | E66: BERRI TOMATO JUICE | F66: 4.75 | G66: PKT | H66: 01pkt x 1lit
B67: 46 | C67: COCKTAIL MATERIAL | D67: AEON BIG | E67: SCHWEPPER DRY GINGER ALE | F67: 1.16 | G67: CAN | H67: 01can x 325ml
B68: 47 | C68: COCKTAIL MATERIAL | D68: TEONG MOH | E68: HOSEN FRUIT COCKTAIL | F68: 4.5 | G68: CAN | H68: 01can x 836ml
B69: 48 | C69: CIGARETTE | D69: LEE JIN | E69: DUNHILL KING | F69: 11.0806 | G69: PKT | H69: 01pkt × 20s
B70: 49 | C70: CIGARETTE | D70: LEE JIN | E70: DUNHILL LIGHTS KING | F70: 11.0806 | G70: PKT | H70: 01pkt × 20s
B71: 50 | C71: CIGARETTE | D71: LEE JIN | E71: DUNHILL MENTHOL LIGHTS KING | F71: 11.0806 | G71: PKT | H71: 01pkt × 20s
B72: 51 | C72: CIGARETTE | D72: LEE JIN | E72: DUNHILL MENTHOL KING | F72: 11.0806 | G72: PKT | H72: 01pkt × 20s
B73: 52 | C73: CIGARETTE | D73: LEE JIN | E73: DUNHILL MENTHOL BOOST | F73: 11.0806 | G73: PKT | H73: 01pkt × 20s
B74: 53 | C74: CIGARETTE | D74: LEE JIN | E74: DUNHILL MENTHOL SWITCH | F74: 11.0806 | G74: PKT | H74: 01pkt × 20s
B75: 54 | C75: CIGARETTE | D75: LEE JIN | E75: DUNHILL ICE | F75: 11.0806 | G75: PKT | H75: 01pkt × 20s
B76: 55 | C76: CIGARETTE | D76: LEE JIN | E76: KENT FUTURA | F76: 11.0806 | G76: PKT | H76: 01pkt × 20s

Sheet Summary (hidden)
C3: SUMMARY OF PRODUCT SALES IN MONTH
B6: OUTLET | C6: =MID(CELL("FILENAME",$A$1),FIND("[",CELL("FILENAME",$A$1))+1,3) -> TMA
B8: YEAR | C8: =MID(CELL("FILENAME",$A$1),FIND("[",CELL("FILENAME",$A$1))+4,4) -> 2014
B10: MONTH | C10: =INDEX($C$12:$C$23,MID(CELL("FILENAME",$A$1),FIND("[",CELL("FILENAME",$A$1))+8,2),1) -> FEBRUARY
B12: MONTH | C12: JANUARY
C13: FEBRUARY
C14: MARCH
C15: APRIL
C16: MAY
C17: JUNE
C18: JULY
C19: AUGUST
C20: SEPTEMBER
C21: OCTOBER
C22: NOVEMBER
C23: DECEMBER
B26: PRODUCT | D26: CATEGORY | E26: QTY | F26: QUANTITIES SOLD IN MONTH
E27: PER | F27: TOTAL | G27: =DATE(C8,MID(CELL("FILENAME",$A$1),FIND("[",CELL("FILENAME",$A$1))+8,2),1) -> 2014-02-01 | H27: =IFERROR(IF(MONTH(G27+1)<=MONTH($G$27),G27+1,""),"") -> 2014-02-02 | I27: =IFERROR(IF(MONTH(H27+1)<=MONTH($G$27),H27+1,""),"") -> 2014-02-03 | J27: 2014-02-04 | K27: 2014-02-05 | L27: 2014-02-06 | M27: 2014-02-07 | N27: 2014-02-08 | O27: 2014-02-09 | P27: 2014-02-10 | Q27: 2014-02-11 | R27: 2014-02-12 | S27: 2014-02-13 | T27: 2014-02-14 | U27: 2014-02-15 | V27: 2014-02-16 | W27: 2014-02-17 | X27: 2014-02-18 | Y27: 2014-02-19 | Z27: 2014-02-20 | AA27: 2014-02-21 | AB27: 2014-02-22 | AC27: 2014-02-23 | AD27: 2014-02-24 | AE27: 2014-02-25 | AF27: 2014-02-26 | AG27: 2014-02-27 | AH27: 2014-02-28
E28: ITEM
B30: BH01 5001:HEI BTL | D30: BEER | E30: 1 | F30: =SUM($G30:$AK30) -> 30 | G30: =IFERROR($E30*SUMIF('Daily Log'!$B$18:$B$1017,$B30,'Daily Log'!$C$18:$C$1017),0) -> 0 | H30: =IFERROR($E30*SUMIF('Daily Log'!$E$18:$E$1017,$B30,'Daily Log'!$F$18:$F$1017),0) -> 0 | I30: =IFERROR($E30*SUMIF('Daily Log'!$H$18:$H$1017,$B30,'Daily Log'!$I$18:$I$1017),0) -> 3 | J30: =IFERROR($E30*SUMIF('Daily Log'!$K$18:$K$1017,$B30,'Daily Log'!$L$18:$L$1017),0) -> 0 | K30: =IFERROR($E30*SUMIF('Daily Log'!$N$18:$N$1017,$B30,'Daily Log'!$O$18:$O$1017),0) -> 1 | L30: =IFERROR($E30*SUMIF('Daily Log'!$Q$18:$Q$1017,$B30,'Daily Log'!$R$18:$R$1017),0) -> 0 | M30: =IFERROR($E30*SUMIF('Daily Log'!$T$18:$T$1017,$B30,'Daily Log'!$U$18:$U$1017),0) -> 0 | N30: =IFERROR($E30*SUMIF('Daily Log'!$W$18:$W$1017,$B30,'Daily Log'!$X$18:$X$1017),0) -> 1 | O30: =IFERROR($E30*SUMIF('Daily Log'!$Z$18:$Z$1017,$B30,'Daily Log'!$AA$18:$AA$1017),0) -> 0 | P30: =IFERROR($E30*SUMIF('Daily Log'!$AC$18:$AC$1017,$B30,'Daily Log'!$AD$18:$AD$1017),0) -> 1 | Q30: =IFERROR($E30*SUMIF('Daily Log'!$AF$18:$AF$1017,$B30,'Daily Log'!$AG$18:$AG$1017),0) -> 0 | R30: =IFERROR($E30*SUMIF('Daily Log'!$AI$18:$AI$1017,$B30,'Daily Log'!$AJ$18:$AJ$1017),0) -> 5 | S30: =IFERROR($E30*SUMIF('Daily Log'!$AL$18:$AL$1017,$B30,'Daily Log'!$AM$18:$AM$1017),0) -> 2 | T30: =IFERROR($E30*SUMIF('Daily Log'!$AO$18:$AO$1017,$B30,'Daily Log'!$AP$18:$AP$1017),0) -> 0 | U30: =IFERROR($E30*SUMIF('Daily Log'!$AR$18:$AR$1017,$B30,'Daily Log'!$AS$18:$AS$1017),0) -> 2 | V30: =IFERROR($E30*SUMIF('Daily Log'!$AU$18:$AU$1017,$B30,'Daily Log'!$AV$18:$AV$1017),0) -> 2 | W30: =IFERROR($E30*SUMIF('Daily Log'!$AX$18:$AX$1017,$B30,'Daily Log'!$AY$18:$AY$1017),0) -> 3 | X30: =IFERROR($E30*SUMIF('Daily Log'!$BA$18:$BA$1017,$B30,'Daily Log'!$BB$18:$BB$1017),0) -> 2 | Y30: =IFERROR($E30*SUMIF('Daily Log'!$BD$18:$BD$1017,$B30,'Daily Log'!$BE$18:$BE$1017),0) -> 0 | Z30: =IFERROR($E30*SUMIF('Daily Log'!$BG$18:$BG$1017,$B30,'Daily Log'!$BH$18:$BH$1017),0) -> 2 | AA30: =IFERROR($E30*SUMIF('Daily Log'!$BJ$18:$BJ$1017,$B30,'Daily Log'!$BK$18:$BK$1017),0) -> 0 | AB30: =IFERROR($E30*SUMIF('Daily Log'!$BM$18:$BM$1017,$B30,'Daily Log'!$BN$18:$BN$1017),0) -> 1 | AC30: =IFERROR($E30*SUMIF('Daily Log'!$BP$18:$BP$1017,$B30,'Daily Log'!$BQ$18:$BQ$1017),0) -> 0 | AD30: =IFERROR($E30*SUMIF('Daily Log'!$BS$18:$BS$1017,$B30,'Daily Log'!$BT$18:$BT$1017),0) -> 0 | AE30: =IFERROR($E30*SUMIF('Daily Log'!$BV$18:$BV$1017,$B30,'Daily Log'!$BW$18:$BW$1017),0) -> 5 | AF30: =IFERROR($E30*SUMIF('Daily Log'!$BY$18:$BY$1017,$B30,'Daily Log'!$BZ$18:$BZ$1017),0) -> 0 | AG30: =IFERROR($E30*SUMIF('Daily Log'!$CB$18:$CB$1017,$B30,'Daily Log'!$CC$18:$CC$1017),0) -> 0 | AH30: =IFERROR($E30*SUMIF('Daily Log'!$CE$18:$CE$1017,$B30,'Daily Log'!$CF$18:$CF$1017),0) -> 0 | AI30: =IFERROR($E30*SUMIF('Daily Log'!$CH$18:$CH$1017,$B30,'Daily Log'!$CI$18:$CI$1017),0) -> 0 | AJ30: =IFERROR($E30*SUMIF('Daily Log'!$CK$18:$CK$1017,$B30,'Daily Log'!$CL$18:$CL$1017),0) -> 0 | AK30: =IFERROR($E30*SUMIF('Daily Log'!$CN$18:$CN$1017,$B30,'Daily Log'!$CO$18:$CO$1017),0) -> 0
B31: BH02 5002:HEI BKT | D31: BEER | E31: 4 | F31: 284 | G31: =IFERROR($E31*SUMIF('Daily Log'!$B$18:$B$1017,$B31,'Daily Log'!$C$18:$C$1017),0) -> 8 | H31: =IFERROR($E31*SUMIF('Daily Log'!$E$18:$E$1017,$B31,'Daily Log'!$F$18:$F$1017),0) -> 20 | I31: =IFERROR($E31*SUMIF('Daily Log'!$H$18:$H$1017,$B31,'Daily Log'!$I$18:$I$1017),0) -> 8 | J31: =IFERROR($E31*SUMIF('Daily Log'!$K$18:$K$1017,$B31,'Daily Log'!$L$18:$L$1017),0) -> 0 | K31: =IFERROR($E31*SUMIF('Daily Log'!$N$18:$N$1017,$B31,'Daily Log'!$O$18:$O$1017),0) -> 12 | L31: =IFERROR($E31*SUMIF('Daily Log'!$Q$18:$Q$1017,$B31,'Daily Log'!$R$18:$R$1017),0) -> 16 | M31: =IFERROR($E31*SUMIF('Daily Log'!$T$18:$T$1017,$B31,'Daily Log'!$U$18:$U$1017),0) -> 32 | N31: =IFERROR($E31*SUMIF('Daily Log'!$W$18:$W$1017,$B31,'Daily Log'!$X$18:$X$1017),0) -> 8 | O31: =IFERROR($E31*SUMIF('Daily Log'!$Z$18:$Z$1017,$B31,'Daily Log'!$AA$18:$AA$1017),0) -> 0 | P31: =IFERROR($E31*SUMIF('Daily Log'!$AC$18:$AC$1017,$B31,'Daily Log'!$AD$18:$AD$1017),0) -> 8 | Q31: =IFERROR($E31*SUMIF('Daily Log'!$AF$18:$AF$1017,$B31,'Daily Log'!$AG$18:$AG$1017),0) -> 12 | R31: =IFERROR($E31*SUMIF('Daily Log'!$AI$18:$AI$1017,$B31,'Daily Log'!$AJ$18:$AJ$1017),0) -> 0 | S31: =IFERROR($E31*SUMIF('Daily Log'!$AL$18:$AL$1017,$B31,'Daily Log'!$AM$18:$AM$1017),0) -> 20 | T31: =IFERROR($E31*SUMIF('Daily Log'!$AO$18:$AO$1017,$B31,'Daily Log'!$AP$18:$AP$1017),0) -> 16 | U31: =IFERROR($E31*SUMIF('Daily Log'!$AR$18:$AR$1017,$B31,'Daily Log'!$AS$18:$AS$1017),0) -> 8 | V31: =IFERROR($E31*SUMIF('Daily Log'!$AU$18:$AU$1017,$B31,'Daily Log'!$AV$18:$AV$1017),0) -> 4 | W31: =IFERROR($E31*SUMIF('Daily Log'!$AX$18:$AX$1017,$B31,'Daily Log'!$AY$18:$AY$1017),0) -> 8 | X31: =IFERROR($E31*SUMIF('Daily Log'!$BA$18:$BA$1017,$B31,'Daily Log'!$BB$18:$BB$1017),0) -> 8 | Y31: =IFERROR($E31*SUMIF('Daily Log'!$BD$18:$BD$1017,$B31,'Daily Log'!$BE$18:$BE$1017),0) -> 20 | Z31: =IFERROR($E31*SUMIF('Daily Log'!$BG$18:$BG$1017,$B31,'Daily Log'!$BH$18:$BH$1017),0) -> 0 | AA31: =IFERROR($E31*SUMIF('Daily Log'!$BJ$18:$BJ$1017,$B31,'Daily Log'!$BK$18:$BK$1017),0) -> 24 | AB31: =IFERROR($E31*SUMIF('Daily Log'!$BM$18:$BM$1017,$B31,'Daily Log'!$BN$18:$BN$1017),0) -> 4 | AC31: =IFERROR($E31*SUMIF('Daily Log'!$BP$18:$BP$1017,$B31,'Daily Log'!$BQ$18:$BQ$1017),0) -> 4 | AD31: =IFERROR($E31*SUMIF('Daily Log'!$BS$18:$BS$1017,$B31,'Daily Log'!$BT$18:$BT$1017),0) -> 8 | AE31: =IFERROR($E31*SUMIF('Daily Log'!$BV$18:$BV$1017,$B31,'Daily Log'!$BW$18:$BW$1017),0) -> 16 | AF31: =IFERROR($E31*SUMIF('Daily Log'!$BY$18:$BY$1017,$B31,'Daily Log'!$BZ$18:$BZ$1017),0) -> 4 | AG31: =IFERROR($E31*SUMIF('Daily Log'!$CB$18:$CB$1017,$B31,'Daily Log'!$CC$18:$CC$1017),0) -> 16 | AH31: =IFERROR($E31*SUMIF('Daily Log'!$CE$18:$CE$1017,$B31,'Daily Log'!$CF$18:$CF$1017),0) -> 0 | AI31: =IFERROR($E31*SUMIF('Daily Log'!$CH$18:$CH$1017,$B31,'Daily Log'!$CI$18:$CI$1017),0) -> 0 | AJ31: =IFERROR($E31*SUMIF('Daily Log'!$CK$18:$CK$1017,$B31,'Daily Log'!$CL$18:$CL$1017),0) -> 0 | AK31: =IFERROR($E31*SUMIF('Daily Log'!$CN$18:$CN$1017,$B31,'Daily Log'!$CO$18:$CO$1017),0) -> 0
B32: BH03 5003:HEI RND | D32: BEER | E32: 12 | F32: 636 | G32: =IFERROR($E32*SUMIF('Daily Log'!$B$18:$B$1017,$B32,'Daily Log'!$C$18:$C$1017),0) -> 48 | H32: =IFERROR($E32*SUMIF('Daily Log'!$E$18:$E$1017,$B32,'Daily Log'!$F$18:$F$1017),0) -> 36 | I32: =IFERROR($E32*SUMIF('Daily Log'!$H$18:$H$1017,$B32,'Daily Log'!$I$18:$I$1017),0) -> 24 | J32: =IFERROR($E32*SUMIF('Daily Log'!$K$18:$K$1017,$B32,'Daily Log'!$L$18:$L$1017),0) -> 60 | K32: =IFERROR($E32*SUMIF('Daily Log'!$N$18:$N$1017,$B32,'Daily Log'!$O$18:$O$1017),0) -> 0 | L32: =IFERROR($E32*SUMIF('Daily Log'!$Q$18:$Q$1017,$B32,'Daily Log'!$R$18:$R$1017),0) -> 48 | M32: =IFERROR($E32*SUMIF('Daily Log'!$T$18:$T$1017,$B32,'Daily Log'!$U$18:$U$1017),0) -> 12 | N32: =IFERROR($E32*SUMIF('Daily Log'!$W$18:$W$1017,$B32,'Daily Log'!$X$18:$X$1017),0) -> 36 | O32: =IFERROR($E32*SUMIF('Daily Log'!$Z$18:$Z$1017,$B32,'Daily Log'!$AA$18:$AA$1017),0) -> 12 | P32: =IFERROR($E32*SUMIF('Daily Log'!$AC$18:$AC$1017,$B32,'Daily Log'!$AD$18:$AD$1017),0) -> 24 | Q32: =IFERROR($E32*SUMIF('Daily Log'!$AF$18:$AF$1017,$B32,'Daily Log'!$AG$18:$AG$1017),0) -> 0 | R32: =IFERROR($E32*SUMIF('Daily Log'!$AI$18:$AI$1017,$B32,'Daily Log'!$AJ$18:$AJ$1017),0) -> 12 | S32: =IFERROR($E32*SUMIF('Daily Log'!$AL$18:$AL$1017,$B32,'Daily Log'!$AM$18:$AM$1017),0) -> 24 | T32: =IFERROR($E32*SUMIF('Daily Log'!$AO$18:$AO$1017,$B32,'Daily Log'!$AP$18:$AP$1017),0) -> 24 | U32: =IFERROR($E32*SUMIF('Daily Log'!$AR$18:$AR$1017,$B32,'Daily Log'!$AS$18:$AS$1017),0) -> 12 | V32: =IFERROR($E32*SUMIF('Daily Log'!$AU$18:$AU$1017,$B32,'Daily Log'!$AV$18:$AV$1017),0) -> 12 | W32: =IFERROR($E32*SUMIF('Daily Log'!$AX$18:$AX$1017,$B32,'Daily Log'!$AY$18:$AY$1017),0) -> 24 | X32: =IFERROR($E32*SUMIF('Daily Log'!$BA$18:$BA$1017,$B32,'Daily Log'!$BB$18:$BB$1017),0) -> 36 | Y32: =IFERROR($E32*SUMIF('Daily Log'!$BD$18:$BD$1017,$B32,'Daily Log'!$BE$18:$BE$1017),0) -> 24 | Z32: =IFERROR($E32*SUMIF('Daily Log'!$BG$18:$BG$1017,$B32,'Daily Log'!$BH$18:$BH$1017),0) -> 24 | AA32: =IFERROR($E32*SUMIF('Daily Log'!$BJ$18:$BJ$1017,$B32,'Daily Log'!$BK$18:$BK$1017),0) -> 48 | AB32: =IFERROR($E32*SUMIF('Daily Log'!$BM$18:$BM$1017,$B32,'Daily Log'!$BN$18:$BN$1017),0) -> 24 | AC32: =IFERROR($E32*SUMIF('Daily Log'!$BP$18:$BP$1017,$B32,'Daily Log'!$BQ$18:$BQ$1017),0) -> 24 | AD32: =IFERROR($E32*SUMIF('Daily Log'!$BS$18:$BS$1017,$B32,'Daily Log'!$BT$18:$BT$1017),0) -> 12 | AE32: =IFERROR($E32*SUMIF('Daily Log'!$BV$18:$BV$1017,$B32,'Daily Log'!$BW$18:$BW$1017),0) -> 12 | AF32: =IFERROR($E32*SUMIF('Daily Log'!$BY$18:$BY$1017,$B32,'Daily Log'!$BZ$18:$BZ$1017),0) -> 24 | AG32: =IFERROR($E32*SUMIF('Daily Log'!$CB$18:$CB$1017,$B32,'Daily Log'!$CC$18:$CC$1017),0) -> 0 | AH32: =IFERROR($E32*SUMIF('Daily Log'!$CE$18:$CE$1017,$B32,'Daily Log'!$CF$18:$CF$1017),0) -> 0 | AI32: =IFERROR($E32*SUMIF('Daily Log'!$CH$18:$CH$1017,$B32,'Daily Log'!$CI$18:$CI$1017),0) -> 0 | AJ32: =IFERROR($E32*SUMIF('Daily Log'!$CK$18:$CK$1017,$B32,'Daily Log'!$CL$18:$CL$1017),0) -> 0 | AK32: =IFERROR($E32*SUMIF('Daily Log'!$CN$18:$CN$1017,$B32,'Daily Log'!$CO$18:$CO$1017),0) -> 0
B33: ZBR02 HEI EX BKT | D33: BEER | E33: 4 | F33: 484 | G33: =IFERROR($E33*SUMIF('Daily Log'!$B$18:$B$1017,$B33,'Daily Log'!$C$18:$C$1017),0) -> 0 | H33: =IFERROR($E33*SUMIF('Daily Log'!$E$18:$E$1017,$B33,'Daily Log'!$F$18:$F$1017),0) -> 44 | I33: =IFERROR($E33*SUMIF('Daily Log'!$H$18:$H$1017,$B33,'Daily Log'!$I$18:$I$1017),0) -> 12 | J33: =IFERROR($E33*SUMIF('Daily Log'!$K$18:$K$1017,$B33,'Daily Log'!$L$18:$L$1017),0) -> 48 | K33: =IFERROR($E33*SUMIF('Daily Log'!$N$18:$N$1017,$B33,'Daily Log'!$O$18:$O$1017),0) -> 24 | L33: =IFERROR($E33*SUMIF('Daily Log'!$Q$18:$Q$1017,$B33,'Daily Log'!$R$18:$R$1017),0) -> 4 | M33: =IFERROR($E33*SUMIF('Daily Log'!$T$18:$T$1017,$B33,'Daily Log'!$U$18:$U$1017),0) -> 12 | N33: =IFERROR($E33*SUMIF('Daily Log'!$W$18:$W$1017,$B33,'Daily Log'!$X$18:$X$1017),0) -> 12 | O33: =IFERROR($E33*SUMIF('Daily Log'!$Z$18:$Z$1017,$B33,'Daily Log'!$AA$18:$AA$1017),0) -> 4 | P33: =IFERROR($E33*SUMIF('Daily Log'!$AC$18:$AC$1017,$B33,'Daily Log'!$AD$18:$AD$1017),0) -> 12 | Q33: =IFERROR($E33*SUMIF('Daily Log'!$AF$18:$AF$1017,$B33,'Daily Log'!$AG$18:$AG$1017),0) -> 8 | R33: =IFERROR($E33*SUMIF('Daily Log'!$AI$18:$AI$1017,$B33,'Daily Log'!$AJ$18:$AJ$1017),0) -> 12 | S33: =IFERROR($E33*SUMIF('Daily Log'!$AL$18:$AL$1017,$B33,'Daily Log'!$AM$18:$AM$1017),0) -> 0 | T33: =IFERROR($E33*SUMIF('Daily Log'!$AO$18:$AO$1017,$B33,'Daily Log'!$AP$18:$AP$1017),0) -> 12 | U33: =IFERROR($E33*SUMIF('Daily Log'!$AR$18:$AR$1017,$B33,'Daily Log'!$AS$18:$AS$1017),0) -> 60 | V33: =IFERROR($E33*SUMIF('Daily Log'!$AU$18:$AU$1017,$B33,'Daily Log'!$AV$18:$AV$1017),0) -> 24 | W33: =IFERROR($E33*SUMIF('Daily Log'!$AX$18:$AX$1017,$B33,'Daily Log'!$AY$18:$AY$1017),0) -> 0 | X33: =IFERROR($E33*SUMIF('Daily Log'!$BA$18:$BA$1017,$B33,'Daily Log'!$BB$18:$BB$1017),0) -> 0 | Y33: =IFERROR($E33*SUMIF('Daily Log'!$BD$18:$BD$1017,$B33,'Daily Log'!$BE$18:$BE$1017),0) -> 60 | Z33: =IFERROR($E33*SUMIF('Daily Log'!$BG$18:$BG$1017,$B33,'Daily Log'!$BH$18:$BH$1017),0) -> 24 | AA33: =IFERROR($E33*SUMIF('Daily Log'!$BJ$18:$BJ$1017,$B33,'Daily Log'!$BK$18:$BK$1017),0) -> 12 | AB33: =IFERROR($E33*SUMIF('Daily Log'!$BM$18:$BM$1017,$B33,'Daily Log'!$BN$18:$BN$1017),0) -> 28 | AC33: =IFERROR($E33*SUMIF('Daily Log'!$BP$18:$BP$1017,$B33,'Daily Log'!$BQ$18:$BQ$1017),0) -> 0 | AD33: =IFERROR($E33*SUMIF('Daily Log'!$BS$18:$BS$1017,$B33,'Daily Log'!$BT$18:$BT$1017),0) -> 36 | AE33: =IFERROR($E33*SUMIF('Daily Log'!$BV$18:$BV$1017,$B33,'Daily Log'!$BW$18:$BW$1017),0) -> 0 | AF33: =IFERROR($E33*SUMIF('Daily Log'!$BY$18:$BY$1017,$B33,'Daily Log'!$BZ$18:$BZ$1017),0) -> 12 | AG33: =IFERROR($E33*SUMIF('Daily Log'!$CB$18:$CB$1017,$B33,'Daily Log'!$CC$18:$CC$1017),0) -> 24 | AH33: =IFERROR($E33*SUMIF('Daily Log'!$CE$18:$CE$1017,$B33,'Daily Log'!$CF$18:$CF$1017),0) -> 0 | AI33: =IFERROR($E33*SUMIF('Daily Log'!$CH$18:$CH$1017,$B33,'Daily Log'!$CI$18:$CI$1017),0) -> 0 | AJ33: =IFERROR($E33*SUMIF('Daily Log'!$CK$18:$CK$1017,$B33,'Daily Log'!$CL$18:$CL$1017),0) -> 0 | AK33: =IFERROR($E33*SUMIF('Daily Log'!$CN$18:$CN$1017,$B33,'Daily Log'!$CO$18:$CO$1017),0) -> 0
B34: ZBM02 HEI MEM EX BKT | D34: BEER | E34: 4 | F34: 188 | G34: =IFERROR($E34*SUMIF('Daily Log'!$B$18:$B$1017,$B34,'Daily Log'!$C$18:$C$1017),0) -> 0 | H34: =IFERROR($E34*SUMIF('Daily Log'!$E$18:$E$1017,$B34,'Daily Log'!$F$18:$F$1017),0) -> 0 | I34: =IFERROR($E34*SUMIF('Daily Log'!$H$18:$H$1017,$B34,'Daily Log'!$I$18:$I$1017),0) -> 0 | J34: =IFERROR($E34*SUMIF('Daily Log'!$K$18:$K$1017,$B34,'Daily Log'!$L$18:$L$1017),0) -> 0 | K34: =IFERROR($E34*SUMIF('Daily Log'!$N$18:$N$1017,$B34,'Daily Log'!$O$18:$O$1017),0) -> 0 | L34: =IFERROR($E34*SUMIF('Daily Log'!$Q$18:$Q$1017,$B34,'Daily Log'!$R$18:$R$1017),0) -> 0 | M34: =IFERROR($E34*SUMIF('Daily Log'!$T$18:$T$1017,$B34,'Daily Log'!$U$18:$U$1017),0) -> 0 | N34: =IFERROR($E34*SUMIF('Daily Log'!$W$18:$W$1017,$B34,'Daily Log'!$X$18:$X$1017),0) -> 0 | O34: =IFERROR($E34*SUMIF('Daily Log'!$Z$18:$Z$1017,$B34,'Daily Log'!$AA$18:$AA$1017),0) -> 0 | P34: =IFERROR($E34*SUMIF('Daily Log'!$AC$18:$AC$1017,$B34,'Daily Log'!$AD$18:$AD$1017),0) -> 0 | Q34: =IFERROR($E34*SUMIF('Daily Log'!$AF$18:$AF$1017,$B34,'Daily Log'!$AG$18:$AG$1017),0) -> 20 | R34: =IFERROR($E34*SUMIF('Daily Log'!$AI$18:$AI$1017,$B34,'Daily Log'!$AJ$18:$AJ$1017),0) -> 0 | S34: =IFERROR($E34*SUMIF('Daily Log'!$AL$18:$AL$1017,$B34,'Daily Log'!$AM$18:$AM$1017),0) -> 0 | T34: =IFERROR($E34*SUMIF('Daily Log'!$AO$18:$AO$1017,$B34,'Daily Log'!$AP$18:$AP$1017),0) -> 0 | U34: =IFERROR($E34*SUMIF('Daily Log'!$AR$18:$AR$1017,$B34,'Daily Log'!$AS$18:$AS$1017),0) -> 0 | V34: =IFERROR($E34*SUMIF('Daily Log'!$AU$18:$AU$1017,$B34,'Daily Log'!$AV$18:$AV$1017),0) -> 0 | W34: =IFERROR($E34*SUMIF('Daily Log'!$AX$18:$AX$1017,$B34,'Daily Log'!$AY$18:$AY$1017),0) -> 0 | X34: =IFERROR($E34*SUMIF('Daily Log'!$BA$18:$BA$1017,$B34,'Daily Log'!$BB$18:$BB$1017),0) -> 168 | Y34: =IFERROR($E34*SUMIF('Daily Log'!$BD$18:$BD$1017,$B34,'Daily Log'!$BE$18:$BE$1017),0) -> 0 | Z34: =IFERROR($E34*SUMIF('Daily Log'!$BG$18:$BG$1017,$B34,'Daily Log'!$BH$18:$BH$1017),0) -> 0 | AA34: =IFERROR($E34*SUMIF('Daily Log'!$BJ$18:$BJ$1017,$B34,'Daily Log'!$BK$18:$BK$1017),0) -> 0 | AB34: =IFERROR($E34*SUMIF('Daily Log'!$BM$18:$BM$1017,$B34,'Daily Log'!$BN$18:$BN$1017),0) -> 0 | AC34: =IFERROR($E34*SUMIF('Daily Log'!$BP$18:$BP$1017,$B34,'Daily Log'!$BQ$18:$BQ$1017),0) -> 0 | AD34: =IFERROR($E34*SUMIF('Daily Log'!$BS$18:$BS$1017,$B34,'Daily Log'!$BT$18:$BT$1017),0) -> 0 | AE34: =IFERROR($E34*SUMIF('Daily Log'!$BV$18:$BV$1017,$B34,'Daily Log'!$BW$18:$BW$1017),0) -> 0 | AF34: =IFERROR($E34*SUMIF('Daily Log'!$BY$18:$BY$1017,$B34,'Daily Log'!$BZ$18:$BZ$1017),0) -> 0 | AG34: =IFERROR($E34*SUMIF('Daily Log'!$CB$18:$CB$1017,$B34,'Daily Log'!$CC$18:$CC$1017),0) -> 0 | AH34: =IFERROR($E34*SUMIF('Daily Log'!$CE$18:$CE$1017,$B34,'Daily Log'!$CF$18:$CF$1017),0) -> 0 | AI34: =IFERROR($E34*SUMIF('Daily Log'!$CH$18:$CH$1017,$B34,'Daily Log'!$CI$18:$CI$1017),0) -> 0 | AJ34: =IFERROR($E34*SUMIF('Daily Log'!$CK$18:$CK$1017,$B34,'Daily Log'!$CL$18:$CL$1017),0) -> 0 | AK34: =IFERROR($E34*SUMIF('Daily Log'!$CN$18:$CN$1017,$B34,'Daily Log'!$CO$18:$CO$1017),0) -> 0
B35: ZSB01 HEI BM BKT | D35: BEER | E35: 4 | F35: 56 | G35: =IFERROR($E35*SUMIF('Daily Log'!$B$18:$B$1017,$B35,'Daily Log'!$C$18:$C$1017),0) -> 0 | H35: =IFERROR($E35*SUMIF('Daily Log'!$E$18:$E$1017,$B35,'Daily Log'!$F$18:$F$1017),0) -> 0 | I35: =IFERROR($E35*SUMIF('Daily Log'!$H$18:$H$1017,$B35,'Daily Log'!$I$18:$I$1017),0) -> 0 | J35: =IFERROR($E35*SUMIF('Daily Log'!$K$18:$K$1017,$B35,'Daily Log'!$L$18:$L$1017),0) -> 0 | K35: =IFERROR($E35*SUMIF('Daily Log'!$N$18:$N$1017,$B35,'Daily Log'!$O$18:$O$1017),0) -> 0 | L35: =IFERROR($E35*SUMIF('Daily Log'!$Q$18:$Q$1017,$B35,'Daily Log'!$R$18:$R$1017),0) -> 16 | M35: =IFERROR($E35*SUMIF('Daily Log'!$T$18:$T$1017,$B35,'Daily Log'!$U$18:$U$1017),0) -> 0 | N35: =IFERROR($E35*SUMIF('Daily Log'!$W$18:$W$1017,$B35,'Daily Log'!$X$18:$X$1017),0) -> 0 | O35: =IFERROR($E35*SUMIF('Daily Log'!$Z$18:$Z$1017,$B35,'Daily Log'!$AA$18:$AA$1017),0) -> 8 | P35: =IFERROR($E35*SUMIF('Daily Log'!$AC$18:$AC$1017,$B35,'Daily Log'!$AD$18:$AD$1017),0) -> 0 | Q35: =IFERROR($E35*SUMIF('Daily Log'!$AF$18:$AF$1017,$B35,'Daily Log'!$AG$18:$AG$1017),0) -> 0 | R35: =IFERROR($E35*SUMIF('Daily Log'!$AI$18:$AI$1017,$B35,'Daily Log'!$AJ$18:$AJ$1017),0) -> 0 | S35: =IFERROR($E35*SUMIF('Daily Log'!$AL$18:$AL$1017,$B35,'Daily Log'!$AM$18:$AM$1017),0) -> 0 | T35: =IFERROR($E35*SUMIF('Daily Log'!$AO$18:$AO$1017,$B35,'Daily Log'!$AP$18:$AP$1017),0) -> 0 | U35: =IFERROR($E35*SUMIF('Daily Log'!$AR$18:$AR$1017,$B35,'Daily Log'!$AS$18:$AS$1017),0) -> 0 | V35: =IFERROR($E35*SUMIF('Daily Log'!$AU$18:$AU$1017,$B35,'Daily Log'!$AV$18:$AV$1017),0) -> 0 | W35: =IFERROR($E35*SUMIF('Daily Log'!$AX$18:$AX$1017,$B35,'Daily Log'!$AY$18:$AY$1017),0) -> 0 | X35: =IFERROR($E35*SUMIF('Daily Log'!$BA$18:$BA$1017,$B35,'Daily Log'!$BB$18:$BB$1017),0) -> 0 | Y35: =IFERROR($E35*SUMIF('Daily Log'!$BD$18:$BD$1017,$B35,'Daily Log'!$BE$18:$BE$1017),0) -> 0 | Z35: =IFERROR($E35*SUMIF('Daily Log'!$BG$18:$BG$1017,$B35,'Daily Log'!$BH$18:$BH$1017),0) -> 0 | AA35: =IFERROR($E35*SUMIF('Daily Log'!$BJ$18:$BJ$1017,$B35,'Daily Log'!$BK$18:$BK$1017),0) -> 16 | AB35: =IFERROR($E35*SUMIF('Daily Log'!$BM$18:$BM$1017,$B35,'Daily Log'!$BN$18:$BN$1017),0) -> 0 | AC35: =IFERROR($E35*SUMIF('Daily Log'!$BP$18:$BP$1017,$B35,'Daily Log'!$BQ$18:$BQ$1017),0) -> 0 | AD35: =IFERROR($E35*SUMIF('Daily Log'!$BS$18:$BS$1017,$B35,'Daily Log'!$BT$18:$BT$1017),0) -> 8 | AE35: =IFERROR($E35*SUMIF('Daily Log'!$BV$18:$BV$1017,$B35,'Daily Log'!$BW$18:$BW$1017),0) -> 0 | AF35: =IFERROR($E35*SUMIF('Daily Log'!$BY$18:$BY$1017,$B35,'Daily Log'!$BZ$18:$BZ$1017),0) -> 0 | AG35: =IFERROR($E35*SUMIF('Daily Log'!$CB$18:$CB$1017,$B35,'Daily Log'!$CC$18:$CC$1017),0) -> 0 | AH35: =IFERROR($E35*SUMIF('Daily Log'!$CE$18:$CE$1017,$B35,'Daily Log'!$CF$18:$CF$1017),0) -> 8 | AI35: =IFERROR($E35*SUMIF('Daily Log'!$CH$18:$CH$1017,$B35,'Daily Log'!$CI$18:$CI$1017),0) -> 0 | AJ35: =IFERROR($E35*SUMIF('Daily Log'!$CK$18:$CK$1017,$B35,'Daily Log'!$CL$18:$CL$1017),0) -> 0 | AK35: =IFERROR($E35*SUMIF('Daily Log'!$CN$18:$CN$1017,$B35,'Daily Log'!$CO$18:$CO$1017),0) -> 0
B36: HEINEKEN BEER TOTAL | D36: BEER | G36: =SUM(G30:G35) -> 56 | H36: =SUM(H30:H35) -> 100 | I36: 47 | J36: 108 | K36: 37 | L36: 84 | M36: 56 | N36: 57 | O36: 24 | P36: 45 | Q36: =SUM(Q30:Q35) -> 40 | R36: 29 | S36: 46 | T36: 52 | U36: 82 | V36: 42 | W36: 35 | X36: 214 | Y36: 104 | Z36: 50 | AA36: 100 | AB36: 57 | AC36: 28 | AD36: 64 | AE36: 33 | AF36: 40 | AG36: 40 | AH36: =SUM(AH30:AH35) -> 8 | AI36: 0 | AJ36: 0 | AK36: 0
B37: BT01 7001:TIG BTL | D37: BEER | E37: 1 | F37: 29 | G37: =IFERROR($E37*SUMIF('Daily Log'!$B$18:$B$1017,$B37,'Daily Log'!$C$18:$C$1017),0) -> 2 | H37: =IFERROR($E37*SUMIF('Daily Log'!$E$18:$E$1017,$B37,'Daily Log'!$F$18:$F$1017),0) -> 3 | I37: =IFERROR($E37*SUMIF('Daily Log'!$H$18:$H$1017,$B37,'Daily Log'!$I$18:$I$1017),0) -> 3 | J37: =IFERROR($E37*SUMIF('Daily Log'!$K$18:$K$1017,$B37,'Daily Log'!$L$18:$L$1017),0) -> 0 | K37: =IFERROR($E37*SUMIF('Daily Log'!$N$18:$N$1017,$B37,'Daily Log'!$O$18:$O$1017),0) -> 1 | L37: =IFERROR($E37*SUMIF('Daily Log'!$Q$18:$Q$1017,$B37,'Daily Log'!$R$18:$R$1017),0) -> 0 | M37: =IFERROR($E37*SUMIF('Daily Log'!$T$18:$T$1017,$B37,'Daily Log'!$U$18:$U$1017),0) -> 0 | N37: =IFERROR($E37*SUMIF('Daily Log'!$W$18:$W$1017,$B37,'Daily Log'!$X$18:$X$1017),0) -> 0 | O37: =IFERROR($E37*SUMIF('Daily Log'!$Z$18:$Z$1017,$B37,'Daily Log'!$AA$18:$AA$1017),0) -> 0 | P37: =IFERROR($E37*SUMIF('Daily Log'!$AC$18:$AC$1017,$B37,'Daily Log'!$AD$18:$AD$1017),0) -> 0 | Q37: =IFERROR($E37*SUMIF('Daily Log'!$AF$18:$AF$1017,$B37,'Daily Log'!$AG$18:$AG$1017),0) -> 2 | R37: =IFERROR($E37*SUMIF('Daily Log'!$AI$18:$AI$1017,$B37,'Daily Log'!$AJ$18:$AJ$1017),0) -> 0 | S37: =IFERROR($E37*SUMIF('Daily Log'!$AL$18:$AL$1017,$B37,'Daily Log'!$AM$18:$AM$1017),0) -> 2 | T37: =IFERROR($E37*SUMIF('Daily Log'!$AO$18:$AO$1017,$B37,'Daily Log'!$AP$18:$AP$1017),0) -> 3 | U37: =IFERROR($E37*SUMIF('Daily Log'!$AR$18:$AR$1017,$B37,'Daily Log'!$AS$18:$AS$1017),0) -> 5 | V37: =IFERROR($E37*SUMIF('Daily Log'!$AU$18:$AU$1017,$B37,'Daily Log'!$AV$18:$AV$1017),0) -> 1 | W37: =IFERROR($E37*SUMIF('Daily Log'!$AX$18:$AX$1017,$B37,'Daily Log'!$AY$18:$AY$1017),0) -> 0 | X37: =IFERROR($E37*SUMIF('Daily Log'!$BA$18:$BA$1017,$B37,'Daily Log'!$BB$18:$BB$1017),0) -> 0 | Y37: =IFERROR($E37*SUMIF('Daily Log'!$BD$18:$BD$1017,$B37,'Daily Log'!$BE$18:$BE$1017),0) -> 2 | Z37: =IFERROR($E37*SUMIF('Daily Log'!$BG$18:$BG$1017,$B37,'Daily Log'!$BH$18:$BH$1017),0) -> 0 | AA37: =IFERROR($E37*SUMIF('Daily Log'!$BJ$18:$BJ$1017,$B37,'Daily Log'!$BK$18:$BK$1017),0) -> 0 | AB37: =IFERROR($E37*SUMIF('Daily Log'!$BM$18:$BM$1017,$B37,'Daily Log'!$BN$18:$BN$1017),0) -> 0 | AC37: =IFERROR($E37*SUMIF('Daily Log'!$BP$18:$BP$1017,$B37,'Daily Log'!$BQ$18:$BQ$1017),0) -> 1 | AD37: =IFERROR($E37*SUMIF('Daily Log'!$BS$18:$BS$1017,$B37,'Daily Log'!$BT$18:$BT$1017),0) -> 2 | AE37: =IFERROR($E37*SUMIF('Daily Log'!$BV$18:$BV$1017,$B37,'Daily Log'!$BW$18:$BW$1017),0) -> 0 | AF37: =IFERROR($E37*SUMIF('Daily Log'!$BY$18:$BY$1017,$B37,'Daily Log'!$BZ$18:$BZ$1017),0) -> 2 | AG37: =IFERROR($E37*SUMIF('Daily Log'!$CB$18:$CB$1017,$B37,'Daily Log'!$CC$18:$CC$1017),0) -> 0 | AH37: =IFERROR($E37*SUMIF('Daily Log'!$CE$18:$CE$1017,$B37,'Daily Log'!$CF$18:$CF$1017),0) -> 0 | AI37: =IFERROR($E37*SUMIF('Daily Log'!$CH$18:$CH$1017,$B37,'Daily Log'!$CI$18:$CI$1017),0) -> 0 | AJ37: =IFERROR($E37*SUMIF('Daily Log'!$CK$18:$CK$1017,$B37,'Daily Log'!$CL$18:$CL$1017),0) -> 0 | AK37: =IFERROR($E37*SUMIF('Daily Log'!$CN$18:$CN$1017,$B37,'Daily Log'!$CO$18:$CO$1017),0) -> 0
B38: BT02 7002:TIG BKT | D38: BEER | E38: 4 | F38: 840 | G38: =IFERROR($E38*SUMIF('Daily Log'!$B$18:$B$1017,$B38,'Daily Log'!$C$18:$C$1017),0) -> 24 | H38: =IFERROR($E38*SUMIF('Daily Log'!$E$18:$E$1017,$B38,'Daily Log'!$F$18:$F$1017),0) -> 16 | I38: =IFERROR($E38*SUMIF('Daily Log'!$H$18:$H$1017,$B38,'Daily Log'!$I$18:$I$1017),0) -> 4 | J38: =IFERROR($E38*SUMIF('Daily Log'!$K$18:$K$1017,$B38,'Daily Log'!$L$18:$L$1017),0) -> 20 | K38: =IFERROR($E38*SUMIF('Daily Log'!$N$18:$N$1017,$B38,'Daily Log'!$O$18:$O$1017),0) -> 20 | L38: =IFERROR($E38*SUMIF('Daily Log'!$Q$18:$Q$1017,$B38,'Daily Log'!$R$18:$R$1017),0) -> 4 | M38: =IFERROR($E38*SUMIF('Daily Log'!$T$18:$T$1017,$B38,'Daily Log'!$U$18:$U$1017),0) -> 8 | N38: =IFERROR($E38*SUMIF('Daily Log'!$W$18:$W$1017,$B38,'Daily Log'!$X$18:$X$1017),0) -> 8 | O38: =IFERROR($E38*SUMIF('Daily Log'!$Z$18:$Z$1017,$B38,'Daily Log'!$AA$18:$AA$1017),0) -> 24 | P38: =IFERROR($E38*SUMIF('Daily Log'!$AC$18:$AC$1017,$B38,'Daily Log'!$AD$18:$AD$1017),0) -> 76 | Q38: =IFERROR($E38*SUMIF('Daily Log'!$AF$18:$AF$1017,$B38,'Daily Log'!$AG$18:$AG$1017),0) -> 12 | R38: =IFERROR($E38*SUMIF('Daily Log'!$AI$18:$AI$1017,$B38,'Daily Log'!$AJ$18:$AJ$1017),0) -> 64 | S38: =IFERROR($E38*SUMIF('Daily Log'!$AL$18:$AL$1017,$B38,'Daily Log'!$AM$18:$AM$1017),0) -> 32 | T38: =IFERROR($E38*SUMIF('Daily Log'!$AO$18:$AO$1017,$B38,'Daily Log'!$AP$18:$AP$1017),0) -> 4 | U38: =IFERROR($E38*SUMIF('Daily Log'!$AR$18:$AR$1017,$B38,'Daily Log'!$AS$18:$AS$1017),0) -> 8 | V38: =IFERROR($E38*SUMIF('Daily Log'!$AU$18:$AU$1017,$B38,'Daily Log'!$AV$18:$AV$1017),0) -> 4 | W38: =IFERROR($E38*SUMIF('Daily Log'!$AX$18:$AX$1017,$B38,'Daily Log'!$AY$18:$AY$1017),0) -> 108 | X38: =IFERROR($E38*SUMIF('Daily Log'!$BA$18:$BA$1017,$B38,'Daily Log'!$BB$18:$BB$1017),0) -> 0 | Y38: =IFERROR($E38*SUMIF('Daily Log'!$BD$18:$BD$1017,$B38,'Daily Log'!$BE$18:$BE$1017),0) -> 112 | Z38: =IFERROR($E38*SUMIF('Daily Log'!$BG$18:$BG$1017,$B38,'Daily Log'!$BH$18:$BH$1017),0) -> 24 | AA38: =IFERROR($E38*SUMIF('Daily Log'!$BJ$18:$BJ$1017,$B38,'Daily Log'!$BK$18:$BK$1017),0) -> 4 | AB38: =IFERROR($E38*SUMIF('Daily Log'!$BM$18:$BM$1017,$B38,'Daily Log'!$BN$18:$BN$1017),0) -> 0 | AC38: =IFERROR($E38*SUMIF('Daily Log'!$BP$18:$BP$1017,$B38,'Daily Log'!$BQ$18:$BQ$1017),0) -> 4 | AD38: =IFERROR($E38*SUMIF('Daily Log'!$BS$18:$BS$1017,$B38,'Daily Log'!$BT$18:$BT$1017),0) -> 72 | AE38: =IFERROR($E38*SUMIF('Daily Log'!$BV$18:$BV$1017,$B38,'Daily Log'!$BW$18:$BW$1017),0) -> 16 | AF38: =IFERROR($E38*SUMIF('Daily Log'!$BY$18:$BY$1017,$B38,'Daily Log'!$BZ$18:$BZ$1017),0) -> 156 | AG38: =IFERROR($E38*SUMIF('Daily Log'!$CB$18:$CB$1017,$B38,'Daily Log'!$CC$18:$CC$1017),0) -> 4 | AH38: =IFERROR($E38*SUMIF('Daily Log'!$CE$18:$CE$1017,$B38,'Daily Log'!$CF$18:$CF$1017),0) -> 12 | AI38: =IFERROR($E38*SUMIF('Daily Log'!$CH$18:$CH$1017,$B38,'Daily Log'!$CI$18:$CI$1017),0) -> 0 | AJ38: =IFERROR($E38*SUMIF('Daily Log'!$CK$18:$CK$1017,$B38,'Daily Log'!$CL$18:$CL$1017),0) -> 0 | AK38: =IFERROR($E38*SUMIF('Daily Log'!$CN$18:$CN$1017,$B38,'Daily Log'!$CO$18:$CO$1017),0) -> 0
B39: BT03 7003:TIG RND | D39: BEER | E39: 12 | F39: 864 | G39: =IFERROR($E39*SUMIF('Daily Log'!$B$18:$B$1017,$B39,'Daily Log'!$C$18:$C$1017),0) -> 0 | H39: =IFERROR($E39*SUMIF('Daily Log'!$E$18:$E$1017,$B39,'Daily Log'!$F$18:$F$1017),0) -> 96 | I39: =IFERROR($E39*SUMIF('Daily Log'!$H$18:$H$1017,$B39,'Daily Log'!$I$18:$I$1017),0) -> 24 | J39: =IFERROR($E39*SUMIF('Daily Log'!$K$18:$K$1017,$B39,'Daily Log'!$L$18:$L$1017),0) -> 24 | K39: =IFERROR($E39*SUMIF('Daily Log'!$N$18:$N$1017,$B39,'Daily Log'!$O$18:$O$1017),0) -> 24 | L39: =IFERROR($E39*SUMIF('Daily Log'!$Q$18:$Q$1017,$B39,'Daily Log'!$R$18:$R$1017),0) -> 24 | M39: =IFERROR($E39*SUMIF('Daily Log'!$T$18:$T$1017,$B39,'Daily Log'!$U$18:$U$1017),0) -> 72 | N39: =IFERROR($E39*SUMIF('Daily Log'!$W$18:$W$1017,$B39,'Daily Log'!$X$18:$X$1017),0) -> 36 | O39: =IFERROR($E39*SUMIF('Daily Log'!$Z$18:$Z$1017,$B39,'Daily Log'!$AA$18:$AA$1017),0) -> 36 | P39: =IFERROR($E39*SUMIF('Daily Log'!$AC$18:$AC$1017,$B39,'Daily Log'!$AD$18:$AD$1017),0) -> 0 | Q39: =IFERROR($E39*SUMIF('Daily Log'!$AF$18:$AF$1017,$B39,'Daily Log'!$AG$18:$AG$1017),0) -> 12 | R39: =IFERROR($E39*SUMIF('Daily Log'!$AI$18:$AI$1017,$B39,'Daily Log'!$AJ$18:$AJ$1017),0) -> 36 | S39: =IFERROR($E39*SUMIF('Daily Log'!$AL$18:$AL$1017,$B39,'Daily Log'!$AM$18:$AM$1017),0) -> 84 | T39: =IFERROR($E39*SUMIF('Daily Log'!$AO$18:$AO$1017,$B39,'Daily Log'!$AP$18:$AP$1017),0) -> 24 | U39: =IFERROR($E39*SUMIF('Daily Log'!$AR$18:$AR$1017,$B39,'Daily Log'!$AS$18:$AS$1017),0) -> 48 | V39: =IFERROR($E39*SUMIF('Daily Log'!$AU$18:$AU$1017,$B39,'Daily Log'!$AV$18:$AV$1017),0) -> 48 | W39: =IFERROR($E39*SUMIF('Daily Log'!$AX$18:$AX$1017,$B39,'Daily Log'!$AY$18:$AY$1017),0) -> 24 | X39: =IFERROR($E39*SUMIF('Daily Log'!$BA$18:$BA$1017,$B39,'Daily Log'!$BB$18:$BB$1017),0) -> 84 | Y39: =IFERROR($E39*SUMIF('Daily Log'!$BD$18:$BD$1017,$B39,'Daily Log'!$BE$18:$BE$1017),0) -> 0 | Z39: =IFERROR($E39*SUMIF('Daily Log'!$BG$18:$BG$1017,$B39,'Daily Log'!$BH$18:$BH$1017),0) -> 0 | AA39: =IFERROR($E39*SUMIF('Daily Log'!$BJ$18:$BJ$1017,$B39,'Daily Log'!$BK$18:$BK$1017),0) -> 24 | AB39: =IFERROR($E39*SUMIF('Daily Log'!$BM$18:$BM$1017,$B39,'Daily Log'!$BN$18:$BN$1017),0) -> 24 | AC39: =IFERROR($E39*SUMIF('Daily Log'!$BP$18:$BP$1017,$B39,'Daily Log'!$BQ$18:$BQ$1017),0) -> 36 | AD39: =IFERROR($E39*SUMIF('Daily Log'!$BS$18:$BS$1017,$B39,'Daily Log'!$BT$18:$BT$1017),0) -> 0 | AE39: =IFERROR($E39*SUMIF('Daily Log'!$BV$18:$BV$1017,$B39,'Daily Log'!$BW$18:$BW$1017),0) -> 24 | AF39: =IFERROR($E39*SUMIF('Daily Log'!$BY$18:$BY$1017,$B39,'Daily Log'!$BZ$18:$BZ$1017),0) -> 0 | AG39: =IFERROR($E39*SUMIF('Daily Log'!$CB$18:$CB$1017,$B39,'Daily Log'!$CC$18:$CC$1017),0) -> 36 | AH39: =IFERROR($E39*SUMIF('Daily Log'!$CE$18:$CE$1017,$B39,'Daily Log'!$CF$18:$CF$1017),0) -> 24 | AI39: =IFERROR($E39*SUMIF('Daily Log'!$CH$18:$CH$1017,$B39,'Daily Log'!$CI$18:$CI$1017),0) -> 0 | AJ39: =IFERROR($E39*SUMIF('Daily Log'!$CK$18:$CK$1017,$B39,'Daily Log'!$CL$18:$CL$1017),0) -> 0 | AK39: =IFERROR($E39*SUMIF('Daily Log'!$CN$18:$CN$1017,$B39,'Daily Log'!$CO$18:$CO$1017),0) -> 0
B40: BT05 7005:TIG RD BTL | D40: BEER | E40: 1 | F40: 0 | G40: =IFERROR($E40*SUMIF('Daily Log'!$B$18:$B$1017,$B40,'Daily Log'!$C$18:$C$1017),0) -> 0 | H40: =IFERROR($E40*SUMIF('Daily Log'!$E$18:$E$1017,$B40,'Daily Log'!$F$18:$F$1017),0) -> 0 | I40: =IFERROR($E40*SUMIF('Daily Log'!$H$18:$H$1017,$B40,'Daily Log'!$I$18:$I$1017),0) -> 0 | J40: =IFERROR($E40*SUMIF('Daily Log'!$K$18:$K$1017,$B40,'Daily Log'!$L$18:$L$1017),0) -> 0 | K40: =IFERROR($E40*SUMIF('Daily Log'!$N$18:$N$1017,$B40,'Daily Log'!$O$18:$O$1017),0) -> 0 | L40: =IFERROR($E40*SUMIF('Daily Log'!$Q$18:$Q$1017,$B40,'Daily Log'!$R$18:$R$1017),0) -> 0 | M40: =IFERROR($E40*SUMIF('Daily Log'!$T$18:$T$1017,$B40,'Daily Log'!$U$18:$U$1017),0) -> 0 | N40: =IFERROR($E40*SUMIF('Daily Log'!$W$18:$W$1017,$B40,'Daily Log'!$X$18:$X$1017),0) -> 0 | O40: =IFERROR($E40*SUMIF('Daily Log'!$Z$18:$Z$1017,$B40,'Daily Log'!$AA$18:$AA$1017),0) -> 0 | P40: =IFERROR($E40*SUMIF('Daily Log'!$AC$18:$AC$1017,$B40,'Daily Log'!$AD$18:$AD$1017),0) -> 0 | Q40: =IFERROR($E40*SUMIF('Daily Log'!$AF$18:$AF$1017,$B40,'Daily Log'!$AG$18:$AG$1017),0) -> 0 | R40: =IFERROR($E40*SUMIF('Daily Log'!$AI$18:$AI$1017,$B40,'Daily Log'!$AJ$18:$AJ$1017),0) -> 0 | S40: =IFERROR($E40*SUMIF('Daily Log'!$AL$18:$AL$1017,$B40,'Daily Log'!$AM$18:$AM$1017),0) -> 0 | T40: =IFERROR($E40*SUMIF('Daily Log'!$AO$18:$AO$1017,$B40,'Daily Log'!$AP$18:$AP$1017),0) -> 0 | U40: =IFERROR($E40*SUMIF('Daily Log'!$AR$18:$AR$1017,$B40,'Daily Log'!$AS$18:$AS$1017),0) -> 0 | V40: =IFERROR($E40*SUMIF('Daily Log'!$AU$18:$AU$1017,$B40,'Daily Log'!$AV$18:$AV$1017),0) -> 0 | W40: =IFERROR($E40*SUMIF('Daily Log'!$AX$18:$AX$1017,$B40,'Daily Log'!$AY$18:$AY$1017),0) -> 0 | X40: =IFERROR($E40*SUMIF('Daily Log'!$BA$18:$BA$1017,$B40,'Daily Log'!$BB$18:$BB$1017),0) -> 0 | Y40: =IFERROR($E40*SUMIF('Daily Log'!$BD$18:$BD$1017,$B40,'Daily Log'!$BE$18:$BE$1017),0) -> 0 | Z40: =IFERROR($E40*SUMIF('Daily Log'!$BG$18:$BG$1017,$B40,'Daily Log'!$BH$18:$BH$1017),0) -> 0 | AA40: =IFERROR($E40*SUMIF('Daily Log'!$BJ$18:$BJ$1017,$B40,'Daily Log'!$BK$18:$BK$1017),0) -> 0 | AB40: =IFERROR($E40*SUMIF('Daily Log'!$BM$18:$BM$1017,$B40,'Daily Log'!$BN$18:$BN$1017),0) -> 0 | AC40: =IFERROR($E40*SUMIF('Daily Log'!$BP$18:$BP$1017,$B40,'Daily Log'!$BQ$18:$BQ$1017),0) -> 0 | AD40: =IFERROR($E40*SUMIF('Daily Log'!$BS$18:$BS$1017,$B40,'Daily Log'!$BT$18:$BT$1017),0) -> 0 | AE40: =IFERROR($E40*SUMIF('Daily Log'!$BV$18:$BV$1017,$B40,'Daily Log'!$BW$18:$BW$1017),0) -> 0 | AF40: =IFERROR($E40*SUMIF('Daily Log'!$BY$18:$BY$1017,$B40,'Daily Log'!$BZ$18:$BZ$1017),0) -> 0 | AG40: =IFERROR($E40*SUMIF('Daily Log'!$CB$18:$CB$1017,$B40,'Daily Log'!$CC$18:$CC$1017),0) -> 0 | AH40: =IFERROR($E40*SUMIF('Daily Log'!$CE$18:$CE$1017,$B40,'Daily Log'!$CF$18:$CF$1017),0) -> 0 | AI40: =IFERROR($E40*SUMIF('Daily Log'!$CH$18:$CH$1017,$B40,'Daily Log'!$CI$18:$CI$1017),0) -> 0 | AJ40: =IFERROR($E40*SUMIF('Daily Log'!$CK$18:$CK$1017,$B40,'Daily Log'!$CL$18:$CL$1017),0) -> 0 | AK40: =IFERROR($E40*SUMIF('Daily Log'!$CN$18:$CN$1017,$B40,'Daily Log'!$CO$18:$CO$1017),0) -> 0
B41: BT06 7006:TIG RD BKT | D41: BEER | E41: 4 | F41: 0 | G41: =IFERROR($E41*SUMIF('Daily Log'!$B$18:$B$1017,$B41,'Daily Log'!$C$18:$C$1017),0) -> 0 | H41: =IFERROR($E41*SUMIF('Daily Log'!$E$18:$E$1017,$B41,'Daily Log'!$F$18:$F$1017),0) -> 0 | I41: =IFERROR($E41*SUMIF('Daily Log'!$H$18:$H$1017,$B41,'Daily Log'!$I$18:$I$1017),0) -> 0 | J41: =IFERROR($E41*SUMIF('Daily Log'!$K$18:$K$1017,$B41,'Daily Log'!$L$18:$L$1017),0) -> 0 | K41: =IFERROR($E41*SUMIF('Daily Log'!$N$18:$N$1017,$B41,'Daily Log'!$O$18:$O$1017),0) -> 0 | L41: =IFERROR($E41*SUMIF('Daily Log'!$Q$18:$Q$1017,$B41,'Daily Log'!$R$18:$R$1017),0) -> 0 | M41: =IFERROR($E41*SUMIF('Daily Log'!$T$18:$T$1017,$B41,'Daily Log'!$U$18:$U$1017),0) -> 0 | N41: =IFERROR($E41*SUMIF('Daily Log'!$W$18:$W$1017,$B41,'Daily Log'!$X$18:$X$1017),0) -> 0 | O41: =IFERROR($E41*SUMIF('Daily Log'!$Z$18:$Z$1017,$B41,'Daily Log'!$AA$18:$AA$1017),0) -> 0 | P41: =IFERROR($E41*SUMIF('Daily Log'!$AC$18:$AC$1017,$B41,'Daily Log'!$AD$18:$AD$1017),0) -> 0 | Q41: =IFERROR($E41*SUMIF('Daily Log'!$AF$18:$AF$1017,$B41,'Daily Log'!$AG$18:$AG$1017),0) -> 0 | R41: =IFERROR($E41*SUMIF('Daily Log'!$AI$18:$AI$1017,$B41,'Daily Log'!$AJ$18:$AJ$1017),0) -> 0 | S41: =IFERROR($E41*SUMIF('Daily Log'!$AL$18:$AL$1017,$B41,'Daily Log'!$AM$18:$AM$1017),0) -> 0 | T41: =IFERROR($E41*SUMIF('Daily Log'!$AO$18:$AO$1017,$B41,'Daily Log'!$AP$18:$AP$1017),0) -> 0 | U41: =IFERROR($E41*SUMIF('Daily Log'!$AR$18:$AR$1017,$B41,'Daily Log'!$AS$18:$AS$1017),0) -> 0 | V41: =IFERROR($E41*SUMIF('Daily Log'!$AU$18:$AU$1017,$B41,'Daily Log'!$AV$18:$AV$1017),0) -> 0 | W41: =IFERROR($E41*SUMIF('Daily Log'!$AX$18:$AX$1017,$B41,'Daily Log'!$AY$18:$AY$1017),0) -> 0 | X41: =IFERROR($E41*SUMIF('Daily Log'!$BA$18:$BA$1017,$B41,'Daily Log'!$BB$18:$BB$1017),0) -> 0 | Y41: =IFERROR($E41*SUMIF('Daily Log'!$BD$18:$BD$1017,$B41,'Daily Log'!$BE$18:$BE$1017),0) -> 0 | Z41: =IFERROR($E41*SUMIF('Daily Log'!$BG$18:$BG$1017,$B41,'Daily Log'!$BH$18:$BH$1017),0) -> 0 | AA41: =IFERROR($E41*SUMIF('Daily Log'!$BJ$18:$BJ$1017,$B41,'Daily Log'!$BK$18:$BK$1017),0) -> 0 | AB41: =IFERROR($E41*SUMIF('Daily Log'!$BM$18:$BM$1017,$B41,'Daily Log'!$BN$18:$BN$1017),0) -> 0 | AC41: =IFERROR($E41*SUMIF('Daily Log'!$BP$18:$BP$1017,$B41,'Daily Log'!$BQ$18:$BQ$1017),0) -> 0 | AD41: =IFERROR($E41*SUMIF('Daily Log'!$BS$18:$BS$1017,$B41,'Daily Log'!$BT$18:$BT$1017),0) -> 0 | AE41: =IFERROR($E41*SUMIF('Daily Log'!$BV$18:$BV$1017,$B41,'Daily Log'!$BW$18:$BW$1017),0) -> 0 | AF41: =IFERROR($E41*SUMIF('Daily Log'!$BY$18:$BY$1017,$B41,'Daily Log'!$BZ$18:$BZ$1017),0) -> 0 | AG41: =IFERROR($E41*SUMIF('Daily Log'!$CB$18:$CB$1017,$B41,'Daily Log'!$CC$18:$CC$1017),0) -> 0 | AH41: =IFERROR($E41*SUMIF('Daily Log'!$CE$18:$CE$1017,$B41,'Daily Log'!$CF$18:$CF$1017),0) -> 0 | AI41: =IFERROR($E41*SUMIF('Daily Log'!$CH$18:$CH$1017,$B41,'Daily Log'!$CI$18:$CI$1017),0) -> 0 | AJ41: =IFERROR($E41*SUMIF('Daily Log'!$CK$18:$CK$1017,$B41,'Daily Log'!$CL$18:$CL$1017),0) -> 0 | AK41: =IFERROR($E41*SUMIF('Daily Log'!$CN$18:$CN$1017,$B41,'Daily Log'!$CO$18:$CO$1017),0) -> 0
B42: ZBM01 TIG MEM BKT | D42: BEER | E42: 4 | F42: 24 | G42: =IFERROR($E42*SUMIF('Daily Log'!$B$18:$B$1017,$B42,'Daily Log'!$C$18:$C$1017),0) -> 0 | H42: =IFERROR($E42*SUMIF('Daily Log'!$E$18:$E$1017,$B42,'Daily Log'!$F$18:$F$1017),0) -> 0 | I42: =IFERROR($E42*SUMIF('Daily Log'!$H$18:$H$1017,$B42,'Daily Log'!$I$18:$I$1017),0) -> 0 | J42: =IFERROR($E42*SUMIF('Daily Log'!$K$18:$K$1017,$B42,'Daily Log'!$L$18:$L$1017),0) -> 0 | K42: =IFERROR($E42*SUMIF('Daily Log'!$N$18:$N$1017,$B42,'Daily Log'!$O$18:$O$1017),0) -> 0 | L42: =IFERROR($E42*SUMIF('Daily Log'!$Q$18:$Q$1017,$B42,'Daily Log'!$R$18:$R$1017),0) -> 0 | M42: =IFERROR($E42*SUMIF('Daily Log'!$T$18:$T$1017,$B42,'Daily Log'!$U$18:$U$1017),0) -> 0 | N42: =IFERROR($E42*SUMIF('Daily Log'!$W$18:$W$1017,$B42,'Daily Log'!$X$18:$X$1017),0) -> 0 | O42: =IFERROR($E42*SUMIF('Daily Log'!$Z$18:$Z$1017,$B42,'Daily Log'!$AA$18:$AA$1017),0) -> 0 | P42: =IFERROR($E42*SUMIF('Daily Log'!$AC$18:$AC$1017,$B42,'Daily Log'!$AD$18:$AD$1017),0) -> 12 | Q42: =IFERROR($E42*SUMIF('Daily Log'!$AF$18:$AF$1017,$B42,'Daily Log'!$AG$18:$AG$1017),0) -> 0 | R42: =IFERROR($E42*SUMIF('Daily Log'!$AI$18:$AI$1017,$B42,'Daily Log'!$AJ$18:$AJ$1017),0) -> 0 | S42: =IFERROR($E42*SUMIF('Daily Log'!$AL$18:$AL$1017,$B42,'Daily Log'!$AM$18:$AM$1017),0) -> 0 | T42: =IFERROR($E42*SUMIF('Daily Log'!$AO$18:$AO$1017,$B42,'Daily Log'!$AP$18:$AP$1017),0) -> 0 | U42: =IFERROR($E42*SUMIF('Daily Log'!$AR$18:$AR$1017,$B42,'Daily Log'!$AS$18:$AS$1017),0) -> 0 | V42: =IFERROR($E42*SUMIF('Daily Log'!$AU$18:$AU$1017,$B42,'Daily Log'!$AV$18:$AV$1017),0) -> 0 | W42: =IFERROR($E42*SUMIF('Daily Log'!$AX$18:$AX$1017,$B42,'Daily Log'!$AY$18:$AY$1017),0) -> 0 | X42: =IFERROR($E42*SUMIF('Daily Log'!$BA$18:$BA$1017,$B42,'Daily Log'!$BB$18:$BB$1017),0) -> 12 | Y42: =IFERROR($E42*SUMIF('Daily Log'!$BD$18:$BD$1017,$B42,'Daily Log'!$BE$18:$BE$1017),0) -> 0 | Z42: =IFERROR($E42*SUMIF('Daily Log'!$BG$18:$BG$1017,$B42,'Daily Log'!$BH$18:$BH$1017),0) -> 0 | AA42: =IFERROR($E42*SUMIF('Daily Log'!$BJ$18:$BJ$1017,$B42,'Daily Log'!$BK$18:$BK$1017),0) -> 0 | AB42: =IFERROR($E42*SUMIF('Daily Log'!$BM$18:$BM$1017,$B42,'Daily Log'!$BN$18:$BN$1017),0) -> 0 | AC42: =IFERROR($E42*SUMIF('Daily Log'!$BP$18:$BP$1017,$B42,'Daily Log'!$BQ$18:$BQ$1017),0) -> 0 | AD42: =IFERROR($E42*SUMIF('Daily Log'!$BS$18:$BS$1017,$B42,'Daily Log'!$BT$18:$BT$1017),0) -> 0 | AE42: =IFERROR($E42*SUMIF('Daily Log'!$BV$18:$BV$1017,$B42,'Daily Log'!$BW$18:$BW$1017),0) -> 0 | AF42: =IFERROR($E42*SUMIF('Daily Log'!$BY$18:$BY$1017,$B42,'Daily Log'!$BZ$18:$BZ$1017),0) -> 0 | AG42: =IFERROR($E42*SUMIF('Daily Log'!$CB$18:$CB$1017,$B42,'Daily Log'!$CC$18:$CC$1017),0) -> 0 | AH42: =IFERROR($E42*SUMIF('Daily Log'!$CE$18:$CE$1017,$B42,'Daily Log'!$CF$18:$CF$1017),0) -> 0 | AI42: =IFERROR($E42*SUMIF('Daily Log'!$CH$18:$CH$1017,$B42,'Daily Log'!$CI$18:$CI$1017),0) -> 0 | AJ42: =IFERROR($E42*SUMIF('Daily Log'!$CK$18:$CK$1017,$B42,'Daily Log'!$CL$18:$CL$1017),0) -> 0 | AK42: =IFERROR($E42*SUMIF('Daily Log'!$CN$18:$CN$1017,$B42,'Daily Log'!$CO$18:$CO$1017),0) -> 0
B43: ZBR01 TIG BKT | D43: BEER | E43: 4 | F43: 1316 | G43: =IFERROR($E43*SUMIF('Daily Log'!$B$18:$B$1017,$B43,'Daily Log'!$C$18:$C$1017),0) -> 36 | H43: =IFERROR($E43*SUMIF('Daily Log'!$E$18:$E$1017,$B43,'Daily Log'!$F$18:$F$1017),0) -> 124 | I43: =IFERROR($E43*SUMIF('Daily Log'!$H$18:$H$1017,$B43,'Daily Log'!$I$18:$I$1017),0) -> 24 | J43: =IFERROR($E43*SUMIF('Daily Log'!$K$18:$K$1017,$B43,'Daily Log'!$L$18:$L$1017),0) -> 80 | K43: =IFERROR($E43*SUMIF('Daily Log'!$N$18:$N$1017,$B43,'Daily Log'!$O$18:$O$1017),0) -> 44 | L43: =IFERROR($E43*SUMIF('Daily Log'!$Q$18:$Q$1017,$B43,'Daily Log'!$R$18:$R$1017),0) -> 68 | M43: =IFERROR($E43*SUMIF('Daily Log'!$T$18:$T$1017,$B43,'Daily Log'!$U$18:$U$1017),0) -> 36 | N43: =IFERROR($E43*SUMIF('Daily Log'!$W$18:$W$1017,$B43,'Daily Log'!$X$18:$X$1017),0) -> 96 | O43: =IFERROR($E43*SUMIF('Daily Log'!$Z$18:$Z$1017,$B43,'Daily Log'!$AA$18:$AA$1017),0) -> 32 | P43: =IFERROR($E43*SUMIF('Daily Log'!$AC$18:$AC$1017,$B43,'Daily Log'!$AD$18:$AD$1017),0) -> 0 | Q43: =IFERROR($E43*SUMIF('Daily Log'!$AF$18:$AF$1017,$B43,'Daily Log'!$AG$18:$AG$1017),0) -> 0 | R43: =IFERROR($E43*SUMIF('Daily Log'!$AI$18:$AI$1017,$B43,'Daily Log'!$AJ$18:$AJ$1017),0) -> 12 | S43: =IFERROR($E43*SUMIF('Daily Log'!$AL$18:$AL$1017,$B43,'Daily Log'!$AM$18:$AM$1017),0) -> 60 | T43: =IFERROR($E43*SUMIF('Daily Log'!$AO$18:$AO$1017,$B43,'Daily Log'!$AP$18:$AP$1017),0) -> 32 | U43: =IFERROR($E43*SUMIF('Daily Log'!$AR$18:$AR$1017,$B43,'Daily Log'!$AS$18:$AS$1017),0) -> 132 | V43: =IFERROR($E43*SUMIF('Daily Log'!$AU$18:$AU$1017,$B43,'Daily Log'!$AV$18:$AV$1017),0) -> 72 | W43: =IFERROR($E43*SUMIF('Daily Log'!$AX$18:$AX$1017,$B43,'Daily Log'!$AY$18:$AY$1017),0) -> 24 | X43: =IFERROR($E43*SUMIF('Daily Log'!$BA$18:$BA$1017,$B43,'Daily Log'!$BB$18:$BB$1017),0) -> 0 | Y43: =IFERROR($E43*SUMIF('Daily Log'!$BD$18:$BD$1017,$B43,'Daily Log'!$BE$18:$BE$1017),0) -> 24 | Z43: =IFERROR($E43*SUMIF('Daily Log'!$BG$18:$BG$1017,$B43,'Daily Log'!$BH$18:$BH$1017),0) -> 24 | AA43: =IFERROR($E43*SUMIF('Daily Log'!$BJ$18:$BJ$1017,$B43,'Daily Log'!$BK$18:$BK$1017),0) -> 84 | AB43: =IFERROR($E43*SUMIF('Daily Log'!$BM$18:$BM$1017,$B43,'Daily Log'!$BN$18:$BN$1017),0) -> 96 | AC43: =IFERROR($E43*SUMIF('Daily Log'!$BP$18:$BP$1017,$B43,'Daily Log'!$BQ$18:$BQ$1017),0) -> 96 | AD43: =IFERROR($E43*SUMIF('Daily Log'!$BS$18:$BS$1017,$B43,'Daily Log'!$BT$18:$BT$1017),0) -> 12 | AE43: =IFERROR($E43*SUMIF('Daily Log'!$BV$18:$BV$1017,$B43,'Daily Log'!$BW$18:$BW$1017),0) -> 12 | AF43: =IFERROR($E43*SUMIF('Daily Log'!$BY$18:$BY$1017,$B43,'Daily Log'!$BZ$18:$BZ$1017),0) -> 12 | AG43: =IFERROR($E43*SUMIF('Daily Log'!$CB$18:$CB$1017,$B43,'Daily Log'!$CC$18:$CC$1017),0) -> 24 | AH43: =IFERROR($E43*SUMIF('Daily Log'!$CE$18:$CE$1017,$B43,'Daily Log'!$CF$18:$CF$1017),0) -> 60 | AI43: =IFERROR($E43*SUMIF('Daily Log'!$CH$18:$CH$1017,$B43,'Daily Log'!$CI$18:$CI$1017),0) -> 0 | AJ43: =IFERROR($E43*SUMIF('Daily Log'!$CK$18:$CK$1017,$B43,'Daily Log'!$CL$18:$CL$1017),0) -> 0 | AK43: =IFERROR($E43*SUMIF('Daily Log'!$CN$18:$CN$1017,$B43,'Daily Log'!$CO$18:$CO$1017),0) -> 0
B44: TIGER BEER TOTAL | D44: BEER | G44: =SUM(G37:G43) -> 62 | H44: =SUM(H37:H43) -> 239 | I44: 55 | J44: 124 | K44: 89 | L44: 96 | M44: 116 | N44: 140 | O44: 92 | P44: 88 | Q44: 26 | R44: 112 | S44: 178 | T44: 63 | U44: 193 | V44: 125 | W44: 156 | X44: 96 | Y44: =SUM(Y37:Y43) -> 138 | Z44: =SUM(Z37:Z43) -> 48 | AA44: 112 | AB44: 120 | AC44: 137 | AD44: 86 | AE44: 52 | AF44: 170 | AG44: 64 | AH44: 96 | AI44: 0 | AJ44: 0 | AK44: 0
B45: BG01 6001:GUI BTL | D45: BEER | E45: 1 | F45: 12 | G45: =IFERROR($E45*SUMIF('Daily Log'!$B$18:$B$1017,$B45,'Daily Log'!$C$18:$C$1017),0) -> 1 | H45: =IFERROR($E45*SUMIF('Daily Log'!$E$18:$E$1017,$B45,'Daily Log'!$F$18:$F$1017),0) -> 0 | I45: =IFERROR($E45*SUMIF('Daily Log'!$H$18:$H$1017,$B45,'Daily Log'!$I$18:$I$1017),0) -> 2 | J45: =IFERROR($E45*SUMIF('Daily Log'!$K$18:$K$1017,$B45,'Daily Log'!$L$18:$L$1017),0) -> 0 | K45: =IFERROR($E45*SUMIF('Daily Log'!$N$18:$N$1017,$B45,'Daily Log'!$O$18:$O$1017),0) -> 0 | L45: =IFERROR($E45*SUMIF('Daily Log'!$Q$18:$Q$1017,$B45,'Daily Log'!$R$18:$R$1017),0) -> 0 | M45: =IFERROR($E45*SUMIF('Daily Log'!$T$18:$T$1017,$B45,'Daily Log'!$U$18:$U$1017),0) -> 0 | N45: =IFERROR($E45*SUMIF('Daily Log'!$W$18:$W$1017,$B45,'Daily Log'!$X$18:$X$1017),0) -> 0 | O45: =IFERROR($E45*SUMIF('Daily Log'!$Z$18:$Z$1017,$B45,'Daily Log'!$AA$18:$AA$1017),0) -> 0 | P45: =IFERROR($E45*SUMIF('Daily Log'!$AC$18:$AC$1017,$B45,'Daily Log'!$AD$18:$AD$1017),0) -> 0 | Q45: =IFERROR($E45*SUMIF('Daily Log'!$AF$18:$AF$1017,$B45,'Daily Log'!$AG$18:$AG$1017),0) -> 0 | R45: =IFERROR($E45*SUMIF('Daily Log'!$AI$18:$AI$1017,$B45,'Daily Log'!$AJ$18:$AJ$1017),0) -> 0 | S45: =IFERROR($E45*SUMIF('Daily Log'!$AL$18:$AL$1017,$B45,'Daily Log'!$AM$18:$AM$1017),0) -> 0 | T45: =IFERROR($E45*SUMIF('Daily Log'!$AO$18:$AO$1017,$B45,'Daily Log'!$AP$18:$AP$1017),0) -> 2 | U45: =IFERROR($E45*SUMIF('Daily Log'!$AR$18:$AR$1017,$B45,'Daily Log'!$AS$18:$AS$1017),0) -> 0 | V45: =IFERROR($E45*SUMIF('Daily Log'!$AU$18:$AU$1017,$B45,'Daily Log'!$AV$18:$AV$1017),0) -> 0 | W45: =IFERROR($E45*SUMIF('Daily Log'!$AX$18:$AX$1017,$B45,'Daily Log'!$AY$18:$AY$1017),0) -> 2 | X45: =IFERROR($E45*SUMIF('Daily Log'!$BA$18:$BA$1017,$B45,'Daily Log'!$BB$18:$BB$1017),0) -> 0 | Y45: =IFERROR($E45*SUMIF('Daily Log'!$BD$18:$BD$1017,$B45,'Daily Log'!$BE$18:$BE$1017),0) -> 0 | Z45: =IFERROR($E45*SUMIF('Daily Log'!$BG$18:$BG$1017,$B45,'Daily Log'!$BH$18:$BH$1017),0) -> 2 | AA45: =IFERROR($E45*SUMIF('Daily Log'!$BJ$18:$BJ$1017,$B45,'Daily Log'!$BK$18:$BK$1017),0) -> 0 | AB45: =IFERROR($E45*SUMIF('Daily Log'!$BM$18:$BM$1017,$B45,'Daily Log'!$BN$18:$BN$1017),0) -> 0 | AC45: =IFERROR($E45*SUMIF('Daily Log'!$BP$18:$BP$1017,$B45,'Daily Log'!$BQ$18:$BQ$1017),0) -> 0 | AD45: =IFERROR($E45*SUMIF('Daily Log'!$BS$18:$BS$1017,$B45,'Daily Log'!$BT$18:$BT$1017),0) -> 2 | AE45: =IFERROR($E45*SUMIF('Daily Log'!$BV$18:$BV$1017,$B45,'Daily Log'!$BW$18:$BW$1017),0) -> 1 | AF45: =IFERROR($E45*SUMIF('Daily Log'!$BY$18:$BY$1017,$B45,'Daily Log'!$BZ$18:$BZ$1017),0) -> 0 | AG45: =IFERROR($E45*SUMIF('Daily Log'!$CB$18:$CB$1017,$B45,'Daily Log'!$CC$18:$CC$1017),0) -> 0 | AH45: =IFERROR($E45*SUMIF('Daily Log'!$CE$18:$CE$1017,$B45,'Daily Log'!$CF$18:$CF$1017),0) -> 0 | AI45: =IFERROR($E45*SUMIF('Daily Log'!$CH$18:$CH$1017,$B45,'Daily Log'!$CI$18:$CI$1017),0) -> 0 | AJ45: =IFERROR($E45*SUMIF('Daily Log'!$CK$18:$CK$1017,$B45,'Daily Log'!$CL$18:$CL$1017),0) -> 0 | AK45: =IFERROR($E45*SUMIF('Daily Log'!$CN$18:$CN$1017,$B45,'Daily Log'!$CO$18:$CO$1017),0) -> 0
B46: BG02 6002:GUI BKT | D46: BEER | E46: 4 | F46: 48 | G46: =IFERROR($E46*SUMIF('Daily Log'!$B$18:$B$1017,$B46,'Daily Log'!$C$18:$C$1017),0) -> 0 | H46: =IFERROR($E46*SUMIF('Daily Log'!$E$18:$E$1017,$B46,'Daily Log'!$F$18:$F$1017),0) -> 4 | I46: =IFERROR($E46*SUMIF('Daily Log'!$H$18:$H$1017,$B46,'Daily Log'!$I$18:$I$1017),0) -> 4 | J46: =IFERROR($E46*SUMIF('Daily Log'!$K$18:$K$1017,$B46,'Daily Log'!$L$18:$L$1017),0) -> 0 | K46: =IFERROR($E46*SUMIF('Daily Log'!$N$18:$N$1017,$B46,'Daily Log'!$O$18:$O$1017),0) -> 0 | L46: =IFERROR($E46*SUMIF('Daily Log'!$Q$18:$Q$1017,$B46,'Daily Log'!$R$18:$R$1017),0) -> 4 | M46: =IFERROR($E46*SUMIF('Daily Log'!$T$18:$T$1017,$B46,'Daily Log'!$U$18:$U$1017),0) -> 0 | N46: =IFERROR($E46*SUMIF('Daily Log'!$W$18:$W$1017,$B46,'Daily Log'!$X$18:$X$1017),0) -> 0 | O46: =IFERROR($E46*SUMIF('Daily Log'!$Z$18:$Z$1017,$B46,'Daily Log'!$AA$18:$AA$1017),0) -> 0 | P46: =IFERROR($E46*SUMIF('Daily Log'!$AC$18:$AC$1017,$B46,'Daily Log'!$AD$18:$AD$1017),0) -> 0 | Q46: =IFERROR($E46*SUMIF('Daily Log'!$AF$18:$AF$1017,$B46,'Daily Log'!$AG$18:$AG$1017),0) -> 4 | R46: =IFERROR($E46*SUMIF('Daily Log'!$AI$18:$AI$1017,$B46,'Daily Log'!$AJ$18:$AJ$1017),0) -> 4 | S46: =IFERROR($E46*SUMIF('Daily Log'!$AL$18:$AL$1017,$B46,'Daily Log'!$AM$18:$AM$1017),0) -> 0 | T46: =IFERROR($E46*SUMIF('Daily Log'!$AO$18:$AO$1017,$B46,'Daily Log'!$AP$18:$AP$1017),0) -> 4 | U46: =IFERROR($E46*SUMIF('Daily Log'!$AR$18:$AR$1017,$B46,'Daily Log'!$AS$18:$AS$1017),0) -> 4 | V46: =IFERROR($E46*SUMIF('Daily Log'!$AU$18:$AU$1017,$B46,'Daily Log'!$AV$18:$AV$1017),0) -> 0 | W46: =IFERROR($E46*SUMIF('Daily Log'!$AX$18:$AX$1017,$B46,'Daily Log'!$AY$18:$AY$1017),0) -> 4 | X46: =IFERROR($E46*SUMIF('Daily Log'!$BA$18:$BA$1017,$B46,'Daily Log'!$BB$18:$BB$1017),0) -> 4 | Y46: =IFERROR($E46*SUMIF('Daily Log'!$BD$18:$BD$1017,$B46,'Daily Log'!$BE$18:$BE$1017),0) -> 0 | Z46: =IFERROR($E46*SUMIF('Daily Log'!$BG$18:$BG$1017,$B46,'Daily Log'!$BH$18:$BH$1017),0) -> 0 | AA46: =IFERROR($E46*SUMIF('Daily Log'!$BJ$18:$BJ$1017,$B46,'Daily Log'!$BK$18:$BK$1017),0) -> 0 | AB46: =IFERROR($E46*SUMIF('Daily Log'!$BM$18:$BM$1017,$B46,'Daily Log'!$BN$18:$BN$1017),0) -> 0 | AC46: =IFERROR($E46*SUMIF('Daily Log'!$BP$18:$BP$1017,$B46,'Daily Log'!$BQ$18:$BQ$1017),0) -> 0 | AD46: =IFERROR($E46*SUMIF('Daily Log'!$BS$18:$BS$1017,$B46,'Daily Log'!$BT$18:$BT$1017),0) -> 8 | AE46: =IFERROR($E46*SUMIF('Daily Log'!$BV$18:$BV$1017,$B46,'Daily Log'!$BW$18:$BW$1017),0) -> 4 | AF46: =IFERROR($E46*SUMIF('Daily Log'!$BY$18:$BY$1017,$B46,'Daily Log'!$BZ$18:$BZ$1017),0) -> 0 | AG46: =IFERROR($E46*SUMIF('Daily Log'!$CB$18:$CB$1017,$B46,'Daily Log'!$CC$18:$CC$1017),0) -> 0 | AH46: =IFERROR($E46*SUMIF('Daily Log'!$CE$18:$CE$1017,$B46,'Daily Log'!$CF$18:$CF$1017),0) -> 0 | AI46: =IFERROR($E46*SUMIF('Daily Log'!$CH$18:$CH$1017,$B46,'Daily Log'!$CI$18:$CI$1017),0) -> 0 | AJ46: =IFERROR($E46*SUMIF('Daily Log'!$CK$18:$CK$1017,$B46,'Daily Log'!$CL$18:$CL$1017),0) -> 0 | AK46: =IFERROR($E46*SUMIF('Daily Log'!$CN$18:$CN$1017,$B46,'Daily Log'!$CO$18:$CO$1017),0) -> 0
B47: BG03 6003:GUI RND | D47: BEER | E47: 12 | F47: 36 | G47: =IFERROR($E47*SUMIF('Daily Log'!$B$18:$B$1017,$B47,'Daily Log'!$C$18:$C$1017),0) -> 0 | H47: =IFERROR($E47*SUMIF('Daily Log'!$E$18:$E$1017,$B47,'Daily Log'!$F$18:$F$1017),0) -> 0 | I47: =IFERROR($E47*SUMIF('Daily Log'!$H$18:$H$1017,$B47,'Daily Log'!$I$18:$I$1017),0) -> 0 | J47: =IFERROR($E47*SUMIF('Daily Log'!$K$18:$K$1017,$B47,'Daily Log'!$L$18:$L$1017),0) -> 0 | K47: =IFERROR($E47*SUMIF('Daily Log'!$N$18:$N$1017,$B47,'Daily Log'!$O$18:$O$1017),0) -> 0 | L47: =IFERROR($E47*SUMIF('Daily Log'!$Q$18:$Q$1017,$B47,'Daily Log'!$R$18:$R$1017),0) -> 0 | M47: =IFERROR($E47*SUMIF('Daily Log'!$T$18:$T$1017,$B47,'Daily Log'!$U$18:$U$1017),0) -> 0 | N47: =IFERROR($E47*SUMIF('Daily Log'!$W$18:$W$1017,$B47,'Daily Log'!$X$18:$X$1017),0) -> 0 | O47: =IFERROR($E47*SUMIF('Daily Log'!$Z$18:$Z$1017,$B47,'Daily Log'!$AA$18:$AA$1017),0) -> 0 | P47: =IFERROR($E47*SUMIF('Daily Log'!$AC$18:$AC$1017,$B47,'Daily Log'!$AD$18:$AD$1017),0) -> 0 | Q47: =IFERROR($E47*SUMIF('Daily Log'!$AF$18:$AF$1017,$B47,'Daily Log'!$AG$18:$AG$1017),0) -> 0 | R47: =IFERROR($E47*SUMIF('Daily Log'!$AI$18:$AI$1017,$B47,'Daily Log'!$AJ$18:$AJ$1017),0) -> 0 | S47: =IFERROR($E47*SUMIF('Daily Log'!$AL$18:$AL$1017,$B47,'Daily Log'!$AM$18:$AM$1017),0) -> 0 | T47: =IFERROR($E47*SUMIF('Daily Log'!$AO$18:$AO$1017,$B47,'Daily Log'!$AP$18:$AP$1017),0) -> 0 | U47: =IFERROR($E47*SUMIF('Daily Log'!$AR$18:$AR$1017,$B47,'Daily Log'!$AS$18:$AS$1017),0) -> 12 | V47: =IFERROR($E47*SUMIF('Daily Log'!$AU$18:$AU$1017,$B47,'Daily Log'!$AV$18:$AV$1017),0) -> 0 | W47: =IFERROR($E47*SUMIF('Daily Log'!$AX$18:$AX$1017,$B47,'Daily Log'!$AY$18:$AY$1017),0) -> 0 | X47: =IFERROR($E47*SUMIF('Daily Log'!$BA$18:$BA$1017,$B47,'Daily Log'!$BB$18:$BB$1017),0) -> 0 | Y47: =IFERROR($E47*SUMIF('Daily Log'!$BD$18:$BD$1017,$B47,'Daily Log'!$BE$18:$BE$1017),0) -> 0 | Z47: =IFERROR($E47*SUMIF('Daily Log'!$BG$18:$BG$1017,$B47,'Daily Log'!$BH$18:$BH$1017),0) -> 12 | AA47: =IFERROR($E47*SUMIF('Daily Log'!$BJ$18:$BJ$1017,$B47,'Daily Log'!$BK$18:$BK$1017),0) -> 0 | AB47: =IFERROR($E47*SUMIF('Daily Log'!$BM$18:$BM$1017,$B47,'Daily Log'!$BN$18:$BN$1017),0) -> 12 | AC47: =IFERROR($E47*SUMIF('Daily Log'!$BP$18:$BP$1017,$B47,'Daily Log'!$BQ$18:$BQ$1017),0) -> 0 | AD47: =IFERROR($E47*SUMIF('Daily Log'!$BS$18:$BS$1017,$B47,'Daily Log'!$BT$18:$BT$1017),0) -> 0 | AE47: =IFERROR($E47*SUMIF('Daily Log'!$BV$18:$BV$1017,$B47,'Daily Log'!$BW$18:$BW$1017),0) -> 0 | AF47: =IFERROR($E47*SUMIF('Daily Log'!$BY$18:$BY$1017,$B47,'Daily Log'!$BZ$18:$BZ$1017),0) -> 0 | AG47: =IFERROR($E47*SUMIF('Daily Log'!$CB$18:$CB$1017,$B47,'Daily Log'!$CC$18:$CC$1017),0) -> 0 | AH47: =IFERROR($E47*SUMIF('Daily Log'!$CE$18:$CE$1017,$B47,'Daily Log'!$CF$18:$CF$1017),0) -> 0 | AI47: =IFERROR($E47*SUMIF('Daily Log'!$CH$18:$CH$1017,$B47,'Daily Log'!$CI$18:$CI$1017),0) -> 0 | AJ47: =IFERROR($E47*SUMIF('Daily Log'!$CK$18:$CK$1017,$B47,'Daily Log'!$CL$18:$CL$1017),0) -> 0 | AK47: =IFERROR($E47*SUMIF('Daily Log'!$CN$18:$CN$1017,$B47,'Daily Log'!$CO$18:$CO$1017),0) -> 0
B48: ZBR03 GUI EX BKT | D48: BEER | E48: 4 | F48: 24 | G48: =IFERROR($E48*SUMIF('Daily Log'!$B$18:$B$1017,$B48,'Daily Log'!$C$18:$C$1017),0) -> 0 | H48: =IFERROR($E48*SUMIF('Daily Log'!$E$18:$E$1017,$B48,'Daily Log'!$F$18:$F$1017),0) -> 0 | I48: =IFERROR($E48*SUMIF('Daily Log'!$H$18:$H$1017,$B48,'Daily Log'!$I$18:$I$1017),0) -> 0 | J48: =IFERROR($E48*SUMIF('Daily Log'!$K$18:$K$1017,$B48,'Daily Log'!$L$18:$L$1017),0) -> 4 | K48: =IFERROR($E48*SUMIF('Daily Log'!$N$18:$N$1017,$B48,'Daily Log'!$O$18:$O$1017),0) -> 4 | L48: =IFERROR($E48*SUMIF('Daily Log'!$Q$18:$Q$1017,$B48,'Daily Log'!$R$18:$R$1017),0) -> 0 | M48: =IFERROR($E48*SUMIF('Daily Log'!$T$18:$T$1017,$B48,'Daily Log'!$U$18:$U$1017),0) -> 0 | N48: =IFERROR($E48*SUMIF('Daily Log'!$W$18:$W$1017,$B48,'Daily Log'!$X$18:$X$1017),0) -> 0 | O48: =IFERROR($E48*SUMIF('Daily Log'!$Z$18:$Z$1017,$B48,'Daily Log'!$AA$18:$AA$1017),0) -> 0 | P48: =IFERROR($E48*SUMIF('Daily Log'!$AC$18:$AC$1017,$B48,'Daily Log'!$AD$18:$AD$1017),0) -> 0 | Q48: =IFERROR($E48*SUMIF('Daily Log'!$AF$18:$AF$1017,$B48,'Daily Log'!$AG$18:$AG$1017),0) -> 4 | R48: =IFERROR($E48*SUMIF('Daily Log'!$AI$18:$AI$1017,$B48,'Daily Log'!$AJ$18:$AJ$1017),0) -> 0 | S48: =IFERROR($E48*SUMIF('Daily Log'!$AL$18:$AL$1017,$B48,'Daily Log'!$AM$18:$AM$1017),0) -> 0 | T48: =IFERROR($E48*SUMIF('Daily Log'!$AO$18:$AO$1017,$B48,'Daily Log'!$AP$18:$AP$1017),0) -> 4 | U48: =IFERROR($E48*SUMIF('Daily Log'!$AR$18:$AR$1017,$B48,'Daily Log'!$AS$18:$AS$1017),0) -> 0 | V48: =IFERROR($E48*SUMIF('Daily Log'!$AU$18:$AU$1017,$B48,'Daily Log'!$AV$18:$AV$1017),0) -> 0 | W48: =IFERROR($E48*SUMIF('Daily Log'!$AX$18:$AX$1017,$B48,'Daily Log'!$AY$18:$AY$1017),0) -> 0 | X48: =IFERROR($E48*SUMIF('Daily Log'!$BA$18:$BA$1017,$B48,'Daily Log'!$BB$18:$BB$1017),0) -> 0 | Y48: =IFERROR($E48*SUMIF('Daily Log'!$BD$18:$BD$1017,$B48,'Daily Log'!$BE$18:$BE$1017),0) -> 0 | Z48: =IFERROR($E48*SUMIF('Daily Log'!$BG$18:$BG$1017,$B48,'Daily Log'!$BH$18:$BH$1017),0) -> 0 | AA48: =IFERROR($E48*SUMIF('Daily Log'!$BJ$18:$BJ$1017,$B48,'Daily Log'!$BK$18:$BK$1017),0) -> 0 | AB48: =IFERROR($E48*SUMIF('Daily Log'!$BM$18:$BM$1017,$B48,'Daily Log'!$BN$18:$BN$1017),0) -> 8 | AC48: =IFERROR($E48*SUMIF('Daily Log'!$BP$18:$BP$1017,$B48,'Daily Log'!$BQ$18:$BQ$1017),0) -> 0 | AD48: =IFERROR($E48*SUMIF('Daily Log'!$BS$18:$BS$1017,$B48,'Daily Log'!$BT$18:$BT$1017),0) -> 0 | AE48: =IFERROR($E48*SUMIF('Daily Log'!$BV$18:$BV$1017,$B48,'Daily Log'!$BW$18:$BW$1017),0) -> 0 | AF48: =IFERROR($E48*SUMIF('Daily Log'!$BY$18:$BY$1017,$B48,'Daily Log'!$BZ$18:$BZ$1017),0) -> 0 | AG48: =IFERROR($E48*SUMIF('Daily Log'!$CB$18:$CB$1017,$B48,'Daily Log'!$CC$18:$CC$1017),0) -> 0 | AH48: =IFERROR($E48*SUMIF('Daily Log'!$CE$18:$CE$1017,$B48,'Daily Log'!$CF$18:$CF$1017),0) -> 0 | AI48: =IFERROR($E48*SUMIF('Daily Log'!$CH$18:$CH$1017,$B48,'Daily Log'!$CI$18:$CI$1017),0) -> 0 | AJ48: =IFERROR($E48*SUMIF('Daily Log'!$CK$18:$CK$1017,$B48,'Daily Log'!$CL$18:$CL$1017),0) -> 0 | AK48: =IFERROR($E48*SUMIF('Daily Log'!$CN$18:$CN$1017,$B48,'Daily Log'!$CO$18:$CO$1017),0) -> 0
B49: ZBM03 GUI MEM EX BKT | D49: BEER | E49: 4 | F49: 4 | G49: =IFERROR($E49*SUMIF('Daily Log'!$B$18:$B$1017,$B49,'Daily Log'!$C$18:$C$1017),0) -> 0 | H49: =IFERROR($E49*SUMIF('Daily Log'!$E$18:$E$1017,$B49,'Daily Log'!$F$18:$F$1017),0) -> 0 | I49: =IFERROR($E49*SUMIF('Daily Log'!$H$18:$H$1017,$B49,'Daily Log'!$I$18:$I$1017),0) -> 0 | J49: =IFERROR($E49*SUMIF('Daily Log'!$K$18:$K$1017,$B49,'Daily Log'!$L$18:$L$1017),0) -> 0 | K49: =IFERROR($E49*SUMIF('Daily Log'!$N$18:$N$1017,$B49,'Daily Log'!$O$18:$O$1017),0) -> 0 | L49: =IFERROR($E49*SUMIF('Daily Log'!$Q$18:$Q$1017,$B49,'Daily Log'!$R$18:$R$1017),0) -> 0 | M49: =IFERROR($E49*SUMIF('Daily Log'!$T$18:$T$1017,$B49,'Daily Log'!$U$18:$U$1017),0) -> 0 | N49: =IFERROR($E49*SUMIF('Daily Log'!$W$18:$W$1017,$B49,'Daily Log'!$X$18:$X$1017),0) -> 0 | O49: =IFERROR($E49*SUMIF('Daily Log'!$Z$18:$Z$1017,$B49,'Daily Log'!$AA$18:$AA$1017),0) -> 0 | P49: =IFERROR($E49*SUMIF('Daily Log'!$AC$18:$AC$1017,$B49,'Daily Log'!$AD$18:$AD$1017),0) -> 0 | Q49: =IFERROR($E49*SUMIF('Daily Log'!$AF$18:$AF$1017,$B49,'Daily Log'!$AG$18:$AG$1017),0) -> 4 | R49: =IFERROR($E49*SUMIF('Daily Log'!$AI$18:$AI$1017,$B49,'Daily Log'!$AJ$18:$AJ$1017),0) -> 0 | S49: =IFERROR($E49*SUMIF('Daily Log'!$AL$18:$AL$1017,$B49,'Daily Log'!$AM$18:$AM$1017),0) -> 0 | T49: =IFERROR($E49*SUMIF('Daily Log'!$AO$18:$AO$1017,$B49,'Daily Log'!$AP$18:$AP$1017),0) -> 0 | U49: =IFERROR($E49*SUMIF('Daily Log'!$AR$18:$AR$1017,$B49,'Daily Log'!$AS$18:$AS$1017),0) -> 0 | V49: =IFERROR($E49*SUMIF('Daily Log'!$AU$18:$AU$1017,$B49,'Daily Log'!$AV$18:$AV$1017),0) -> 0 | W49: =IFERROR($E49*SUMIF('Daily Log'!$AX$18:$AX$1017,$B49,'Daily Log'!$AY$18:$AY$1017),0) -> 0 | X49: =IFERROR($E49*SUMIF('Daily Log'!$BA$18:$BA$1017,$B49,'Daily Log'!$BB$18:$BB$1017),0) -> 0 | Y49: =IFERROR($E49*SUMIF('Daily Log'!$BD$18:$BD$1017,$B49,'Daily Log'!$BE$18:$BE$1017),0) -> 0 | Z49: =IFERROR($E49*SUMIF('Daily Log'!$BG$18:$BG$1017,$B49,'Daily Log'!$BH$18:$BH$1017),0) -> 0 | AA49: =IFERROR($E49*SUMIF('Daily Log'!$BJ$18:$BJ$1017,$B49,'Daily Log'!$BK$18:$BK$1017),0) -> 0 | AB49: =IFERROR($E49*SUMIF('Daily Log'!$BM$18:$BM$1017,$B49,'Daily Log'!$BN$18:$BN$1017),0) -> 0 | AC49: =IFERROR($E49*SUMIF('Daily Log'!$BP$18:$BP$1017,$B49,'Daily Log'!$BQ$18:$BQ$1017),0) -> 0 | AD49: =IFERROR($E49*SUMIF('Daily Log'!$BS$18:$BS$1017,$B49,'Daily Log'!$BT$18:$BT$1017),0) -> 0 | AE49: =IFERROR($E49*SUMIF('Daily Log'!$BV$18:$BV$1017,$B49,'Daily Log'!$BW$18:$BW$1017),0) -> 0 | AF49: =IFERROR($E49*SUMIF('Daily Log'!$BY$18:$BY$1017,$B49,'Daily Log'!$BZ$18:$BZ$1017),0) -> 0 | AG49: =IFERROR($E49*SUMIF('Daily Log'!$CB$18:$CB$1017,$B49,'Daily Log'!$CC$18:$CC$1017),0) -> 0 | AH49: =IFERROR($E49*SUMIF('Daily Log'!$CE$18:$CE$1017,$B49,'Daily Log'!$CF$18:$CF$1017),0) -> 0 | AI49: =IFERROR($E49*SUMIF('Daily Log'!$CH$18:$CH$1017,$B49,'Daily Log'!$CI$18:$CI$1017),0) -> 0 | AJ49: =IFERROR($E49*SUMIF('Daily Log'!$CK$18:$CK$1017,$B49,'Daily Log'!$CL$18:$CL$1017),0) -> 0 | AK49: =IFERROR($E49*SUMIF('Daily Log'!$CN$18:$CN$1017,$B49,'Daily Log'!$CO$18:$CO$1017),0) -> 0
B50: ZSB02 GUI BM BKT | D50: BEER | E50: 4 | F50: 28 | G50: =IFERROR($E50*SUMIF('Daily Log'!$B$18:$B$1017,$B50,'Daily Log'!$C$18:$C$1017),0) -> 0 | H50: =IFERROR($E50*SUMIF('Daily Log'!$E$18:$E$1017,$B50,'Daily Log'!$F$18:$F$1017),0) -> 0 | I50: =IFERROR($E50*SUMIF('Daily Log'!$H$18:$H$1017,$B50,'Daily Log'!$I$18:$I$1017),0) -> 0 | J50: =IFERROR($E50*SUMIF('Daily Log'!$K$18:$K$1017,$B50,'Daily Log'!$L$18:$L$1017),0) -> 0 | K50: =IFERROR($E50*SUMIF('Daily Log'!$N$18:$N$1017,$B50,'Daily Log'!$O$18:$O$1017),0) -> 0 | L50: =IFERROR($E50*SUMIF('Daily Log'!$Q$18:$Q$1017,$B50,'Daily Log'!$R$18:$R$1017),0) -> 8 | M50: =IFERROR($E50*SUMIF('Daily Log'!$T$18:$T$1017,$B50,'Daily Log'!$U$18:$U$1017),0) -> 0 | N50: =IFERROR($E50*SUMIF('Daily Log'!$W$18:$W$1017,$B50,'Daily Log'!$X$18:$X$1017),0) -> 0 | O50: =IFERROR($E50*SUMIF('Daily Log'!$Z$18:$Z$1017,$B50,'Daily Log'!$AA$18:$AA$1017),0) -> 4 | P50: =IFERROR($E50*SUMIF('Daily Log'!$AC$18:$AC$1017,$B50,'Daily Log'!$AD$18:$AD$1017),0) -> 0 | Q50: =IFERROR($E50*SUMIF('Daily Log'!$AF$18:$AF$1017,$B50,'Daily Log'!$AG$18:$AG$1017),0) -> 0 | R50: =IFERROR($E50*SUMIF('Daily Log'!$AI$18:$AI$1017,$B50,'Daily Log'!$AJ$18:$AJ$1017),0) -> 0 | S50: =IFERROR($E50*SUMIF('Daily Log'!$AL$18:$AL$1017,$B50,'Daily Log'!$AM$18:$AM$1017),0) -> 0 | T50: =IFERROR($E50*SUMIF('Daily Log'!$AO$18:$AO$1017,$B50,'Daily Log'!$AP$18:$AP$1017),0) -> 0 | U50: =IFERROR($E50*SUMIF('Daily Log'!$AR$18:$AR$1017,$B50,'Daily Log'!$AS$18:$AS$1017),0) -> 0 | V50: =IFERROR($E50*SUMIF('Daily Log'!$AU$18:$AU$1017,$B50,'Daily Log'!$AV$18:$AV$1017),0) -> 0 | W50: =IFERROR($E50*SUMIF('Daily Log'!$AX$18:$AX$1017,$B50,'Daily Log'!$AY$18:$AY$1017),0) -> 0 | X50: =IFERROR($E50*SUMIF('Daily Log'!$BA$18:$BA$1017,$B50,'Daily Log'!$BB$18:$BB$1017),0) -> 0 | Y50: =IFERROR($E50*SUMIF('Daily Log'!$BD$18:$BD$1017,$B50,'Daily Log'!$BE$18:$BE$1017),0) -> 0 | Z50: =IFERROR($E50*SUMIF('Daily Log'!$BG$18:$BG$1017,$B50,'Daily Log'!$BH$18:$BH$1017),0) -> 0 | AA50: =IFERROR($E50*SUMIF('Daily Log'!$BJ$18:$BJ$1017,$B50,'Daily Log'!$BK$18:$BK$1017),0) -> 8 | AB50: =IFERROR($E50*SUMIF('Daily Log'!$BM$18:$BM$1017,$B50,'Daily Log'!$BN$18:$BN$1017),0) -> 0 | AC50: =IFERROR($E50*SUMIF('Daily Log'!$BP$18:$BP$1017,$B50,'Daily Log'!$BQ$18:$BQ$1017),0) -> 0 | AD50: =IFERROR($E50*SUMIF('Daily Log'!$BS$18:$BS$1017,$B50,'Daily Log'!$BT$18:$BT$1017),0) -> 4 | AE50: =IFERROR($E50*SUMIF('Daily Log'!$BV$18:$BV$1017,$B50,'Daily Log'!$BW$18:$BW$1017),0) -> 0 | AF50: =IFERROR($E50*SUMIF('Daily Log'!$BY$18:$BY$1017,$B50,'Daily Log'!$BZ$18:$BZ$1017),0) -> 0 | AG50: =IFERROR($E50*SUMIF('Daily Log'!$CB$18:$CB$1017,$B50,'Daily Log'!$CC$18:$CC$1017),0) -> 0 | AH50: =IFERROR($E50*SUMIF('Daily Log'!$CE$18:$CE$1017,$B50,'Daily Log'!$CF$18:$CF$1017),0) -> 4 | AI50: =IFERROR($E50*SUMIF('Daily Log'!$CH$18:$CH$1017,$B50,'Daily Log'!$CI$18:$CI$1017),0) -> 0 | AJ50: =IFERROR($E50*SUMIF('Daily Log'!$CK$18:$CK$1017,$B50,'Daily Log'!$CL$18:$CL$1017),0) -> 0 | AK50: =IFERROR($E50*SUMIF('Daily Log'!$CN$18:$CN$1017,$B50,'Daily Log'!$CO$18:$CO$1017),0) -> 0
B51: GUINNESS BEER TOTAL | D51: BEER | G51: =SUM(G45:G50) -> 1 | H51: =SUM(H45:H50) -> 4 | I51: 6 | J51: 4 | K51: 4 | L51: 12 | M51: 0 | N51: 0 | O51: 4 | P51: 0 | Q51: 12 | R51: 4 | S51: 0 | T51: 10 | U51: 16 | V51: 0 | W51: 6 | X51: 4 | Y51: 0 | Z51: 14 | AA51: 8 | AB51: 20 | AC51: 0 | AD51: 14 | AE51: 5 | AF51: 0 | AG51: 0 | AH51: 4 | AI51: 0 | AJ51: 0 | AK51: 0
B52: BN01 8201:HOE BTL | D52: BEER | E52: 1 | F52: 8 | G52: =IFERROR($E52*SUMIF('Daily Log'!$B$18:$B$1017,$B52,'Daily Log'!$C$18:$C$1017),0) -> 0 | H52: =IFERROR($E52*SUMIF('Daily Log'!$E$18:$E$1017,$B52,'Daily Log'!$F$18:$F$1017),0) -> 0 | I52: =IFERROR($E52*SUMIF('Daily Log'!$H$18:$H$1017,$B52,'Daily Log'!$I$18:$I$1017),0) -> 0 | J52: =IFERROR($E52*SUMIF('Daily Log'!$K$18:$K$1017,$B52,'Daily Log'!$L$18:$L$1017),0) -> 0 | K52: =IFERROR($E52*SUMIF('Daily Log'!$N$18:$N$1017,$B52,'Daily Log'!$O$18:$O$1017),0) -> 0 | L52: =IFERROR($E52*SUMIF('Daily Log'!$Q$18:$Q$1017,$B52,'Daily Log'!$R$18:$R$1017),0) -> 0 | M52: =IFERROR($E52*SUMIF('Daily Log'!$T$18:$T$1017,$B52,'Daily Log'!$U$18:$U$1017),0) -> 0 | N52: =IFERROR($E52*SUMIF('Daily Log'!$W$18:$W$1017,$B52,'Daily Log'!$X$18:$X$1017),0) -> 0 | O52: =IFERROR($E52*SUMIF('Daily Log'!$Z$18:$Z$1017,$B52,'Daily Log'!$AA$18:$AA$1017),0) -> 0 | P52: =IFERROR($E52*SUMIF('Daily Log'!$AC$18:$AC$1017,$B52,'Daily Log'!$AD$18:$AD$1017),0) -> 0 | Q52: =IFERROR($E52*SUMIF('Daily Log'!$AF$18:$AF$1017,$B52,'Daily Log'!$AG$18:$AG$1017),0) -> 0 | R52: =IFERROR($E52*SUMIF('Daily Log'!$AI$18:$AI$1017,$B52,'Daily Log'!$AJ$18:$AJ$1017),0) -> 0 | S52: =IFERROR($E52*SUMIF('Daily Log'!$AL$18:$AL$1017,$B52,'Daily Log'!$AM$18:$AM$1017),0) -> 1 | T52: =IFERROR($E52*SUMIF('Daily Log'!$AO$18:$AO$1017,$B52,'Daily Log'!$AP$18:$AP$1017),0) -> 0 | U52: =IFERROR($E52*SUMIF('Daily Log'!$AR$18:$AR$1017,$B52,'Daily Log'!$AS$18:$AS$1017),0) -> 0 | V52: =IFERROR($E52*SUMIF('Daily Log'!$AU$18:$AU$1017,$B52,'Daily Log'!$AV$18:$AV$1017),0) -> 0 | W52: =IFERROR($E52*SUMIF('Daily Log'!$AX$18:$AX$1017,$B52,'Daily Log'!$AY$18:$AY$1017),0) -> 0 | X52: =IFERROR($E52*SUMIF('Daily Log'!$BA$18:$BA$1017,$B52,'Daily Log'!$BB$18:$BB$1017),0) -> 0 | Y52: =IFERROR($E52*SUMIF('Daily Log'!$BD$18:$BD$1017,$B52,'Daily Log'!$BE$18:$BE$1017),0) -> 0 | Z52: =IFERROR($E52*SUMIF('Daily Log'!$BG$18:$BG$1017,$B52,'Daily Log'!$BH$18:$BH$1017),0) -> 0 | AA52: =IFERROR($E52*SUMIF('Daily Log'!$BJ$18:$BJ$1017,$B52,'Daily Log'!$BK$18:$BK$1017),0) -> 0 | AB52: =IFERROR($E52*SUMIF('Daily Log'!$BM$18:$BM$1017,$B52,'Daily Log'!$BN$18:$BN$1017),0) -> 0 | AC52: =IFERROR($E52*SUMIF('Daily Log'!$BP$18:$BP$1017,$B52,'Daily Log'!$BQ$18:$BQ$1017),0) -> 0 | AD52: =IFERROR($E52*SUMIF('Daily Log'!$BS$18:$BS$1017,$B52,'Daily Log'!$BT$18:$BT$1017),0) -> 3 | AE52: =IFERROR($E52*SUMIF('Daily Log'!$BV$18:$BV$1017,$B52,'Daily Log'!$BW$18:$BW$1017),0) -> 2 | AF52: =IFERROR($E52*SUMIF('Daily Log'!$BY$18:$BY$1017,$B52,'Daily Log'!$BZ$18:$BZ$1017),0) -> 1 | AG52: =IFERROR($E52*SUMIF('Daily Log'!$CB$18:$CB$1017,$B52,'Daily Log'!$CC$18:$CC$1017),0) -> 1 | AH52: =IFERROR($E52*SUMIF('Daily Log'!$CE$18:$CE$1017,$B52,'Daily Log'!$CF$18:$CF$1017),0) -> 0 | AI52: =IFERROR($E52*SUMIF('Daily Log'!$CH$18:$CH$1017,$B52,'Daily Log'!$CI$18:$CI$1017),0) -> 0 | AJ52: =IFERROR($E52*SUMIF('Daily Log'!$CK$18:$CK$1017,$B52,'Daily Log'!$CL$18:$CL$1017),0) -> 0 | AK52: =IFERROR($E52*SUMIF('Daily Log'!$CN$18:$CN$1017,$B52,'Daily Log'!$CO$18:$CO$1017),0) -> 0
B53: BN02 8202:HOE BKT | D53: BEER | E53: 4 | F53: 76 | G53: =IFERROR($E53*SUMIF('Daily Log'!$B$18:$B$1017,$B53,'Daily Log'!$C$18:$C$1017),0) -> 0 | H53: =IFERROR($E53*SUMIF('Daily Log'!$E$18:$E$1017,$B53,'Daily Log'!$F$18:$F$1017),0) -> 0 | I53: =IFERROR($E53*SUMIF('Daily Log'!$H$18:$H$1017,$B53,'Daily Log'!$I$18:$I$1017),0) -> 0 | J53: =IFERROR($E53*SUMIF('Daily Log'!$K$18:$K$1017,$B53,'Daily Log'!$L$18:$L$1017),0) -> 0 | K53: =IFERROR($E53*SUMIF('Daily Log'!$N$18:$N$1017,$B53,'Daily Log'!$O$18:$O$1017),0) -> 0 | L53: =IFERROR($E53*SUMIF('Daily Log'!$Q$18:$Q$1017,$B53,'Daily Log'!$R$18:$R$1017),0) -> 0 | M53: =IFERROR($E53*SUMIF('Daily Log'!$T$18:$T$1017,$B53,'Daily Log'!$U$18:$U$1017),0) -> 0 | N53: =IFERROR($E53*SUMIF('Daily Log'!$W$18:$W$1017,$B53,'Daily Log'!$X$18:$X$1017),0) -> 4 | O53: =IFERROR($E53*SUMIF('Daily Log'!$Z$18:$Z$1017,$B53,'Daily Log'!$AA$18:$AA$1017),0) -> 0 | P53: =IFERROR($E53*SUMIF('Daily Log'!$AC$18:$AC$1017,$B53,'Daily Log'!$AD$18:$AD$1017),0) -> 4 | Q53: =IFERROR($E53*SUMIF('Daily Log'!$AF$18:$AF$1017,$B53,'Daily Log'!$AG$18:$AG$1017),0) -> 0 | R53: =IFERROR($E53*SUMIF('Daily Log'!$AI$18:$AI$1017,$B53,'Daily Log'!$AJ$18:$AJ$1017),0) -> 4 | S53: =IFERROR($E53*SUMIF('Daily Log'!$AL$18:$AL$1017,$B53,'Daily Log'!$AM$18:$AM$1017),0) -> 4 | T53: =IFERROR($E53*SUMIF('Daily Log'!$AO$18:$AO$1017,$B53,'Daily Log'!$AP$18:$AP$1017),0) -> 0 | U53: =IFERROR($E53*SUMIF('Daily Log'!$AR$18:$AR$1017,$B53,'Daily Log'!$AS$18:$AS$1017),0) -> 4 | V53: =IFERROR($E53*SUMIF('Daily Log'!$AU$18:$AU$1017,$B53,'Daily Log'!$AV$18:$AV$1017),0) -> 0 | W53: =IFERROR($E53*SUMIF('Daily Log'!$AX$18:$AX$1017,$B53,'Daily Log'!$AY$18:$AY$1017),0) -> 0 | X53: =IFERROR($E53*SUMIF('Daily Log'!$BA$18:$BA$1017,$B53,'Daily Log'!$BB$18:$BB$1017),0) -> 4 | Y53: =IFERROR($E53*SUMIF('Daily Log'!$BD$18:$BD$1017,$B53,'Daily Log'!$BE$18:$BE$1017),0) -> 4 | Z53: =IFERROR($E53*SUMIF('Daily Log'!$BG$18:$BG$1017,$B53,'Daily Log'!$BH$18:$BH$1017),0) -> 8 | AA53: =IFERROR($E53*SUMIF('Daily Log'!$BJ$18:$BJ$1017,$B53,'Daily Log'!$BK$18:$BK$1017),0) -> 0 | AB53: =IFERROR($E53*SUMIF('Daily Log'!$BM$18:$BM$1017,$B53,'Daily Log'!$BN$18:$BN$1017),0) -> 8 | AC53: =IFERROR($E53*SUMIF('Daily Log'!$BP$18:$BP$1017,$B53,'Daily Log'!$BQ$18:$BQ$1017),0) -> 4 | AD53: =IFERROR($E53*SUMIF('Daily Log'!$BS$18:$BS$1017,$B53,'Daily Log'!$BT$18:$BT$1017),0) -> 0 | AE53: =IFERROR($E53*SUMIF('Daily Log'!$BV$18:$BV$1017,$B53,'Daily Log'!$BW$18:$BW$1017),0) -> 12 | AF53: =IFERROR($E53*SUMIF('Daily Log'!$BY$18:$BY$1017,$B53,'Daily Log'!$BZ$18:$BZ$1017),0) -> 0 | AG53: =IFERROR($E53*SUMIF('Daily Log'!$CB$18:$CB$1017,$B53,'Daily Log'!$CC$18:$CC$1017),0) -> 16 | AH53: =IFERROR($E53*SUMIF('Daily Log'!$CE$18:$CE$1017,$B53,'Daily Log'!$CF$18:$CF$1017),0) -> 0 | AI53: =IFERROR($E53*SUMIF('Daily Log'!$CH$18:$CH$1017,$B53,'Daily Log'!$CI$18:$CI$1017),0) -> 0 | AJ53: =IFERROR($E53*SUMIF('Daily Log'!$CK$18:$CK$1017,$B53,'Daily Log'!$CL$18:$CL$1017),0) -> 0 | AK53: =IFERROR($E53*SUMIF('Daily Log'!$CN$18:$CN$1017,$B53,'Daily Log'!$CO$18:$CO$1017),0) -> 0
B54: HOEGAARDEN TOTAL | D54: BEER | G54: =SUM(G52:G53) -> 0 | H54: =SUM(H52:H53) -> 0 | I54: 0 | J54: 0 | K54: 0 | L54: 0 | M54: 0 | N54: 4 | O54: 0 | P54: 4 | Q54: 0 | R54: 4 | S54: 5 | T54: 0 | U54: 4 | V54: 0 | W54: 0 | X54: 4 | Y54: 4 | Z54: 8 | AA54: 0 | AB54: 8 | AC54: 4 | AD54: 3 | AE54: 14 | AF54: 1 | AG54: 17 | AH54: 0 | AI54: 0 | AJ54: 0 | AK54: 0
B55: BR01 8301:PAUL BTL | D55: BEER | E55: 1 | F55: 8 | G55: =IFERROR($E55*SUMIF('Daily Log'!$B$18:$B$1017,$B55,'Daily Log'!$C$18:$C$1017),0) -> 0 | H55: =IFERROR($E55*SUMIF('Daily Log'!$E$18:$E$1017,$B55,'Daily Log'!$F$18:$F$1017),0) -> 0 | I55: =IFERROR($E55*SUMIF('Daily Log'!$H$18:$H$1017,$B55,'Daily Log'!$I$18:$I$1017),0) -> 0 | J55: =IFERROR($E55*SUMIF('Daily Log'!$K$18:$K$1017,$B55,'Daily Log'!$L$18:$L$1017),0) -> 0 | K55: =IFERROR($E55*SUMIF('Daily Log'!$N$18:$N$1017,$B55,'Daily Log'!$O$18:$O$1017),0) -> 0 | L55: =IFERROR($E55*SUMIF('Daily Log'!$Q$18:$Q$1017,$B55,'Daily Log'!$R$18:$R$1017),0) -> 0 | M55: =IFERROR($E55*SUMIF('Daily Log'!$T$18:$T$1017,$B55,'Daily Log'!$U$18:$U$1017),0) -> 0 | N55: =IFERROR($E55*SUMIF('Daily Log'!$W$18:$W$1017,$B55,'Daily Log'!$X$18:$X$1017),0) -> 0 | O55: =IFERROR($E55*SUMIF('Daily Log'!$Z$18:$Z$1017,$B55,'Daily Log'!$AA$18:$AA$1017),0) -> 0 | P55: =IFERROR($E55*SUMIF('Daily Log'!$AC$18:$AC$1017,$B55,'Daily Log'!$AD$18:$AD$1017),0) -> 0 | Q55: =IFERROR($E55*SUMIF('Daily Log'!$AF$18:$AF$1017,$B55,'Daily Log'!$AG$18:$AG$1017),0) -> 0 | R55: =IFERROR($E55*SUMIF('Daily Log'!$AI$18:$AI$1017,$B55,'Daily Log'!$AJ$18:$AJ$1017),0) -> 0 | S55: =IFERROR($E55*SUMIF('Daily Log'!$AL$18:$AL$1017,$B55,'Daily Log'!$AM$18:$AM$1017),0) -> 1 | T55: =IFERROR($E55*SUMIF('Daily Log'!$AO$18:$AO$1017,$B55,'Daily Log'!$AP$18:$AP$1017),0) -> 0 | U55: =IFERROR($E55*SUMIF('Daily Log'!$AR$18:$AR$1017,$B55,'Daily Log'!$AS$18:$AS$1017),0) -> 0 | V55: =IFERROR($E55*SUMIF('Daily Log'!$AU$18:$AU$1017,$B55,'Daily Log'!$AV$18:$AV$1017),0) -> 0 | W55: =IFERROR($E55*SUMIF('Daily Log'!$AX$18:$AX$1017,$B55,'Daily Log'!$AY$18:$AY$1017),0) -> 0 | X55: =IFERROR($E55*SUMIF('Daily Log'!$BA$18:$BA$1017,$B55,'Daily Log'!$BB$18:$BB$1017),0) -> 2 | Y55: =IFERROR($E55*SUMIF('Daily Log'!$BD$18:$BD$1017,$B55,'Daily Log'!$BE$18:$BE$1017),0) -> 0 | Z55: =IFERROR($E55*SUMIF('Daily Log'!$BG$18:$BG$1017,$B55,'Daily Log'!$BH$18:$BH$1017),0) -> 0 | AA55: =IFERROR($E55*SUMIF('Daily Log'!$BJ$18:$BJ$1017,$B55,'Daily Log'!$BK$18:$BK$1017),0) -> 0 | AB55: =IFERROR($E55*SUMIF('Daily Log'!$BM$18:$BM$1017,$B55,'Daily Log'!$BN$18:$BN$1017),0) -> 2 | AC55: =IFERROR($E55*SUMIF('Daily Log'!$BP$18:$BP$1017,$B55,'Daily Log'!$BQ$18:$BQ$1017),0) -> 0 | AD55: =IFERROR($E55*SUMIF('Daily Log'!$BS$18:$BS$1017,$B55,'Daily Log'!$BT$18:$BT$1017),0) -> 0 | AE55: =IFERROR($E55*SUMIF('Daily Log'!$BV$18:$BV$1017,$B55,'Daily Log'!$BW$18:$BW$1017),0) -> 2 | AF55: =IFERROR($E55*SUMIF('Daily Log'!$BY$18:$BY$1017,$B55,'Daily Log'!$BZ$18:$BZ$1017),0) -> 1 | AG55: =IFERROR($E55*SUMIF('Daily Log'!$CB$18:$CB$1017,$B55,'Daily Log'!$CC$18:$CC$1017),0) -> 0 | AH55: =IFERROR($E55*SUMIF('Daily Log'!$CE$18:$CE$1017,$B55,'Daily Log'!$CF$18:$CF$1017),0) -> 0 | AI55: =IFERROR($E55*SUMIF('Daily Log'!$CH$18:$CH$1017,$B55,'Daily Log'!$CI$18:$CI$1017),0) -> 0 | AJ55: =IFERROR($E55*SUMIF('Daily Log'!$CK$18:$CK$1017,$B55,'Daily Log'!$CL$18:$CL$1017),0) -> 0 | AK55: =IFERROR($E55*SUMIF('Daily Log'!$CN$18:$CN$1017,$B55,'Daily Log'!$CO$18:$CO$1017),0) -> 0
B56: BR02 8302:PAUL BKT | D56: BEER | E56: 4 | G56: =IFERROR($E56*SUMIF('Daily Log'!$B$18:$B$1017,$B56,'Daily Log'!$C$18:$C$1017),0) -> 0 | H56: =IFERROR($E56*SUMIF('Daily Log'!$E$18:$E$1017,$B56,'Daily Log'!$F$18:$F$1017),0) -> 0 | I56: =IFERROR($E56*SUMIF('Daily Log'!$H$18:$H$1017,$B56,'Daily Log'!$I$18:$I$1017),0) -> 0 | J56: =IFERROR($E56*SUMIF('Daily Log'!$K$18:$K$1017,$B56,'Daily Log'!$L$18:$L$1017),0) -> 0 | K56: =IFERROR($E56*SUMIF('Daily Log'!$N$18:$N$1017,$B56,'Daily Log'!$O$18:$O$1017),0) -> 0 | L56: =IFERROR($E56*SUMIF('Daily Log'!$Q$18:$Q$1017,$B56,'Daily Log'!$R$18:$R$1017),0) -> 0 | M56: =IFERROR($E56*SUMIF('Daily Log'!$T$18:$T$1017,$B56,'Daily Log'!$U$18:$U$1017),0) -> 0 | N56: =IFERROR($E56*SUMIF('Daily Log'!$W$18:$W$1017,$B56,'Daily Log'!$X$18:$X$1017),0) -> 0 | O56: =IFERROR($E56*SUMIF('Daily Log'!$Z$18:$Z$1017,$B56,'Daily Log'!$AA$18:$AA$1017),0) -> 4 | P56: =IFERROR($E56*SUMIF('Daily Log'!$AC$18:$AC$1017,$B56,'Daily Log'!$AD$18:$AD$1017),0) -> 0 | Q56: =IFERROR($E56*SUMIF('Daily Log'!$AF$18:$AF$1017,$B56,'Daily Log'!$AG$18:$AG$1017),0) -> 0 | R56: =IFERROR($E56*SUMIF('Daily Log'!$AI$18:$AI$1017,$B56,'Daily Log'!$AJ$18:$AJ$1017),0) -> 0 | S56: =IFERROR($E56*SUMIF('Daily Log'!$AL$18:$AL$1017,$B56,'Daily Log'!$AM$18:$AM$1017),0) -> 0 | T56: =IFERROR($E56*SUMIF('Daily Log'!$AO$18:$AO$1017,$B56,'Daily Log'!$AP$18:$AP$1017),0) -> 0 | U56: =IFERROR($E56*SUMIF('Daily Log'!$AR$18:$AR$1017,$B56,'Daily Log'!$AS$18:$AS$1017),0) -> 0 | V56: =IFERROR($E56*SUMIF('Daily Log'!$AU$18:$AU$1017,$B56,'Daily Log'!$AV$18:$AV$1017),0) -> 0 | W56: =IFERROR($E56*SUMIF('Daily Log'!$AX$18:$AX$1017,$B56,'Daily Log'!$AY$18:$AY$1017),0) -> 0 | X56: =IFERROR($E56*SUMIF('Daily Log'!$BA$18:$BA$1017,$B56,'Daily Log'!$BB$18:$BB$1017),0) -> 0 | Y56: =IFERROR($E56*SUMIF('Daily Log'!$BD$18:$BD$1017,$B56,'Daily Log'!$BE$18:$BE$1017),0) -> 0 | Z56: =IFERROR($E56*SUMIF('Daily Log'!$BG$18:$BG$1017,$B56,'Daily Log'!$BH$18:$BH$1017),0) -> 0 | AA56: =IFERROR($E56*SUMIF('Daily Log'!$BJ$18:$BJ$1017,$B56,'Daily Log'!$BK$18:$BK$1017),0) -> 0 | AB56: =IFERROR($E56*SUMIF('Daily Log'!$BM$18:$BM$1017,$B56,'Daily Log'!$BN$18:$BN$1017),0) -> 0 | AC56: =IFERROR($E56*SUMIF('Daily Log'!$BP$18:$BP$1017,$B56,'Daily Log'!$BQ$18:$BQ$1017),0) -> 0 | AD56: =IFERROR($E56*SUMIF('Daily Log'!$BS$18:$BS$1017,$B56,'Daily Log'!$BT$18:$BT$1017),0) -> 0 | AE56: =IFERROR($E56*SUMIF('Daily Log'!$BV$18:$BV$1017,$B56,'Daily Log'!$BW$18:$BW$1017),0) -> 0 | AF56: =IFERROR($E56*SUMIF('Daily Log'!$BY$18:$BY$1017,$B56,'Daily Log'!$BZ$18:$BZ$1017),0) -> 0 | AG56: =IFERROR($E56*SUMIF('Daily Log'!$CB$18:$CB$1017,$B56,'Daily Log'!$CC$18:$CC$1017),0) -> 0 | AH56: =IFERROR($E56*SUMIF('Daily Log'!$CE$18:$CE$1017,$B56,'Daily Log'!$CF$18:$CF$1017),0) -> 0 | AI56: =IFERROR($E56*SUMIF('Daily Log'!$CH$18:$CH$1017,$B56,'Daily Log'!$CI$18:$CI$1017),0) -> 0 | AJ56: =IFERROR($E56*SUMIF('Daily Log'!$CK$18:$CK$1017,$B56,'Daily Log'!$CL$18:$CL$1017),0) -> 0 | AK56: =IFERROR($E56*SUMIF('Daily Log'!$CN$18:$CN$1017,$B56,'Daily Log'!$CO$18:$CO$1017),0) -> 0
B57: PAULANAR TOTAL | D57: BEER | F57: 5 | G57: =SUM(G55:G56) -> 0 | H57: =SUM(H55:H56) -> 0 | I57: 0 | J57: 0 | K57: 0 | L57: 0 | M57: 0 | N57: 0 | O57: 4 | P57: 0 | Q57: 0 | R57: 0 | S57: 1 | T57: 0 | U57: 0 | V57: 0 | W57: 0 | X57: 2 | Y57: 0 | Z57: 0 | AA57: 0 | AB57: 2 | AC57: 0 | AD57: 0 | AE57: 2 | AF57: 1 | AG57: 0 | AH57: 0 | AI57: 0 | AJ57: 0 | AK57: 0
B58: BW01 8101:STRONG BTL | D58: BEER | E58: 1 | F58: 8 | G58: =IFERROR($E58*SUMIF('Daily Log'!$B$18:$B$1017,$B58,'Daily Log'!$C$18:$C$1017),0) -> 0 | H58: =IFERROR($E58*SUMIF('Daily Log'!$E$18:$E$1017,$B58,'Daily Log'!$F$18:$F$1017),0) -> 1 | I58: =IFERROR($E58*SUMIF('Daily Log'!$H$18:$H$1017,$B58,'Daily Log'!$I$18:$I$1017),0) -> 0 | J58: =IFERROR($E58*SUMIF('Daily Log'!$K$18:$K$1017,$B58,'Daily Log'!$L$18:$L$1017),0) -> 0 | K58: =IFERROR($E58*SUMIF('Daily Log'!$N$18:$N$1017,$B58,'Daily Log'!$O$18:$O$1017),0) -> 0 | L58: =IFERROR($E58*SUMIF('Daily Log'!$Q$18:$Q$1017,$B58,'Daily Log'!$R$18:$R$1017),0) -> 0 | M58: =IFERROR($E58*SUMIF('Daily Log'!$T$18:$T$1017,$B58,'Daily Log'!$U$18:$U$1017),0) -> 0 | N58: =IFERROR($E58*SUMIF('Daily Log'!$W$18:$W$1017,$B58,'Daily Log'!$X$18:$X$1017),0) -> 0 | O58: =IFERROR($E58*SUMIF('Daily Log'!$Z$18:$Z$1017,$B58,'Daily Log'!$AA$18:$AA$1017),0) -> 1 | P58: =IFERROR($E58*SUMIF('Daily Log'!$AC$18:$AC$1017,$B58,'Daily Log'!$AD$18:$AD$1017),0) -> 0 | Q58: =IFERROR($E58*SUMIF('Daily Log'!$AF$18:$AF$1017,$B58,'Daily Log'!$AG$18:$AG$1017),0) -> 0 | R58: =IFERROR($E58*SUMIF('Daily Log'!$AI$18:$AI$1017,$B58,'Daily Log'!$AJ$18:$AJ$1017),0) -> 0 | S58: =IFERROR($E58*SUMIF('Daily Log'!$AL$18:$AL$1017,$B58,'Daily Log'!$AM$18:$AM$1017),0) -> 1 | T58: =IFERROR($E58*SUMIF('Daily Log'!$AO$18:$AO$1017,$B58,'Daily Log'!$AP$18:$AP$1017),0) -> 0 | U58: =IFERROR($E58*SUMIF('Daily Log'!$AR$18:$AR$1017,$B58,'Daily Log'!$AS$18:$AS$1017),0) -> 0 | V58: =IFERROR($E58*SUMIF('Daily Log'!$AU$18:$AU$1017,$B58,'Daily Log'!$AV$18:$AV$1017),0) -> 1 | W58: =IFERROR($E58*SUMIF('Daily Log'!$AX$18:$AX$1017,$B58,'Daily Log'!$AY$18:$AY$1017),0) -> 1 | X58: =IFERROR($E58*SUMIF('Daily Log'!$BA$18:$BA$1017,$B58,'Daily Log'!$BB$18:$BB$1017),0) -> 0 | Y58: =IFERROR($E58*SUMIF('Daily Log'!$BD$18:$BD$1017,$B58,'Daily Log'!$BE$18:$BE$1017),0) -> 0 | Z58: =IFERROR($E58*SUMIF('Daily Log'!$BG$18:$BG$1017,$B58,'Daily Log'!$BH$18:$BH$1017),0) -> 0 | AA58: =IFERROR($E58*SUMIF('Daily Log'!$BJ$18:$BJ$1017,$B58,'Daily Log'!$BK$18:$BK$1017),0) -> 0 | AB58: =IFERROR($E58*SUMIF('Daily Log'!$BM$18:$BM$1017,$B58,'Daily Log'!$BN$18:$BN$1017),0) -> 0 | AC58: =IFERROR($E58*SUMIF('Daily Log'!$BP$18:$BP$1017,$B58,'Daily Log'!$BQ$18:$BQ$1017),0) -> 0 | AD58: =IFERROR($E58*SUMIF('Daily Log'!$BS$18:$BS$1017,$B58,'Daily Log'!$BT$18:$BT$1017),0) -> 0 | AE58: =IFERROR($E58*SUMIF('Daily Log'!$BV$18:$BV$1017,$B58,'Daily Log'!$BW$18:$BW$1017),0) -> 0 | AF58: =IFERROR($E58*SUMIF('Daily Log'!$BY$18:$BY$1017,$B58,'Daily Log'!$BZ$18:$BZ$1017),0) -> 1 | AG58: =IFERROR($E58*SUMIF('Daily Log'!$CB$18:$CB$1017,$B58,'Daily Log'!$CC$18:$CC$1017),0) -> 2 | AH58: =IFERROR($E58*SUMIF('Daily Log'!$CE$18:$CE$1017,$B58,'Daily Log'!$CF$18:$CF$1017),0) -> 0 | AI58: =IFERROR($E58*SUMIF('Daily Log'!$CH$18:$CH$1017,$B58,'Daily Log'!$CI$18:$CI$1017),0) -> 0 | AJ58: =IFERROR($E58*SUMIF('Daily Log'!$CK$18:$CK$1017,$B58,'Daily Log'!$CL$18:$CL$1017),0) -> 0 | AK58: =IFERROR($E58*SUMIF('Daily Log'!$CN$18:$CN$1017,$B58,'Daily Log'!$CO$18:$CO$1017),0) -> 0
B59: BW02 8102:STRONG BKT | D59: BEER | E59: 4 | F59: 16 | G59: =IFERROR($E59*SUMIF('Daily Log'!$B$18:$B$1017,$B59,'Daily Log'!$C$18:$C$1017),0) -> 0 | H59: =IFERROR($E59*SUMIF('Daily Log'!$E$18:$E$1017,$B59,'Daily Log'!$F$18:$F$1017),0) -> 0 | I59: =IFERROR($E59*SUMIF('Daily Log'!$H$18:$H$1017,$B59,'Daily Log'!$I$18:$I$1017),0) -> 0 | J59: =IFERROR($E59*SUMIF('Daily Log'!$K$18:$K$1017,$B59,'Daily Log'!$L$18:$L$1017),0) -> 0 | K59: =IFERROR($E59*SUMIF('Daily Log'!$N$18:$N$1017,$B59,'Daily Log'!$O$18:$O$1017),0) -> 0 | L59: =IFERROR($E59*SUMIF('Daily Log'!$Q$18:$Q$1017,$B59,'Daily Log'!$R$18:$R$1017),0) -> 0 | M59: =IFERROR($E59*SUMIF('Daily Log'!$T$18:$T$1017,$B59,'Daily Log'!$U$18:$U$1017),0) -> 0 | N59: =IFERROR($E59*SUMIF('Daily Log'!$W$18:$W$1017,$B59,'Daily Log'!$X$18:$X$1017),0) -> 0 | O59: =IFERROR($E59*SUMIF('Daily Log'!$Z$18:$Z$1017,$B59,'Daily Log'!$AA$18:$AA$1017),0) -> 0 | P59: =IFERROR($E59*SUMIF('Daily Log'!$AC$18:$AC$1017,$B59,'Daily Log'!$AD$18:$AD$1017),0) -> 0 | Q59: =IFERROR($E59*SUMIF('Daily Log'!$AF$18:$AF$1017,$B59,'Daily Log'!$AG$18:$AG$1017),0) -> 0 | R59: =IFERROR($E59*SUMIF('Daily Log'!$AI$18:$AI$1017,$B59,'Daily Log'!$AJ$18:$AJ$1017),0) -> 0 | S59: =IFERROR($E59*SUMIF('Daily Log'!$AL$18:$AL$1017,$B59,'Daily Log'!$AM$18:$AM$1017),0) -> 4 | T59: =IFERROR($E59*SUMIF('Daily Log'!$AO$18:$AO$1017,$B59,'Daily Log'!$AP$18:$AP$1017),0) -> 0 | U59: =IFERROR($E59*SUMIF('Daily Log'!$AR$18:$AR$1017,$B59,'Daily Log'!$AS$18:$AS$1017),0) -> 0 | V59: =IFERROR($E59*SUMIF('Daily Log'!$AU$18:$AU$1017,$B59,'Daily Log'!$AV$18:$AV$1017),0) -> 0 | W59: =IFERROR($E59*SUMIF('Daily Log'!$AX$18:$AX$1017,$B59,'Daily Log'!$AY$18:$AY$1017),0) -> 4 | X59: =IFERROR($E59*SUMIF('Daily Log'!$BA$18:$BA$1017,$B59,'Daily Log'!$BB$18:$BB$1017),0) -> 0 | Y59: =IFERROR($E59*SUMIF('Daily Log'!$BD$18:$BD$1017,$B59,'Daily Log'!$BE$18:$BE$1017),0) -> 0 | Z59: =IFERROR($E59*SUMIF('Daily Log'!$BG$18:$BG$1017,$B59,'Daily Log'!$BH$18:$BH$1017),0) -> 0 | AA59: =IFERROR($E59*SUMIF('Daily Log'!$BJ$18:$BJ$1017,$B59,'Daily Log'!$BK$18:$BK$1017),0) -> 0 | AB59: =IFERROR($E59*SUMIF('Daily Log'!$BM$18:$BM$1017,$B59,'Daily Log'!$BN$18:$BN$1017),0) -> 0 | AC59: =IFERROR($E59*SUMIF('Daily Log'!$BP$18:$BP$1017,$B59,'Daily Log'!$BQ$18:$BQ$1017),0) -> 8 | AD59: =IFERROR($E59*SUMIF('Daily Log'!$BS$18:$BS$1017,$B59,'Daily Log'!$BT$18:$BT$1017),0) -> 0 | AE59: =IFERROR($E59*SUMIF('Daily Log'!$BV$18:$BV$1017,$B59,'Daily Log'!$BW$18:$BW$1017),0) -> 0 | AF59: =IFERROR($E59*SUMIF('Daily Log'!$BY$18:$BY$1017,$B59,'Daily Log'!$BZ$18:$BZ$1017),0) -> 0 | AG59: =IFERROR($E59*SUMIF('Daily Log'!$CB$18:$CB$1017,$B59,'Daily Log'!$CC$18:$CC$1017),0) -> 0 | AH59: =IFERROR($E59*SUMIF('Daily Log'!$CE$18:$CE$1017,$B59,'Daily Log'!$CF$18:$CF$1017),0) -> 0 | AI59: =IFERROR($E59*SUMIF('Daily Log'!$CH$18:$CH$1017,$B59,'Daily Log'!$CI$18:$CI$1017),0) -> 0 | AJ59: =IFERROR($E59*SUMIF('Daily Log'!$CK$18:$CK$1017,$B59,'Daily Log'!$CL$18:$CL$1017),0) -> 0 | AK59: =IFERROR($E59*SUMIF('Daily Log'!$CN$18:$CN$1017,$B59,'Daily Log'!$CO$18:$CO$1017),0) -> 0
B60: STRONGBOW TOTAL | D60: BEER | G60: =SUM(G58:G59) -> 0 | H60: =SUM(H58:H59) -> 1 | I60: 0 | J60: 0 | K60: 0 | L60: 0 | M60: 0 | N60: 0 | O60: 1 | P60: 0 | Q60: 0 | R60: 0 | S60: 5 | T60: 0 | U60: 0 | V60: 1 | W60: 5 | X60: 0 | Y60: 0 | Z60: 0 | AA60: 0 | AB60: 0 | AC60: 8 | AD60: 0 | AE60: 0 | AF60: 1 | AG60: 2 | AH60: 0 | AI60: 0 | AJ60: 0 | AK60: 0
B61: BY01 8001:SOME BTL | D61: BEER | E61: 1 | F61: 15 | G61: =IFERROR($E61*SUMIF('Daily Log'!$B$18:$B$1017,$B61,'Daily Log'!$C$18:$C$1017),0) -> 0 | H61: =IFERROR($E61*SUMIF('Daily Log'!$E$18:$E$1017,$B61,'Daily Log'!$F$18:$F$1017),0) -> 1 | I61: =IFERROR($E61*SUMIF('Daily Log'!$H$18:$H$1017,$B61,'Daily Log'!$I$18:$I$1017),0) -> 0 | J61: =IFERROR($E61*SUMIF('Daily Log'!$K$18:$K$1017,$B61,'Daily Log'!$L$18:$L$1017),0) -> 0 | K61: =IFERROR($E61*SUMIF('Daily Log'!$N$18:$N$1017,$B61,'Daily Log'!$O$18:$O$1017),0) -> 0 | L61: =IFERROR($E61*SUMIF('Daily Log'!$Q$18:$Q$1017,$B61,'Daily Log'!$R$18:$R$1017),0) -> 0 | M61: =IFERROR($E61*SUMIF('Daily Log'!$T$18:$T$1017,$B61,'Daily Log'!$U$18:$U$1017),0) -> 0 | N61: =IFERROR($E61*SUMIF('Daily Log'!$W$18:$W$1017,$B61,'Daily Log'!$X$18:$X$1017),0) -> 1 | O61: =IFERROR($E61*SUMIF('Daily Log'!$Z$18:$Z$1017,$B61,'Daily Log'!$AA$18:$AA$1017),0) -> 0 | P61: =IFERROR($E61*SUMIF('Daily Log'!$AC$18:$AC$1017,$B61,'Daily Log'!$AD$18:$AD$1017),0) -> 2 | Q61: =IFERROR($E61*SUMIF('Daily Log'!$AF$18:$AF$1017,$B61,'Daily Log'!$AG$18:$AG$1017),0) -> 0 | R61: =IFERROR($E61*SUMIF('Daily Log'!$AI$18:$AI$1017,$B61,'Daily Log'!$AJ$18:$AJ$1017),0) -> 0 | S61: =IFERROR($E61*SUMIF('Daily Log'!$AL$18:$AL$1017,$B61,'Daily Log'!$AM$18:$AM$1017),0) -> 4 | T61: =IFERROR($E61*SUMIF('Daily Log'!$AO$18:$AO$1017,$B61,'Daily Log'!$AP$18:$AP$1017),0) -> 0 | U61: =IFERROR($E61*SUMIF('Daily Log'!$AR$18:$AR$1017,$B61,'Daily Log'!$AS$18:$AS$1017),0) -> 0 | V61: =IFERROR($E61*SUMIF('Daily Log'!$AU$18:$AU$1017,$B61,'Daily Log'!$AV$18:$AV$1017),0) -> 1 | W61: =IFERROR($E61*SUMIF('Daily Log'!$AX$18:$AX$1017,$B61,'Daily Log'!$AY$18:$AY$1017),0) -> 0 | X61: =IFERROR($E61*SUMIF('Daily Log'!$BA$18:$BA$1017,$B61,'Daily Log'!$BB$18:$BB$1017),0) -> 0 | Y61: =IFERROR($E61*SUMIF('Daily Log'!$BD$18:$BD$1017,$B61,'Daily Log'!$BE$18:$BE$1017),0) -> 0 | Z61: =IFERROR($E61*SUMIF('Daily Log'!$BG$18:$BG$1017,$B61,'Daily Log'!$BH$18:$BH$1017),0) -> 0 | AA61: =IFERROR($E61*SUMIF('Daily Log'!$BJ$18:$BJ$1017,$B61,'Daily Log'!$BK$18:$BK$1017),0) -> 5 | AB61: =IFERROR($E61*SUMIF('Daily Log'!$BM$18:$BM$1017,$B61,'Daily Log'!$BN$18:$BN$1017),0) -> 0 | AC61: =IFERROR($E61*SUMIF('Daily Log'!$BP$18:$BP$1017,$B61,'Daily Log'!$BQ$18:$BQ$1017),0) -> 0 | AD61: =IFERROR($E61*SUMIF('Daily Log'!$BS$18:$BS$1017,$B61,'Daily Log'!$BT$18:$BT$1017),0) -> 0 | AE61: =IFERROR($E61*SUMIF('Daily Log'!$BV$18:$BV$1017,$B61,'Daily Log'!$BW$18:$BW$1017),0) -> 0 | AF61: =IFERROR($E61*SUMIF('Daily Log'!$BY$18:$BY$1017,$B61,'Daily Log'!$BZ$18:$BZ$1017),0) -> 1 | AG61: =IFERROR($E61*SUMIF('Daily Log'!$CB$18:$CB$1017,$B61,'Daily Log'!$CC$18:$CC$1017),0) -> 0 | AH61: =IFERROR($E61*SUMIF('Daily Log'!$CE$18:$CE$1017,$B61,'Daily Log'!$CF$18:$CF$1017),0) -> 0 | AI61: =IFERROR($E61*SUMIF('Daily Log'!$CH$18:$CH$1017,$B61,'Daily Log'!$CI$18:$CI$1017),0) -> 0 | AJ61: =IFERROR($E61*SUMIF('Daily Log'!$CK$18:$CK$1017,$B61,'Daily Log'!$CL$18:$CL$1017),0) -> 0 | AK61: =IFERROR($E61*SUMIF('Daily Log'!$CN$18:$CN$1017,$B61,'Daily Log'!$CO$18:$CO$1017),0) -> 0
B62: BY02 8002:SOME BKT | D62: BEER | E62: 4 | F62: 52 | G62: =IFERROR($E62*SUMIF('Daily Log'!$B$18:$B$1017,$B62,'Daily Log'!$C$18:$C$1017),0) -> 0 | H62: =IFERROR($E62*SUMIF('Daily Log'!$E$18:$E$1017,$B62,'Daily Log'!$F$18:$F$1017),0) -> 0 | I62: =IFERROR($E62*SUMIF('Daily Log'!$H$18:$H$1017,$B62,'Daily Log'!$I$18:$I$1017),0) -> 0 | J62: =IFERROR($E62*SUMIF('Daily Log'!$K$18:$K$1017,$B62,'Daily Log'!$L$18:$L$1017),0) -> 0 | K62: =IFERROR($E62*SUMIF('Daily Log'!$N$18:$N$1017,$B62,'Daily Log'!$O$18:$O$1017),0) -> 0 | L62: =IFERROR($E62*SUMIF('Daily Log'!$Q$18:$Q$1017,$B62,'Daily Log'!$R$18:$R$1017),0) -> 0 | M62: =IFERROR($E62*SUMIF('Daily Log'!$T$18:$T$1017,$B62,'Daily Log'!$U$18:$U$1017),0) -> 0 | N62: =IFERROR($E62*SUMIF('Daily Log'!$W$18:$W$1017,$B62,'Daily Log'!$X$18:$X$1017),0) -> 0 | O62: =IFERROR($E62*SUMIF('Daily Log'!$Z$18:$Z$1017,$B62,'Daily Log'!$AA$18:$AA$1017),0) -> 4 | P62: =IFERROR($E62*SUMIF('Daily Log'!$AC$18:$AC$1017,$B62,'Daily Log'!$AD$18:$AD$1017),0) -> 0 | Q62: =IFERROR($E62*SUMIF('Daily Log'!$AF$18:$AF$1017,$B62,'Daily Log'!$AG$18:$AG$1017),0) -> 0 | R62: =IFERROR($E62*SUMIF('Daily Log'!$AI$18:$AI$1017,$B62,'Daily Log'!$AJ$18:$AJ$1017),0) -> 0 | S62: =IFERROR($E62*SUMIF('Daily Log'!$AL$18:$AL$1017,$B62,'Daily Log'!$AM$18:$AM$1017),0) -> 4 | T62: =IFERROR($E62*SUMIF('Daily Log'!$AO$18:$AO$1017,$B62,'Daily Log'!$AP$18:$AP$1017),0) -> 0 | U62: =IFERROR($E62*SUMIF('Daily Log'!$AR$18:$AR$1017,$B62,'Daily Log'!$AS$18:$AS$1017),0) -> 0 | V62: =IFERROR($E62*SUMIF('Daily Log'!$AU$18:$AU$1017,$B62,'Daily Log'!$AV$18:$AV$1017),0) -> 0 | W62: =IFERROR($E62*SUMIF('Daily Log'!$AX$18:$AX$1017,$B62,'Daily Log'!$AY$18:$AY$1017),0) -> 4 | X62: =IFERROR($E62*SUMIF('Daily Log'!$BA$18:$BA$1017,$B62,'Daily Log'!$BB$18:$BB$1017),0) -> 4 | Y62: =IFERROR($E62*SUMIF('Daily Log'!$BD$18:$BD$1017,$B62,'Daily Log'!$BE$18:$BE$1017),0) -> 0 | Z62: =IFERROR($E62*SUMIF('Daily Log'!$BG$18:$BG$1017,$B62,'Daily Log'!$BH$18:$BH$1017),0) -> 8 | AA62: =IFERROR($E62*SUMIF('Daily Log'!$BJ$18:$BJ$1017,$B62,'Daily Log'!$BK$18:$BK$1017),0) -> 12 | AB62: =IFERROR($E62*SUMIF('Daily Log'!$BM$18:$BM$1017,$B62,'Daily Log'!$BN$18:$BN$1017),0) -> 0 | AC62: =IFERROR($E62*SUMIF('Daily Log'!$BP$18:$BP$1017,$B62,'Daily Log'!$BQ$18:$BQ$1017),0) -> 0 | AD62: =IFERROR($E62*SUMIF('Daily Log'!$BS$18:$BS$1017,$B62,'Daily Log'!$BT$18:$BT$1017),0) -> 0 | AE62: =IFERROR($E62*SUMIF('Daily Log'!$BV$18:$BV$1017,$B62,'Daily Log'!$BW$18:$BW$1017),0) -> 8 | AF62: =IFERROR($E62*SUMIF('Daily Log'!$BY$18:$BY$1017,$B62,'Daily Log'!$BZ$18:$BZ$1017),0) -> 8 | AG62: =IFERROR($E62*SUMIF('Daily Log'!$CB$18:$CB$1017,$B62,'Daily Log'!$CC$18:$CC$1017),0) -> 0 | AH62: =IFERROR($E62*SUMIF('Daily Log'!$CE$18:$CE$1017,$B62,'Daily Log'!$CF$18:$CF$1017),0) -> 0 | AI62: =IFERROR($E62*SUMIF('Daily Log'!$CH$18:$CH$1017,$B62,'Daily Log'!$CI$18:$CI$1017),0) -> 0 | AJ62: =IFERROR($E62*SUMIF('Daily Log'!$CK$18:$CK$1017,$B62,'Daily Log'!$CL$18:$CL$1017),0) -> 0 | AK62: =IFERROR($E62*SUMIF('Daily Log'!$CN$18:$CN$1017,$B62,'Daily Log'!$CO$18:$CO$1017),0) -> 0
B63: APPLE CIDER TOTAL | D63: BEER | G63: =SUM(G61:G62) -> 0 | H63: =SUM(H61:H62) -> 1 | I63: 0 | J63: 0 | K63: 0 | L63: 0 | M63: 0 | N63: 1 | O63: 4 | P63: 2 | Q63: 0 | R63: 0 | S63: 8 | T63: 0 | U63: 0 | V63: 1 | W63: 4 | X63: 4 | Y63: 0 | Z63: 8 | AA63: 17 | AB63: 0 | AC63: 0 | AD63: 0 | AE63: 8 | AF63: 9 | AG63: 0 | AH63: 0 | AI63: 0 | AJ63: 0 | AK63: 0
B64: DH01 DUNHILL | D64: CIGARETTE | E64: 1 | F64: =SUM($G64:$AK64) -> 62 | G64: =IFERROR($E64*SUMIF('Daily Log'!$B$18:$B$1017,$B64,'Daily Log'!$C$18:$C$1017),0) -> 1 | H64: =IFERROR($E64*SUMIF('Daily Log'!$E$18:$E$1017,$B64,'Daily Log'!$F$18:$F$1017),0) -> 3 | I64: =IFERROR($E64*SUMIF('Daily Log'!$H$18:$H$1017,$B64,'Daily Log'!$I$18:$I$1017),0) -> 1 | J64: =IFERROR($E64*SUMIF('Daily Log'!$K$18:$K$1017,$B64,'Daily Log'!$L$18:$L$1017),0) -> 2 | K64: =IFERROR($E64*SUMIF('Daily Log'!$N$18:$N$1017,$B64,'Daily Log'!$O$18:$O$1017),0) -> 1 | L64: =IFERROR($E64*SUMIF('Daily Log'!$Q$18:$Q$1017,$B64,'Daily Log'!$R$18:$R$1017),0) -> 4 | M64: =IFERROR($E64*SUMIF('Daily Log'!$T$18:$T$1017,$B64,'Daily Log'!$U$18:$U$1017),0) -> 2 | N64: =IFERROR($E64*SUMIF('Daily Log'!$W$18:$W$1017,$B64,'Daily Log'!$X$18:$X$1017),0) -> 4 | O64: =IFERROR($E64*SUMIF('Daily Log'!$Z$18:$Z$1017,$B64,'Daily Log'!$AA$18:$AA$1017),0) -> 3 | P64: =IFERROR($E64*SUMIF('Daily Log'!$AC$18:$AC$1017,$B64,'Daily Log'!$AD$18:$AD$1017),0) -> 1 | Q64: =IFERROR($E64*SUMIF('Daily Log'!$AF$18:$AF$1017,$B64,'Daily Log'!$AG$18:$AG$1017),0) -> 1 | R64: =IFERROR($E64*SUMIF('Daily Log'!$AI$18:$AI$1017,$B64,'Daily Log'!$AJ$18:$AJ$1017),0) -> 2 | S64: =IFERROR($E64*SUMIF('Daily Log'!$AL$18:$AL$1017,$B64,'Daily Log'!$AM$18:$AM$1017),0) -> 5 | T64: =IFERROR($E64*SUMIF('Daily Log'!$AO$18:$AO$1017,$B64,'Daily Log'!$AP$18:$AP$1017),0) -> 4 | U64: =IFERROR($E64*SUMIF('Daily Log'!$AR$18:$AR$1017,$B64,'Daily Log'!$AS$18:$AS$1017),0) -> 2 | V64: =IFERROR($E64*SUMIF('Daily Log'!$AU$18:$AU$1017,$B64,'Daily Log'!$AV$18:$AV$1017),0) -> 1 | W64: =IFERROR($E64*SUMIF('Daily Log'!$AX$18:$AX$1017,$B64,'Daily Log'!$AY$18:$AY$1017),0) -> 2 | X64: =IFERROR($E64*SUMIF('Daily Log'!$BA$18:$BA$1017,$B64,'Daily Log'!$BB$18:$BB$1017),0) -> 2 | Y64: =IFERROR($E64*SUMIF('Daily Log'!$BD$18:$BD$1017,$B64,'Daily Log'!$BE$18:$BE$1017),0) -> 2 | Z64: =IFERROR($E64*SUMIF('Daily Log'!$BG$18:$BG$1017,$B64,'Daily Log'!$BH$18:$BH$1017),0) -> 1 | AA64: =IFERROR($E64*SUMIF('Daily Log'!$BJ$18:$BJ$1017,$B64,'Daily Log'!$BK$18:$BK$1017),0) -> 4 | AB64: =IFERROR($E64*SUMIF('Daily Log'!$BM$18:$BM$1017,$B64,'Daily Log'!$BN$18:$BN$1017),0) -> 1 | AC64: =IFERROR($E64*SUMIF('Daily Log'!$BP$18:$BP$1017,$B64,'Daily Log'!$BQ$18:$BQ$1017),0) -> 4 | AD64: =IFERROR($E64*SUMIF('Daily Log'!$BS$18:$BS$1017,$B64,'Daily Log'!$BT$18:$BT$1017),0) -> 5 | AE64: =IFERROR($E64*SUMIF('Daily Log'!$BV$18:$BV$1017,$B64,'Daily Log'!$BW$18:$BW$1017),0) -> 3 | AF64: =IFERROR($E64*SUMIF('Daily Log'!$BY$18:$BY$1017,$B64,'Daily Log'!$BZ$18:$BZ$1017),0) -> 0 | AG64: =IFERROR($E64*SUMIF('Daily Log'!$CB$18:$CB$1017,$B64,'Daily Log'!$CC$18:$CC$1017),0) -> 1 | AH64: =IFERROR($E64*SUMIF('Daily Log'!$CE$18:$CE$1017,$B64,'Daily Log'!$CF$18:$CF$1017),0) -> 0 | AI64: =IFERROR($E64*SUMIF('Daily Log'!$CH$18:$CH$1017,$B64,'Daily Log'!$CI$18:$CI$1017),0) -> 0 | AJ64: =IFERROR($E64*SUMIF('Daily Log'!$CK$18:$CK$1017,$B64,'Daily Log'!$CL$18:$CL$1017),0) -> 0 | AK64: =IFERROR($E64*SUMIF('Daily Log'!$CN$18:$CN$1017,$B64,'Daily Log'!$CO$18:$CO$1017),0) -> 0
B65: DH02 DUNHILL LITE | D65: CIGARETTE | E65: 1 | F65: =SUM($G65:$AK65) -> 18 | G65: =IFERROR($E65*SUMIF('Daily Log'!$B$18:$B$1017,$B65,'Daily Log'!$C$18:$C$1017),0) -> 1 | H65: =IFERROR($E65*SUMIF('Daily Log'!$E$18:$E$1017,$B65,'Daily Log'!$F$18:$F$1017),0) -> 1 | I65: =IFERROR($E65*SUMIF('Daily Log'!$H$18:$H$1017,$B65,'Daily Log'!$I$18:$I$1017),0) -> 0 | J65: =IFERROR($E65*SUMIF('Daily Log'!$K$18:$K$1017,$B65,'Daily Log'!$L$18:$L$1017),0) -> 1 | K65: =IFERROR($E65*SUMIF('Daily Log'!$N$18:$N$1017,$B65,'Daily Log'!$O$18:$O$1017),0) -> 1 | L65: =IFERROR($E65*SUMIF('Daily Log'!$Q$18:$Q$1017,$B65,'Daily Log'!$R$18:$R$1017),0) -> 1 | M65: =IFERROR($E65*SUMIF('Daily Log'!$T$18:$T$1017,$B65,'Daily Log'!$U$18:$U$1017),0) -> 1 | N65: =IFERROR($E65*SUMIF('Daily Log'!$W$18:$W$1017,$B65,'Daily Log'!$X$18:$X$1017),0) -> 1 | O65: =IFERROR($E65*SUMIF('Daily Log'!$Z$18:$Z$1017,$B65,'Daily Log'!$AA$18:$AA$1017),0) -> 0 | P65: =IFERROR($E65*SUMIF('Daily Log'!$AC$18:$AC$1017,$B65,'Daily Log'!$AD$18:$AD$1017),0) -> 0 | Q65: =IFERROR($E65*SUMIF('Daily Log'!$AF$18:$AF$1017,$B65,'Daily Log'!$AG$18:$AG$1017),0) -> 0 | R65: =IFERROR($E65*SUMIF('Daily Log'!$AI$18:$AI$1017,$B65,'Daily Log'!$AJ$18:$AJ$1017),0) -> 0 | S65: =IFERROR($E65*SUMIF('Daily Log'!$AL$18:$AL$1017,$B65,'Daily Log'!$AM$18:$AM$1017),0) -> 3 | T65: =IFERROR($E65*SUMIF('Daily Log'!$AO$18:$AO$1017,$B65,'Daily Log'!$AP$18:$AP$1017),0) -> 1 | U65: =IFERROR($E65*SUMIF('Daily Log'!$AR$18:$AR$1017,$B65,'Daily Log'!$AS$18:$AS$1017),0) -> 0 | V65: =IFERROR($E65*SUMIF('Daily Log'!$AU$18:$AU$1017,$B65,'Daily Log'!$AV$18:$AV$1017),0) -> 1 | W65: =IFERROR($E65*SUMIF('Daily Log'!$AX$18:$AX$1017,$B65,'Daily Log'!$AY$18:$AY$1017),0) -> 0 | X65: =IFERROR($E65*SUMIF('Daily Log'!$BA$18:$BA$1017,$B65,'Daily Log'!$BB$18:$BB$1017),0) -> 0 | Y65: =IFERROR($E65*SUMIF('Daily Log'!$BD$18:$BD$1017,$B65,'Daily Log'!$BE$18:$BE$1017),0) -> 0 | Z65: =IFERROR($E65*SUMIF('Daily Log'!$BG$18:$BG$1017,$B65,'Daily Log'!$BH$18:$BH$1017),0) -> 1 | AA65: =IFERROR($E65*SUMIF('Daily Log'!$BJ$18:$BJ$1017,$B65,'Daily Log'!$BK$18:$BK$1017),0) -> 1 | AB65: =IFERROR($E65*SUMIF('Daily Log'!$BM$18:$BM$1017,$B65,'Daily Log'!$BN$18:$BN$1017),0) -> 0 | AC65: =IFERROR($E65*SUMIF('Daily Log'!$BP$18:$BP$1017,$B65,'Daily Log'!$BQ$18:$BQ$1017),0) -> 1 | AD65: =IFERROR($E65*SUMIF('Daily Log'!$BS$18:$BS$1017,$B65,'Daily Log'!$BT$18:$BT$1017),0) -> 0 | AE65: =IFERROR($E65*SUMIF('Daily Log'!$BV$18:$BV$1017,$B65,'Daily Log'!$BW$18:$BW$1017),0) -> 2 | AF65: =IFERROR($E65*SUMIF('Daily Log'!$BY$18:$BY$1017,$B65,'Daily Log'!$BZ$18:$BZ$1017),0) -> 0 | AG65: =IFERROR($E65*SUMIF('Daily Log'!$CB$18:$CB$1017,$B65,'Daily Log'!$CC$18:$CC$1017),0) -> 0 | AH65: =IFERROR($E65*SUMIF('Daily Log'!$CE$18:$CE$1017,$B65,'Daily Log'!$CF$18:$CF$1017),0) -> 1 | AI65: =IFERROR($E65*SUMIF('Daily Log'!$CH$18:$CH$1017,$B65,'Daily Log'!$CI$18:$CI$1017),0) -> 0 | AJ65: =IFERROR($E65*SUMIF('Daily Log'!$CK$18:$CK$1017,$B65,'Daily Log'!$CL$18:$CL$1017),0) -> 0 | AK65: =IFERROR($E65*SUMIF('Daily Log'!$CN$18:$CN$1017,$B65,'Daily Log'!$CO$18:$CO$1017),0) -> 0
B66: DH03 DUNHILL MT | D66: CIGARETTE | E66: 1 | F66: =SUM($G66:$AK66) -> 32 | G66: =IFERROR($E66*SUMIF('Daily Log'!$B$18:$B$1017,$B66,'Daily Log'!$C$18:$C$1017),0) -> 0 | H66: =IFERROR($E66*SUMIF('Daily Log'!$E$18:$E$1017,$B66,'Daily Log'!$F$18:$F$1017),0) -> 2 | I66: =IFERROR($E66*SUMIF('Daily Log'!$H$18:$H$1017,$B66,'Daily Log'!$I$18:$I$1017),0) -> 0 | J66: =IFERROR($E66*SUMIF('Daily Log'!$K$18:$K$1017,$B66,'Daily Log'!$L$18:$L$1017),0) -> 0 | K66: =IFERROR($E66*SUMIF('Daily Log'!$N$18:$N$1017,$B66,'Daily Log'!$O$18:$O$1017),0) -> 2 | L66: =IFERROR($E66*SUMIF('Daily Log'!$Q$18:$Q$1017,$B66,'Daily Log'!$R$18:$R$1017),0) -> 2 | M66: =IFERROR($E66*SUMIF('Daily Log'!$T$18:$T$1017,$B66,'Daily Log'!$U$18:$U$1017),0) -> 1 | N66: =IFERROR($E66*SUMIF('Daily Log'!$W$18:$W$1017,$B66,'Daily Log'!$X$18:$X$1017),0) -> 1 | O66: =IFERROR($E66*SUMIF('Daily Log'!$Z$18:$Z$1017,$B66,'Daily Log'!$AA$18:$AA$1017),0) -> 3 | P66: =IFERROR($E66*SUMIF('Daily Log'!$AC$18:$AC$1017,$B66,'Daily Log'!$AD$18:$AD$1017),0) -> 0 | Q66: =IFERROR($E66*SUMIF('Daily Log'!$AF$18:$AF$1017,$B66,'Daily Log'!$AG$18:$AG$1017),0) -> 1 | R66: =IFERROR($E66*SUMIF('Daily Log'!$AI$18:$AI$1017,$B66,'Daily Log'!$AJ$18:$AJ$1017),0) -> 2 | S66: =IFERROR($E66*SUMIF('Daily Log'!$AL$18:$AL$1017,$B66,'Daily Log'!$AM$18:$AM$1017),0) -> 3 | T66: =IFERROR($E66*SUMIF('Daily Log'!$AO$18:$AO$1017,$B66,'Daily Log'!$AP$18:$AP$1017),0) -> 1 | U66: =IFERROR($E66*SUMIF('Daily Log'!$AR$18:$AR$1017,$B66,'Daily Log'!$AS$18:$AS$1017),0) -> 0 | V66: =IFERROR($E66*SUMIF('Daily Log'!$AU$18:$AU$1017,$B66,'Daily Log'!$AV$18:$AV$1017),0) -> 1 | W66: =IFERROR($E66*SUMIF('Daily Log'!$AX$18:$AX$1017,$B66,'Daily Log'!$AY$18:$AY$1017),0) -> 0 | X66: =IFERROR($E66*SUMIF('Daily Log'!$BA$18:$BA$1017,$B66,'Daily Log'!$BB$18:$BB$1017),0) -> 3 | Y66: =IFERROR($E66*SUMIF('Daily Log'!$BD$18:$BD$1017,$B66,'Daily Log'!$BE$18:$BE$1017),0) -> 1 | Z66: =IFERROR($E66*SUMIF('Daily Log'!$BG$18:$BG$1017,$B66,'Daily Log'!$BH$18:$BH$1017),0) -> 0 | AA66: =IFERROR($E66*SUMIF('Daily Log'!$BJ$18:$BJ$1017,$B66,'Daily Log'!$BK$18:$BK$1017),0) -> 2 | AB66: =IFERROR($E66*SUMIF('Daily Log'!$BM$18:$BM$1017,$B66,'Daily Log'!$BN$18:$BN$1017),0) -> 2 | AC66: =IFERROR($E66*SUMIF('Daily Log'!$BP$18:$BP$1017,$B66,'Daily Log'!$BQ$18:$BQ$1017),0) -> 0 | AD66: =IFERROR($E66*SUMIF('Daily Log'!$BS$18:$BS$1017,$B66,'Daily Log'!$BT$18:$BT$1017),0) -> 2 | AE66: =IFERROR($E66*SUMIF('Daily Log'!$BV$18:$BV$1017,$B66,'Daily Log'!$BW$18:$BW$1017),0) -> 0 | AF66: =IFERROR($E66*SUMIF('Daily Log'!$BY$18:$BY$1017,$B66,'Daily Log'!$BZ$18:$BZ$1017),0) -> 1 | AG66: =IFERROR($E66*SUMIF('Daily Log'!$CB$18:$CB$1017,$B66,'Daily Log'!$CC$18:$CC$1017),0) -> 1 | AH66: =IFERROR($E66*SUMIF('Daily Log'!$CE$18:$CE$1017,$B66,'Daily Log'!$CF$18:$CF$1017),0) -> 1 | AI66: =IFERROR($E66*SUMIF('Daily Log'!$CH$18:$CH$1017,$B66,'Daily Log'!$CI$18:$CI$1017),0) -> 0 | AJ66: =IFERROR($E66*SUMIF('Daily Log'!$CK$18:$CK$1017,$B66,'Daily Log'!$CL$18:$CL$1017),0) -> 0 | AK66: =IFERROR($E66*SUMIF('Daily Log'!$CN$18:$CN$1017,$B66,'Daily Log'!$CO$18:$CO$1017),0) -> 0
B67: DH04 DUNHILL MT LITE | D67: CIGARETTE | E67: 1 | F67: =SUM($G67:$AK67) -> 0 | G67: =IFERROR($E67*SUMIF('Daily Log'!$B$18:$B$1017,$B67,'Daily Log'!$C$18:$C$1017),0) -> 0 | H67: =IFERROR($E67*SUMIF('Daily Log'!$E$18:$E$1017,$B67,'Daily Log'!$F$18:$F$1017),0) -> 0 | I67: =IFERROR($E67*SUMIF('Daily Log'!$H$18:$H$1017,$B67,'Daily Log'!$I$18:$I$1017),0) -> 0 | J67: =IFERROR($E67*SUMIF('Daily Log'!$K$18:$K$1017,$B67,'Daily Log'!$L$18:$L$1017),0) -> 0 | K67: =IFERROR($E67*SUMIF('Daily Log'!$N$18:$N$1017,$B67,'Daily Log'!$O$18:$O$1017),0) -> 0 | L67: =IFERROR($E67*SUMIF('Daily Log'!$Q$18:$Q$1017,$B67,'Daily Log'!$R$18:$R$1017),0) -> 0 | M67: =IFERROR($E67*SUMIF('Daily Log'!$T$18:$T$1017,$B67,'Daily Log'!$U$18:$U$1017),0) -> 0 | N67: =IFERROR($E67*SUMIF('Daily Log'!$W$18:$W$1017,$B67,'Daily Log'!$X$18:$X$1017),0) -> 0 | O67: =IFERROR($E67*SUMIF('Daily Log'!$Z$18:$Z$1017,$B67,'Daily Log'!$AA$18:$AA$1017),0) -> 0 | P67: =IFERROR($E67*SUMIF('Daily Log'!$AC$18:$AC$1017,$B67,'Daily Log'!$AD$18:$AD$1017),0) -> 0 | Q67: =IFERROR($E67*SUMIF('Daily Log'!$AF$18:$AF$1017,$B67,'Daily Log'!$AG$18:$AG$1017),0) -> 0 | R67: =IFERROR($E67*SUMIF('Daily Log'!$AI$18:$AI$1017,$B67,'Daily Log'!$AJ$18:$AJ$1017),0) -> 0 | S67: =IFERROR($E67*SUMIF('Daily Log'!$AL$18:$AL$1017,$B67,'Daily Log'!$AM$18:$AM$1017),0) -> 0 | T67: =IFERROR($E67*SUMIF('Daily Log'!$AO$18:$AO$1017,$B67,'Daily Log'!$AP$18:$AP$1017),0) -> 0 | U67: =IFERROR($E67*SUMIF('Daily Log'!$AR$18:$AR$1017,$B67,'Daily Log'!$AS$18:$AS$1017),0) -> 0 | V67: =IFERROR($E67*SUMIF('Daily Log'!$AU$18:$AU$1017,$B67,'Daily Log'!$AV$18:$AV$1017),0) -> 0 | W67: =IFERROR($E67*SUMIF('Daily Log'!$AX$18:$AX$1017,$B67,'Daily Log'!$AY$18:$AY$1017),0) -> 0 | X67: =IFERROR($E67*SUMIF('Daily Log'!$BA$18:$BA$1017,$B67,'Daily Log'!$BB$18:$BB$1017),0) -> 0 | Y67: =IFERROR($E67*SUMIF('Daily Log'!$BD$18:$BD$1017,$B67,'Daily Log'!$BE$18:$BE$1017),0) -> 0 | Z67: =IFERROR($E67*SUMIF('Daily Log'!$BG$18:$BG$1017,$B67,'Daily Log'!$BH$18:$BH$1017),0) -> 0 | AA67: =IFERROR($E67*SUMIF('Daily Log'!$BJ$18:$BJ$1017,$B67,'Daily Log'!$BK$18:$BK$1017),0) -> 0 | AB67: =IFERROR($E67*SUMIF('Daily Log'!$BM$18:$BM$1017,$B67,'Daily Log'!$BN$18:$BN$1017),0) -> 0 | AC67: =IFERROR($E67*SUMIF('Daily Log'!$BP$18:$BP$1017,$B67,'Daily Log'!$BQ$18:$BQ$1017),0) -> 0 | AD67: =IFERROR($E67*SUMIF('Daily Log'!$BS$18:$BS$1017,$B67,'Daily Log'!$BT$18:$BT$1017),0) -> 0 | AE67: =IFERROR($E67*SUMIF('Daily Log'!$BV$18:$BV$1017,$B67,'Daily Log'!$BW$18:$BW$1017),0) -> 0 | AF67: =IFERROR($E67*SUMIF('Daily Log'!$BY$18:$BY$1017,$B67,'Daily Log'!$BZ$18:$BZ$1017),0) -> 0 | AG67: =IFERROR($E67*SUMIF('Daily Log'!$CB$18:$CB$1017,$B67,'Daily Log'!$CC$18:$CC$1017),0) -> 0 | AH67: =IFERROR($E67*SUMIF('Daily Log'!$CE$18:$CE$1017,$B67,'Daily Log'!$CF$18:$CF$1017),0) -> 0 | AI67: =IFERROR($E67*SUMIF('Daily Log'!$CH$18:$CH$1017,$B67,'Daily Log'!$CI$18:$CI$1017),0) -> 0 | AJ67: =IFERROR($E67*SUMIF('Daily Log'!$CK$18:$CK$1017,$B67,'Daily Log'!$CL$18:$CL$1017),0) -> 0 | AK67: =IFERROR($E67*SUMIF('Daily Log'!$CN$18:$CN$1017,$B67,'Daily Log'!$CO$18:$CO$1017),0) -> 0
B68: DH05 DUNHILL BOOST | D68: CIGARETTE | E68: 1 | F68: 0 | G68: =IFERROR($E68*SUMIF('Daily Log'!$B$18:$B$1017,$B68,'Daily Log'!$C$18:$C$1017),0) -> 0 | H68: =IFERROR($E68*SUMIF('Daily Log'!$E$18:$E$1017,$B68,'Daily Log'!$F$18:$F$1017),0) -> 0 | I68: =IFERROR($E68*SUMIF('Daily Log'!$H$18:$H$1017,$B68,'Daily Log'!$I$18:$I$1017),0) -> 0 | J68: =IFERROR($E68*SUMIF('Daily Log'!$K$18:$K$1017,$B68,'Daily Log'!$L$18:$L$1017),0) -> 0 | K68: =IFERROR($E68*SUMIF('Daily Log'!$N$18:$N$1017,$B68,'Daily Log'!$O$18:$O$1017),0) -> 0 | L68: =IFERROR($E68*SUMIF('Daily Log'!$Q$18:$Q$1017,$B68,'Daily Log'!$R$18:$R$1017),0) -> 0 | M68: =IFERROR($E68*SUMIF('Daily Log'!$T$18:$T$1017,$B68,'Daily Log'!$U$18:$U$1017),0) -> 0 | N68: =IFERROR($E68*SUMIF('Daily Log'!$W$18:$W$1017,$B68,'Daily Log'!$X$18:$X$1017),0) -> 0 | O68: =IFERROR($E68*SUMIF('Daily Log'!$Z$18:$Z$1017,$B68,'Daily Log'!$AA$18:$AA$1017),0) -> 0 | P68: =IFERROR($E68*SUMIF('Daily Log'!$AC$18:$AC$1017,$B68,'Daily Log'!$AD$18:$AD$1017),0) -> 0 | Q68: =IFERROR($E68*SUMIF('Daily Log'!$AF$18:$AF$1017,$B68,'Daily Log'!$AG$18:$AG$1017),0) -> 0 | R68: =IFERROR($E68*SUMIF('Daily Log'!$AI$18:$AI$1017,$B68,'Daily Log'!$AJ$18:$AJ$1017),0) -> 0 | S68: =IFERROR($E68*SUMIF('Daily Log'!$AL$18:$AL$1017,$B68,'Daily Log'!$AM$18:$AM$1017),0) -> 0 | T68: =IFERROR($E68*SUMIF('Daily Log'!$AO$18:$AO$1017,$B68,'Daily Log'!$AP$18:$AP$1017),0) -> 0 | U68: =IFERROR($E68*SUMIF('Daily Log'!$AR$18:$AR$1017,$B68,'Daily Log'!$AS$18:$AS$1017),0) -> 0 | V68: =IFERROR($E68*SUMIF('Daily Log'!$AU$18:$AU$1017,$B68,'Daily Log'!$AV$18:$AV$1017),0) -> 0 | W68: =IFERROR($E68*SUMIF('Daily Log'!$AX$18:$AX$1017,$B68,'Daily Log'!$AY$18:$AY$1017),0) -> 0 | X68: =IFERROR($E68*SUMIF('Daily Log'!$BA$18:$BA$1017,$B68,'Daily Log'!$BB$18:$BB$1017),0) -> 0 | Y68: =IFERROR($E68*SUMIF('Daily Log'!$BD$18:$BD$1017,$B68,'Daily Log'!$BE$18:$BE$1017),0) -> 0 | Z68: =IFERROR($E68*SUMIF('Daily Log'!$BG$18:$BG$1017,$B68,'Daily Log'!$BH$18:$BH$1017),0) -> 0 | AA68: =IFERROR($E68*SUMIF('Daily Log'!$BJ$18:$BJ$1017,$B68,'Daily Log'!$BK$18:$BK$1017),0) -> 0 | AB68: =IFERROR($E68*SUMIF('Daily Log'!$BM$18:$BM$1017,$B68,'Daily Log'!$BN$18:$BN$1017),0) -> 0 | AC68: =IFERROR($E68*SUMIF('Daily Log'!$BP$18:$BP$1017,$B68,'Daily Log'!$BQ$18:$BQ$1017),0) -> 0 | AD68: =IFERROR($E68*SUMIF('Daily Log'!$BS$18:$BS$1017,$B68,'Daily Log'!$BT$18:$BT$1017),0) -> 0 | AE68: =IFERROR($E68*SUMIF('Daily Log'!$BV$18:$BV$1017,$B68,'Daily Log'!$BW$18:$BW$1017),0) -> 0 | AF68: =IFERROR($E68*SUMIF('Daily Log'!$BY$18:$BY$1017,$B68,'Daily Log'!$BZ$18:$BZ$1017),0) -> 0 | AG68: =IFERROR($E68*SUMIF('Daily Log'!$CB$18:$CB$1017,$B68,'Daily Log'!$CC$18:$CC$1017),0) -> 0 | AH68: =IFERROR($E68*SUMIF('Daily Log'!$CE$18:$CE$1017,$B68,'Daily Log'!$CF$18:$CF$1017),0) -> 0 | AI68: =IFERROR($E68*SUMIF('Daily Log'!$CH$18:$CH$1017,$B68,'Daily Log'!$CI$18:$CI$1017),0) -> 0 | AJ68: =IFERROR($E68*SUMIF('Daily Log'!$CK$18:$CK$1017,$B68,'Daily Log'!$CL$18:$CL$1017),0) -> 0 | AK68: =IFERROR($E68*SUMIF('Daily Log'!$CN$18:$CN$1017,$B68,'Daily Log'!$CO$18:$CO$1017),0) -> 0
B69: DH06 DUNHILL SWITCH | D69: CIGARETTE | E69: 1 | F69: 0 | G69: =IFERROR($E69*SUMIF('Daily Log'!$B$18:$B$1017,$B69,'Daily Log'!$C$18:$C$1017),0) -> 0 | H69: =IFERROR($E69*SUMIF('Daily Log'!$E$18:$E$1017,$B69,'Daily Log'!$F$18:$F$1017),0) -> 0 | I69: =IFERROR($E69*SUMIF('Daily Log'!$H$18:$H$1017,$B69,'Daily Log'!$I$18:$I$1017),0) -> 0 | J69: =IFERROR($E69*SUMIF('Daily Log'!$K$18:$K$1017,$B69,'Daily Log'!$L$18:$L$1017),0) -> 0 | K69: =IFERROR($E69*SUMIF('Daily Log'!$N$18:$N$1017,$B69,'Daily Log'!$O$18:$O$1017),0) -> 0 | L69: =IFERROR($E69*SUMIF('Daily Log'!$Q$18:$Q$1017,$B69,'Daily Log'!$R$18:$R$1017),0) -> 0 | M69: =IFERROR($E69*SUMIF('Daily Log'!$T$18:$T$1017,$B69,'Daily Log'!$U$18:$U$1017),0) -> 0 | N69: =IFERROR($E69*SUMIF('Daily Log'!$W$18:$W$1017,$B69,'Daily Log'!$X$18:$X$1017),0) -> 0 | O69: =IFERROR($E69*SUMIF('Daily Log'!$Z$18:$Z$1017,$B69,'Daily Log'!$AA$18:$AA$1017),0) -> 0 | P69: =IFERROR($E69*SUMIF('Daily Log'!$AC$18:$AC$1017,$B69,'Daily Log'!$AD$18:$AD$1017),0) -> 0 | Q69: =IFERROR($E69*SUMIF('Daily Log'!$AF$18:$AF$1017,$B69,'Daily Log'!$AG$18:$AG$1017),0) -> 0 | R69: =IFERROR($E69*SUMIF('Daily Log'!$AI$18:$AI$1017,$B69,'Daily Log'!$AJ$18:$AJ$1017),0) -> 0 | S69: =IFERROR($E69*SUMIF('Daily Log'!$AL$18:$AL$1017,$B69,'Daily Log'!$AM$18:$AM$1017),0) -> 0 | T69: =IFERROR($E69*SUMIF('Daily Log'!$AO$18:$AO$1017,$B69,'Daily Log'!$AP$18:$AP$1017),0) -> 0 | U69: =IFERROR($E69*SUMIF('Daily Log'!$AR$18:$AR$1017,$B69,'Daily Log'!$AS$18:$AS$1017),0) -> 0 | V69: =IFERROR($E69*SUMIF('Daily Log'!$AU$18:$AU$1017,$B69,'Daily Log'!$AV$18:$AV$1017),0) -> 0 | W69: =IFERROR($E69*SUMIF('Daily Log'!$AX$18:$AX$1017,$B69,'Daily Log'!$AY$18:$AY$1017),0) -> 0 | X69: =IFERROR($E69*SUMIF('Daily Log'!$BA$18:$BA$1017,$B69,'Daily Log'!$BB$18:$BB$1017),0) -> 0 | Y69: =IFERROR($E69*SUMIF('Daily Log'!$BD$18:$BD$1017,$B69,'Daily Log'!$BE$18:$BE$1017),0) -> 0 | Z69: =IFERROR($E69*SUMIF('Daily Log'!$BG$18:$BG$1017,$B69,'Daily Log'!$BH$18:$BH$1017),0) -> 0 | AA69: =IFERROR($E69*SUMIF('Daily Log'!$BJ$18:$BJ$1017,$B69,'Daily Log'!$BK$18:$BK$1017),0) -> 0 | AB69: =IFERROR($E69*SUMIF('Daily Log'!$BM$18:$BM$1017,$B69,'Daily Log'!$BN$18:$BN$1017),0) -> 0 | AC69: =IFERROR($E69*SUMIF('Daily Log'!$BP$18:$BP$1017,$B69,'Daily Log'!$BQ$18:$BQ$1017),0) -> 0 | AD69: =IFERROR($E69*SUMIF('Daily Log'!$BS$18:$BS$1017,$B69,'Daily Log'!$BT$18:$BT$1017),0) -> 0 | AE69: =IFERROR($E69*SUMIF('Daily Log'!$BV$18:$BV$1017,$B69,'Daily Log'!$BW$18:$BW$1017),0) -> 0 | AF69: =IFERROR($E69*SUMIF('Daily Log'!$BY$18:$BY$1017,$B69,'Daily Log'!$BZ$18:$BZ$1017),0) -> 0 | AG69: =IFERROR($E69*SUMIF('Daily Log'!$CB$18:$CB$1017,$B69,'Daily Log'!$CC$18:$CC$1017),0) -> 0 | AH69: =IFERROR($E69*SUMIF('Daily Log'!$CE$18:$CE$1017,$B69,'Daily Log'!$CF$18:$CF$1017),0) -> 0 | AI69: =IFERROR($E69*SUMIF('Daily Log'!$CH$18:$CH$1017,$B69,'Daily Log'!$CI$18:$CI$1017),0) -> 0 | AJ69: =IFERROR($E69*SUMIF('Daily Log'!$CK$18:$CK$1017,$B69,'Daily Log'!$CL$18:$CL$1017),0) -> 0 | AK69: =IFERROR($E69*SUMIF('Daily Log'!$CN$18:$CN$1017,$B69,'Daily Log'!$CO$18:$CO$1017),0) -> 0
B70: DH07 DUNHILL ICE | D70: CIGARETTE | E70: 1 | F70: =SUM($G70:$AK70) -> 29 | G70: =IFERROR($E70*SUMIF('Daily Log'!$B$18:$B$1017,$B70,'Daily Log'!$C$18:$C$1017),0) -> 0 | H70: =IFERROR($E70*SUMIF('Daily Log'!$E$18:$E$1017,$B70,'Daily Log'!$F$18:$F$1017),0) -> 4 | I70: =IFERROR($E70*SUMIF('Daily Log'!$H$18:$H$1017,$B70,'Daily Log'!$I$18:$I$1017),0) -> 0 | J70: =IFERROR($E70*SUMIF('Daily Log'!$K$18:$K$1017,$B70,'Daily Log'!$L$18:$L$1017),0) -> 1 | K70: =IFERROR($E70*SUMIF('Daily Log'!$N$18:$N$1017,$B70,'Daily Log'!$O$18:$O$1017),0) -> 3 | L70: =IFERROR($E70*SUMIF('Daily Log'!$Q$18:$Q$1017,$B70,'Daily Log'!$R$18:$R$1017),0) -> 1 | M70: =IFERROR($E70*SUMIF('Daily Log'!$T$18:$T$1017,$B70,'Daily Log'!$U$18:$U$1017),0) -> 2 | N70: =IFERROR($E70*SUMIF('Daily Log'!$W$18:$W$1017,$B70,'Daily Log'!$X$18:$X$1017),0) -> 1 | O70: =IFERROR($E70*SUMIF('Daily Log'!$Z$18:$Z$1017,$B70,'Daily Log'!$AA$18:$AA$1017),0) -> 1 | P70: =IFERROR($E70*SUMIF('Daily Log'!$AC$18:$AC$1017,$B70,'Daily Log'!$AD$18:$AD$1017),0) -> 0 | Q70: =IFERROR($E70*SUMIF('Daily Log'!$AF$18:$AF$1017,$B70,'Daily Log'!$AG$18:$AG$1017),0) -> 0 | R70: =IFERROR($E70*SUMIF('Daily Log'!$AI$18:$AI$1017,$B70,'Daily Log'!$AJ$18:$AJ$1017),0) -> 0 | S70: =IFERROR($E70*SUMIF('Daily Log'!$AL$18:$AL$1017,$B70,'Daily Log'!$AM$18:$AM$1017),0) -> 0 | T70: =IFERROR($E70*SUMIF('Daily Log'!$AO$18:$AO$1017,$B70,'Daily Log'!$AP$18:$AP$1017),0) -> 3 | U70: =IFERROR($E70*SUMIF('Daily Log'!$AR$18:$AR$1017,$B70,'Daily Log'!$AS$18:$AS$1017),0) -> 2 | V70: =IFERROR($E70*SUMIF('Daily Log'!$AU$18:$AU$1017,$B70,'Daily Log'!$AV$18:$AV$1017),0) -> 0 | W70: =IFERROR($E70*SUMIF('Daily Log'!$AX$18:$AX$1017,$B70,'Daily Log'!$AY$18:$AY$1017),0) -> 2 | X70: =IFERROR($E70*SUMIF('Daily Log'!$BA$18:$BA$1017,$B70,'Daily Log'!$BB$18:$BB$1017),0) -> 1 | Y70: =IFERROR($E70*SUMIF('Daily Log'!$BD$18:$BD$1017,$B70,'Daily Log'!$BE$18:$BE$1017),0) -> 2 | Z70: =IFERROR($E70*SUMIF('Daily Log'!$BG$18:$BG$1017,$B70,'Daily Log'!$BH$18:$BH$1017),0) -> 0 | AA70: =IFERROR($E70*SUMIF('Daily Log'!$BJ$18:$BJ$1017,$B70,'Daily Log'!$BK$18:$BK$1017),0) -> 1 | AB70: =IFERROR($E70*SUMIF('Daily Log'!$BM$18:$BM$1017,$B70,'Daily Log'!$BN$18:$BN$1017),0) -> 1 | AC70: =IFERROR($E70*SUMIF('Daily Log'!$BP$18:$BP$1017,$B70,'Daily Log'!$BQ$18:$BQ$1017),0) -> 3 | AD70: =IFERROR($E70*SUMIF('Daily Log'!$BS$18:$BS$1017,$B70,'Daily Log'!$BT$18:$BT$1017),0) -> 0 | AE70: =IFERROR($E70*SUMIF('Daily Log'!$BV$18:$BV$1017,$B70,'Daily Log'!$BW$18:$BW$1017),0) -> 0 | AF70: =IFERROR($E70*SUMIF('Daily Log'!$BY$18:$BY$1017,$B70,'Daily Log'!$BZ$18:$BZ$1017),0) -> 0 | AG70: =IFERROR($E70*SUMIF('Daily Log'!$CB$18:$CB$1017,$B70,'Daily Log'!$CC$18:$CC$1017),0) -> 1 | AH70: =IFERROR($E70*SUMIF('Daily Log'!$CE$18:$CE$1017,$B70,'Daily Log'!$CF$18:$CF$1017),0) -> 0 | AI70: =IFERROR($E70*SUMIF('Daily Log'!$CH$18:$CH$1017,$B70,'Daily Log'!$CI$18:$CI$1017),0) -> 0 | AJ70: =IFERROR($E70*SUMIF('Daily Log'!$CK$18:$CK$1017,$B70,'Daily Log'!$CL$18:$CL$1017),0) -> 0 | AK70: =IFERROR($E70*SUMIF('Daily Log'!$CN$18:$CN$1017,$B70,'Daily Log'!$CO$18:$CO$1017),0) -> 0
B71: CIGARETTE | D71: CIGARETTE | G71: =SUM(G64:G70) -> 2 | H71: =SUM(H64:H70) -> 10 | I71: 1 | J71: 4 | K71: 7 | L71: 8 | M71: 6 | N71: 7 | O71: 7 | P71: 1 | Q71: 2 | R71: 4 | S71: 11 | T71: 9 | U71: 4 | V71: 3 | W71: 4 | X71: 6 | Y71: 5 | Z71: 2 | AA71: 8 | AB71: 4 | AC71: 8 | AD71: 7 | AE71: 5 | AF71: 1 | AG71: 3 | AH71: 2 | AI71: 0 | AJ71: 0 | AK71: 0
B72: CT01 SCREWDRIVER | D72: FFD -COLD BEVERAGE | E72: 1 | F72: 0 | G72: =IFERROR($E72*SUMIF('Daily Log'!$B$18:$B$1017,$B72,'Daily Log'!$C$18:$C$1017),0) -> 0 | H72: =IFERROR($E72*SUMIF('Daily Log'!$E$18:$E$1017,$B72,'Daily Log'!$F$18:$F$1017),0) -> 0 | I72: =IFERROR($E72*SUMIF('Daily Log'!$H$18:$H$1017,$B72,'Daily Log'!$I$18:$I$1017),0) -> 0 | J72: =IFERROR($E72*SUMIF('Daily Log'!$K$18:$K$1017,$B72,'Daily Log'!$L$18:$L$1017),0) -> 0 | K72: =IFERROR($E72*SUMIF('Daily Log'!$N$18:$N$1017,$B72,'Daily Log'!$O$18:$O$1017),0) -> 0 | L72: =IFERROR($E72*SUMIF('Daily Log'!$Q$18:$Q$1017,$B72,'Daily Log'!$R$18:$R$1017),0) -> 0 | M72: =IFERROR($E72*SUMIF('Daily Log'!$T$18:$T$1017,$B72,'Daily Log'!$U$18:$U$1017),0) -> 0 | N72: =IFERROR($E72*SUMIF('Daily Log'!$W$18:$W$1017,$B72,'Daily Log'!$X$18:$X$1017),0) -> 0 | O72: =IFERROR($E72*SUMIF('Daily Log'!$Z$18:$Z$1017,$B72,'Daily Log'!$AA$18:$AA$1017),0) -> 0 | P72: =IFERROR($E72*SUMIF('Daily Log'!$AC$18:$AC$1017,$B72,'Daily Log'!$AD$18:$AD$1017),0) -> 0 | Q72: =IFERROR($E72*SUMIF('Daily Log'!$AF$18:$AF$1017,$B72,'Daily Log'!$AG$18:$AG$1017),0) -> 0 | R72: =IFERROR($E72*SUMIF('Daily Log'!$AI$18:$AI$1017,$B72,'Daily Log'!$AJ$18:$AJ$1017),0) -> 0 | S72: =IFERROR($E72*SUMIF('Daily Log'!$AL$18:$AL$1017,$B72,'Daily Log'!$AM$18:$AM$1017),0) -> 0 | T72: =IFERROR($E72*SUMIF('Daily Log'!$AO$18:$AO$1017,$B72,'Daily Log'!$AP$18:$AP$1017),0) -> 0 | U72: =IFERROR($E72*SUMIF('Daily Log'!$AR$18:$AR$1017,$B72,'Daily Log'!$AS$18:$AS$1017),0) -> 0 | V72: =IFERROR($E72*SUMIF('Daily Log'!$AU$18:$AU$1017,$B72,'Daily Log'!$AV$18:$AV$1017),0) -> 0 | W72: =IFERROR($E72*SUMIF('Daily Log'!$AX$18:$AX$1017,$B72,'Daily Log'!$AY$18:$AY$1017),0) -> 0 | X72: =IFERROR($E72*SUMIF('Daily Log'!$BA$18:$BA$1017,$B72,'Daily Log'!$BB$18:$BB$1017),0) -> 0 | Y72: =IFERROR($E72*SUMIF('Daily Log'!$BD$18:$BD$1017,$B72,'Daily Log'!$BE$18:$BE$1017),0) -> 0 | Z72: =IFERROR($E72*SUMIF('Daily Log'!$BG$18:$BG$1017,$B72,'Daily Log'!$BH$18:$BH$1017),0) -> 0 | AA72: =IFERROR($E72*SUMIF('Daily Log'!$BJ$18:$BJ$1017,$B72,'Daily Log'!$BK$18:$BK$1017),0) -> 0 | AB72: =IFERROR($E72*SUMIF('Daily Log'!$BM$18:$BM$1017,$B72,'Daily Log'!$BN$18:$BN$1017),0) -> 0 | AC72: =IFERROR($E72*SUMIF('Daily Log'!$BP$18:$BP$1017,$B72,'Daily Log'!$BQ$18:$BQ$1017),0) -> 0 | AD72: =IFERROR($E72*SUMIF('Daily Log'!$BS$18:$BS$1017,$B72,'Daily Log'!$BT$18:$BT$1017),0) -> 0 | AE72: =IFERROR($E72*SUMIF('Daily Log'!$BV$18:$BV$1017,$B72,'Daily Log'!$BW$18:$BW$1017),0) -> 0 | AF72: =IFERROR($E72*SUMIF('Daily Log'!$BY$18:$BY$1017,$B72,'Daily Log'!$BZ$18:$BZ$1017),0) -> 0 | AG72: =IFERROR($E72*SUMIF('Daily Log'!$CB$18:$CB$1017,$B72,'Daily Log'!$CC$18:$CC$1017),0) -> 0 | AH72: =IFERROR($E72*SUMIF('Daily Log'!$CE$18:$CE$1017,$B72,'Daily Log'!$CF$18:$CF$1017),0) -> 0 | AI72: =IFERROR($E72*SUMIF('Daily Log'!$CH$18:$CH$1017,$B72,'Daily Log'!$CI$18:$CI$1017),0) -> 0 | AJ72: =IFERROR($E72*SUMIF('Daily Log'!$CK$18:$CK$1017,$B72,'Daily Log'!$CL$18:$CL$1017),0) -> 0 | AK72: =IFERROR($E72*SUMIF('Daily Log'!$CN$18:$CN$1017,$B72,'Daily Log'!$CO$18:$CO$1017),0) -> 0
B73: CT02 VODKA RIBENA | D73: FFD -COLD BEVERAGE | E73: 1 | F73: 0 | G73: =IFERROR($E73*SUMIF('Daily Log'!$B$18:$B$1017,$B73,'Daily Log'!$C$18:$C$1017),0) -> 0 | H73: =IFERROR($E73*SUMIF('Daily Log'!$E$18:$E$1017,$B73,'Daily Log'!$F$18:$F$1017),0) -> 0 | I73: =IFERROR($E73*SUMIF('Daily Log'!$H$18:$H$1017,$B73,'Daily Log'!$I$18:$I$1017),0) -> 0 | J73: =IFERROR($E73*SUMIF('Daily Log'!$K$18:$K$1017,$B73,'Daily Log'!$L$18:$L$1017),0) -> 0 | K73: =IFERROR($E73*SUMIF('Daily Log'!$N$18:$N$1017,$B73,'Daily Log'!$O$18:$O$1017),0) -> 0 | L73: =IFERROR($E73*SUMIF('Daily Log'!$Q$18:$Q$1017,$B73,'Daily Log'!$R$18:$R$1017),0) -> 0 | M73: =IFERROR($E73*SUMIF('Daily Log'!$T$18:$T$1017,$B73,'Daily Log'!$U$18:$U$1017),0) -> 0 | N73: =IFERROR($E73*SUMIF('Daily Log'!$W$18:$W$1017,$B73,'Daily Log'!$X$18:$X$1017),0) -> 0 | O73: =IFERROR($E73*SUMIF('Daily Log'!$Z$18:$Z$1017,$B73,'Daily Log'!$AA$18:$AA$1017),0) -> 0 | P73: =IFERROR($E73*SUMIF('Daily Log'!$AC$18:$AC$1017,$B73,'Daily Log'!$AD$18:$AD$1017),0) -> 0 | Q73: =IFERROR($E73*SUMIF('Daily Log'!$AF$18:$AF$1017,$B73,'Daily Log'!$AG$18:$AG$1017),0) -> 0 | R73: =IFERROR($E73*SUMIF('Daily Log'!$AI$18:$AI$1017,$B73,'Daily Log'!$AJ$18:$AJ$1017),0) -> 0 | S73: =IFERROR($E73*SUMIF('Daily Log'!$AL$18:$AL$1017,$B73,'Daily Log'!$AM$18:$AM$1017),0) -> 0 | T73: =IFERROR($E73*SUMIF('Daily Log'!$AO$18:$AO$1017,$B73,'Daily Log'!$AP$18:$AP$1017),0) -> 0 | U73: =IFERROR($E73*SUMIF('Daily Log'!$AR$18:$AR$1017,$B73,'Daily Log'!$AS$18:$AS$1017),0) -> 0 | V73: =IFERROR($E73*SUMIF('Daily Log'!$AU$18:$AU$1017,$B73,'Daily Log'!$AV$18:$AV$1017),0) -> 0 | W73: =IFERROR($E73*SUMIF('Daily Log'!$AX$18:$AX$1017,$B73,'Daily Log'!$AY$18:$AY$1017),0) -> 0 | X73: =IFERROR($E73*SUMIF('Daily Log'!$BA$18:$BA$1017,$B73,'Daily Log'!$BB$18:$BB$1017),0) -> 0 | Y73: =IFERROR($E73*SUMIF('Daily Log'!$BD$18:$BD$1017,$B73,'Daily Log'!$BE$18:$BE$1017),0) -> 0 | Z73: =IFERROR($E73*SUMIF('Daily Log'!$BG$18:$BG$1017,$B73,'Daily Log'!$BH$18:$BH$1017),0) -> 0 | AA73: =IFERROR($E73*SUMIF('Daily Log'!$BJ$18:$BJ$1017,$B73,'Daily Log'!$BK$18:$BK$1017),0) -> 0 | AB73: =IFERROR($E73*SUMIF('Daily Log'!$BM$18:$BM$1017,$B73,'Daily Log'!$BN$18:$BN$1017),0) -> 0 | AC73: =IFERROR($E73*SUMIF('Daily Log'!$BP$18:$BP$1017,$B73,'Daily Log'!$BQ$18:$BQ$1017),0) -> 0 | AD73: =IFERROR($E73*SUMIF('Daily Log'!$BS$18:$BS$1017,$B73,'Daily Log'!$BT$18:$BT$1017),0) -> 0 | AE73: =IFERROR($E73*SUMIF('Daily Log'!$BV$18:$BV$1017,$B73,'Daily Log'!$BW$18:$BW$1017),0) -> 0 | AF73: =IFERROR($E73*SUMIF('Daily Log'!$BY$18:$BY$1017,$B73,'Daily Log'!$BZ$18:$BZ$1017),0) -> 0 | AG73: =IFERROR($E73*SUMIF('Daily Log'!$CB$18:$CB$1017,$B73,'Daily Log'!$CC$18:$CC$1017),0) -> 0 | AH73: =IFERROR($E73*SUMIF('Daily Log'!$CE$18:$CE$1017,$B73,'Daily Log'!$CF$18:$CF$1017),0) -> 0 | AI73: =IFERROR($E73*SUMIF('Daily Log'!$CH$18:$CH$1017,$B73,'Daily Log'!$CI$18:$CI$1017),0) -> 0 | AJ73: =IFERROR($E73*SUMIF('Daily Log'!$CK$18:$CK$1017,$B73,'Daily Log'!$CL$18:$CL$1017),0) -> 0 | AK73: =IFERROR($E73*SUMIF('Daily Log'!$CN$18:$CN$1017,$B73,'Daily Log'!$CO$18:$CO$1017),0) -> 0
B74: CT03 TEQUILA SUNSHINE | D74: FFD -COLD BEVERAGE | E74: 1 | F74: 0 | G74: =IFERROR($E74*SUMIF('Daily Log'!$B$18:$B$1017,$B74,'Daily Log'!$C$18:$C$1017),0) -> 0 | H74: =IFERROR($E74*SUMIF('Daily Log'!$E$18:$E$1017,$B74,'Daily Log'!$F$18:$F$1017),0) -> 0 | I74: =IFERROR($E74*SUMIF('Daily Log'!$H$18:$H$1017,$B74,'Daily Log'!$I$18:$I$1017),0) -> 0 | J74: =IFERROR($E74*SUMIF('Daily Log'!$K$18:$K$1017,$B74,'Daily Log'!$L$18:$L$1017),0) -> 0 | K74: =IFERROR($E74*SUMIF('Daily Log'!$N$18:$N$1017,$B74,'Daily Log'!$O$18:$O$1017),0) -> 0 | L74: =IFERROR($E74*SUMIF('Daily Log'!$Q$18:$Q$1017,$B74,'Daily Log'!$R$18:$R$1017),0) -> 0 | M74: =IFERROR($E74*SUMIF('Daily Log'!$T$18:$T$1017,$B74,'Daily Log'!$U$18:$U$1017),0) -> 0 | N74: =IFERROR($E74*SUMIF('Daily Log'!$W$18:$W$1017,$B74,'Daily Log'!$X$18:$X$1017),0) -> 0 | O74: =IFERROR($E74*SUMIF('Daily Log'!$Z$18:$Z$1017,$B74,'Daily Log'!$AA$18:$AA$1017),0) -> 0 | P74: =IFERROR($E74*SUMIF('Daily Log'!$AC$18:$AC$1017,$B74,'Daily Log'!$AD$18:$AD$1017),0) -> 0 | Q74: =IFERROR($E74*SUMIF('Daily Log'!$AF$18:$AF$1017,$B74,'Daily Log'!$AG$18:$AG$1017),0) -> 0 | R74: =IFERROR($E74*SUMIF('Daily Log'!$AI$18:$AI$1017,$B74,'Daily Log'!$AJ$18:$AJ$1017),0) -> 0 | S74: =IFERROR($E74*SUMIF('Daily Log'!$AL$18:$AL$1017,$B74,'Daily Log'!$AM$18:$AM$1017),0) -> 0 | T74: =IFERROR($E74*SUMIF('Daily Log'!$AO$18:$AO$1017,$B74,'Daily Log'!$AP$18:$AP$1017),0) -> 0 | U74: =IFERROR($E74*SUMIF('Daily Log'!$AR$18:$AR$1017,$B74,'Daily Log'!$AS$18:$AS$1017),0) -> 0 | V74: =IFERROR($E74*SUMIF('Daily Log'!$AU$18:$AU$1017,$B74,'Daily Log'!$AV$18:$AV$1017),0) -> 0 | W74: =IFERROR($E74*SUMIF('Daily Log'!$AX$18:$AX$1017,$B74,'Daily Log'!$AY$18:$AY$1017),0) -> 0 | X74: =IFERROR($E74*SUMIF('Daily Log'!$BA$18:$BA$1017,$B74,'Daily Log'!$BB$18:$BB$1017),0) -> 0 | Y74: =IFERROR($E74*SUMIF('Daily Log'!$BD$18:$BD$1017,$B74,'Daily Log'!$BE$18:$BE$1017),0) -> 0 | Z74: =IFERROR($E74*SUMIF('Daily Log'!$BG$18:$BG$1017,$B74,'Daily Log'!$BH$18:$BH$1017),0) -> 0 | AA74: =IFERROR($E74*SUMIF('Daily Log'!$BJ$18:$BJ$1017,$B74,'Daily Log'!$BK$18:$BK$1017),0) -> 0 | AB74: =IFERROR($E74*SUMIF('Daily Log'!$BM$18:$BM$1017,$B74,'Daily Log'!$BN$18:$BN$1017),0) -> 0 | AC74: =IFERROR($E74*SUMIF('Daily Log'!$BP$18:$BP$1017,$B74,'Daily Log'!$BQ$18:$BQ$1017),0) -> 0 | AD74: =IFERROR($E74*SUMIF('Daily Log'!$BS$18:$BS$1017,$B74,'Daily Log'!$BT$18:$BT$1017),0) -> 0 | AE74: =IFERROR($E74*SUMIF('Daily Log'!$BV$18:$BV$1017,$B74,'Daily Log'!$BW$18:$BW$1017),0) -> 0 | AF74: =IFERROR($E74*SUMIF('Daily Log'!$BY$18:$BY$1017,$B74,'Daily Log'!$BZ$18:$BZ$1017),0) -> 0 | AG74: =IFERROR($E74*SUMIF('Daily Log'!$CB$18:$CB$1017,$B74,'Daily Log'!$CC$18:$CC$1017),0) -> 0 | AH74: =IFERROR($E74*SUMIF('Daily Log'!$CE$18:$CE$1017,$B74,'Daily Log'!$CF$18:$CF$1017),0) -> 0 | AI74: =IFERROR($E74*SUMIF('Daily Log'!$CH$18:$CH$1017,$B74,'Daily Log'!$CI$18:$CI$1017),0) -> 0 | AJ74: =IFERROR($E74*SUMIF('Daily Log'!$CK$18:$CK$1017,$B74,'Daily Log'!$CL$18:$CL$1017),0) -> 0 | AK74: =IFERROR($E74*SUMIF('Daily Log'!$CN$18:$CN$1017,$B74,'Daily Log'!$CO$18:$CO$1017),0) -> 0
B75: CT04 BLOODY MARY | D75: FFD -COLD BEVERAGE | E75: 1 | F75: 0 | G75: =IFERROR($E75*SUMIF('Daily Log'!$B$18:$B$1017,$B75,'Daily Log'!$C$18:$C$1017),0) -> 0 | H75: =IFERROR($E75*SUMIF('Daily Log'!$E$18:$E$1017,$B75,'Daily Log'!$F$18:$F$1017),0) -> 0 | I75: =IFERROR($E75*SUMIF('Daily Log'!$H$18:$H$1017,$B75,'Daily Log'!$I$18:$I$1017),0) -> 0 | J75: =IFERROR($E75*SUMIF('Daily Log'!$K$18:$K$1017,$B75,'Daily Log'!$L$18:$L$1017),0) -> 0 | K75: =IFERROR($E75*SUMIF('Daily Log'!$N$18:$N$1017,$B75,'Daily Log'!$O$18:$O$1017),0) -> 0 | L75: =IFERROR($E75*SUMIF('Daily Log'!$Q$18:$Q$1017,$B75,'Daily Log'!$R$18:$R$1017),0) -> 0 | M75: =IFERROR($E75*SUMIF('Daily Log'!$T$18:$T$1017,$B75,'Daily Log'!$U$18:$U$1017),0) -> 0 | N75: =IFERROR($E75*SUMIF('Daily Log'!$W$18:$W$1017,$B75,'Daily Log'!$X$18:$X$1017),0) -> 0 | O75: =IFERROR($E75*SUMIF('Daily Log'!$Z$18:$Z$1017,$B75,'Daily Log'!$AA$18:$AA$1017),0) -> 0 | P75: =IFERROR($E75*SUMIF('Daily Log'!$AC$18:$AC$1017,$B75,'Daily Log'!$AD$18:$AD$1017),0) -> 0 | Q75: =IFERROR($E75*SUMIF('Daily Log'!$AF$18:$AF$1017,$B75,'Daily Log'!$AG$18:$AG$1017),0) -> 0 | R75: =IFERROR($E75*SUMIF('Daily Log'!$AI$18:$AI$1017,$B75,'Daily Log'!$AJ$18:$AJ$1017),0) -> 0 | S75: =IFERROR($E75*SUMIF('Daily Log'!$AL$18:$AL$1017,$B75,'Daily Log'!$AM$18:$AM$1017),0) -> 0 | T75: =IFERROR($E75*SUMIF('Daily Log'!$AO$18:$AO$1017,$B75,'Daily Log'!$AP$18:$AP$1017),0) -> 0 | U75: =IFERROR($E75*SUMIF('Daily Log'!$AR$18:$AR$1017,$B75,'Daily Log'!$AS$18:$AS$1017),0) -> 0 | V75: =IFERROR($E75*SUMIF('Daily Log'!$AU$18:$AU$1017,$B75,'Daily Log'!$AV$18:$AV$1017),0) -> 0 | W75: =IFERROR($E75*SUMIF('Daily Log'!$AX$18:$AX$1017,$B75,'Daily Log'!$AY$18:$AY$1017),0) -> 0 | X75: =IFERROR($E75*SUMIF('Daily Log'!$BA$18:$BA$1017,$B75,'Daily Log'!$BB$18:$BB$1017),0) -> 0 | Y75: =IFERROR($E75*SUMIF('Daily Log'!$BD$18:$BD$1017,$B75,'Daily Log'!$BE$18:$BE$1017),0) -> 0 | Z75: =IFERROR($E75*SUMIF('Daily Log'!$BG$18:$BG$1017,$B75,'Daily Log'!$BH$18:$BH$1017),0) -> 0 | AA75: =IFERROR($E75*SUMIF('Daily Log'!$BJ$18:$BJ$1017,$B75,'Daily Log'!$BK$18:$BK$1017),0) -> 0 | AB75: =IFERROR($E75*SUMIF('Daily Log'!$BM$18:$BM$1017,$B75,'Daily Log'!$BN$18:$BN$1017),0) -> 0 | AC75: =IFERROR($E75*SUMIF('Daily Log'!$BP$18:$BP$1017,$B75,'Daily Log'!$BQ$18:$BQ$1017),0) -> 0 | AD75: =IFERROR($E75*SUMIF('Daily Log'!$BS$18:$BS$1017,$B75,'Daily Log'!$BT$18:$BT$1017),0) -> 0 | AE75: =IFERROR($E75*SUMIF('Daily Log'!$BV$18:$BV$1017,$B75,'Daily Log'!$BW$18:$BW$1017),0) -> 0 | AF75: =IFERROR($E75*SUMIF('Daily Log'!$BY$18:$BY$1017,$B75,'Daily Log'!$BZ$18:$BZ$1017),0) -> 0 | AG75: =IFERROR($E75*SUMIF('Daily Log'!$CB$18:$CB$1017,$B75,'Daily Log'!$CC$18:$CC$1017),0) -> 0 | AH75: =IFERROR($E75*SUMIF('Daily Log'!$CE$18:$CE$1017,$B75,'Daily Log'!$CF$18:$CF$1017),0) -> 0 | AI75: =IFERROR($E75*SUMIF('Daily Log'!$CH$18:$CH$1017,$B75,'Daily Log'!$CI$18:$CI$1017),0) -> 0 | AJ75: =IFERROR($E75*SUMIF('Daily Log'!$CK$18:$CK$1017,$B75,'Daily Log'!$CL$18:$CL$1017),0) -> 0 | AK75: =IFERROR($E75*SUMIF('Daily Log'!$CN$18:$CN$1017,$B75,'Daily Log'!$CO$18:$CO$1017),0) -> 0
B76: CT05 SANGRIA | D76: FFD -COLD BEVERAGE | E76: 1 | F76: 0 | G76: =IFERROR($E76*SUMIF('Daily Log'!$B$18:$B$1017,$B76,'Daily Log'!$C$18:$C$1017),0) -> 0 | H76: =IFERROR($E76*SUMIF('Daily Log'!$E$18:$E$1017,$B76,'Daily Log'!$F$18:$F$1017),0) -> 0 | I76: =IFERROR($E76*SUMIF('Daily Log'!$H$18:$H$1017,$B76,'Daily Log'!$I$18:$I$1017),0) -> 0 | J76: =IFERROR($E76*SUMIF('Daily Log'!$K$18:$K$1017,$B76,'Daily Log'!$L$18:$L$1017),0) -> 0 | K76: =IFERROR($E76*SUMIF('Daily Log'!$N$18:$N$1017,$B76,'Daily Log'!$O$18:$O$1017),0) -> 0 | L76: =IFERROR($E76*SUMIF('Daily Log'!$Q$18:$Q$1017,$B76,'Daily Log'!$R$18:$R$1017),0) -> 0 | M76: =IFERROR($E76*SUMIF('Daily Log'!$T$18:$T$1017,$B76,'Daily Log'!$U$18:$U$1017),0) -> 0 | N76: =IFERROR($E76*SUMIF('Daily Log'!$W$18:$W$1017,$B76,'Daily Log'!$X$18:$X$1017),0) -> 0 | O76: =IFERROR($E76*SUMIF('Daily Log'!$Z$18:$Z$1017,$B76,'Daily Log'!$AA$18:$AA$1017),0) -> 0 | P76: =IFERROR($E76*SUMIF('Daily Log'!$AC$18:$AC$1017,$B76,'Daily Log'!$AD$18:$AD$1017),0) -> 0 | Q76: =IFERROR($E76*SUMIF('Daily Log'!$AF$18:$AF$1017,$B76,'Daily Log'!$AG$18:$AG$1017),0) -> 0 | R76: =IFERROR($E76*SUMIF('Daily Log'!$AI$18:$AI$1017,$B76,'Daily Log'!$AJ$18:$AJ$1017),0) -> 0 | S76: =IFERROR($E76*SUMIF('Daily Log'!$AL$18:$AL$1017,$B76,'Daily Log'!$AM$18:$AM$1017),0) -> 0 | T76: =IFERROR($E76*SUMIF('Daily Log'!$AO$18:$AO$1017,$B76,'Daily Log'!$AP$18:$AP$1017),0) -> 0 | U76: =IFERROR($E76*SUMIF('Daily Log'!$AR$18:$AR$1017,$B76,'Daily Log'!$AS$18:$AS$1017),0) -> 0 | V76: =IFERROR($E76*SUMIF('Daily Log'!$AU$18:$AU$1017,$B76,'Daily Log'!$AV$18:$AV$1017),0) -> 0 | W76: =IFERROR($E76*SUMIF('Daily Log'!$AX$18:$AX$1017,$B76,'Daily Log'!$AY$18:$AY$1017),0) -> 0 | X76: =IFERROR($E76*SUMIF('Daily Log'!$BA$18:$BA$1017,$B76,'Daily Log'!$BB$18:$BB$1017),0) -> 0 | Y76: =IFERROR($E76*SUMIF('Daily Log'!$BD$18:$BD$1017,$B76,'Daily Log'!$BE$18:$BE$1017),0) -> 0 | Z76: =IFERROR($E76*SUMIF('Daily Log'!$BG$18:$BG$1017,$B76,'Daily Log'!$BH$18:$BH$1017),0) -> 0 | AA76: =IFERROR($E76*SUMIF('Daily Log'!$BJ$18:$BJ$1017,$B76,'Daily Log'!$BK$18:$BK$1017),0) -> 0 | AB76: =IFERROR($E76*SUMIF('Daily Log'!$BM$18:$BM$1017,$B76,'Daily Log'!$BN$18:$BN$1017),0) -> 0 | AC76: =IFERROR($E76*SUMIF('Daily Log'!$BP$18:$BP$1017,$B76,'Daily Log'!$BQ$18:$BQ$1017),0) -> 0 | AD76: =IFERROR($E76*SUMIF('Daily Log'!$BS$18:$BS$1017,$B76,'Daily Log'!$BT$18:$BT$1017),0) -> 0 | AE76: =IFERROR($E76*SUMIF('Daily Log'!$BV$18:$BV$1017,$B76,'Daily Log'!$BW$18:$BW$1017),0) -> 0 | AF76: =IFERROR($E76*SUMIF('Daily Log'!$BY$18:$BY$1017,$B76,'Daily Log'!$BZ$18:$BZ$1017),0) -> 0 | AG76: =IFERROR($E76*SUMIF('Daily Log'!$CB$18:$CB$1017,$B76,'Daily Log'!$CC$18:$CC$1017),0) -> 0 | AH76: =IFERROR($E76*SUMIF('Daily Log'!$CE$18:$CE$1017,$B76,'Daily Log'!$CF$18:$CF$1017),0) -> 0 | AI76: =IFERROR($E76*SUMIF('Daily Log'!$CH$18:$CH$1017,$B76,'Daily Log'!$CI$18:$CI$1017),0) -> 0 | AJ76: =IFERROR($E76*SUMIF('Daily Log'!$CK$18:$CK$1017,$B76,'Daily Log'!$CL$18:$CL$1017),0) -> 0 | AK76: =IFERROR($E76*SUMIF('Daily Log'!$CN$18:$CN$1017,$B76,'Daily Log'!$CO$18:$CO$1017),0) -> 0
B77: ZCC01 SCREWDRIVER | D77: COCKTAIL | E77: 1 | F77: 0 | G77: =IFERROR($E77*SUMIF('Daily Log'!$B$18:$B$1017,$B77,'Daily Log'!$C$18:$C$1017),0) -> 0 | H77: =IFERROR($E77*SUMIF('Daily Log'!$E$18:$E$1017,$B77,'Daily Log'!$F$18:$F$1017),0) -> 0 | I77: =IFERROR($E77*SUMIF('Daily Log'!$H$18:$H$1017,$B77,'Daily Log'!$I$18:$I$1017),0) -> 0 | J77: =IFERROR($E77*SUMIF('Daily Log'!$K$18:$K$1017,$B77,'Daily Log'!$L$18:$L$1017),0) -> 0 | K77: =IFERROR($E77*SUMIF('Daily Log'!$N$18:$N$1017,$B77,'Daily Log'!$O$18:$O$1017),0) -> 0 | L77: =IFERROR($E77*SUMIF('Daily Log'!$Q$18:$Q$1017,$B77,'Daily Log'!$R$18:$R$1017),0) -> 0 | M77: =IFERROR($E77*SUMIF('Daily Log'!$T$18:$T$1017,$B77,'Daily Log'!$U$18:$U$1017),0) -> 0 | N77: =IFERROR($E77*SUMIF('Daily Log'!$W$18:$W$1017,$B77,'Daily Log'!$X$18:$X$1017),0) -> 0 | O77: =IFERROR($E77*SUMIF('Daily Log'!$Z$18:$Z$1017,$B77,'Daily Log'!$AA$18:$AA$1017),0) -> 0 | P77: =IFERROR($E77*SUMIF('Daily Log'!$AC$18:$AC$1017,$B77,'Daily Log'!$AD$18:$AD$1017),0) -> 0 | Q77: =IFERROR($E77*SUMIF('Daily Log'!$AF$18:$AF$1017,$B77,'Daily Log'!$AG$18:$AG$1017),0) -> 0 | R77: =IFERROR($E77*SUMIF('Daily Log'!$AI$18:$AI$1017,$B77,'Daily Log'!$AJ$18:$AJ$1017),0) -> 0 | S77: =IFERROR($E77*SUMIF('Daily Log'!$AL$18:$AL$1017,$B77,'Daily Log'!$AM$18:$AM$1017),0) -> 0 | T77: =IFERROR($E77*SUMIF('Daily Log'!$AO$18:$AO$1017,$B77,'Daily Log'!$AP$18:$AP$1017),0) -> 0 | U77: =IFERROR($E77*SUMIF('Daily Log'!$AR$18:$AR$1017,$B77,'Daily Log'!$AS$18:$AS$1017),0) -> 0 | V77: =IFERROR($E77*SUMIF('Daily Log'!$AU$18:$AU$1017,$B77,'Daily Log'!$AV$18:$AV$1017),0) -> 0 | W77: =IFERROR($E77*SUMIF('Daily Log'!$AX$18:$AX$1017,$B77,'Daily Log'!$AY$18:$AY$1017),0) -> 0 | X77: =IFERROR($E77*SUMIF('Daily Log'!$BA$18:$BA$1017,$B77,'Daily Log'!$BB$18:$BB$1017),0) -> 0 | Y77: =IFERROR($E77*SUMIF('Daily Log'!$BD$18:$BD$1017,$B77,'Daily Log'!$BE$18:$BE$1017),0) -> 0 | Z77: =IFERROR($E77*SUMIF('Daily Log'!$BG$18:$BG$1017,$B77,'Daily Log'!$BH$18:$BH$1017),0) -> 0 | AA77: =IFERROR($E77*SUMIF('Daily Log'!$BJ$18:$BJ$1017,$B77,'Daily Log'!$BK$18:$BK$1017),0) -> 0 | AB77: =IFERROR($E77*SUMIF('Daily Log'!$BM$18:$BM$1017,$B77,'Daily Log'!$BN$18:$BN$1017),0) -> 0 | AC77: =IFERROR($E77*SUMIF('Daily Log'!$BP$18:$BP$1017,$B77,'Daily Log'!$BQ$18:$BQ$1017),0) -> 0 | AD77: =IFERROR($E77*SUMIF('Daily Log'!$BS$18:$BS$1017,$B77,'Daily Log'!$BT$18:$BT$1017),0) -> 0 | AE77: =IFERROR($E77*SUMIF('Daily Log'!$BV$18:$BV$1017,$B77,'Daily Log'!$BW$18:$BW$1017),0) -> 0 | AF77: =IFERROR($E77*SUMIF('Daily Log'!$BY$18:$BY$1017,$B77,'Daily Log'!$BZ$18:$BZ$1017),0) -> 0 | AG77: =IFERROR($E77*SUMIF('Daily Log'!$CB$18:$CB$1017,$B77,'Daily Log'!$CC$18:$CC$1017),0) -> 0
B78: ZCC02 VODKA RIBENA | D78: COCKTAIL | E78: 1 | F78: 2 | G78: =IFERROR($E78*SUMIF('Daily Log'!$B$18:$B$1017,$B78,'Daily Log'!$C$18:$C$1017),0) -> 0 | H78: =IFERROR($E78*SUMIF('Daily Log'!$E$18:$E$1017,$B78,'Daily Log'!$F$18:$F$1017),0) -> 0 | I78: =IFERROR($E78*SUMIF('Daily Log'!$H$18:$H$1017,$B78,'Daily Log'!$I$18:$I$1017),0) -> 0 | J78: =IFERROR($E78*SUMIF('Daily Log'!$K$18:$K$1017,$B78,'Daily Log'!$L$18:$L$1017),0) -> 0 | K78: =IFERROR($E78*SUMIF('Daily Log'!$N$18:$N$1017,$B78,'Daily Log'!$O$18:$O$1017),0) -> 0 | L78: =IFERROR($E78*SUMIF('Daily Log'!$Q$18:$Q$1017,$B78,'Daily Log'!$R$18:$R$1017),0) -> 0 | M78: =IFERROR($E78*SUMIF('Daily Log'!$T$18:$T$1017,$B78,'Daily Log'!$U$18:$U$1017),0) -> 0 | N78: =IFERROR($E78*SUMIF('Daily Log'!$W$18:$W$1017,$B78,'Daily Log'!$X$18:$X$1017),0) -> 0 | O78: =IFERROR($E78*SUMIF('Daily Log'!$Z$18:$Z$1017,$B78,'Daily Log'!$AA$18:$AA$1017),0) -> 0 | P78: =IFERROR($E78*SUMIF('Daily Log'!$AC$18:$AC$1017,$B78,'Daily Log'!$AD$18:$AD$1017),0) -> 0 | Q78: =IFERROR($E78*SUMIF('Daily Log'!$AF$18:$AF$1017,$B78,'Daily Log'!$AG$18:$AG$1017),0) -> 0 | R78: =IFERROR($E78*SUMIF('Daily Log'!$AI$18:$AI$1017,$B78,'Daily Log'!$AJ$18:$AJ$1017),0) -> 0 | S78: =IFERROR($E78*SUMIF('Daily Log'!$AL$18:$AL$1017,$B78,'Daily Log'!$AM$18:$AM$1017),0) -> 0 | T78: =IFERROR($E78*SUMIF('Daily Log'!$AO$18:$AO$1017,$B78,'Daily Log'!$AP$18:$AP$1017),0) -> 0 | U78: =IFERROR($E78*SUMIF('Daily Log'!$AR$18:$AR$1017,$B78,'Daily Log'!$AS$18:$AS$1017),0) -> 0 | V78: =IFERROR($E78*SUMIF('Daily Log'!$AU$18:$AU$1017,$B78,'Daily Log'!$AV$18:$AV$1017),0) -> 0 | W78: =IFERROR($E78*SUMIF('Daily Log'!$AX$18:$AX$1017,$B78,'Daily Log'!$AY$18:$AY$1017),0) -> 0 | X78: =IFERROR($E78*SUMIF('Daily Log'!$BA$18:$BA$1017,$B78,'Daily Log'!$BB$18:$BB$1017),0) -> 0 | Y78: =IFERROR($E78*SUMIF('Daily Log'!$BD$18:$BD$1017,$B78,'Daily Log'!$BE$18:$BE$1017),0) -> 0 | Z78: =IFERROR($E78*SUMIF('Daily Log'!$BG$18:$BG$1017,$B78,'Daily Log'!$BH$18:$BH$1017),0) -> 0 | AA78: =IFERROR($E78*SUMIF('Daily Log'!$BJ$18:$BJ$1017,$B78,'Daily Log'!$BK$18:$BK$1017),0) -> 0 | AB78: =IFERROR($E78*SUMIF('Daily Log'!$BM$18:$BM$1017,$B78,'Daily Log'!$BN$18:$BN$1017),0) -> 2 | AC78: =IFERROR($E78*SUMIF('Daily Log'!$BP$18:$BP$1017,$B78,'Daily Log'!$BQ$18:$BQ$1017),0) -> 0 | AD78: =IFERROR($E78*SUMIF('Daily Log'!$BS$18:$BS$1017,$B78,'Daily Log'!$BT$18:$BT$1017),0) -> 0 | AE78: =IFERROR($E78*SUMIF('Daily Log'!$BV$18:$BV$1017,$B78,'Daily Log'!$BW$18:$BW$1017),0) -> 0 | AF78: =IFERROR($E78*SUMIF('Daily Log'!$BY$18:$BY$1017,$B78,'Daily Log'!$BZ$18:$BZ$1017),0) -> 0 | AG78: =IFERROR($E78*SUMIF('Daily Log'!$CB$18:$CB$1017,$B78,'Daily Log'!$CC$18:$CC$1017),0) -> 0
B79: ZCC03 TEQUILA SUNSHINE | D79: COCKTAIL | E79: 1 | F79: 0 | G79: =IFERROR($E79*SUMIF('Daily Log'!$B$18:$B$1017,$B79,'Daily Log'!$C$18:$C$1017),0) -> 0 | H79: =IFERROR($E79*SUMIF('Daily Log'!$E$18:$E$1017,$B79,'Daily Log'!$F$18:$F$1017),0) -> 0 | I79: =IFERROR($E79*SUMIF('Daily Log'!$H$18:$H$1017,$B79,'Daily Log'!$I$18:$I$1017),0) -> 0 | J79: =IFERROR($E79*SUMIF('Daily Log'!$K$18:$K$1017,$B79,'Daily Log'!$L$18:$L$1017),0) -> 0 | K79: =IFERROR($E79*SUMIF('Daily Log'!$N$18:$N$1017,$B79,'Daily Log'!$O$18:$O$1017),0) -> 0 | L79: =IFERROR($E79*SUMIF('Daily Log'!$Q$18:$Q$1017,$B79,'Daily Log'!$R$18:$R$1017),0) -> 0 | M79: =IFERROR($E79*SUMIF('Daily Log'!$T$18:$T$1017,$B79,'Daily Log'!$U$18:$U$1017),0) -> 0 | N79: =IFERROR($E79*SUMIF('Daily Log'!$W$18:$W$1017,$B79,'Daily Log'!$X$18:$X$1017),0) -> 0 | O79: =IFERROR($E79*SUMIF('Daily Log'!$Z$18:$Z$1017,$B79,'Daily Log'!$AA$18:$AA$1017),0) -> 0 | P79: =IFERROR($E79*SUMIF('Daily Log'!$AC$18:$AC$1017,$B79,'Daily Log'!$AD$18:$AD$1017),0) -> 0 | Q79: =IFERROR($E79*SUMIF('Daily Log'!$AF$18:$AF$1017,$B79,'Daily Log'!$AG$18:$AG$1017),0) -> 0 | R79: =IFERROR($E79*SUMIF('Daily Log'!$AI$18:$AI$1017,$B79,'Daily Log'!$AJ$18:$AJ$1017),0) -> 0 | S79: =IFERROR($E79*SUMIF('Daily Log'!$AL$18:$AL$1017,$B79,'Daily Log'!$AM$18:$AM$1017),0) -> 0 | T79: =IFERROR($E79*SUMIF('Daily Log'!$AO$18:$AO$1017,$B79,'Daily Log'!$AP$18:$AP$1017),0) -> 0 | U79: =IFERROR($E79*SUMIF('Daily Log'!$AR$18:$AR$1017,$B79,'Daily Log'!$AS$18:$AS$1017),0) -> 0 | V79: =IFERROR($E79*SUMIF('Daily Log'!$AU$18:$AU$1017,$B79,'Daily Log'!$AV$18:$AV$1017),0) -> 0 | W79: =IFERROR($E79*SUMIF('Daily Log'!$AX$18:$AX$1017,$B79,'Daily Log'!$AY$18:$AY$1017),0) -> 0 | X79: =IFERROR($E79*SUMIF('Daily Log'!$BA$18:$BA$1017,$B79,'Daily Log'!$BB$18:$BB$1017),0) -> 0 | Y79: =IFERROR($E79*SUMIF('Daily Log'!$BD$18:$BD$1017,$B79,'Daily Log'!$BE$18:$BE$1017),0) -> 0 | Z79: =IFERROR($E79*SUMIF('Daily Log'!$BG$18:$BG$1017,$B79,'Daily Log'!$BH$18:$BH$1017),0) -> 0 | AA79: =IFERROR($E79*SUMIF('Daily Log'!$BJ$18:$BJ$1017,$B79,'Daily Log'!$BK$18:$BK$1017),0) -> 0 | AB79: =IFERROR($E79*SUMIF('Daily Log'!$BM$18:$BM$1017,$B79,'Daily Log'!$BN$18:$BN$1017),0) -> 0 | AC79: =IFERROR($E79*SUMIF('Daily Log'!$BP$18:$BP$1017,$B79,'Daily Log'!$BQ$18:$BQ$1017),0) -> 0 | AD79: =IFERROR($E79*SUMIF('Daily Log'!$BS$18:$BS$1017,$B79,'Daily Log'!$BT$18:$BT$1017),0) -> 0 | AE79: =IFERROR($E79*SUMIF('Daily Log'!$BV$18:$BV$1017,$B79,'Daily Log'!$BW$18:$BW$1017),0) -> 0 | AF79: =IFERROR($E79*SUMIF('Daily Log'!$BY$18:$BY$1017,$B79,'Daily Log'!$BZ$18:$BZ$1017),0) -> 0 | AG79: =IFERROR($E79*SUMIF('Daily Log'!$CB$18:$CB$1017,$B79,'Daily Log'!$CC$18:$CC$1017),0) -> 0
B80: ZCC04 BLOODY MARY | D80: COCKTAIL | E80: 1 | F80: 1 | G80: =IFERROR($E80*SUMIF('Daily Log'!$B$18:$B$1017,$B80,'Daily Log'!$C$18:$C$1017),0) -> 0 | H80: =IFERROR($E80*SUMIF('Daily Log'!$E$18:$E$1017,$B80,'Daily Log'!$F$18:$F$1017),0) -> 0 | I80: =IFERROR($E80*SUMIF('Daily Log'!$H$18:$H$1017,$B80,'Daily Log'!$I$18:$I$1017),0) -> 0 | J80: =IFERROR($E80*SUMIF('Daily Log'!$K$18:$K$1017,$B80,'Daily Log'!$L$18:$L$1017),0) -> 0 | K80: =IFERROR($E80*SUMIF('Daily Log'!$N$18:$N$1017,$B80,'Daily Log'!$O$18:$O$1017),0) -> 0 | L80: =IFERROR($E80*SUMIF('Daily Log'!$Q$18:$Q$1017,$B80,'Daily Log'!$R$18:$R$1017),0) -> 0 | M80: =IFERROR($E80*SUMIF('Daily Log'!$T$18:$T$1017,$B80,'Daily Log'!$U$18:$U$1017),0) -> 0 | N80: =IFERROR($E80*SUMIF('Daily Log'!$W$18:$W$1017,$B80,'Daily Log'!$X$18:$X$1017),0) -> 0 | O80: =IFERROR($E80*SUMIF('Daily Log'!$Z$18:$Z$1017,$B80,'Daily Log'!$AA$18:$AA$1017),0) -> 0 | P80: =IFERROR($E80*SUMIF('Daily Log'!$AC$18:$AC$1017,$B80,'Daily Log'!$AD$18:$AD$1017),0) -> 0 | Q80: =IFERROR($E80*SUMIF('Daily Log'!$AF$18:$AF$1017,$B80,'Daily Log'!$AG$18:$AG$1017),0) -> 0 | R80: =IFERROR($E80*SUMIF('Daily Log'!$AI$18:$AI$1017,$B80,'Daily Log'!$AJ$18:$AJ$1017),0) -> 0 | S80: =IFERROR($E80*SUMIF('Daily Log'!$AL$18:$AL$1017,$B80,'Daily Log'!$AM$18:$AM$1017),0) -> 0 | T80: =IFERROR($E80*SUMIF('Daily Log'!$AO$18:$AO$1017,$B80,'Daily Log'!$AP$18:$AP$1017),0) -> 0 | U80: =IFERROR($E80*SUMIF('Daily Log'!$AR$18:$AR$1017,$B80,'Daily Log'!$AS$18:$AS$1017),0) -> 0 | V80: =IFERROR($E80*SUMIF('Daily Log'!$AU$18:$AU$1017,$B80,'Daily Log'!$AV$18:$AV$1017),0) -> 0 | W80: =IFERROR($E80*SUMIF('Daily Log'!$AX$18:$AX$1017,$B80,'Daily Log'!$AY$18:$AY$1017),0) -> 0 | X80: =IFERROR($E80*SUMIF('Daily Log'!$BA$18:$BA$1017,$B80,'Daily Log'!$BB$18:$BB$1017),0) -> 0 | Y80: =IFERROR($E80*SUMIF('Daily Log'!$BD$18:$BD$1017,$B80,'Daily Log'!$BE$18:$BE$1017),0) -> 0 | Z80: =IFERROR($E80*SUMIF('Daily Log'!$BG$18:$BG$1017,$B80,'Daily Log'!$BH$18:$BH$1017),0) -> 0 | AA80: =IFERROR($E80*SUMIF('Daily Log'!$BJ$18:$BJ$1017,$B80,'Daily Log'!$BK$18:$BK$1017),0) -> 0 | AB80: =IFERROR($E80*SUMIF('Daily Log'!$BM$18:$BM$1017,$B80,'Daily Log'!$BN$18:$BN$1017),0) -> 1 | AC80: =IFERROR($E80*SUMIF('Daily Log'!$BP$18:$BP$1017,$B80,'Daily Log'!$BQ$18:$BQ$1017),0) -> 0 | AD80: =IFERROR($E80*SUMIF('Daily Log'!$BS$18:$BS$1017,$B80,'Daily Log'!$BT$18:$BT$1017),0) -> 0 | AE80: =IFERROR($E80*SUMIF('Daily Log'!$BV$18:$BV$1017,$B80,'Daily Log'!$BW$18:$BW$1017),0) -> 0 | AF80: =IFERROR($E80*SUMIF('Daily Log'!$BY$18:$BY$1017,$B80,'Daily Log'!$BZ$18:$BZ$1017),0) -> 0 | AG80: =IFERROR($E80*SUMIF('Daily Log'!$CB$18:$CB$1017,$B80,'Daily Log'!$CC$18:$CC$1017),0) -> 0
B81: ZCT05 SANGRIA | D81: COCKTAIL | E81: 1 | F81: 0 | G81: =IFERROR($E81*SUMIF('Daily Log'!$B$18:$B$1017,$B81,'Daily Log'!$C$18:$C$1017),0) -> 0 | H81: =IFERROR($E81*SUMIF('Daily Log'!$E$18:$E$1017,$B81,'Daily Log'!$F$18:$F$1017),0) -> 0 | I81: =IFERROR($E81*SUMIF('Daily Log'!$H$18:$H$1017,$B81,'Daily Log'!$I$18:$I$1017),0) -> 0 | J81: =IFERROR($E81*SUMIF('Daily Log'!$K$18:$K$1017,$B81,'Daily Log'!$L$18:$L$1017),0) -> 0 | K81: =IFERROR($E81*SUMIF('Daily Log'!$N$18:$N$1017,$B81,'Daily Log'!$O$18:$O$1017),0) -> 0 | L81: =IFERROR($E81*SUMIF('Daily Log'!$Q$18:$Q$1017,$B81,'Daily Log'!$R$18:$R$1017),0) -> 0 | M81: =IFERROR($E81*SUMIF('Daily Log'!$T$18:$T$1017,$B81,'Daily Log'!$U$18:$U$1017),0) -> 0 | N81: =IFERROR($E81*SUMIF('Daily Log'!$W$18:$W$1017,$B81,'Daily Log'!$X$18:$X$1017),0) -> 0 | O81: =IFERROR($E81*SUMIF('Daily Log'!$Z$18:$Z$1017,$B81,'Daily Log'!$AA$18:$AA$1017),0) -> 0 | P81: =IFERROR($E81*SUMIF('Daily Log'!$AC$18:$AC$1017,$B81,'Daily Log'!$AD$18:$AD$1017),0) -> 0 | Q81: =IFERROR($E81*SUMIF('Daily Log'!$AF$18:$AF$1017,$B81,'Daily Log'!$AG$18:$AG$1017),0) -> 0 | R81: =IFERROR($E81*SUMIF('Daily Log'!$AI$18:$AI$1017,$B81,'Daily Log'!$AJ$18:$AJ$1017),0) -> 0 | S81: =IFERROR($E81*SUMIF('Daily Log'!$AL$18:$AL$1017,$B81,'Daily Log'!$AM$18:$AM$1017),0) -> 0 | T81: =IFERROR($E81*SUMIF('Daily Log'!$AO$18:$AO$1017,$B81,'Daily Log'!$AP$18:$AP$1017),0) -> 0 | U81: =IFERROR($E81*SUMIF('Daily Log'!$AR$18:$AR$1017,$B81,'Daily Log'!$AS$18:$AS$1017),0) -> 0 | V81: =IFERROR($E81*SUMIF('Daily Log'!$AU$18:$AU$1017,$B81,'Daily Log'!$AV$18:$AV$1017),0) -> 0 | W81: =IFERROR($E81*SUMIF('Daily Log'!$AX$18:$AX$1017,$B81,'Daily Log'!$AY$18:$AY$1017),0) -> 0 | X81: =IFERROR($E81*SUMIF('Daily Log'!$BA$18:$BA$1017,$B81,'Daily Log'!$BB$18:$BB$1017),0) -> 0 | Y81: =IFERROR($E81*SUMIF('Daily Log'!$BD$18:$BD$1017,$B81,'Daily Log'!$BE$18:$BE$1017),0) -> 0 | Z81: =IFERROR($E81*SUMIF('Daily Log'!$BG$18:$BG$1017,$B81,'Daily Log'!$BH$18:$BH$1017),0) -> 0 | AA81: =IFERROR($E81*SUMIF('Daily Log'!$BJ$18:$BJ$1017,$B81,'Daily Log'!$BK$18:$BK$1017),0) -> 0 | AB81: =IFERROR($E81*SUMIF('Daily Log'!$BM$18:$BM$1017,$B81,'Daily Log'!$BN$18:$BN$1017),0) -> 0 | AC81: =IFERROR($E81*SUMIF('Daily Log'!$BP$18:$BP$1017,$B81,'Daily Log'!$BQ$18:$BQ$1017),0) -> 0 | AD81: =IFERROR($E81*SUMIF('Daily Log'!$BS$18:$BS$1017,$B81,'Daily Log'!$BT$18:$BT$1017),0) -> 0 | AE81: =IFERROR($E81*SUMIF('Daily Log'!$BV$18:$BV$1017,$B81,'Daily Log'!$BW$18:$BW$1017),0) -> 0 | AF81: =IFERROR($E81*SUMIF('Daily Log'!$BY$18:$BY$1017,$B81,'Daily Log'!$BZ$18:$BZ$1017),0) -> 0 | AG81: =IFERROR($E81*SUMIF('Daily Log'!$CB$18:$CB$1017,$B81,'Daily Log'!$CC$18:$CC$1017),0) -> 0
B82: WT01 1001:BP CKN CP | D82: FFD -COLD BEVERAGE | E82: 1 | F82: 149 | G82: =IFERROR($E82*SUMIF('Daily Log'!$B$18:$B$1017,$B82,'Daily Log'!$C$18:$C$1017),0) -> 3 | H82: =IFERROR($E82*SUMIF('Daily Log'!$E$18:$E$1017,$B82,'Daily Log'!$F$18:$F$1017),0) -> 9 | I82: =IFERROR($E82*SUMIF('Daily Log'!$H$18:$H$1017,$B82,'Daily Log'!$I$18:$I$1017),0) -> 8 | J82: =IFERROR($E82*SUMIF('Daily Log'!$K$18:$K$1017,$B82,'Daily Log'!$L$18:$L$1017),0) -> 3 | K82: =IFERROR($E82*SUMIF('Daily Log'!$N$18:$N$1017,$B82,'Daily Log'!$O$18:$O$1017),0) -> 3 | L82: =IFERROR($E82*SUMIF('Daily Log'!$Q$18:$Q$1017,$B82,'Daily Log'!$R$18:$R$1017),0) -> 4 | M82: =IFERROR($E82*SUMIF('Daily Log'!$T$18:$T$1017,$B82,'Daily Log'!$U$18:$U$1017),0) -> 2 | N82: =IFERROR($E82*SUMIF('Daily Log'!$W$18:$W$1017,$B82,'Daily Log'!$X$18:$X$1017),0) -> 10 | O82: =IFERROR($E82*SUMIF('Daily Log'!$Z$18:$Z$1017,$B82,'Daily Log'!$AA$18:$AA$1017),0) -> 7 | P82: =IFERROR($E82*SUMIF('Daily Log'!$AC$18:$AC$1017,$B82,'Daily Log'!$AD$18:$AD$1017),0) -> 3 | Q82: =IFERROR($E82*SUMIF('Daily Log'!$AF$18:$AF$1017,$B82,'Daily Log'!$AG$18:$AG$1017),0) -> 3 | R82: =IFERROR($E82*SUMIF('Daily Log'!$AI$18:$AI$1017,$B82,'Daily Log'!$AJ$18:$AJ$1017),0) -> 2 | S82: =IFERROR($E82*SUMIF('Daily Log'!$AL$18:$AL$1017,$B82,'Daily Log'!$AM$18:$AM$1017),0) -> 6 | T82: =IFERROR($E82*SUMIF('Daily Log'!$AO$18:$AO$1017,$B82,'Daily Log'!$AP$18:$AP$1017),0) -> 5 | U82: =IFERROR($E82*SUMIF('Daily Log'!$AR$18:$AR$1017,$B82,'Daily Log'!$AS$18:$AS$1017),0) -> 14 | V82: =IFERROR($E82*SUMIF('Daily Log'!$AU$18:$AU$1017,$B82,'Daily Log'!$AV$18:$AV$1017),0) -> 7 | W82: =IFERROR($E82*SUMIF('Daily Log'!$AX$18:$AX$1017,$B82,'Daily Log'!$AY$18:$AY$1017),0) -> 3 | X82: =IFERROR($E82*SUMIF('Daily Log'!$BA$18:$BA$1017,$B82,'Daily Log'!$BB$18:$BB$1017),0) -> 3 | Y82: =IFERROR($E82*SUMIF('Daily Log'!$BD$18:$BD$1017,$B82,'Daily Log'!$BE$18:$BE$1017),0) -> 7 | Z82: =IFERROR($E82*SUMIF('Daily Log'!$BG$18:$BG$1017,$B82,'Daily Log'!$BH$18:$BH$1017),0) -> 5 | AA82: =IFERROR($E82*SUMIF('Daily Log'!$BJ$18:$BJ$1017,$B82,'Daily Log'!$BK$18:$BK$1017),0) -> 6 | AB82: =IFERROR($E82*SUMIF('Daily Log'!$BM$18:$BM$1017,$B82,'Daily Log'!$BN$18:$BN$1017),0) -> 7 | AC82: =IFERROR($E82*SUMIF('Daily Log'!$BP$18:$BP$1017,$B82,'Daily Log'!$BQ$18:$BQ$1017),0) -> 2 | AD82: =IFERROR($E82*SUMIF('Daily Log'!$BS$18:$BS$1017,$B82,'Daily Log'!$BT$18:$BT$1017),0) -> 2 | AE82: =IFERROR($E82*SUMIF('Daily Log'!$BV$18:$BV$1017,$B82,'Daily Log'!$BW$18:$BW$1017),0) -> 11 | AF82: =IFERROR($E82*SUMIF('Daily Log'!$BY$18:$BY$1017,$B82,'Daily Log'!$BZ$18:$BZ$1017),0) -> 6 | AG82: =IFERROR($E82*SUMIF('Daily Log'!$CB$18:$CB$1017,$B82,'Daily Log'!$CC$18:$CC$1017),0) -> 3 | AH82: =IFERROR($E82*SUMIF('Daily Log'!$CE$18:$CE$1017,$B82,'Daily Log'!$CF$18:$CF$1017),0) -> 5 | AI82: =IFERROR($E82*SUMIF('Daily Log'!$CH$18:$CH$1017,$B82,'Daily Log'!$CI$18:$CI$1017),0) -> 0 | AJ82: =IFERROR($E82*SUMIF('Daily Log'!$CK$18:$CK$1017,$B82,'Daily Log'!$CL$18:$CL$1017),0) -> 0 | AK82: =IFERROR($E82*SUMIF('Daily Log'!$CN$18:$CN$1017,$B82,'Daily Log'!$CO$18:$CO$1017),0) -> 0
B83: WT03 1003:MSR CKN CP | D83: FFD -COLD BEVERAGE | E83: 1 | F83: 0 | G83: =IFERROR($E83*SUMIF('Daily Log'!$B$18:$B$1017,$B83,'Daily Log'!$C$18:$C$1017),0) -> 0 | H83: =IFERROR($E83*SUMIF('Daily Log'!$E$18:$E$1017,$B83,'Daily Log'!$F$18:$F$1017),0) -> 0 | I83: =IFERROR($E83*SUMIF('Daily Log'!$H$18:$H$1017,$B83,'Daily Log'!$I$18:$I$1017),0) -> 0 | J83: =IFERROR($E83*SUMIF('Daily Log'!$K$18:$K$1017,$B83,'Daily Log'!$L$18:$L$1017),0) -> 0 | K83: =IFERROR($E83*SUMIF('Daily Log'!$N$18:$N$1017,$B83,'Daily Log'!$O$18:$O$1017),0) -> 0 | L83: =IFERROR($E83*SUMIF('Daily Log'!$Q$18:$Q$1017,$B83,'Daily Log'!$R$18:$R$1017),0) -> 0 | M83: =IFERROR($E83*SUMIF('Daily Log'!$T$18:$T$1017,$B83,'Daily Log'!$U$18:$U$1017),0) -> 0 | N83: =IFERROR($E83*SUMIF('Daily Log'!$W$18:$W$1017,$B83,'Daily Log'!$X$18:$X$1017),0) -> 0 | O83: =IFERROR($E83*SUMIF('Daily Log'!$Z$18:$Z$1017,$B83,'Daily Log'!$AA$18:$AA$1017),0) -> 0 | P83: =IFERROR($E83*SUMIF('Daily Log'!$AC$18:$AC$1017,$B83,'Daily Log'!$AD$18:$AD$1017),0) -> 0 | Q83: =IFERROR($E83*SUMIF('Daily Log'!$AF$18:$AF$1017,$B83,'Daily Log'!$AG$18:$AG$1017),0) -> 0 | R83: =IFERROR($E83*SUMIF('Daily Log'!$AI$18:$AI$1017,$B83,'Daily Log'!$AJ$18:$AJ$1017),0) -> 0 | S83: =IFERROR($E83*SUMIF('Daily Log'!$AL$18:$AL$1017,$B83,'Daily Log'!$AM$18:$AM$1017),0) -> 0 | T83: =IFERROR($E83*SUMIF('Daily Log'!$AO$18:$AO$1017,$B83,'Daily Log'!$AP$18:$AP$1017),0) -> 0 | U83: =IFERROR($E83*SUMIF('Daily Log'!$AR$18:$AR$1017,$B83,'Daily Log'!$AS$18:$AS$1017),0) -> 0 | V83: =IFERROR($E83*SUMIF('Daily Log'!$AU$18:$AU$1017,$B83,'Daily Log'!$AV$18:$AV$1017),0) -> 0 | W83: =IFERROR($E83*SUMIF('Daily Log'!$AX$18:$AX$1017,$B83,'Daily Log'!$AY$18:$AY$1017),0) -> 0 | X83: =IFERROR($E83*SUMIF('Daily Log'!$BA$18:$BA$1017,$B83,'Daily Log'!$BB$18:$BB$1017),0) -> 0 | Y83: =IFERROR($E83*SUMIF('Daily Log'!$BD$18:$BD$1017,$B83,'Daily Log'!$BE$18:$BE$1017),0) -> 0 | Z83: =IFERROR($E83*SUMIF('Daily Log'!$BG$18:$BG$1017,$B83,'Daily Log'!$BH$18:$BH$1017),0) -> 0 | AA83: =IFERROR($E83*SUMIF('Daily Log'!$BJ$18:$BJ$1017,$B83,'Daily Log'!$BK$18:$BK$1017),0) -> 0 | AB83: =IFERROR($E83*SUMIF('Daily Log'!$BM$18:$BM$1017,$B83,'Daily Log'!$BN$18:$BN$1017),0) -> 0 | AC83: =IFERROR($E83*SUMIF('Daily Log'!$BP$18:$BP$1017,$B83,'Daily Log'!$BQ$18:$BQ$1017),0) -> 0 | AD83: =IFERROR($E83*SUMIF('Daily Log'!$BS$18:$BS$1017,$B83,'Daily Log'!$BT$18:$BT$1017),0) -> 0 | AE83: =IFERROR($E83*SUMIF('Daily Log'!$BV$18:$BV$1017,$B83,'Daily Log'!$BW$18:$BW$1017),0) -> 0 | AF83: =IFERROR($E83*SUMIF('Daily Log'!$BY$18:$BY$1017,$B83,'Daily Log'!$BZ$18:$BZ$1017),0) -> 0 | AG83: =IFERROR($E83*SUMIF('Daily Log'!$CB$18:$CB$1017,$B83,'Daily Log'!$CC$18:$CC$1017),0) -> 0 | AH83: =IFERROR($E83*SUMIF('Daily Log'!$CE$18:$CE$1017,$B83,'Daily Log'!$CF$18:$CF$1017),0) -> 0 | AI83: =IFERROR($E83*SUMIF('Daily Log'!$CH$18:$CH$1017,$B83,'Daily Log'!$CI$18:$CI$1017),0) -> 0 | AJ83: =IFERROR($E83*SUMIF('Daily Log'!$CK$18:$CK$1017,$B83,'Daily Log'!$CL$18:$CL$1017),0) -> 0 | AK83: =IFERROR($E83*SUMIF('Daily Log'!$CN$18:$CN$1017,$B83,'Daily Log'!$CO$18:$CO$1017),0) -> 0
B84: WT04 1004:CKN MARY | D84: FFD -COLD BEVERAGE | E84: 1 | F84: 34 | G84: =IFERROR($E84*SUMIF('Daily Log'!$B$18:$B$1017,$B84,'Daily Log'!$C$18:$C$1017),0) -> 0 | H84: =IFERROR($E84*SUMIF('Daily Log'!$E$18:$E$1017,$B84,'Daily Log'!$F$18:$F$1017),0) -> 0 | I84: =IFERROR($E84*SUMIF('Daily Log'!$H$18:$H$1017,$B84,'Daily Log'!$I$18:$I$1017),0) -> 0 | J84: =IFERROR($E84*SUMIF('Daily Log'!$K$18:$K$1017,$B84,'Daily Log'!$L$18:$L$1017),0) -> 0 | K84: =IFERROR($E84*SUMIF('Daily Log'!$N$18:$N$1017,$B84,'Daily Log'!$O$18:$O$1017),0) -> 0 | L84: =IFERROR($E84*SUMIF('Daily Log'!$Q$18:$Q$1017,$B84,'Daily Log'!$R$18:$R$1017),0) -> 0 | M84: =IFERROR($E84*SUMIF('Daily Log'!$T$18:$T$1017,$B84,'Daily Log'!$U$18:$U$1017),0) -> 0 | N84: =IFERROR($E84*SUMIF('Daily Log'!$W$18:$W$1017,$B84,'Daily Log'!$X$18:$X$1017),0) -> 0 | O84: =IFERROR($E84*SUMIF('Daily Log'!$Z$18:$Z$1017,$B84,'Daily Log'!$AA$18:$AA$1017),0) -> 0 | P84: =IFERROR($E84*SUMIF('Daily Log'!$AC$18:$AC$1017,$B84,'Daily Log'!$AD$18:$AD$1017),0) -> 0 | Q84: =IFERROR($E84*SUMIF('Daily Log'!$AF$18:$AF$1017,$B84,'Daily Log'!$AG$18:$AG$1017),0) -> 3 | R84: =IFERROR($E84*SUMIF('Daily Log'!$AI$18:$AI$1017,$B84,'Daily Log'!$AJ$18:$AJ$1017),0) -> 0 | S84: =IFERROR($E84*SUMIF('Daily Log'!$AL$18:$AL$1017,$B84,'Daily Log'!$AM$18:$AM$1017),0) -> 0 | T84: =IFERROR($E84*SUMIF('Daily Log'!$AO$18:$AO$1017,$B84,'Daily Log'!$AP$18:$AP$1017),0) -> 7 | U84: =IFERROR($E84*SUMIF('Daily Log'!$AR$18:$AR$1017,$B84,'Daily Log'!$AS$18:$AS$1017),0) -> 2 | V84: =IFERROR($E84*SUMIF('Daily Log'!$AU$18:$AU$1017,$B84,'Daily Log'!$AV$18:$AV$1017),0) -> 5 | W84: =IFERROR($E84*SUMIF('Daily Log'!$AX$18:$AX$1017,$B84,'Daily Log'!$AY$18:$AY$1017),0) -> 2 | X84: =IFERROR($E84*SUMIF('Daily Log'!$BA$18:$BA$1017,$B84,'Daily Log'!$BB$18:$BB$1017),0) -> 1 | Y84: =IFERROR($E84*SUMIF('Daily Log'!$BD$18:$BD$1017,$B84,'Daily Log'!$BE$18:$BE$1017),0) -> 1 | Z84: =IFERROR($E84*SUMIF('Daily Log'!$BG$18:$BG$1017,$B84,'Daily Log'!$BH$18:$BH$1017),0) -> 1 | AA84: =IFERROR($E84*SUMIF('Daily Log'!$BJ$18:$BJ$1017,$B84,'Daily Log'!$BK$18:$BK$1017),0) -> 2 | AB84: =IFERROR($E84*SUMIF('Daily Log'!$BM$18:$BM$1017,$B84,'Daily Log'!$BN$18:$BN$1017),0) -> 3 | AC84: =IFERROR($E84*SUMIF('Daily Log'!$BP$18:$BP$1017,$B84,'Daily Log'!$BQ$18:$BQ$1017),0) -> 1 | AD84: =IFERROR($E84*SUMIF('Daily Log'!$BS$18:$BS$1017,$B84,'Daily Log'!$BT$18:$BT$1017),0) -> 1 | AE84: =IFERROR($E84*SUMIF('Daily Log'!$BV$18:$BV$1017,$B84,'Daily Log'!$BW$18:$BW$1017),0) -> 0 | AF84: =IFERROR($E84*SUMIF('Daily Log'!$BY$18:$BY$1017,$B84,'Daily Log'!$BZ$18:$BZ$1017),0) -> 1 | AG84: =IFERROR($E84*SUMIF('Daily Log'!$CB$18:$CB$1017,$B84,'Daily Log'!$CC$18:$CC$1017),0) -> 1 | AH84: =IFERROR($E84*SUMIF('Daily Log'!$CE$18:$CE$1017,$B84,'Daily Log'!$CF$18:$CF$1017),0) -> 3 | AI84: =IFERROR($E84*SUMIF('Daily Log'!$CH$18:$CH$1017,$B84,'Daily Log'!$CI$18:$CI$1017),0) -> 0 | AJ84: =IFERROR($E84*SUMIF('Daily Log'!$CK$18:$CK$1017,$B84,'Daily Log'!$CL$18:$CL$1017),0) -> 0 | AK84: =IFERROR($E84*SUMIF('Daily Log'!$CN$18:$CN$1017,$B84,'Daily Log'!$CO$18:$CO$1017),0) -> 0
B85: WT05 1005:FSH&CHIP | D85: FFD-SOFT DRINK | E85: 1 | F85: 84 | G85: =IFERROR($E85*SUMIF('Daily Log'!$B$18:$B$1017,$B85,'Daily Log'!$C$18:$C$1017),0) -> 1 | H85: =IFERROR($E85*SUMIF('Daily Log'!$E$18:$E$1017,$B85,'Daily Log'!$F$18:$F$1017),0) -> 2 | I85: =IFERROR($E85*SUMIF('Daily Log'!$H$18:$H$1017,$B85,'Daily Log'!$I$18:$I$1017),0) -> 1 | J85: =IFERROR($E85*SUMIF('Daily Log'!$K$18:$K$1017,$B85,'Daily Log'!$L$18:$L$1017),0) -> 2 | K85: =IFERROR($E85*SUMIF('Daily Log'!$N$18:$N$1017,$B85,'Daily Log'!$O$18:$O$1017),0) -> 2 | L85: =IFERROR($E85*SUMIF('Daily Log'!$Q$18:$Q$1017,$B85,'Daily Log'!$R$18:$R$1017),0) -> 0 | M85: =IFERROR($E85*SUMIF('Daily Log'!$T$18:$T$1017,$B85,'Daily Log'!$U$18:$U$1017),0) -> 1 | N85: =IFERROR($E85*SUMIF('Daily Log'!$W$18:$W$1017,$B85,'Daily Log'!$X$18:$X$1017),0) -> 3 | O85: =IFERROR($E85*SUMIF('Daily Log'!$Z$18:$Z$1017,$B85,'Daily Log'!$AA$18:$AA$1017),0) -> 3 | P85: =IFERROR($E85*SUMIF('Daily Log'!$AC$18:$AC$1017,$B85,'Daily Log'!$AD$18:$AD$1017),0) -> 2 | Q85: =IFERROR($E85*SUMIF('Daily Log'!$AF$18:$AF$1017,$B85,'Daily Log'!$AG$18:$AG$1017),0) -> 2 | R85: =IFERROR($E85*SUMIF('Daily Log'!$AI$18:$AI$1017,$B85,'Daily Log'!$AJ$18:$AJ$1017),0) -> 2 | S85: =IFERROR($E85*SUMIF('Daily Log'!$AL$18:$AL$1017,$B85,'Daily Log'!$AM$18:$AM$1017),0) -> 5 | T85: =IFERROR($E85*SUMIF('Daily Log'!$AO$18:$AO$1017,$B85,'Daily Log'!$AP$18:$AP$1017),0) -> 6 | U85: =IFERROR($E85*SUMIF('Daily Log'!$AR$18:$AR$1017,$B85,'Daily Log'!$AS$18:$AS$1017),0) -> 7 | V85: =IFERROR($E85*SUMIF('Daily Log'!$AU$18:$AU$1017,$B85,'Daily Log'!$AV$18:$AV$1017),0) -> 5 | W85: =IFERROR($E85*SUMIF('Daily Log'!$AX$18:$AX$1017,$B85,'Daily Log'!$AY$18:$AY$1017),0) -> 2 | X85: =IFERROR($E85*SUMIF('Daily Log'!$BA$18:$BA$1017,$B85,'Daily Log'!$BB$18:$BB$1017),0) -> 4 | Y85: =IFERROR($E85*SUMIF('Daily Log'!$BD$18:$BD$1017,$B85,'Daily Log'!$BE$18:$BE$1017),0) -> 1 | Z85: =IFERROR($E85*SUMIF('Daily Log'!$BG$18:$BG$1017,$B85,'Daily Log'!$BH$18:$BH$1017),0) -> 2 | AA85: =IFERROR($E85*SUMIF('Daily Log'!$BJ$18:$BJ$1017,$B85,'Daily Log'!$BK$18:$BK$1017),0) -> 7 | AB85: =IFERROR($E85*SUMIF('Daily Log'!$BM$18:$BM$1017,$B85,'Daily Log'!$BN$18:$BN$1017),0) -> 3 | AC85: =IFERROR($E85*SUMIF('Daily Log'!$BP$18:$BP$1017,$B85,'Daily Log'!$BQ$18:$BQ$1017),0) -> 6 | AD85: =IFERROR($E85*SUMIF('Daily Log'!$BS$18:$BS$1017,$B85,'Daily Log'!$BT$18:$BT$1017),0) -> 1 | AE85: =IFERROR($E85*SUMIF('Daily Log'!$BV$18:$BV$1017,$B85,'Daily Log'!$BW$18:$BW$1017),0) -> 4 | AF85: =IFERROR($E85*SUMIF('Daily Log'!$BY$18:$BY$1017,$B85,'Daily Log'!$BZ$18:$BZ$1017),0) -> 2 | AG85: =IFERROR($E85*SUMIF('Daily Log'!$CB$18:$CB$1017,$B85,'Daily Log'!$CC$18:$CC$1017),0) -> 2 | AH85: =IFERROR($E85*SUMIF('Daily Log'!$CE$18:$CE$1017,$B85,'Daily Log'!$CF$18:$CF$1017),0) -> 6 | AI85: =IFERROR($E85*SUMIF('Daily Log'!$CH$18:$CH$1017,$B85,'Daily Log'!$CI$18:$CI$1017),0) -> 0 | AJ85: =IFERROR($E85*SUMIF('Daily Log'!$CK$18:$CK$1017,$B85,'Daily Log'!$CL$18:$CL$1017),0) -> 0 | AK85: =IFERROR($E85*SUMIF('Daily Log'!$CN$18:$CN$1017,$B85,'Daily Log'!$CO$18:$CO$1017),0) -> 0
B86: WT07 1007:CHK SALAD | D86: FFD-SOFT DRINK | E86: 1 | F86: 19 | G86: =IFERROR($E86*SUMIF('Daily Log'!$B$18:$B$1017,$B86,'Daily Log'!$C$18:$C$1017),0) -> 0 | H86: =IFERROR($E86*SUMIF('Daily Log'!$E$18:$E$1017,$B86,'Daily Log'!$F$18:$F$1017),0) -> 0 | I86: =IFERROR($E86*SUMIF('Daily Log'!$H$18:$H$1017,$B86,'Daily Log'!$I$18:$I$1017),0) -> 0 | J86: =IFERROR($E86*SUMIF('Daily Log'!$K$18:$K$1017,$B86,'Daily Log'!$L$18:$L$1017),0) -> 0 | K86: =IFERROR($E86*SUMIF('Daily Log'!$N$18:$N$1017,$B86,'Daily Log'!$O$18:$O$1017),0) -> 0 | L86: =IFERROR($E86*SUMIF('Daily Log'!$Q$18:$Q$1017,$B86,'Daily Log'!$R$18:$R$1017),0) -> 0 | M86: =IFERROR($E86*SUMIF('Daily Log'!$T$18:$T$1017,$B86,'Daily Log'!$U$18:$U$1017),0) -> 0 | N86: =IFERROR($E86*SUMIF('Daily Log'!$W$18:$W$1017,$B86,'Daily Log'!$X$18:$X$1017),0) -> 0 | O86: =IFERROR($E86*SUMIF('Daily Log'!$Z$18:$Z$1017,$B86,'Daily Log'!$AA$18:$AA$1017),0) -> 0 | P86: =IFERROR($E86*SUMIF('Daily Log'!$AC$18:$AC$1017,$B86,'Daily Log'!$AD$18:$AD$1017),0) -> 0 | Q86: =IFERROR($E86*SUMIF('Daily Log'!$AF$18:$AF$1017,$B86,'Daily Log'!$AG$18:$AG$1017),0) -> 0 | R86: =IFERROR($E86*SUMIF('Daily Log'!$AI$18:$AI$1017,$B86,'Daily Log'!$AJ$18:$AJ$1017),0) -> 0 | S86: =IFERROR($E86*SUMIF('Daily Log'!$AL$18:$AL$1017,$B86,'Daily Log'!$AM$18:$AM$1017),0) -> 4 | T86: =IFERROR($E86*SUMIF('Daily Log'!$AO$18:$AO$1017,$B86,'Daily Log'!$AP$18:$AP$1017),0) -> 0 | U86: =IFERROR($E86*SUMIF('Daily Log'!$AR$18:$AR$1017,$B86,'Daily Log'!$AS$18:$AS$1017),0) -> 4 | V86: =IFERROR($E86*SUMIF('Daily Log'!$AU$18:$AU$1017,$B86,'Daily Log'!$AV$18:$AV$1017),0) -> 0 | W86: =IFERROR($E86*SUMIF('Daily Log'!$AX$18:$AX$1017,$B86,'Daily Log'!$AY$18:$AY$1017),0) -> 0 | X86: =IFERROR($E86*SUMIF('Daily Log'!$BA$18:$BA$1017,$B86,'Daily Log'!$BB$18:$BB$1017),0) -> 0 | Y86: =IFERROR($E86*SUMIF('Daily Log'!$BD$18:$BD$1017,$B86,'Daily Log'!$BE$18:$BE$1017),0) -> 1 | Z86: =IFERROR($E86*SUMIF('Daily Log'!$BG$18:$BG$1017,$B86,'Daily Log'!$BH$18:$BH$1017),0) -> 0 | AA86: =IFERROR($E86*SUMIF('Daily Log'!$BJ$18:$BJ$1017,$B86,'Daily Log'!$BK$18:$BK$1017),0) -> 5 | AB86: =IFERROR($E86*SUMIF('Daily Log'!$BM$18:$BM$1017,$B86,'Daily Log'!$BN$18:$BN$1017),0) -> 1 | AC86: =IFERROR($E86*SUMIF('Daily Log'!$BP$18:$BP$1017,$B86,'Daily Log'!$BQ$18:$BQ$1017),0) -> 0 | AD86: =IFERROR($E86*SUMIF('Daily Log'!$BS$18:$BS$1017,$B86,'Daily Log'!$BT$18:$BT$1017),0) -> 0 | AE86: =IFERROR($E86*SUMIF('Daily Log'!$BV$18:$BV$1017,$B86,'Daily Log'!$BW$18:$BW$1017),0) -> 3 | AF86: =IFERROR($E86*SUMIF('Daily Log'!$BY$18:$BY$1017,$B86,'Daily Log'!$BZ$18:$BZ$1017),0) -> 0 | AG86: =IFERROR($E86*SUMIF('Daily Log'!$CB$18:$CB$1017,$B86,'Daily Log'!$CC$18:$CC$1017),0) -> 0 | AH86: =IFERROR($E86*SUMIF('Daily Log'!$CE$18:$CE$1017,$B86,'Daily Log'!$CF$18:$CF$1017),0) -> 1 | AI86: =IFERROR($E86*SUMIF('Daily Log'!$CH$18:$CH$1017,$B86,'Daily Log'!$CI$18:$CI$1017),0) -> 0 | AJ86: =IFERROR($E86*SUMIF('Daily Log'!$CK$18:$CK$1017,$B86,'Daily Log'!$CL$18:$CL$1017),0) -> 0 | AK86: =IFERROR($E86*SUMIF('Daily Log'!$CN$18:$CN$1017,$B86,'Daily Log'!$CO$18:$CO$1017),0) -> 0
B87: WF01 91001:BP CHK CP | D87: FFD-SOFT DRINK | E87: 1 | F87: 368 | G87: =IFERROR($E87*SUMIF('Daily Log'!$B$18:$B$1017,$B87,'Daily Log'!$C$18:$C$1017),0) -> 14 | H87: =IFERROR($E87*SUMIF('Daily Log'!$E$18:$E$1017,$B87,'Daily Log'!$F$18:$F$1017),0) -> 24 | I87: =IFERROR($E87*SUMIF('Daily Log'!$H$18:$H$1017,$B87,'Daily Log'!$I$18:$I$1017),0) -> 33 | J87: =IFERROR($E87*SUMIF('Daily Log'!$K$18:$K$1017,$B87,'Daily Log'!$L$18:$L$1017),0) -> 21 | K87: =IFERROR($E87*SUMIF('Daily Log'!$N$18:$N$1017,$B87,'Daily Log'!$O$18:$O$1017),0) -> 10 | L87: =IFERROR($E87*SUMIF('Daily Log'!$Q$18:$Q$1017,$B87,'Daily Log'!$R$18:$R$1017),0) -> 12 | M87: =IFERROR($E87*SUMIF('Daily Log'!$T$18:$T$1017,$B87,'Daily Log'!$U$18:$U$1017),0) -> 24 | N87: =IFERROR($E87*SUMIF('Daily Log'!$W$18:$W$1017,$B87,'Daily Log'!$X$18:$X$1017),0) -> 16 | O87: =IFERROR($E87*SUMIF('Daily Log'!$Z$18:$Z$1017,$B87,'Daily Log'!$AA$18:$AA$1017),0) -> 18 | P87: =IFERROR($E87*SUMIF('Daily Log'!$AC$18:$AC$1017,$B87,'Daily Log'!$AD$18:$AD$1017),0) -> 11 | Q87: =IFERROR($E87*SUMIF('Daily Log'!$AF$18:$AF$1017,$B87,'Daily Log'!$AG$18:$AG$1017),0) -> 7 | R87: =IFERROR($E87*SUMIF('Daily Log'!$AI$18:$AI$1017,$B87,'Daily Log'!$AJ$18:$AJ$1017),0) -> 2 | S87: =IFERROR($E87*SUMIF('Daily Log'!$AL$18:$AL$1017,$B87,'Daily Log'!$AM$18:$AM$1017),0) -> 8 | T87: =IFERROR($E87*SUMIF('Daily Log'!$AO$18:$AO$1017,$B87,'Daily Log'!$AP$18:$AP$1017),0) -> 18 | U87: =IFERROR($E87*SUMIF('Daily Log'!$AR$18:$AR$1017,$B87,'Daily Log'!$AS$18:$AS$1017),0) -> 23 | V87: =IFERROR($E87*SUMIF('Daily Log'!$AU$18:$AU$1017,$B87,'Daily Log'!$AV$18:$AV$1017),0) -> 12 | W87: =IFERROR($E87*SUMIF('Daily Log'!$AX$18:$AX$1017,$B87,'Daily Log'!$AY$18:$AY$1017),0) -> 3 | X87: =IFERROR($E87*SUMIF('Daily Log'!$BA$18:$BA$1017,$B87,'Daily Log'!$BB$18:$BB$1017),0) -> 7 | Y87: =IFERROR($E87*SUMIF('Daily Log'!$BD$18:$BD$1017,$B87,'Daily Log'!$BE$18:$BE$1017),0) -> 2 | Z87: =IFERROR($E87*SUMIF('Daily Log'!$BG$18:$BG$1017,$B87,'Daily Log'!$BH$18:$BH$1017),0) -> 7 | AA87: =IFERROR($E87*SUMIF('Daily Log'!$BJ$18:$BJ$1017,$B87,'Daily Log'!$BK$18:$BK$1017),0) -> 10 | AB87: =IFERROR($E87*SUMIF('Daily Log'!$BM$18:$BM$1017,$B87,'Daily Log'!$BN$18:$BN$1017),0) -> 14 | AC87: =IFERROR($E87*SUMIF('Daily Log'!$BP$18:$BP$1017,$B87,'Daily Log'!$BQ$18:$BQ$1017),0) -> 13 | AD87: =IFERROR($E87*SUMIF('Daily Log'!$BS$18:$BS$1017,$B87,'Daily Log'!$BT$18:$BT$1017),0) -> 13 | AE87: =IFERROR($E87*SUMIF('Daily Log'!$BV$18:$BV$1017,$B87,'Daily Log'!$BW$18:$BW$1017),0) -> 3 | AF87: =IFERROR($E87*SUMIF('Daily Log'!$BY$18:$BY$1017,$B87,'Daily Log'!$BZ$18:$BZ$1017),0) -> 9 | AG87: =IFERROR($E87*SUMIF('Daily Log'!$CB$18:$CB$1017,$B87,'Daily Log'!$CC$18:$CC$1017),0) -> 11 | AH87: =IFERROR($E87*SUMIF('Daily Log'!$CE$18:$CE$1017,$B87,'Daily Log'!$CF$18:$CF$1017),0) -> 23 | AI87: =IFERROR($E87*SUMIF('Daily Log'!$CH$18:$CH$1017,$B87,'Daily Log'!$CI$18:$CI$1017),0) -> 0 | AJ87: =IFERROR($E87*SUMIF('Daily Log'!$CK$18:$CK$1017,$B87,'Daily Log'!$CL$18:$CL$1017),0) -> 0 | AK87: =IFERROR($E87*SUMIF('Daily Log'!$CN$18:$CN$1017,$B87,'Daily Log'!$CO$18:$CO$1017),0) -> 0
B88: WF03 91003:MR CHK CP | D88: FFD -HOT BEVERAGE | E88: 1 | F88: 394 | G88: =IFERROR($E88*SUMIF('Daily Log'!$B$18:$B$1017,$B88,'Daily Log'!$C$18:$C$1017),0) -> 11 | H88: =IFERROR($E88*SUMIF('Daily Log'!$E$18:$E$1017,$B88,'Daily Log'!$F$18:$F$1017),0) -> 19 | I88: =IFERROR($E88*SUMIF('Daily Log'!$H$18:$H$1017,$B88,'Daily Log'!$I$18:$I$1017),0) -> 25 | J88: =IFERROR($E88*SUMIF('Daily Log'!$K$18:$K$1017,$B88,'Daily Log'!$L$18:$L$1017),0) -> 27 | K88: =IFERROR($E88*SUMIF('Daily Log'!$N$18:$N$1017,$B88,'Daily Log'!$O$18:$O$1017),0) -> 9 | L88: =IFERROR($E88*SUMIF('Daily Log'!$Q$18:$Q$1017,$B88,'Daily Log'!$R$18:$R$1017),0) -> 19 | M88: =IFERROR($E88*SUMIF('Daily Log'!$T$18:$T$1017,$B88,'Daily Log'!$U$18:$U$1017),0) -> 29 | N88: =IFERROR($E88*SUMIF('Daily Log'!$W$18:$W$1017,$B88,'Daily Log'!$X$18:$X$1017),0) -> 18 | O88: =IFERROR($E88*SUMIF('Daily Log'!$Z$18:$Z$1017,$B88,'Daily Log'!$AA$18:$AA$1017),0) -> 20 | P88: =IFERROR($E88*SUMIF('Daily Log'!$AC$18:$AC$1017,$B88,'Daily Log'!$AD$18:$AD$1017),0) -> 12 | Q88: =IFERROR($E88*SUMIF('Daily Log'!$AF$18:$AF$1017,$B88,'Daily Log'!$AG$18:$AG$1017),0) -> 6 | R88: =IFERROR($E88*SUMIF('Daily Log'!$AI$18:$AI$1017,$B88,'Daily Log'!$AJ$18:$AJ$1017),0) -> 7 | S88: =IFERROR($E88*SUMIF('Daily Log'!$AL$18:$AL$1017,$B88,'Daily Log'!$AM$18:$AM$1017),0) -> 4 | T88: =IFERROR($E88*SUMIF('Daily Log'!$AO$18:$AO$1017,$B88,'Daily Log'!$AP$18:$AP$1017),0) -> 17 | U88: =IFERROR($E88*SUMIF('Daily Log'!$AR$18:$AR$1017,$B88,'Daily Log'!$AS$18:$AS$1017),0) -> 15 | V88: =IFERROR($E88*SUMIF('Daily Log'!$AU$18:$AU$1017,$B88,'Daily Log'!$AV$18:$AV$1017),0) -> 25 | W88: =IFERROR($E88*SUMIF('Daily Log'!$AX$18:$AX$1017,$B88,'Daily Log'!$AY$18:$AY$1017),0) -> 5 | X88: =IFERROR($E88*SUMIF('Daily Log'!$BA$18:$BA$1017,$B88,'Daily Log'!$BB$18:$BB$1017),0) -> 7 | Y88: =IFERROR($E88*SUMIF('Daily Log'!$BD$18:$BD$1017,$B88,'Daily Log'!$BE$18:$BE$1017),0) -> 1 | Z88: =IFERROR($E88*SUMIF('Daily Log'!$BG$18:$BG$1017,$B88,'Daily Log'!$BH$18:$BH$1017),0) -> 11 | AA88: =IFERROR($E88*SUMIF('Daily Log'!$BJ$18:$BJ$1017,$B88,'Daily Log'!$BK$18:$BK$1017),0) -> 16 | AB88: =IFERROR($E88*SUMIF('Daily Log'!$BM$18:$BM$1017,$B88,'Daily Log'!$BN$18:$BN$1017),0) -> 21 | AC88: =IFERROR($E88*SUMIF('Daily Log'!$BP$18:$BP$1017,$B88,'Daily Log'!$BQ$18:$BQ$1017),0) -> 16 | AD88: =IFERROR($E88*SUMIF('Daily Log'!$BS$18:$BS$1017,$B88,'Daily Log'!$BT$18:$BT$1017),0) -> 11 | AE88: =IFERROR($E88*SUMIF('Daily Log'!$BV$18:$BV$1017,$B88,'Daily Log'!$BW$18:$BW$1017),0) -> 9 | AF88: =IFERROR($E88*SUMIF('Daily Log'!$BY$18:$BY$1017,$B88,'Daily Log'!$BZ$18:$BZ$1017),0) -> 11 | AG88: =IFERROR($E88*SUMIF('Daily Log'!$CB$18:$CB$1017,$B88,'Daily Log'!$CC$18:$CC$1017),0) -> 9 | AH88: =IFERROR($E88*SUMIF('Daily Log'!$CE$18:$CE$1017,$B88,'Daily Log'!$CF$18:$CF$1017),0) -> 14 | AI88: =IFERROR($E88*SUMIF('Daily Log'!$CH$18:$CH$1017,$B88,'Daily Log'!$CI$18:$CI$1017),0) -> 0 | AJ88: =IFERROR($E88*SUMIF('Daily Log'!$CK$18:$CK$1017,$B88,'Daily Log'!$CL$18:$CL$1017),0) -> 0 | AK88: =IFERROR($E88*SUMIF('Daily Log'!$CN$18:$CN$1017,$B88,'Daily Log'!$CO$18:$CO$1017),0) -> 0
B89: WF04 91004:CKN MARY | D89: FFD -HOT BEVERAGE | E89: 1 | F89: 103 | G89: =IFERROR($E89*SUMIF('Daily Log'!$B$18:$B$1017,$B89,'Daily Log'!$C$18:$C$1017),0) -> 0 | H89: =IFERROR($E89*SUMIF('Daily Log'!$E$18:$E$1017,$B89,'Daily Log'!$F$18:$F$1017),0) -> 0 | I89: =IFERROR($E89*SUMIF('Daily Log'!$H$18:$H$1017,$B89,'Daily Log'!$I$18:$I$1017),0) -> 0 | J89: =IFERROR($E89*SUMIF('Daily Log'!$K$18:$K$1017,$B89,'Daily Log'!$L$18:$L$1017),0) -> 0 | K89: =IFERROR($E89*SUMIF('Daily Log'!$N$18:$N$1017,$B89,'Daily Log'!$O$18:$O$1017),0) -> 0 | L89: =IFERROR($E89*SUMIF('Daily Log'!$Q$18:$Q$1017,$B89,'Daily Log'!$R$18:$R$1017),0) -> 0 | M89: =IFERROR($E89*SUMIF('Daily Log'!$T$18:$T$1017,$B89,'Daily Log'!$U$18:$U$1017),0) -> 0 | N89: =IFERROR($E89*SUMIF('Daily Log'!$W$18:$W$1017,$B89,'Daily Log'!$X$18:$X$1017),0) -> 0 | O89: =IFERROR($E89*SUMIF('Daily Log'!$Z$18:$Z$1017,$B89,'Daily Log'!$AA$18:$AA$1017),0) -> 0 | P89: =IFERROR($E89*SUMIF('Daily Log'!$AC$18:$AC$1017,$B89,'Daily Log'!$AD$18:$AD$1017),0) -> 8 | Q89: =IFERROR($E89*SUMIF('Daily Log'!$AF$18:$AF$1017,$B89,'Daily Log'!$AG$18:$AG$1017),0) -> 2 | R89: =IFERROR($E89*SUMIF('Daily Log'!$AI$18:$AI$1017,$B89,'Daily Log'!$AJ$18:$AJ$1017),0) -> 1 | S89: =IFERROR($E89*SUMIF('Daily Log'!$AL$18:$AL$1017,$B89,'Daily Log'!$AM$18:$AM$1017),0) -> 6 | T89: =IFERROR($E89*SUMIF('Daily Log'!$AO$18:$AO$1017,$B89,'Daily Log'!$AP$18:$AP$1017),0) -> 11 | U89: =IFERROR($E89*SUMIF('Daily Log'!$AR$18:$AR$1017,$B89,'Daily Log'!$AS$18:$AS$1017),0) -> 8 | V89: =IFERROR($E89*SUMIF('Daily Log'!$AU$18:$AU$1017,$B89,'Daily Log'!$AV$18:$AV$1017),0) -> 8 | W89: =IFERROR($E89*SUMIF('Daily Log'!$AX$18:$AX$1017,$B89,'Daily Log'!$AY$18:$AY$1017),0) -> 2 | X89: =IFERROR($E89*SUMIF('Daily Log'!$BA$18:$BA$1017,$B89,'Daily Log'!$BB$18:$BB$1017),0) -> 2 | Y89: =IFERROR($E89*SUMIF('Daily Log'!$BD$18:$BD$1017,$B89,'Daily Log'!$BE$18:$BE$1017),0) -> 1 | Z89: =IFERROR($E89*SUMIF('Daily Log'!$BG$18:$BG$1017,$B89,'Daily Log'!$BH$18:$BH$1017),0) -> 3 | AA89: =IFERROR($E89*SUMIF('Daily Log'!$BJ$18:$BJ$1017,$B89,'Daily Log'!$BK$18:$BK$1017),0) -> 8 | AB89: =IFERROR($E89*SUMIF('Daily Log'!$BM$18:$BM$1017,$B89,'Daily Log'!$BN$18:$BN$1017),0) -> 7 | AC89: =IFERROR($E89*SUMIF('Daily Log'!$BP$18:$BP$1017,$B89,'Daily Log'!$BQ$18:$BQ$1017),0) -> 13 | AD89: =IFERROR($E89*SUMIF('Daily Log'!$BS$18:$BS$1017,$B89,'Daily Log'!$BT$18:$BT$1017),0) -> 4 | AE89: =IFERROR($E89*SUMIF('Daily Log'!$BV$18:$BV$1017,$B89,'Daily Log'!$BW$18:$BW$1017),0) -> 1 | AF89: =IFERROR($E89*SUMIF('Daily Log'!$BY$18:$BY$1017,$B89,'Daily Log'!$BZ$18:$BZ$1017),0) -> 8 | AG89: =IFERROR($E89*SUMIF('Daily Log'!$CB$18:$CB$1017,$B89,'Daily Log'!$CC$18:$CC$1017),0) -> 2 | AH89: =IFERROR($E89*SUMIF('Daily Log'!$CE$18:$CE$1017,$B89,'Daily Log'!$CF$18:$CF$1017),0) -> 8 | AI89: =IFERROR($E89*SUMIF('Daily Log'!$CH$18:$CH$1017,$B89,'Daily Log'!$CI$18:$CI$1017),0) -> 0 | AJ89: =IFERROR($E89*SUMIF('Daily Log'!$CK$18:$CK$1017,$B89,'Daily Log'!$CL$18:$CL$1017),0) -> 0 | AK89: =IFERROR($E89*SUMIF('Daily Log'!$CN$18:$CN$1017,$B89,'Daily Log'!$CO$18:$CO$1017),0) -> 0
B90: WF05 91005:FSH&CHIP | D90: FFD -HOT BEVERAGE | E90: 1 | F90: 325 | G90: =IFERROR($E90*SUMIF('Daily Log'!$B$18:$B$1017,$B90,'Daily Log'!$C$18:$C$1017),0) -> 0 | H90: =IFERROR($E90*SUMIF('Daily Log'!$E$18:$E$1017,$B90,'Daily Log'!$F$18:$F$1017),0) -> 9 | I90: =IFERROR($E90*SUMIF('Daily Log'!$H$18:$H$1017,$B90,'Daily Log'!$I$18:$I$1017),0) -> 18 | J90: =IFERROR($E90*SUMIF('Daily Log'!$K$18:$K$1017,$B90,'Daily Log'!$L$18:$L$1017),0) -> 38 | K90: =IFERROR($E90*SUMIF('Daily Log'!$N$18:$N$1017,$B90,'Daily Log'!$O$18:$O$1017),0) -> 9 | L90: =IFERROR($E90*SUMIF('Daily Log'!$Q$18:$Q$1017,$B90,'Daily Log'!$R$18:$R$1017),0) -> 7 | M90: =IFERROR($E90*SUMIF('Daily Log'!$T$18:$T$1017,$B90,'Daily Log'!$U$18:$U$1017),0) -> 23 | N90: =IFERROR($E90*SUMIF('Daily Log'!$W$18:$W$1017,$B90,'Daily Log'!$X$18:$X$1017),0) -> 17 | O90: =IFERROR($E90*SUMIF('Daily Log'!$Z$18:$Z$1017,$B90,'Daily Log'!$AA$18:$AA$1017),0) -> 11 | P90: =IFERROR($E90*SUMIF('Daily Log'!$AC$18:$AC$1017,$B90,'Daily Log'!$AD$18:$AD$1017),0) -> 5 | Q90: =IFERROR($E90*SUMIF('Daily Log'!$AF$18:$AF$1017,$B90,'Daily Log'!$AG$18:$AG$1017),0) -> 7 | R90: =IFERROR($E90*SUMIF('Daily Log'!$AI$18:$AI$1017,$B90,'Daily Log'!$AJ$18:$AJ$1017),0) -> 5 | S90: =IFERROR($E90*SUMIF('Daily Log'!$AL$18:$AL$1017,$B90,'Daily Log'!$AM$18:$AM$1017),0) -> 10 | T90: =IFERROR($E90*SUMIF('Daily Log'!$AO$18:$AO$1017,$B90,'Daily Log'!$AP$18:$AP$1017),0) -> 22 | U90: =IFERROR($E90*SUMIF('Daily Log'!$AR$18:$AR$1017,$B90,'Daily Log'!$AS$18:$AS$1017),0) -> 8 | V90: =IFERROR($E90*SUMIF('Daily Log'!$AU$18:$AU$1017,$B90,'Daily Log'!$AV$18:$AV$1017),0) -> 18 | W90: =IFERROR($E90*SUMIF('Daily Log'!$AX$18:$AX$1017,$B90,'Daily Log'!$AY$18:$AY$1017),0) -> 4 | X90: =IFERROR($E90*SUMIF('Daily Log'!$BA$18:$BA$1017,$B90,'Daily Log'!$BB$18:$BB$1017),0) -> 4 | Y90: =IFERROR($E90*SUMIF('Daily Log'!$BD$18:$BD$1017,$B90,'Daily Log'!$BE$18:$BE$1017),0) -> 2 | Z90: =IFERROR($E90*SUMIF('Daily Log'!$BG$18:$BG$1017,$B90,'Daily Log'!$BH$18:$BH$1017),0) -> 6 | AA90: =IFERROR($E90*SUMIF('Daily Log'!$BJ$18:$BJ$1017,$B90,'Daily Log'!$BK$18:$BK$1017),0) -> 14 | AB90: =IFERROR($E90*SUMIF('Daily Log'!$BM$18:$BM$1017,$B90,'Daily Log'!$BN$18:$BN$1017),0) -> 9 | AC90: =IFERROR($E90*SUMIF('Daily Log'!$BP$18:$BP$1017,$B90,'Daily Log'!$BQ$18:$BQ$1017),0) -> 15 | AD90: =IFERROR($E90*SUMIF('Daily Log'!$BS$18:$BS$1017,$B90,'Daily Log'!$BT$18:$BT$1017),0) -> 9 | AE90: =IFERROR($E90*SUMIF('Daily Log'!$BV$18:$BV$1017,$B90,'Daily Log'!$BW$18:$BW$1017),0) -> 8 | AF90: =IFERROR($E90*SUMIF('Daily Log'!$BY$18:$BY$1017,$B90,'Daily Log'!$BZ$18:$BZ$1017),0) -> 15 | AG90: =IFERROR($E90*SUMIF('Daily Log'!$CB$18:$CB$1017,$B90,'Daily Log'!$CC$18:$CC$1017),0) -> 7 | AH90: =IFERROR($E90*SUMIF('Daily Log'!$CE$18:$CE$1017,$B90,'Daily Log'!$CF$18:$CF$1017),0) -> 25 | AI90: =IFERROR($E90*SUMIF('Daily Log'!$CH$18:$CH$1017,$B90,'Daily Log'!$CI$18:$CI$1017),0) -> 0 | AJ90: =IFERROR($E90*SUMIF('Daily Log'!$CK$18:$CK$1017,$B90,'Daily Log'!$CL$18:$CL$1017),0) -> 0 | AK90: =IFERROR($E90*SUMIF('Daily Log'!$CN$18:$CN$1017,$B90,'Daily Log'!$CO$18:$CO$1017),0) -> 0
B91: WF07 91007:CHK SALAD | D91: FFD -HOT BEVERAGE | E91: 1 | F91: 60 | G91: =IFERROR($E91*SUMIF('Daily Log'!$B$18:$B$1017,$B91,'Daily Log'!$C$18:$C$1017),0) -> 0 | H91: =IFERROR($E91*SUMIF('Daily Log'!$E$18:$E$1017,$B91,'Daily Log'!$F$18:$F$1017),0) -> 0 | I91: =IFERROR($E91*SUMIF('Daily Log'!$H$18:$H$1017,$B91,'Daily Log'!$I$18:$I$1017),0) -> 0 | J91: =IFERROR($E91*SUMIF('Daily Log'!$K$18:$K$1017,$B91,'Daily Log'!$L$18:$L$1017),0) -> 0 | K91: =IFERROR($E91*SUMIF('Daily Log'!$N$18:$N$1017,$B91,'Daily Log'!$O$18:$O$1017),0) -> 0 | L91: =IFERROR($E91*SUMIF('Daily Log'!$Q$18:$Q$1017,$B91,'Daily Log'!$R$18:$R$1017),0) -> 0 | M91: =IFERROR($E91*SUMIF('Daily Log'!$T$18:$T$1017,$B91,'Daily Log'!$U$18:$U$1017),0) -> 0 | N91: =IFERROR($E91*SUMIF('Daily Log'!$W$18:$W$1017,$B91,'Daily Log'!$X$18:$X$1017),0) -> 0 | O91: =IFERROR($E91*SUMIF('Daily Log'!$Z$18:$Z$1017,$B91,'Daily Log'!$AA$18:$AA$1017),0) -> 0 | P91: =IFERROR($E91*SUMIF('Daily Log'!$AC$18:$AC$1017,$B91,'Daily Log'!$AD$18:$AD$1017),0) -> 3 | Q91: =IFERROR($E91*SUMIF('Daily Log'!$AF$18:$AF$1017,$B91,'Daily Log'!$AG$18:$AG$1017),0) -> 4 | R91: =IFERROR($E91*SUMIF('Daily Log'!$AI$18:$AI$1017,$B91,'Daily Log'!$AJ$18:$AJ$1017),0) -> 1 | S91: =IFERROR($E91*SUMIF('Daily Log'!$AL$18:$AL$1017,$B91,'Daily Log'!$AM$18:$AM$1017),0) -> 2 | T91: =IFERROR($E91*SUMIF('Daily Log'!$AO$18:$AO$1017,$B91,'Daily Log'!$AP$18:$AP$1017),0) -> 6 | U91: =IFERROR($E91*SUMIF('Daily Log'!$AR$18:$AR$1017,$B91,'Daily Log'!$AS$18:$AS$1017),0) -> 2 | V91: =IFERROR($E91*SUMIF('Daily Log'!$AU$18:$AU$1017,$B91,'Daily Log'!$AV$18:$AV$1017),0) -> 6 | W91: =IFERROR($E91*SUMIF('Daily Log'!$AX$18:$AX$1017,$B91,'Daily Log'!$AY$18:$AY$1017),0) -> 1 | X91: =IFERROR($E91*SUMIF('Daily Log'!$BA$18:$BA$1017,$B91,'Daily Log'!$BB$18:$BB$1017),0) -> 1 | Y91: =IFERROR($E91*SUMIF('Daily Log'!$BD$18:$BD$1017,$B91,'Daily Log'!$BE$18:$BE$1017),0) -> 1 | Z91: =IFERROR($E91*SUMIF('Daily Log'!$BG$18:$BG$1017,$B91,'Daily Log'!$BH$18:$BH$1017),0) -> 3 | AA91: =IFERROR($E91*SUMIF('Daily Log'!$BJ$18:$BJ$1017,$B91,'Daily Log'!$BK$18:$BK$1017),0) -> 9 | AB91: =IFERROR($E91*SUMIF('Daily Log'!$BM$18:$BM$1017,$B91,'Daily Log'!$BN$18:$BN$1017),0) -> 2 | AC91: =IFERROR($E91*SUMIF('Daily Log'!$BP$18:$BP$1017,$B91,'Daily Log'!$BQ$18:$BQ$1017),0) -> 3 | AD91: =IFERROR($E91*SUMIF('Daily Log'!$BS$18:$BS$1017,$B91,'Daily Log'!$BT$18:$BT$1017),0) -> 1 | AE91: =IFERROR($E91*SUMIF('Daily Log'!$BV$18:$BV$1017,$B91,'Daily Log'!$BW$18:$BW$1017),0) -> 2 | AF91: =IFERROR($E91*SUMIF('Daily Log'!$BY$18:$BY$1017,$B91,'Daily Log'!$BZ$18:$BZ$1017),0) -> 3 | AG91: =IFERROR($E91*SUMIF('Daily Log'!$CB$18:$CB$1017,$B91,'Daily Log'!$CC$18:$CC$1017),0) -> 4 | AH91: =IFERROR($E91*SUMIF('Daily Log'!$CE$18:$CE$1017,$B91,'Daily Log'!$CF$18:$CF$1017),0) -> 6 | AI91: =IFERROR($E91*SUMIF('Daily Log'!$CH$18:$CH$1017,$B91,'Daily Log'!$CI$18:$CI$1017),0) -> 0 | AJ91: =IFERROR($E91*SUMIF('Daily Log'!$CK$18:$CK$1017,$B91,'Daily Log'!$CL$18:$CL$1017),0) -> 0 | AK91: =IFERROR($E91*SUMIF('Daily Log'!$CN$18:$CN$1017,$B91,'Daily Log'!$CO$18:$CO$1017),0) -> 0
B92: RW01 71001:BP CKN CP | D92: FFD -HOT BEVERAGE | E92: 1 | F92: 0 | G92: =IFERROR($E92*SUMIF('Daily Log'!$B$18:$B$1017,$B92,'Daily Log'!$C$18:$C$1017),0) -> 0 | H92: =IFERROR($E92*SUMIF('Daily Log'!$E$18:$E$1017,$B92,'Daily Log'!$F$18:$F$1017),0) -> 0 | I92: =IFERROR($E92*SUMIF('Daily Log'!$H$18:$H$1017,$B92,'Daily Log'!$I$18:$I$1017),0) -> 0 | J92: =IFERROR($E92*SUMIF('Daily Log'!$K$18:$K$1017,$B92,'Daily Log'!$L$18:$L$1017),0) -> 0 | K92: =IFERROR($E92*SUMIF('Daily Log'!$N$18:$N$1017,$B92,'Daily Log'!$O$18:$O$1017),0) -> 0 | L92: =IFERROR($E92*SUMIF('Daily Log'!$Q$18:$Q$1017,$B92,'Daily Log'!$R$18:$R$1017),0) -> 0 | M92: =IFERROR($E92*SUMIF('Daily Log'!$T$18:$T$1017,$B92,'Daily Log'!$U$18:$U$1017),0) -> 0 | N92: =IFERROR($E92*SUMIF('Daily Log'!$W$18:$W$1017,$B92,'Daily Log'!$X$18:$X$1017),0) -> 0 | O92: =IFERROR($E92*SUMIF('Daily Log'!$Z$18:$Z$1017,$B92,'Daily Log'!$AA$18:$AA$1017),0) -> 0 | P92: =IFERROR($E92*SUMIF('Daily Log'!$AC$18:$AC$1017,$B92,'Daily Log'!$AD$18:$AD$1017),0) -> 0 | Q92: =IFERROR($E92*SUMIF('Daily Log'!$AF$18:$AF$1017,$B92,'Daily Log'!$AG$18:$AG$1017),0) -> 0 | R92: =IFERROR($E92*SUMIF('Daily Log'!$AI$18:$AI$1017,$B92,'Daily Log'!$AJ$18:$AJ$1017),0) -> 0 | S92: =IFERROR($E92*SUMIF('Daily Log'!$AL$18:$AL$1017,$B92,'Daily Log'!$AM$18:$AM$1017),0) -> 0 | T92: =IFERROR($E92*SUMIF('Daily Log'!$AO$18:$AO$1017,$B92,'Daily Log'!$AP$18:$AP$1017),0) -> 0 | U92: =IFERROR($E92*SUMIF('Daily Log'!$AR$18:$AR$1017,$B92,'Daily Log'!$AS$18:$AS$1017),0) -> 0 | V92: =IFERROR($E92*SUMIF('Daily Log'!$AU$18:$AU$1017,$B92,'Daily Log'!$AV$18:$AV$1017),0) -> 0 | W92: =IFERROR($E92*SUMIF('Daily Log'!$AX$18:$AX$1017,$B92,'Daily Log'!$AY$18:$AY$1017),0) -> 0 | X92: =IFERROR($E92*SUMIF('Daily Log'!$BA$18:$BA$1017,$B92,'Daily Log'!$BB$18:$BB$1017),0) -> 0 | Y92: =IFERROR($E92*SUMIF('Daily Log'!$BD$18:$BD$1017,$B92,'Daily Log'!$BE$18:$BE$1017),0) -> 0 | Z92: =IFERROR($E92*SUMIF('Daily Log'!$BG$18:$BG$1017,$B92,'Daily Log'!$BH$18:$BH$1017),0) -> 0 | AA92: =IFERROR($E92*SUMIF('Daily Log'!$BJ$18:$BJ$1017,$B92,'Daily Log'!$BK$18:$BK$1017),0) -> 0 | AB92: =IFERROR($E92*SUMIF('Daily Log'!$BM$18:$BM$1017,$B92,'Daily Log'!$BN$18:$BN$1017),0) -> 0 | AC92: =IFERROR($E92*SUMIF('Daily Log'!$BP$18:$BP$1017,$B92,'Daily Log'!$BQ$18:$BQ$1017),0) -> 0 | AD92: =IFERROR($E92*SUMIF('Daily Log'!$BS$18:$BS$1017,$B92,'Daily Log'!$BT$18:$BT$1017),0) -> 0 | AE92: =IFERROR($E92*SUMIF('Daily Log'!$BV$18:$BV$1017,$B92,'Daily Log'!$BW$18:$BW$1017),0) -> 0 | AF92: =IFERROR($E92*SUMIF('Daily Log'!$BY$18:$BY$1017,$B92,'Daily Log'!$BZ$18:$BZ$1017),0) -> 0 | AG92: =IFERROR($E92*SUMIF('Daily Log'!$CB$18:$CB$1017,$B92,'Daily Log'!$CC$18:$CC$1017),0) -> 0 | AH92: =IFERROR($E92*SUMIF('Daily Log'!$CE$18:$CE$1017,$B92,'Daily Log'!$CF$18:$CF$1017),0) -> 0 | AI92: =IFERROR($E92*SUMIF('Daily Log'!$CH$18:$CH$1017,$B92,'Daily Log'!$CI$18:$CI$1017),0) -> 0 | AJ92: =IFERROR($E92*SUMIF('Daily Log'!$CK$18:$CK$1017,$B92,'Daily Log'!$CL$18:$CL$1017),0) -> 0 | AK92: =IFERROR($E92*SUMIF('Daily Log'!$CN$18:$CN$1017,$B92,'Daily Log'!$CO$18:$CO$1017),0) -> 0
B93: RW03 71003:MSR CKN CP | D93: FFD -HOT BEVERAGE | E93: 1 | F93: 0 | G93: =IFERROR($E93*SUMIF('Daily Log'!$B$18:$B$1017,$B93,'Daily Log'!$C$18:$C$1017),0) -> 0 | H93: =IFERROR($E93*SUMIF('Daily Log'!$E$18:$E$1017,$B93,'Daily Log'!$F$18:$F$1017),0) -> 0 | I93: =IFERROR($E93*SUMIF('Daily Log'!$H$18:$H$1017,$B93,'Daily Log'!$I$18:$I$1017),0) -> 0 | J93: =IFERROR($E93*SUMIF('Daily Log'!$K$18:$K$1017,$B93,'Daily Log'!$L$18:$L$1017),0) -> 0 | K93: =IFERROR($E93*SUMIF('Daily Log'!$N$18:$N$1017,$B93,'Daily Log'!$O$18:$O$1017),0) -> 0 | L93: =IFERROR($E93*SUMIF('Daily Log'!$Q$18:$Q$1017,$B93,'Daily Log'!$R$18:$R$1017),0) -> 0 | M93: =IFERROR($E93*SUMIF('Daily Log'!$T$18:$T$1017,$B93,'Daily Log'!$U$18:$U$1017),0) -> 0 | N93: =IFERROR($E93*SUMIF('Daily Log'!$W$18:$W$1017,$B93,'Daily Log'!$X$18:$X$1017),0) -> 0 | O93: =IFERROR($E93*SUMIF('Daily Log'!$Z$18:$Z$1017,$B93,'Daily Log'!$AA$18:$AA$1017),0) -> 0 | P93: =IFERROR($E93*SUMIF('Daily Log'!$AC$18:$AC$1017,$B93,'Daily Log'!$AD$18:$AD$1017),0) -> 0 | Q93: =IFERROR($E93*SUMIF('Daily Log'!$AF$18:$AF$1017,$B93,'Daily Log'!$AG$18:$AG$1017),0) -> 0 | R93: =IFERROR($E93*SUMIF('Daily Log'!$AI$18:$AI$1017,$B93,'Daily Log'!$AJ$18:$AJ$1017),0) -> 0 | S93: =IFERROR($E93*SUMIF('Daily Log'!$AL$18:$AL$1017,$B93,'Daily Log'!$AM$18:$AM$1017),0) -> 0 | T93: =IFERROR($E93*SUMIF('Daily Log'!$AO$18:$AO$1017,$B93,'Daily Log'!$AP$18:$AP$1017),0) -> 0 | U93: =IFERROR($E93*SUMIF('Daily Log'!$AR$18:$AR$1017,$B93,'Daily Log'!$AS$18:$AS$1017),0) -> 0 | V93: =IFERROR($E93*SUMIF('Daily Log'!$AU$18:$AU$1017,$B93,'Daily Log'!$AV$18:$AV$1017),0) -> 0 | W93: =IFERROR($E93*SUMIF('Daily Log'!$AX$18:$AX$1017,$B93,'Daily Log'!$AY$18:$AY$1017),0) -> 0 | X93: =IFERROR($E93*SUMIF('Daily Log'!$BA$18:$BA$1017,$B93,'Daily Log'!$BB$18:$BB$1017),0) -> 0 | Y93: =IFERROR($E93*SUMIF('Daily Log'!$BD$18:$BD$1017,$B93,'Daily Log'!$BE$18:$BE$1017),0) -> 0 | Z93: =IFERROR($E93*SUMIF('Daily Log'!$BG$18:$BG$1017,$B93,'Daily Log'!$BH$18:$BH$1017),0) -> 0 | AA93: =IFERROR($E93*SUMIF('Daily Log'!$BJ$18:$BJ$1017,$B93,'Daily Log'!$BK$18:$BK$1017),0) -> 0 | AB93: =IFERROR($E93*SUMIF('Daily Log'!$BM$18:$BM$1017,$B93,'Daily Log'!$BN$18:$BN$1017),0) -> 0 | AC93: =IFERROR($E93*SUMIF('Daily Log'!$BP$18:$BP$1017,$B93,'Daily Log'!$BQ$18:$BQ$1017),0) -> 0 | AD93: =IFERROR($E93*SUMIF('Daily Log'!$BS$18:$BS$1017,$B93,'Daily Log'!$BT$18:$BT$1017),0) -> 0 | AE93: =IFERROR($E93*SUMIF('Daily Log'!$BV$18:$BV$1017,$B93,'Daily Log'!$BW$18:$BW$1017),0) -> 0 | AF93: =IFERROR($E93*SUMIF('Daily Log'!$BY$18:$BY$1017,$B93,'Daily Log'!$BZ$18:$BZ$1017),0) -> 0 | AG93: =IFERROR($E93*SUMIF('Daily Log'!$CB$18:$CB$1017,$B93,'Daily Log'!$CC$18:$CC$1017),0) -> 0 | AH93: =IFERROR($E93*SUMIF('Daily Log'!$CE$18:$CE$1017,$B93,'Daily Log'!$CF$18:$CF$1017),0) -> 0 | AI93: =IFERROR($E93*SUMIF('Daily Log'!$CH$18:$CH$1017,$B93,'Daily Log'!$CI$18:$CI$1017),0) -> 0 | AJ93: =IFERROR($E93*SUMIF('Daily Log'!$CK$18:$CK$1017,$B93,'Daily Log'!$CL$18:$CL$1017),0) -> 0 | AK93: =IFERROR($E93*SUMIF('Daily Log'!$CN$18:$CN$1017,$B93,'Daily Log'!$CO$18:$CO$1017),0) -> 0
B94: RW04 71004:CKN MARY | D94: FFD -HOT BEVERAGE | E94: 1 | F94: 0 | G94: =IFERROR($E94*SUMIF('Daily Log'!$B$18:$B$1017,$B94,'Daily Log'!$C$18:$C$1017),0) -> 0 | H94: =IFERROR($E94*SUMIF('Daily Log'!$E$18:$E$1017,$B94,'Daily Log'!$F$18:$F$1017),0) -> 0 | I94: =IFERROR($E94*SUMIF('Daily Log'!$H$18:$H$1017,$B94,'Daily Log'!$I$18:$I$1017),0) -> 0 | J94: =IFERROR($E94*SUMIF('Daily Log'!$K$18:$K$1017,$B94,'Daily Log'!$L$18:$L$1017),0) -> 0 | K94: =IFERROR($E94*SUMIF('Daily Log'!$N$18:$N$1017,$B94,'Daily Log'!$O$18:$O$1017),0) -> 0 | L94: =IFERROR($E94*SUMIF('Daily Log'!$Q$18:$Q$1017,$B94,'Daily Log'!$R$18:$R$1017),0) -> 0 | M94: =IFERROR($E94*SUMIF('Daily Log'!$T$18:$T$1017,$B94,'Daily Log'!$U$18:$U$1017),0) -> 0 | N94: =IFERROR($E94*SUMIF('Daily Log'!$W$18:$W$1017,$B94,'Daily Log'!$X$18:$X$1017),0) -> 0 | O94: =IFERROR($E94*SUMIF('Daily Log'!$Z$18:$Z$1017,$B94,'Daily Log'!$AA$18:$AA$1017),0) -> 0 | P94: =IFERROR($E94*SUMIF('Daily Log'!$AC$18:$AC$1017,$B94,'Daily Log'!$AD$18:$AD$1017),0) -> 0 | Q94: =IFERROR($E94*SUMIF('Daily Log'!$AF$18:$AF$1017,$B94,'Daily Log'!$AG$18:$AG$1017),0) -> 0 | R94: =IFERROR($E94*SUMIF('Daily Log'!$AI$18:$AI$1017,$B94,'Daily Log'!$AJ$18:$AJ$1017),0) -> 0 | S94: =IFERROR($E94*SUMIF('Daily Log'!$AL$18:$AL$1017,$B94,'Daily Log'!$AM$18:$AM$1017),0) -> 0 | T94: =IFERROR($E94*SUMIF('Daily Log'!$AO$18:$AO$1017,$B94,'Daily Log'!$AP$18:$AP$1017),0) -> 0 | U94: =IFERROR($E94*SUMIF('Daily Log'!$AR$18:$AR$1017,$B94,'Daily Log'!$AS$18:$AS$1017),0) -> 0 | V94: =IFERROR($E94*SUMIF('Daily Log'!$AU$18:$AU$1017,$B94,'Daily Log'!$AV$18:$AV$1017),0) -> 0 | W94: =IFERROR($E94*SUMIF('Daily Log'!$AX$18:$AX$1017,$B94,'Daily Log'!$AY$18:$AY$1017),0) -> 0 | X94: =IFERROR($E94*SUMIF('Daily Log'!$BA$18:$BA$1017,$B94,'Daily Log'!$BB$18:$BB$1017),0) -> 0 | Y94: =IFERROR($E94*SUMIF('Daily Log'!$BD$18:$BD$1017,$B94,'Daily Log'!$BE$18:$BE$1017),0) -> 0 | Z94: =IFERROR($E94*SUMIF('Daily Log'!$BG$18:$BG$1017,$B94,'Daily Log'!$BH$18:$BH$1017),0) -> 0 | AA94: =IFERROR($E94*SUMIF('Daily Log'!$BJ$18:$BJ$1017,$B94,'Daily Log'!$BK$18:$BK$1017),0) -> 0 | AB94: =IFERROR($E94*SUMIF('Daily Log'!$BM$18:$BM$1017,$B94,'Daily Log'!$BN$18:$BN$1017),0) -> 0 | AC94: =IFERROR($E94*SUMIF('Daily Log'!$BP$18:$BP$1017,$B94,'Daily Log'!$BQ$18:$BQ$1017),0) -> 0 | AD94: =IFERROR($E94*SUMIF('Daily Log'!$BS$18:$BS$1017,$B94,'Daily Log'!$BT$18:$BT$1017),0) -> 0 | AE94: =IFERROR($E94*SUMIF('Daily Log'!$BV$18:$BV$1017,$B94,'Daily Log'!$BW$18:$BW$1017),0) -> 0 | AF94: =IFERROR($E94*SUMIF('Daily Log'!$BY$18:$BY$1017,$B94,'Daily Log'!$BZ$18:$BZ$1017),0) -> 0 | AG94: =IFERROR($E94*SUMIF('Daily Log'!$CB$18:$CB$1017,$B94,'Daily Log'!$CC$18:$CC$1017),0) -> 0 | AH94: =IFERROR($E94*SUMIF('Daily Log'!$CE$18:$CE$1017,$B94,'Daily Log'!$CF$18:$CF$1017),0) -> 0 | AI94: =IFERROR($E94*SUMIF('Daily Log'!$CH$18:$CH$1017,$B94,'Daily Log'!$CI$18:$CI$1017),0) -> 0 | AJ94: =IFERROR($E94*SUMIF('Daily Log'!$CK$18:$CK$1017,$B94,'Daily Log'!$CL$18:$CL$1017),0) -> 0 | AK94: =IFERROR($E94*SUMIF('Daily Log'!$CN$18:$CN$1017,$B94,'Daily Log'!$CO$18:$CO$1017),0) -> 0
B95: RW05 71005:FSH&CHIP | D95: FFD -HOT BEVERAGE | E95: 1 | F95: 0 | G95: =IFERROR($E95*SUMIF('Daily Log'!$B$18:$B$1017,$B95,'Daily Log'!$C$18:$C$1017),0) -> 0 | H95: =IFERROR($E95*SUMIF('Daily Log'!$E$18:$E$1017,$B95,'Daily Log'!$F$18:$F$1017),0) -> 0 | I95: =IFERROR($E95*SUMIF('Daily Log'!$H$18:$H$1017,$B95,'Daily Log'!$I$18:$I$1017),0) -> 0 | J95: =IFERROR($E95*SUMIF('Daily Log'!$K$18:$K$1017,$B95,'Daily Log'!$L$18:$L$1017),0) -> 0 | K95: =IFERROR($E95*SUMIF('Daily Log'!$N$18:$N$1017,$B95,'Daily Log'!$O$18:$O$1017),0) -> 0 | L95: =IFERROR($E95*SUMIF('Daily Log'!$Q$18:$Q$1017,$B95,'Daily Log'!$R$18:$R$1017),0) -> 0 | M95: =IFERROR($E95*SUMIF('Daily Log'!$T$18:$T$1017,$B95,'Daily Log'!$U$18:$U$1017),0) -> 0 | N95: =IFERROR($E95*SUMIF('Daily Log'!$W$18:$W$1017,$B95,'Daily Log'!$X$18:$X$1017),0) -> 0 | O95: =IFERROR($E95*SUMIF('Daily Log'!$Z$18:$Z$1017,$B95,'Daily Log'!$AA$18:$AA$1017),0) -> 0 | P95: =IFERROR($E95*SUMIF('Daily Log'!$AC$18:$AC$1017,$B95,'Daily Log'!$AD$18:$AD$1017),0) -> 0 | Q95: =IFERROR($E95*SUMIF('Daily Log'!$AF$18:$AF$1017,$B95,'Daily Log'!$AG$18:$AG$1017),0) -> 0 | R95: =IFERROR($E95*SUMIF('Daily Log'!$AI$18:$AI$1017,$B95,'Daily Log'!$AJ$18:$AJ$1017),0) -> 0 | S95: =IFERROR($E95*SUMIF('Daily Log'!$AL$18:$AL$1017,$B95,'Daily Log'!$AM$18:$AM$1017),0) -> 0 | T95: =IFERROR($E95*SUMIF('Daily Log'!$AO$18:$AO$1017,$B95,'Daily Log'!$AP$18:$AP$1017),0) -> 0 | U95: =IFERROR($E95*SUMIF('Daily Log'!$AR$18:$AR$1017,$B95,'Daily Log'!$AS$18:$AS$1017),0) -> 0 | V95: =IFERROR($E95*SUMIF('Daily Log'!$AU$18:$AU$1017,$B95,'Daily Log'!$AV$18:$AV$1017),0) -> 0 | W95: =IFERROR($E95*SUMIF('Daily Log'!$AX$18:$AX$1017,$B95,'Daily Log'!$AY$18:$AY$1017),0) -> 0 | X95: =IFERROR($E95*SUMIF('Daily Log'!$BA$18:$BA$1017,$B95,'Daily Log'!$BB$18:$BB$1017),0) -> 0 | Y95: =IFERROR($E95*SUMIF('Daily Log'!$BD$18:$BD$1017,$B95,'Daily Log'!$BE$18:$BE$1017),0) -> 0 | Z95: =IFERROR($E95*SUMIF('Daily Log'!$BG$18:$BG$1017,$B95,'Daily Log'!$BH$18:$BH$1017),0) -> 0 | AA95: =IFERROR($E95*SUMIF('Daily Log'!$BJ$18:$BJ$1017,$B95,'Daily Log'!$BK$18:$BK$1017),0) -> 0 | AB95: =IFERROR($E95*SUMIF('Daily Log'!$BM$18:$BM$1017,$B95,'Daily Log'!$BN$18:$BN$1017),0) -> 0 | AC95: =IFERROR($E95*SUMIF('Daily Log'!$BP$18:$BP$1017,$B95,'Daily Log'!$BQ$18:$BQ$1017),0) -> 0 | AD95: =IFERROR($E95*SUMIF('Daily Log'!$BS$18:$BS$1017,$B95,'Daily Log'!$BT$18:$BT$1017),0) -> 0 | AE95: =IFERROR($E95*SUMIF('Daily Log'!$BV$18:$BV$1017,$B95,'Daily Log'!$BW$18:$BW$1017),0) -> 0 | AF95: =IFERROR($E95*SUMIF('Daily Log'!$BY$18:$BY$1017,$B95,'Daily Log'!$BZ$18:$BZ$1017),0) -> 0 | AG95: =IFERROR($E95*SUMIF('Daily Log'!$CB$18:$CB$1017,$B95,'Daily Log'!$CC$18:$CC$1017),0) -> 0 | AH95: =IFERROR($E95*SUMIF('Daily Log'!$CE$18:$CE$1017,$B95,'Daily Log'!$CF$18:$CF$1017),0) -> 0 | AI95: =IFERROR($E95*SUMIF('Daily Log'!$CH$18:$CH$1017,$B95,'Daily Log'!$CI$18:$CI$1017),0) -> 0 | AJ95: =IFERROR($E95*SUMIF('Daily Log'!$CK$18:$CK$1017,$B95,'Daily Log'!$CL$18:$CL$1017),0) -> 0 | AK95: =IFERROR($E95*SUMIF('Daily Log'!$CN$18:$CN$1017,$B95,'Daily Log'!$CO$18:$CO$1017),0) -> 0
B96: RW07 71007:CHK SALAD | D96: FFD -HOT BEVERAGE | E96: 1 | F96: 0 | G96: =IFERROR($E96*SUMIF('Daily Log'!$B$18:$B$1017,$B96,'Daily Log'!$C$18:$C$1017),0) -> 0 | H96: =IFERROR($E96*SUMIF('Daily Log'!$E$18:$E$1017,$B96,'Daily Log'!$F$18:$F$1017),0) -> 0 | I96: =IFERROR($E96*SUMIF('Daily Log'!$H$18:$H$1017,$B96,'Daily Log'!$I$18:$I$1017),0) -> 0 | J96: =IFERROR($E96*SUMIF('Daily Log'!$K$18:$K$1017,$B96,'Daily Log'!$L$18:$L$1017),0) -> 0 | K96: =IFERROR($E96*SUMIF('Daily Log'!$N$18:$N$1017,$B96,'Daily Log'!$O$18:$O$1017),0) -> 0 | L96: =IFERROR($E96*SUMIF('Daily Log'!$Q$18:$Q$1017,$B96,'Daily Log'!$R$18:$R$1017),0) -> 0 | M96: =IFERROR($E96*SUMIF('Daily Log'!$T$18:$T$1017,$B96,'Daily Log'!$U$18:$U$1017),0) -> 0 | N96: =IFERROR($E96*SUMIF('Daily Log'!$W$18:$W$1017,$B96,'Daily Log'!$X$18:$X$1017),0) -> 0 | O96: =IFERROR($E96*SUMIF('Daily Log'!$Z$18:$Z$1017,$B96,'Daily Log'!$AA$18:$AA$1017),0) -> 0 | P96: =IFERROR($E96*SUMIF('Daily Log'!$AC$18:$AC$1017,$B96,'Daily Log'!$AD$18:$AD$1017),0) -> 0 | Q96: =IFERROR($E96*SUMIF('Daily Log'!$AF$18:$AF$1017,$B96,'Daily Log'!$AG$18:$AG$1017),0) -> 0 | R96: =IFERROR($E96*SUMIF('Daily Log'!$AI$18:$AI$1017,$B96,'Daily Log'!$AJ$18:$AJ$1017),0) -> 0 | S96: =IFERROR($E96*SUMIF('Daily Log'!$AL$18:$AL$1017,$B96,'Daily Log'!$AM$18:$AM$1017),0) -> 0 | T96: =IFERROR($E96*SUMIF('Daily Log'!$AO$18:$AO$1017,$B96,'Daily Log'!$AP$18:$AP$1017),0) -> 0 | U96: =IFERROR($E96*SUMIF('Daily Log'!$AR$18:$AR$1017,$B96,'Daily Log'!$AS$18:$AS$1017),0) -> 0 | V96: =IFERROR($E96*SUMIF('Daily Log'!$AU$18:$AU$1017,$B96,'Daily Log'!$AV$18:$AV$1017),0) -> 0 | W96: =IFERROR($E96*SUMIF('Daily Log'!$AX$18:$AX$1017,$B96,'Daily Log'!$AY$18:$AY$1017),0) -> 0 | X96: =IFERROR($E96*SUMIF('Daily Log'!$BA$18:$BA$1017,$B96,'Daily Log'!$BB$18:$BB$1017),0) -> 0 | Y96: =IFERROR($E96*SUMIF('Daily Log'!$BD$18:$BD$1017,$B96,'Daily Log'!$BE$18:$BE$1017),0) -> 0 | Z96: =IFERROR($E96*SUMIF('Daily Log'!$BG$18:$BG$1017,$B96,'Daily Log'!$BH$18:$BH$1017),0) -> 0 | AA96: =IFERROR($E96*SUMIF('Daily Log'!$BJ$18:$BJ$1017,$B96,'Daily Log'!$BK$18:$BK$1017),0) -> 0 | AB96: =IFERROR($E96*SUMIF('Daily Log'!$BM$18:$BM$1017,$B96,'Daily Log'!$BN$18:$BN$1017),0) -> 0 | AC96: =IFERROR($E96*SUMIF('Daily Log'!$BP$18:$BP$1017,$B96,'Daily Log'!$BQ$18:$BQ$1017),0) -> 0 | AD96: =IFERROR($E96*SUMIF('Daily Log'!$BS$18:$BS$1017,$B96,'Daily Log'!$BT$18:$BT$1017),0) -> 0 | AE96: =IFERROR($E96*SUMIF('Daily Log'!$BV$18:$BV$1017,$B96,'Daily Log'!$BW$18:$BW$1017),0) -> 0 | AF96: =IFERROR($E96*SUMIF('Daily Log'!$BY$18:$BY$1017,$B96,'Daily Log'!$BZ$18:$BZ$1017),0) -> 0 | AG96: =IFERROR($E96*SUMIF('Daily Log'!$CB$18:$CB$1017,$B96,'Daily Log'!$CC$18:$CC$1017),0) -> 0 | AH96: =IFERROR($E96*SUMIF('Daily Log'!$CE$18:$CE$1017,$B96,'Daily Log'!$CF$18:$CF$1017),0) -> 0 | AI96: =IFERROR($E96*SUMIF('Daily Log'!$CH$18:$CH$1017,$B96,'Daily Log'!$CI$18:$CI$1017),0) -> 0 | AJ96: =IFERROR($E96*SUMIF('Daily Log'!$CK$18:$CK$1017,$B96,'Daily Log'!$CL$18:$CL$1017),0) -> 0 | AK96: =IFERROR($E96*SUMIF('Daily Log'!$CN$18:$CN$1017,$B96,'Daily Log'!$CO$18:$CO$1017),0) -> 0
B97: LC01 1101:THAI CHK | D97: FFD -HOT BEVERAGE | E97: 1 | F97: 56 | G97: =IFERROR($E97*SUMIF('Daily Log'!$B$18:$B$1017,$B97,'Daily Log'!$C$18:$C$1017),0) -> 0 | H97: =IFERROR($E97*SUMIF('Daily Log'!$E$18:$E$1017,$B97,'Daily Log'!$F$18:$F$1017),0) -> 0 | I97: =IFERROR($E97*SUMIF('Daily Log'!$H$18:$H$1017,$B97,'Daily Log'!$I$18:$I$1017),0) -> 0 | J97: =IFERROR($E97*SUMIF('Daily Log'!$K$18:$K$1017,$B97,'Daily Log'!$L$18:$L$1017),0) -> 0 | K97: =IFERROR($E97*SUMIF('Daily Log'!$N$18:$N$1017,$B97,'Daily Log'!$O$18:$O$1017),0) -> 0 | L97: =IFERROR($E97*SUMIF('Daily Log'!$Q$18:$Q$1017,$B97,'Daily Log'!$R$18:$R$1017),0) -> 0 | M97: =IFERROR($E97*SUMIF('Daily Log'!$T$18:$T$1017,$B97,'Daily Log'!$U$18:$U$1017),0) -> 0 | N97: =IFERROR($E97*SUMIF('Daily Log'!$W$18:$W$1017,$B97,'Daily Log'!$X$18:$X$1017),0) -> 0 | O97: =IFERROR($E97*SUMIF('Daily Log'!$Z$18:$Z$1017,$B97,'Daily Log'!$AA$18:$AA$1017),0) -> 0 | P97: =IFERROR($E97*SUMIF('Daily Log'!$AC$18:$AC$1017,$B97,'Daily Log'!$AD$18:$AD$1017),0) -> 2 | Q97: =IFERROR($E97*SUMIF('Daily Log'!$AF$18:$AF$1017,$B97,'Daily Log'!$AG$18:$AG$1017),0) -> 3 | R97: =IFERROR($E97*SUMIF('Daily Log'!$AI$18:$AI$1017,$B97,'Daily Log'!$AJ$18:$AJ$1017),0) -> 3 | S97: =IFERROR($E97*SUMIF('Daily Log'!$AL$18:$AL$1017,$B97,'Daily Log'!$AM$18:$AM$1017),0) -> 1 | T97: =IFERROR($E97*SUMIF('Daily Log'!$AO$18:$AO$1017,$B97,'Daily Log'!$AP$18:$AP$1017),0) -> 3 | U97: =IFERROR($E97*SUMIF('Daily Log'!$AR$18:$AR$1017,$B97,'Daily Log'!$AS$18:$AS$1017),0) -> 6 | V97: =IFERROR($E97*SUMIF('Daily Log'!$AU$18:$AU$1017,$B97,'Daily Log'!$AV$18:$AV$1017),0) -> 0 | W97: =IFERROR($E97*SUMIF('Daily Log'!$AX$18:$AX$1017,$B97,'Daily Log'!$AY$18:$AY$1017),0) -> 3 | X97: =IFERROR($E97*SUMIF('Daily Log'!$BA$18:$BA$1017,$B97,'Daily Log'!$BB$18:$BB$1017),0) -> 3 | Y97: =IFERROR($E97*SUMIF('Daily Log'!$BD$18:$BD$1017,$B97,'Daily Log'!$BE$18:$BE$1017),0) -> 2 | Z97: =IFERROR($E97*SUMIF('Daily Log'!$BG$18:$BG$1017,$B97,'Daily Log'!$BH$18:$BH$1017),0) -> 1 | AA97: =IFERROR($E97*SUMIF('Daily Log'!$BJ$18:$BJ$1017,$B97,'Daily Log'!$BK$18:$BK$1017),0) -> 5 | AB97: =IFERROR($E97*SUMIF('Daily Log'!$BM$18:$BM$1017,$B97,'Daily Log'!$BN$18:$BN$1017),0) -> 3 | AC97: =IFERROR($E97*SUMIF('Daily Log'!$BP$18:$BP$1017,$B97,'Daily Log'!$BQ$18:$BQ$1017),0) -> 5 | AD97: =IFERROR($E97*SUMIF('Daily Log'!$BS$18:$BS$1017,$B97,'Daily Log'!$BT$18:$BT$1017),0) -> 2 | AE97: =IFERROR($E97*SUMIF('Daily Log'!$BV$18:$BV$1017,$B97,'Daily Log'!$BW$18:$BW$1017),0) -> 2 | AF97: =IFERROR($E97*SUMIF('Daily Log'!$BY$18:$BY$1017,$B97,'Daily Log'!$BZ$18:$BZ$1017),0) -> 5 | AG97: =IFERROR($E97*SUMIF('Daily Log'!$CB$18:$CB$1017,$B97,'Daily Log'!$CC$18:$CC$1017),0) -> 3 | AH97: =IFERROR($E97*SUMIF('Daily Log'!$CE$18:$CE$1017,$B97,'Daily Log'!$CF$18:$CF$1017),0) -> 4 | AI97: =IFERROR($E97*SUMIF('Daily Log'!$CH$18:$CH$1017,$B97,'Daily Log'!$CI$18:$CI$1017),0) -> 0 | AJ97: =IFERROR($E97*SUMIF('Daily Log'!$CK$18:$CK$1017,$B97,'Daily Log'!$CL$18:$CL$1017),0) -> 0 | AK97: =IFERROR($E97*SUMIF('Daily Log'!$CN$18:$CN$1017,$B97,'Daily Log'!$CO$18:$CO$1017),0) -> 0
B98: LC02 1102:MAMITE CHK | D98: FFD -HOT BEVERAGE | E98: 1 | F98: 122 | G98: =IFERROR($E98*SUMIF('Daily Log'!$B$18:$B$1017,$B98,'Daily Log'!$C$18:$C$1017),0) -> 2 | H98: =IFERROR($E98*SUMIF('Daily Log'!$E$18:$E$1017,$B98,'Daily Log'!$F$18:$F$1017),0) -> 6 | I98: =IFERROR($E98*SUMIF('Daily Log'!$H$18:$H$1017,$B98,'Daily Log'!$I$18:$I$1017),0) -> 4 | J98: =IFERROR($E98*SUMIF('Daily Log'!$K$18:$K$1017,$B98,'Daily Log'!$L$18:$L$1017),0) -> 4 | K98: =IFERROR($E98*SUMIF('Daily Log'!$N$18:$N$1017,$B98,'Daily Log'!$O$18:$O$1017),0) -> 8 | L98: =IFERROR($E98*SUMIF('Daily Log'!$Q$18:$Q$1017,$B98,'Daily Log'!$R$18:$R$1017),0) -> 3 | M98: =IFERROR($E98*SUMIF('Daily Log'!$T$18:$T$1017,$B98,'Daily Log'!$U$18:$U$1017),0) -> 5 | N98: =IFERROR($E98*SUMIF('Daily Log'!$W$18:$W$1017,$B98,'Daily Log'!$X$18:$X$1017),0) -> 4 | O98: =IFERROR($E98*SUMIF('Daily Log'!$Z$18:$Z$1017,$B98,'Daily Log'!$AA$18:$AA$1017),0) -> 4 | P98: =IFERROR($E98*SUMIF('Daily Log'!$AC$18:$AC$1017,$B98,'Daily Log'!$AD$18:$AD$1017),0) -> 2 | Q98: =IFERROR($E98*SUMIF('Daily Log'!$AF$18:$AF$1017,$B98,'Daily Log'!$AG$18:$AG$1017),0) -> 3 | R98: =IFERROR($E98*SUMIF('Daily Log'!$AI$18:$AI$1017,$B98,'Daily Log'!$AJ$18:$AJ$1017),0) -> 2 | S98: =IFERROR($E98*SUMIF('Daily Log'!$AL$18:$AL$1017,$B98,'Daily Log'!$AM$18:$AM$1017),0) -> 3 | T98: =IFERROR($E98*SUMIF('Daily Log'!$AO$18:$AO$1017,$B98,'Daily Log'!$AP$18:$AP$1017),0) -> 8 | U98: =IFERROR($E98*SUMIF('Daily Log'!$AR$18:$AR$1017,$B98,'Daily Log'!$AS$18:$AS$1017),0) -> 9 | V98: =IFERROR($E98*SUMIF('Daily Log'!$AU$18:$AU$1017,$B98,'Daily Log'!$AV$18:$AV$1017),0) -> 7 | W98: =IFERROR($E98*SUMIF('Daily Log'!$AX$18:$AX$1017,$B98,'Daily Log'!$AY$18:$AY$1017),0) -> 1 | X98: =IFERROR($E98*SUMIF('Daily Log'!$BA$18:$BA$1017,$B98,'Daily Log'!$BB$18:$BB$1017),0) -> 5 | Y98: =IFERROR($E98*SUMIF('Daily Log'!$BD$18:$BD$1017,$B98,'Daily Log'!$BE$18:$BE$1017),0) -> 7 | Z98: =IFERROR($E98*SUMIF('Daily Log'!$BG$18:$BG$1017,$B98,'Daily Log'!$BH$18:$BH$1017),0) -> 0 | AA98: =IFERROR($E98*SUMIF('Daily Log'!$BJ$18:$BJ$1017,$B98,'Daily Log'!$BK$18:$BK$1017),0) -> 2 | AB98: =IFERROR($E98*SUMIF('Daily Log'!$BM$18:$BM$1017,$B98,'Daily Log'!$BN$18:$BN$1017),0) -> 16 | AC98: =IFERROR($E98*SUMIF('Daily Log'!$BP$18:$BP$1017,$B98,'Daily Log'!$BQ$18:$BQ$1017),0) -> 1 | AD98: =IFERROR($E98*SUMIF('Daily Log'!$BS$18:$BS$1017,$B98,'Daily Log'!$BT$18:$BT$1017),0) -> 1 | AE98: =IFERROR($E98*SUMIF('Daily Log'!$BV$18:$BV$1017,$B98,'Daily Log'!$BW$18:$BW$1017),0) -> 5 | AF98: =IFERROR($E98*SUMIF('Daily Log'!$BY$18:$BY$1017,$B98,'Daily Log'!$BZ$18:$BZ$1017),0) -> 4 | AG98: =IFERROR($E98*SUMIF('Daily Log'!$CB$18:$CB$1017,$B98,'Daily Log'!$CC$18:$CC$1017),0) -> 1 | AH98: =IFERROR($E98*SUMIF('Daily Log'!$CE$18:$CE$1017,$B98,'Daily Log'!$CF$18:$CF$1017),0) -> 5 | AI98: =IFERROR($E98*SUMIF('Daily Log'!$CH$18:$CH$1017,$B98,'Daily Log'!$CI$18:$CI$1017),0) -> 0 | AJ98: =IFERROR($E98*SUMIF('Daily Log'!$CK$18:$CK$1017,$B98,'Daily Log'!$CL$18:$CL$1017),0) -> 0 | AK98: =IFERROR($E98*SUMIF('Daily Log'!$CN$18:$CN$1017,$B98,'Daily Log'!$CO$18:$CO$1017),0) -> 0
B99: LC05 1105:BUTTER CHK | D99: FFD -COLD BEVERAGE | E99: 1 | F99: 182 | G99: =IFERROR($E99*SUMIF('Daily Log'!$B$18:$B$1017,$B99,'Daily Log'!$C$18:$C$1017),0) -> 4 | H99: =IFERROR($E99*SUMIF('Daily Log'!$E$18:$E$1017,$B99,'Daily Log'!$F$18:$F$1017),0) -> 6 | I99: =IFERROR($E99*SUMIF('Daily Log'!$H$18:$H$1017,$B99,'Daily Log'!$I$18:$I$1017),0) -> 10 | J99: =IFERROR($E99*SUMIF('Daily Log'!$K$18:$K$1017,$B99,'Daily Log'!$L$18:$L$1017),0) -> 6 | K99: =IFERROR($E99*SUMIF('Daily Log'!$N$18:$N$1017,$B99,'Daily Log'!$O$18:$O$1017),0) -> 4 | L99: =IFERROR($E99*SUMIF('Daily Log'!$Q$18:$Q$1017,$B99,'Daily Log'!$R$18:$R$1017),0) -> 1 | M99: =IFERROR($E99*SUMIF('Daily Log'!$T$18:$T$1017,$B99,'Daily Log'!$U$18:$U$1017),0) -> 3 | N99: =IFERROR($E99*SUMIF('Daily Log'!$W$18:$W$1017,$B99,'Daily Log'!$X$18:$X$1017),0) -> 10 | O99: =IFERROR($E99*SUMIF('Daily Log'!$Z$18:$Z$1017,$B99,'Daily Log'!$AA$18:$AA$1017),0) -> 6 | P99: =IFERROR($E99*SUMIF('Daily Log'!$AC$18:$AC$1017,$B99,'Daily Log'!$AD$18:$AD$1017),0) -> 5 | Q99: =IFERROR($E99*SUMIF('Daily Log'!$AF$18:$AF$1017,$B99,'Daily Log'!$AG$18:$AG$1017),0) -> 5 | R99: =IFERROR($E99*SUMIF('Daily Log'!$AI$18:$AI$1017,$B99,'Daily Log'!$AJ$18:$AJ$1017),0) -> 3 | S99: =IFERROR($E99*SUMIF('Daily Log'!$AL$18:$AL$1017,$B99,'Daily Log'!$AM$18:$AM$1017),0) -> 11 | T99: =IFERROR($E99*SUMIF('Daily Log'!$AO$18:$AO$1017,$B99,'Daily Log'!$AP$18:$AP$1017),0) -> 6 | U99: =IFERROR($E99*SUMIF('Daily Log'!$AR$18:$AR$1017,$B99,'Daily Log'!$AS$18:$AS$1017),0) -> 10 | V99: =IFERROR($E99*SUMIF('Daily Log'!$AU$18:$AU$1017,$B99,'Daily Log'!$AV$18:$AV$1017),0) -> 10 | W99: =IFERROR($E99*SUMIF('Daily Log'!$AX$18:$AX$1017,$B99,'Daily Log'!$AY$18:$AY$1017),0) -> 5 | X99: =IFERROR($E99*SUMIF('Daily Log'!$BA$18:$BA$1017,$B99,'Daily Log'!$BB$18:$BB$1017),0) -> 6 | Y99: =IFERROR($E99*SUMIF('Daily Log'!$BD$18:$BD$1017,$B99,'Daily Log'!$BE$18:$BE$1017),0) -> 3 | Z99: =IFERROR($E99*SUMIF('Daily Log'!$BG$18:$BG$1017,$B99,'Daily Log'!$BH$18:$BH$1017),0) -> 2 | AA99: =IFERROR($E99*SUMIF('Daily Log'!$BJ$18:$BJ$1017,$B99,'Daily Log'!$BK$18:$BK$1017),0) -> 16 | AB99: =IFERROR($E99*SUMIF('Daily Log'!$BM$18:$BM$1017,$B99,'Daily Log'!$BN$18:$BN$1017),0) -> 3 | AC99: =IFERROR($E99*SUMIF('Daily Log'!$BP$18:$BP$1017,$B99,'Daily Log'!$BQ$18:$BQ$1017),0) -> 8 | AD99: =IFERROR($E99*SUMIF('Daily Log'!$BS$18:$BS$1017,$B99,'Daily Log'!$BT$18:$BT$1017),0) -> 2 | AE99: =IFERROR($E99*SUMIF('Daily Log'!$BV$18:$BV$1017,$B99,'Daily Log'!$BW$18:$BW$1017),0) -> 12 | AF99: =IFERROR($E99*SUMIF('Daily Log'!$BY$18:$BY$1017,$B99,'Daily Log'!$BZ$18:$BZ$1017),0) -> 6 | AG99: =IFERROR($E99*SUMIF('Daily Log'!$CB$18:$CB$1017,$B99,'Daily Log'!$CC$18:$CC$1017),0) -> 4 | AH99: =IFERROR($E99*SUMIF('Daily Log'!$CE$18:$CE$1017,$B99,'Daily Log'!$CF$18:$CF$1017),0) -> 15 | AI99: =IFERROR($E99*SUMIF('Daily Log'!$CH$18:$CH$1017,$B99,'Daily Log'!$CI$18:$CI$1017),0) -> 0 | AJ99: =IFERROR($E99*SUMIF('Daily Log'!$CK$18:$CK$1017,$B99,'Daily Log'!$CL$18:$CL$1017),0) -> 0 | AK99: =IFERROR($E99*SUMIF('Daily Log'!$CN$18:$CN$1017,$B99,'Daily Log'!$CO$18:$CO$1017),0) -> 0
B100: LC17 1117:THAI FSH | D100: FFD -COLD BEVERAGE | E100: 1 | F100: 19 | G100: =IFERROR($E100*SUMIF('Daily Log'!$B$18:$B$1017,$B100,'Daily Log'!$C$18:$C$1017),0) -> 0 | H100: =IFERROR($E100*SUMIF('Daily Log'!$E$18:$E$1017,$B100,'Daily Log'!$F$18:$F$1017),0) -> 0 | I100: =IFERROR($E100*SUMIF('Daily Log'!$H$18:$H$1017,$B100,'Daily Log'!$I$18:$I$1017),0) -> 0 | J100: =IFERROR($E100*SUMIF('Daily Log'!$K$18:$K$1017,$B100,'Daily Log'!$L$18:$L$1017),0) -> 0 | K100: =IFERROR($E100*SUMIF('Daily Log'!$N$18:$N$1017,$B100,'Daily Log'!$O$18:$O$1017),0) -> 0 | L100: =IFERROR($E100*SUMIF('Daily Log'!$Q$18:$Q$1017,$B100,'Daily Log'!$R$18:$R$1017),0) -> 0 | M100: =IFERROR($E100*SUMIF('Daily Log'!$T$18:$T$1017,$B100,'Daily Log'!$U$18:$U$1017),0) -> 0 | N100: =IFERROR($E100*SUMIF('Daily Log'!$W$18:$W$1017,$B100,'Daily Log'!$X$18:$X$1017),0) -> 0 | O100: =IFERROR($E100*SUMIF('Daily Log'!$Z$18:$Z$1017,$B100,'Daily Log'!$AA$18:$AA$1017),0) -> 0 | P100: =IFERROR($E100*SUMIF('Daily Log'!$AC$18:$AC$1017,$B100,'Daily Log'!$AD$18:$AD$1017),0) -> 0 | Q100: =IFERROR($E100*SUMIF('Daily Log'!$AF$18:$AF$1017,$B100,'Daily Log'!$AG$18:$AG$1017),0) -> 0 | R100: =IFERROR($E100*SUMIF('Daily Log'!$AI$18:$AI$1017,$B100,'Daily Log'!$AJ$18:$AJ$1017),0) -> 3 | S100: =IFERROR($E100*SUMIF('Daily Log'!$AL$18:$AL$1017,$B100,'Daily Log'!$AM$18:$AM$1017),0) -> 3 | T100: =IFERROR($E100*SUMIF('Daily Log'!$AO$18:$AO$1017,$B100,'Daily Log'!$AP$18:$AP$1017),0) -> 0 | U100: =IFERROR($E100*SUMIF('Daily Log'!$AR$18:$AR$1017,$B100,'Daily Log'!$AS$18:$AS$1017),0) -> 1 | V100: =IFERROR($E100*SUMIF('Daily Log'!$AU$18:$AU$1017,$B100,'Daily Log'!$AV$18:$AV$1017),0) -> 2 | W100: =IFERROR($E100*SUMIF('Daily Log'!$AX$18:$AX$1017,$B100,'Daily Log'!$AY$18:$AY$1017),0) -> 1 | X100: =IFERROR($E100*SUMIF('Daily Log'!$BA$18:$BA$1017,$B100,'Daily Log'!$BB$18:$BB$1017),0) -> 0 | Y100: =IFERROR($E100*SUMIF('Daily Log'!$BD$18:$BD$1017,$B100,'Daily Log'!$BE$18:$BE$1017),0) -> 0 | Z100: =IFERROR($E100*SUMIF('Daily Log'!$BG$18:$BG$1017,$B100,'Daily Log'!$BH$18:$BH$1017),0) -> 3 | AA100: =IFERROR($E100*SUMIF('Daily Log'!$BJ$18:$BJ$1017,$B100,'Daily Log'!$BK$18:$BK$1017),0) -> 1 | AB100: =IFERROR($E100*SUMIF('Daily Log'!$BM$18:$BM$1017,$B100,'Daily Log'!$BN$18:$BN$1017),0) -> 1 | AC100: =IFERROR($E100*SUMIF('Daily Log'!$BP$18:$BP$1017,$B100,'Daily Log'!$BQ$18:$BQ$1017),0) -> 0 | AD100: =IFERROR($E100*SUMIF('Daily Log'!$BS$18:$BS$1017,$B100,'Daily Log'!$BT$18:$BT$1017),0) -> 0 | AE100: =IFERROR($E100*SUMIF('Daily Log'!$BV$18:$BV$1017,$B100,'Daily Log'!$BW$18:$BW$1017),0) -> 0 | AF100: =IFERROR($E100*SUMIF('Daily Log'!$BY$18:$BY$1017,$B100,'Daily Log'!$BZ$18:$BZ$1017),0) -> 2 | AG100: =IFERROR($E100*SUMIF('Daily Log'!$CB$18:$CB$1017,$B100,'Daily Log'!$CC$18:$CC$1017),0) -> 0 | AH100: =IFERROR($E100*SUMIF('Daily Log'!$CE$18:$CE$1017,$B100,'Daily Log'!$CF$18:$CF$1017),0) -> 2 | AI100: =IFERROR($E100*SUMIF('Daily Log'!$CH$18:$CH$1017,$B100,'Daily Log'!$CI$18:$CI$1017),0) -> 0 | AJ100: =IFERROR($E100*SUMIF('Daily Log'!$CK$18:$CK$1017,$B100,'Daily Log'!$CL$18:$CL$1017),0) -> 0 | AK100: =IFERROR($E100*SUMIF('Daily Log'!$CN$18:$CN$1017,$B100,'Daily Log'!$CO$18:$CO$1017),0) -> 0
B101: LC18 1118:MAMITE FSH | D101: FFD -COLD BEVERAGE | E101: 1 | F101: 34 | G101: =IFERROR($E101*SUMIF('Daily Log'!$B$18:$B$1017,$B101,'Daily Log'!$C$18:$C$1017),0) -> 0 | H101: =IFERROR($E101*SUMIF('Daily Log'!$E$18:$E$1017,$B101,'Daily Log'!$F$18:$F$1017),0) -> 0 | I101: =IFERROR($E101*SUMIF('Daily Log'!$H$18:$H$1017,$B101,'Daily Log'!$I$18:$I$1017),0) -> 5 | J101: =IFERROR($E101*SUMIF('Daily Log'!$K$18:$K$1017,$B101,'Daily Log'!$L$18:$L$1017),0) -> 1 | K101: =IFERROR($E101*SUMIF('Daily Log'!$N$18:$N$1017,$B101,'Daily Log'!$O$18:$O$1017),0) -> 0 | L101: =IFERROR($E101*SUMIF('Daily Log'!$Q$18:$Q$1017,$B101,'Daily Log'!$R$18:$R$1017),0) -> 2 | M101: =IFERROR($E101*SUMIF('Daily Log'!$T$18:$T$1017,$B101,'Daily Log'!$U$18:$U$1017),0) -> 0 | N101: =IFERROR($E101*SUMIF('Daily Log'!$W$18:$W$1017,$B101,'Daily Log'!$X$18:$X$1017),0) -> 5 | O101: =IFERROR($E101*SUMIF('Daily Log'!$Z$18:$Z$1017,$B101,'Daily Log'!$AA$18:$AA$1017),0) -> 1 | P101: =IFERROR($E101*SUMIF('Daily Log'!$AC$18:$AC$1017,$B101,'Daily Log'!$AD$18:$AD$1017),0) -> 0 | Q101: =IFERROR($E101*SUMIF('Daily Log'!$AF$18:$AF$1017,$B101,'Daily Log'!$AG$18:$AG$1017),0) -> 0 | R101: =IFERROR($E101*SUMIF('Daily Log'!$AI$18:$AI$1017,$B101,'Daily Log'!$AJ$18:$AJ$1017),0) -> 2 | S101: =IFERROR($E101*SUMIF('Daily Log'!$AL$18:$AL$1017,$B101,'Daily Log'!$AM$18:$AM$1017),0) -> 1 | T101: =IFERROR($E101*SUMIF('Daily Log'!$AO$18:$AO$1017,$B101,'Daily Log'!$AP$18:$AP$1017),0) -> 3 | U101: =IFERROR($E101*SUMIF('Daily Log'!$AR$18:$AR$1017,$B101,'Daily Log'!$AS$18:$AS$1017),0) -> 1 | V101: =IFERROR($E101*SUMIF('Daily Log'!$AU$18:$AU$1017,$B101,'Daily Log'!$AV$18:$AV$1017),0) -> 0 | W101: =IFERROR($E101*SUMIF('Daily Log'!$AX$18:$AX$1017,$B101,'Daily Log'!$AY$18:$AY$1017),0) -> 0 | X101: =IFERROR($E101*SUMIF('Daily Log'!$BA$18:$BA$1017,$B101,'Daily Log'!$BB$18:$BB$1017),0) -> 1 | Y101: =IFERROR($E101*SUMIF('Daily Log'!$BD$18:$BD$1017,$B101,'Daily Log'!$BE$18:$BE$1017),0) -> 1 | Z101: =IFERROR($E101*SUMIF('Daily Log'!$BG$18:$BG$1017,$B101,'Daily Log'!$BH$18:$BH$1017),0) -> 1 | AA101: =IFERROR($E101*SUMIF('Daily Log'!$BJ$18:$BJ$1017,$B101,'Daily Log'!$BK$18:$BK$1017),0) -> 1 | AB101: =IFERROR($E101*SUMIF('Daily Log'!$BM$18:$BM$1017,$B101,'Daily Log'!$BN$18:$BN$1017),0) -> 1 | AC101: =IFERROR($E101*SUMIF('Daily Log'!$BP$18:$BP$1017,$B101,'Daily Log'!$BQ$18:$BQ$1017),0) -> 2 | AD101: =IFERROR($E101*SUMIF('Daily Log'!$BS$18:$BS$1017,$B101,'Daily Log'!$BT$18:$BT$1017),0) -> 1 | AE101: =IFERROR($E101*SUMIF('Daily Log'!$BV$18:$BV$1017,$B101,'Daily Log'!$BW$18:$BW$1017),0) -> 1 | AF101: =IFERROR($E101*SUMIF('Daily Log'!$BY$18:$BY$1017,$B101,'Daily Log'!$BZ$18:$BZ$1017),0) -> 2 | AG101: =IFERROR($E101*SUMIF('Daily Log'!$CB$18:$CB$1017,$B101,'Daily Log'!$CC$18:$CC$1017),0) -> 1 | AH101: =IFERROR($E101*SUMIF('Daily Log'!$CE$18:$CE$1017,$B101,'Daily Log'!$CF$18:$CF$1017),0) -> 1 | AI101: =IFERROR($E101*SUMIF('Daily Log'!$CH$18:$CH$1017,$B101,'Daily Log'!$CI$18:$CI$1017),0) -> 0 | AJ101: =IFERROR($E101*SUMIF('Daily Log'!$CK$18:$CK$1017,$B101,'Daily Log'!$CL$18:$CL$1017),0) -> 0 | AK101: =IFERROR($E101*SUMIF('Daily Log'!$CN$18:$CN$1017,$B101,'Daily Log'!$CO$18:$CO$1017),0) -> 0
B102: LC19 1119:BUTTER FSH | D102: FFD -COLD BEVERAGE | E102: 1 | F102: 55 | G102: =IFERROR($E102*SUMIF('Daily Log'!$B$18:$B$1017,$B102,'Daily Log'!$C$18:$C$1017),0) -> 2 | H102: =IFERROR($E102*SUMIF('Daily Log'!$E$18:$E$1017,$B102,'Daily Log'!$F$18:$F$1017),0) -> 0 | I102: =IFERROR($E102*SUMIF('Daily Log'!$H$18:$H$1017,$B102,'Daily Log'!$I$18:$I$1017),0) -> 2 | J102: =IFERROR($E102*SUMIF('Daily Log'!$K$18:$K$1017,$B102,'Daily Log'!$L$18:$L$1017),0) -> 1 | K102: =IFERROR($E102*SUMIF('Daily Log'!$N$18:$N$1017,$B102,'Daily Log'!$O$18:$O$1017),0) -> 2 | L102: =IFERROR($E102*SUMIF('Daily Log'!$Q$18:$Q$1017,$B102,'Daily Log'!$R$18:$R$1017),0) -> 1 | M102: =IFERROR($E102*SUMIF('Daily Log'!$T$18:$T$1017,$B102,'Daily Log'!$U$18:$U$1017),0) -> 1 | N102: =IFERROR($E102*SUMIF('Daily Log'!$W$18:$W$1017,$B102,'Daily Log'!$X$18:$X$1017),0) -> 0 | O102: =IFERROR($E102*SUMIF('Daily Log'!$Z$18:$Z$1017,$B102,'Daily Log'!$AA$18:$AA$1017),0) -> 2 | P102: =IFERROR($E102*SUMIF('Daily Log'!$AC$18:$AC$1017,$B102,'Daily Log'!$AD$18:$AD$1017),0) -> 1 | Q102: =IFERROR($E102*SUMIF('Daily Log'!$AF$18:$AF$1017,$B102,'Daily Log'!$AG$18:$AG$1017),0) -> 4 | R102: =IFERROR($E102*SUMIF('Daily Log'!$AI$18:$AI$1017,$B102,'Daily Log'!$AJ$18:$AJ$1017),0) -> 5 | S102: =IFERROR($E102*SUMIF('Daily Log'!$AL$18:$AL$1017,$B102,'Daily Log'!$AM$18:$AM$1017),0) -> 2 | T102: =IFERROR($E102*SUMIF('Daily Log'!$AO$18:$AO$1017,$B102,'Daily Log'!$AP$18:$AP$1017),0) -> 2 | U102: =IFERROR($E102*SUMIF('Daily Log'!$AR$18:$AR$1017,$B102,'Daily Log'!$AS$18:$AS$1017),0) -> 2 | V102: =IFERROR($E102*SUMIF('Daily Log'!$AU$18:$AU$1017,$B102,'Daily Log'!$AV$18:$AV$1017),0) -> 2 | W102: =IFERROR($E102*SUMIF('Daily Log'!$AX$18:$AX$1017,$B102,'Daily Log'!$AY$18:$AY$1017),0) -> 2 | X102: =IFERROR($E102*SUMIF('Daily Log'!$BA$18:$BA$1017,$B102,'Daily Log'!$BB$18:$BB$1017),0) -> 3 | Y102: =IFERROR($E102*SUMIF('Daily Log'!$BD$18:$BD$1017,$B102,'Daily Log'!$BE$18:$BE$1017),0) -> 3 | Z102: =IFERROR($E102*SUMIF('Daily Log'!$BG$18:$BG$1017,$B102,'Daily Log'!$BH$18:$BH$1017),0) -> 1 | AA102: =IFERROR($E102*SUMIF('Daily Log'!$BJ$18:$BJ$1017,$B102,'Daily Log'!$BK$18:$BK$1017),0) -> 1 | AB102: =IFERROR($E102*SUMIF('Daily Log'!$BM$18:$BM$1017,$B102,'Daily Log'!$BN$18:$BN$1017),0) -> 3 | AC102: =IFERROR($E102*SUMIF('Daily Log'!$BP$18:$BP$1017,$B102,'Daily Log'!$BQ$18:$BQ$1017),0) -> 0 | AD102: =IFERROR($E102*SUMIF('Daily Log'!$BS$18:$BS$1017,$B102,'Daily Log'!$BT$18:$BT$1017),0) -> 0 | AE102: =IFERROR($E102*SUMIF('Daily Log'!$BV$18:$BV$1017,$B102,'Daily Log'!$BW$18:$BW$1017),0) -> 4 | AF102: =IFERROR($E102*SUMIF('Daily Log'!$BY$18:$BY$1017,$B102,'Daily Log'!$BZ$18:$BZ$1017),0) -> 4 | AG102: =IFERROR($E102*SUMIF('Daily Log'!$CB$18:$CB$1017,$B102,'Daily Log'!$CC$18:$CC$1017),0) -> 3 | AH102: =IFERROR($E102*SUMIF('Daily Log'!$CE$18:$CE$1017,$B102,'Daily Log'!$CF$18:$CF$1017),0) -> 2 | AI102: =IFERROR($E102*SUMIF('Daily Log'!$CH$18:$CH$1017,$B102,'Daily Log'!$CI$18:$CI$1017),0) -> 0 | AJ102: =IFERROR($E102*SUMIF('Daily Log'!$CK$18:$CK$1017,$B102,'Daily Log'!$CL$18:$CL$1017),0) -> 0 | AK102: =IFERROR($E102*SUMIF('Daily Log'!$CN$18:$CN$1017,$B102,'Daily Log'!$CO$18:$CO$1017),0) -> 0
B103: LF01 91101:THAI CHK | D103: FFD -COLD BEVERAGE | E103: 1 | F103: 61 | G103: =IFERROR($E103*SUMIF('Daily Log'!$B$18:$B$1017,$B103,'Daily Log'!$C$18:$C$1017),0) -> 0 | H103: =IFERROR($E103*SUMIF('Daily Log'!$E$18:$E$1017,$B103,'Daily Log'!$F$18:$F$1017),0) -> 0 | I103: =IFERROR($E103*SUMIF('Daily Log'!$H$18:$H$1017,$B103,'Daily Log'!$I$18:$I$1017),0) -> 0 | J103: =IFERROR($E103*SUMIF('Daily Log'!$K$18:$K$1017,$B103,'Daily Log'!$L$18:$L$1017),0) -> 0 | K103: =IFERROR($E103*SUMIF('Daily Log'!$N$18:$N$1017,$B103,'Daily Log'!$O$18:$O$1017),0) -> 0 | L103: =IFERROR($E103*SUMIF('Daily Log'!$Q$18:$Q$1017,$B103,'Daily Log'!$R$18:$R$1017),0) -> 0 | M103: =IFERROR($E103*SUMIF('Daily Log'!$T$18:$T$1017,$B103,'Daily Log'!$U$18:$U$1017),0) -> 0 | N103: =IFERROR($E103*SUMIF('Daily Log'!$W$18:$W$1017,$B103,'Daily Log'!$X$18:$X$1017),0) -> 0 | O103: =IFERROR($E103*SUMIF('Daily Log'!$Z$18:$Z$1017,$B103,'Daily Log'!$AA$18:$AA$1017),0) -> 0 | P103: =IFERROR($E103*SUMIF('Daily Log'!$AC$18:$AC$1017,$B103,'Daily Log'!$AD$18:$AD$1017),0) -> 4 | Q103: =IFERROR($E103*SUMIF('Daily Log'!$AF$18:$AF$1017,$B103,'Daily Log'!$AG$18:$AG$1017),0) -> 3 | R103: =IFERROR($E103*SUMIF('Daily Log'!$AI$18:$AI$1017,$B103,'Daily Log'!$AJ$18:$AJ$1017),0) -> 0 | S103: =IFERROR($E103*SUMIF('Daily Log'!$AL$18:$AL$1017,$B103,'Daily Log'!$AM$18:$AM$1017),0) -> 1 | T103: =IFERROR($E103*SUMIF('Daily Log'!$AO$18:$AO$1017,$B103,'Daily Log'!$AP$18:$AP$1017),0) -> 4 | U103: =IFERROR($E103*SUMIF('Daily Log'!$AR$18:$AR$1017,$B103,'Daily Log'!$AS$18:$AS$1017),0) -> 3 | V103: =IFERROR($E103*SUMIF('Daily Log'!$AU$18:$AU$1017,$B103,'Daily Log'!$AV$18:$AV$1017),0) -> 6 | W103: =IFERROR($E103*SUMIF('Daily Log'!$AX$18:$AX$1017,$B103,'Daily Log'!$AY$18:$AY$1017),0) -> 0 | X103: =IFERROR($E103*SUMIF('Daily Log'!$BA$18:$BA$1017,$B103,'Daily Log'!$BB$18:$BB$1017),0) -> 1 | Y103: =IFERROR($E103*SUMIF('Daily Log'!$BD$18:$BD$1017,$B103,'Daily Log'!$BE$18:$BE$1017),0) -> 1 | Z103: =IFERROR($E103*SUMIF('Daily Log'!$BG$18:$BG$1017,$B103,'Daily Log'!$BH$18:$BH$1017),0) -> 2 | AA103: =IFERROR($E103*SUMIF('Daily Log'!$BJ$18:$BJ$1017,$B103,'Daily Log'!$BK$18:$BK$1017),0) -> 10 | AB103: =IFERROR($E103*SUMIF('Daily Log'!$BM$18:$BM$1017,$B103,'Daily Log'!$BN$18:$BN$1017),0) -> 8 | AC103: =IFERROR($E103*SUMIF('Daily Log'!$BP$18:$BP$1017,$B103,'Daily Log'!$BQ$18:$BQ$1017),0) -> 2 | AD103: =IFERROR($E103*SUMIF('Daily Log'!$BS$18:$BS$1017,$B103,'Daily Log'!$BT$18:$BT$1017),0) -> 3 | AE103: =IFERROR($E103*SUMIF('Daily Log'!$BV$18:$BV$1017,$B103,'Daily Log'!$BW$18:$BW$1017),0) -> 4 | AF103: =IFERROR($E103*SUMIF('Daily Log'!$BY$18:$BY$1017,$B103,'Daily Log'!$BZ$18:$BZ$1017),0) -> 1 | AG103: =IFERROR($E103*SUMIF('Daily Log'!$CB$18:$CB$1017,$B103,'Daily Log'!$CC$18:$CC$1017),0) -> 4 | AH103: =IFERROR($E103*SUMIF('Daily Log'!$CE$18:$CE$1017,$B103,'Daily Log'!$CF$18:$CF$1017),0) -> 4 | AI103: =IFERROR($E103*SUMIF('Daily Log'!$CH$18:$CH$1017,$B103,'Daily Log'!$CI$18:$CI$1017),0) -> 0 | AJ103: =IFERROR($E103*SUMIF('Daily Log'!$CK$18:$CK$1017,$B103,'Daily Log'!$CL$18:$CL$1017),0) -> 0 | AK103: =IFERROR($E103*SUMIF('Daily Log'!$CN$18:$CN$1017,$B103,'Daily Log'!$CO$18:$CO$1017),0) -> 0
B104: LF02 91102:MAMITE CHK | D104: FFD -COLD BEVERAGE | E104: 1 | F104: 114 | G104: =IFERROR($E104*SUMIF('Daily Log'!$B$18:$B$1017,$B104,'Daily Log'!$C$18:$C$1017),0) -> 5 | H104: =IFERROR($E104*SUMIF('Daily Log'!$E$18:$E$1017,$B104,'Daily Log'!$F$18:$F$1017),0) -> 10 | I104: =IFERROR($E104*SUMIF('Daily Log'!$H$18:$H$1017,$B104,'Daily Log'!$I$18:$I$1017),0) -> 12 | J104: =IFERROR($E104*SUMIF('Daily Log'!$K$18:$K$1017,$B104,'Daily Log'!$L$18:$L$1017),0) -> 12 | K104: =IFERROR($E104*SUMIF('Daily Log'!$N$18:$N$1017,$B104,'Daily Log'!$O$18:$O$1017),0) -> 3 | L104: =IFERROR($E104*SUMIF('Daily Log'!$Q$18:$Q$1017,$B104,'Daily Log'!$R$18:$R$1017),0) -> 2 | M104: =IFERROR($E104*SUMIF('Daily Log'!$T$18:$T$1017,$B104,'Daily Log'!$U$18:$U$1017),0) -> 3 | N104: =IFERROR($E104*SUMIF('Daily Log'!$W$18:$W$1017,$B104,'Daily Log'!$X$18:$X$1017),0) -> 6 | O104: =IFERROR($E104*SUMIF('Daily Log'!$Z$18:$Z$1017,$B104,'Daily Log'!$AA$18:$AA$1017),0) -> 9 | P104: =IFERROR($E104*SUMIF('Daily Log'!$AC$18:$AC$1017,$B104,'Daily Log'!$AD$18:$AD$1017),0) -> 1 | Q104: =IFERROR($E104*SUMIF('Daily Log'!$AF$18:$AF$1017,$B104,'Daily Log'!$AG$18:$AG$1017),0) -> 2 | R104: =IFERROR($E104*SUMIF('Daily Log'!$AI$18:$AI$1017,$B104,'Daily Log'!$AJ$18:$AJ$1017),0) -> 3 | S104: =IFERROR($E104*SUMIF('Daily Log'!$AL$18:$AL$1017,$B104,'Daily Log'!$AM$18:$AM$1017),0) -> 3 | T104: =IFERROR($E104*SUMIF('Daily Log'!$AO$18:$AO$1017,$B104,'Daily Log'!$AP$18:$AP$1017),0) -> 2 | U104: =IFERROR($E104*SUMIF('Daily Log'!$AR$18:$AR$1017,$B104,'Daily Log'!$AS$18:$AS$1017),0) -> 6 | V104: =IFERROR($E104*SUMIF('Daily Log'!$AU$18:$AU$1017,$B104,'Daily Log'!$AV$18:$AV$1017),0) -> 4 | W104: =IFERROR($E104*SUMIF('Daily Log'!$AX$18:$AX$1017,$B104,'Daily Log'!$AY$18:$AY$1017),0) -> 0 | X104: =IFERROR($E104*SUMIF('Daily Log'!$BA$18:$BA$1017,$B104,'Daily Log'!$BB$18:$BB$1017),0) -> 0 | Y104: =IFERROR($E104*SUMIF('Daily Log'!$BD$18:$BD$1017,$B104,'Daily Log'!$BE$18:$BE$1017),0) -> 2 | Z104: =IFERROR($E104*SUMIF('Daily Log'!$BG$18:$BG$1017,$B104,'Daily Log'!$BH$18:$BH$1017),0) -> 1 | AA104: =IFERROR($E104*SUMIF('Daily Log'!$BJ$18:$BJ$1017,$B104,'Daily Log'!$BK$18:$BK$1017),0) -> 8 | AB104: =IFERROR($E104*SUMIF('Daily Log'!$BM$18:$BM$1017,$B104,'Daily Log'!$BN$18:$BN$1017),0) -> 3 | AC104: =IFERROR($E104*SUMIF('Daily Log'!$BP$18:$BP$1017,$B104,'Daily Log'!$BQ$18:$BQ$1017),0) -> 5 | AD104: =IFERROR($E104*SUMIF('Daily Log'!$BS$18:$BS$1017,$B104,'Daily Log'!$BT$18:$BT$1017),0) -> 0 | AE104: =IFERROR($E104*SUMIF('Daily Log'!$BV$18:$BV$1017,$B104,'Daily Log'!$BW$18:$BW$1017),0) -> 2 | AF104: =IFERROR($E104*SUMIF('Daily Log'!$BY$18:$BY$1017,$B104,'Daily Log'!$BZ$18:$BZ$1017),0) -> 1 | AG104: =IFERROR($E104*SUMIF('Daily Log'!$CB$18:$CB$1017,$B104,'Daily Log'!$CC$18:$CC$1017),0) -> 3 | AH104: =IFERROR($E104*SUMIF('Daily Log'!$CE$18:$CE$1017,$B104,'Daily Log'!$CF$18:$CF$1017),0) -> 6 | AI104: =IFERROR($E104*SUMIF('Daily Log'!$CH$18:$CH$1017,$B104,'Daily Log'!$CI$18:$CI$1017),0) -> 0 | AJ104: =IFERROR($E104*SUMIF('Daily Log'!$CK$18:$CK$1017,$B104,'Daily Log'!$CL$18:$CL$1017),0) -> 0 | AK104: =IFERROR($E104*SUMIF('Daily Log'!$CN$18:$CN$1017,$B104,'Daily Log'!$CO$18:$CO$1017),0) -> 0
B105: LF05 91105:BUTTER CHK | D105: FFD -COLD BEVERAGE | E105: 1 | F105: 181 | G105: =IFERROR($E105*SUMIF('Daily Log'!$B$18:$B$1017,$B105,'Daily Log'!$C$18:$C$1017),0) -> 6 | H105: =IFERROR($E105*SUMIF('Daily Log'!$E$18:$E$1017,$B105,'Daily Log'!$F$18:$F$1017),0) -> 9 | I105: =IFERROR($E105*SUMIF('Daily Log'!$H$18:$H$1017,$B105,'Daily Log'!$I$18:$I$1017),0) -> 11 | J105: =IFERROR($E105*SUMIF('Daily Log'!$K$18:$K$1017,$B105,'Daily Log'!$L$18:$L$1017),0) -> 15 | K105: =IFERROR($E105*SUMIF('Daily Log'!$N$18:$N$1017,$B105,'Daily Log'!$O$18:$O$1017),0) -> 5 | L105: =IFERROR($E105*SUMIF('Daily Log'!$Q$18:$Q$1017,$B105,'Daily Log'!$R$18:$R$1017),0) -> 11 | M105: =IFERROR($E105*SUMIF('Daily Log'!$T$18:$T$1017,$B105,'Daily Log'!$U$18:$U$1017),0) -> 10 | N105: =IFERROR($E105*SUMIF('Daily Log'!$W$18:$W$1017,$B105,'Daily Log'!$X$18:$X$1017),0) -> 15 | O105: =IFERROR($E105*SUMIF('Daily Log'!$Z$18:$Z$1017,$B105,'Daily Log'!$AA$18:$AA$1017),0) -> 6 | P105: =IFERROR($E105*SUMIF('Daily Log'!$AC$18:$AC$1017,$B105,'Daily Log'!$AD$18:$AD$1017),0) -> 4 | Q105: =IFERROR($E105*SUMIF('Daily Log'!$AF$18:$AF$1017,$B105,'Daily Log'!$AG$18:$AG$1017),0) -> 3 | R105: =IFERROR($E105*SUMIF('Daily Log'!$AI$18:$AI$1017,$B105,'Daily Log'!$AJ$18:$AJ$1017),0) -> 1 | S105: =IFERROR($E105*SUMIF('Daily Log'!$AL$18:$AL$1017,$B105,'Daily Log'!$AM$18:$AM$1017),0) -> 5 | T105: =IFERROR($E105*SUMIF('Daily Log'!$AO$18:$AO$1017,$B105,'Daily Log'!$AP$18:$AP$1017),0) -> 4 | U105: =IFERROR($E105*SUMIF('Daily Log'!$AR$18:$AR$1017,$B105,'Daily Log'!$AS$18:$AS$1017),0) -> 5 | V105: =IFERROR($E105*SUMIF('Daily Log'!$AU$18:$AU$1017,$B105,'Daily Log'!$AV$18:$AV$1017),0) -> 8 | W105: =IFERROR($E105*SUMIF('Daily Log'!$AX$18:$AX$1017,$B105,'Daily Log'!$AY$18:$AY$1017),0) -> 2 | X105: =IFERROR($E105*SUMIF('Daily Log'!$BA$18:$BA$1017,$B105,'Daily Log'!$BB$18:$BB$1017),0) -> 2 | Y105: =IFERROR($E105*SUMIF('Daily Log'!$BD$18:$BD$1017,$B105,'Daily Log'!$BE$18:$BE$1017),0) -> 3 | Z105: =IFERROR($E105*SUMIF('Daily Log'!$BG$18:$BG$1017,$B105,'Daily Log'!$BH$18:$BH$1017),0) -> 6 | AA105: =IFERROR($E105*SUMIF('Daily Log'!$BJ$18:$BJ$1017,$B105,'Daily Log'!$BK$18:$BK$1017),0) -> 8 | AB105: =IFERROR($E105*SUMIF('Daily Log'!$BM$18:$BM$1017,$B105,'Daily Log'!$BN$18:$BN$1017),0) -> 7 | AC105: =IFERROR($E105*SUMIF('Daily Log'!$BP$18:$BP$1017,$B105,'Daily Log'!$BQ$18:$BQ$1017),0) -> 9 | AD105: =IFERROR($E105*SUMIF('Daily Log'!$BS$18:$BS$1017,$B105,'Daily Log'!$BT$18:$BT$1017),0) -> 4 | AE105: =IFERROR($E105*SUMIF('Daily Log'!$BV$18:$BV$1017,$B105,'Daily Log'!$BW$18:$BW$1017),0) -> 4 | AF105: =IFERROR($E105*SUMIF('Daily Log'!$BY$18:$BY$1017,$B105,'Daily Log'!$BZ$18:$BZ$1017),0) -> 3 | AG105: =IFERROR($E105*SUMIF('Daily Log'!$CB$18:$CB$1017,$B105,'Daily Log'!$CC$18:$CC$1017),0) -> 6 | AH105: =IFERROR($E105*SUMIF('Daily Log'!$CE$18:$CE$1017,$B105,'Daily Log'!$CF$18:$CF$1017),0) -> 9 | AI105: =IFERROR($E105*SUMIF('Daily Log'!$CH$18:$CH$1017,$B105,'Daily Log'!$CI$18:$CI$1017),0) -> 0 | AJ105: =IFERROR($E105*SUMIF('Daily Log'!$CK$18:$CK$1017,$B105,'Daily Log'!$CL$18:$CL$1017),0) -> 0 | AK105: =IFERROR($E105*SUMIF('Daily Log'!$CN$18:$CN$1017,$B105,'Daily Log'!$CO$18:$CO$1017),0) -> 0
B106: LF17 91117:THAI FSH | D106: FFD -COLD BEVERAGE | E106: 1 | F106: 32 | G106: =IFERROR($E106*SUMIF('Daily Log'!$B$18:$B$1017,$B106,'Daily Log'!$C$18:$C$1017),0) -> 0 | H106: =IFERROR($E106*SUMIF('Daily Log'!$E$18:$E$1017,$B106,'Daily Log'!$F$18:$F$1017),0) -> 0 | I106: =IFERROR($E106*SUMIF('Daily Log'!$H$18:$H$1017,$B106,'Daily Log'!$I$18:$I$1017),0) -> 0 | J106: =IFERROR($E106*SUMIF('Daily Log'!$K$18:$K$1017,$B106,'Daily Log'!$L$18:$L$1017),0) -> 0 | K106: =IFERROR($E106*SUMIF('Daily Log'!$N$18:$N$1017,$B106,'Daily Log'!$O$18:$O$1017),0) -> 0 | L106: =IFERROR($E106*SUMIF('Daily Log'!$Q$18:$Q$1017,$B106,'Daily Log'!$R$18:$R$1017),0) -> 0 | M106: =IFERROR($E106*SUMIF('Daily Log'!$T$18:$T$1017,$B106,'Daily Log'!$U$18:$U$1017),0) -> 0 | N106: =IFERROR($E106*SUMIF('Daily Log'!$W$18:$W$1017,$B106,'Daily Log'!$X$18:$X$1017),0) -> 0 | O106: =IFERROR($E106*SUMIF('Daily Log'!$Z$18:$Z$1017,$B106,'Daily Log'!$AA$18:$AA$1017),0) -> 0 | P106: =IFERROR($E106*SUMIF('Daily Log'!$AC$18:$AC$1017,$B106,'Daily Log'!$AD$18:$AD$1017),0) -> 2 | Q106: =IFERROR($E106*SUMIF('Daily Log'!$AF$18:$AF$1017,$B106,'Daily Log'!$AG$18:$AG$1017),0) -> 0 | R106: =IFERROR($E106*SUMIF('Daily Log'!$AI$18:$AI$1017,$B106,'Daily Log'!$AJ$18:$AJ$1017),0) -> 0 | S106: =IFERROR($E106*SUMIF('Daily Log'!$AL$18:$AL$1017,$B106,'Daily Log'!$AM$18:$AM$1017),0) -> 4 | T106: =IFERROR($E106*SUMIF('Daily Log'!$AO$18:$AO$1017,$B106,'Daily Log'!$AP$18:$AP$1017),0) -> 1 | U106: =IFERROR($E106*SUMIF('Daily Log'!$AR$18:$AR$1017,$B106,'Daily Log'!$AS$18:$AS$1017),0) -> 5 | V106: =IFERROR($E106*SUMIF('Daily Log'!$AU$18:$AU$1017,$B106,'Daily Log'!$AV$18:$AV$1017),0) -> 3 | W106: =IFERROR($E106*SUMIF('Daily Log'!$AX$18:$AX$1017,$B106,'Daily Log'!$AY$18:$AY$1017),0) -> 0 | X106: =IFERROR($E106*SUMIF('Daily Log'!$BA$18:$BA$1017,$B106,'Daily Log'!$BB$18:$BB$1017),0) -> 3 | Y106: =IFERROR($E106*SUMIF('Daily Log'!$BD$18:$BD$1017,$B106,'Daily Log'!$BE$18:$BE$1017),0) -> 1 | Z106: =IFERROR($E106*SUMIF('Daily Log'!$BG$18:$BG$1017,$B106,'Daily Log'!$BH$18:$BH$1017),0) -> 2 | AA106: =IFERROR($E106*SUMIF('Daily Log'!$BJ$18:$BJ$1017,$B106,'Daily Log'!$BK$18:$BK$1017),0) -> 3 | AB106: =IFERROR($E106*SUMIF('Daily Log'!$BM$18:$BM$1017,$B106,'Daily Log'!$BN$18:$BN$1017),0) -> 1 | AC106: =IFERROR($E106*SUMIF('Daily Log'!$BP$18:$BP$1017,$B106,'Daily Log'!$BQ$18:$BQ$1017),0) -> 1 | AD106: =IFERROR($E106*SUMIF('Daily Log'!$BS$18:$BS$1017,$B106,'Daily Log'!$BT$18:$BT$1017),0) -> 2 | AE106: =IFERROR($E106*SUMIF('Daily Log'!$BV$18:$BV$1017,$B106,'Daily Log'!$BW$18:$BW$1017),0) -> 3 | AF106: =IFERROR($E106*SUMIF('Daily Log'!$BY$18:$BY$1017,$B106,'Daily Log'!$BZ$18:$BZ$1017),0) -> 0 | AG106: =IFERROR($E106*SUMIF('Daily Log'!$CB$18:$CB$1017,$B106,'Daily Log'!$CC$18:$CC$1017),0) -> 0 | AH106: =IFERROR($E106*SUMIF('Daily Log'!$CE$18:$CE$1017,$B106,'Daily Log'!$CF$18:$CF$1017),0) -> 1 | AI106: =IFERROR($E106*SUMIF('Daily Log'!$CH$18:$CH$1017,$B106,'Daily Log'!$CI$18:$CI$1017),0) -> 0 | AJ106: =IFERROR($E106*SUMIF('Daily Log'!$CK$18:$CK$1017,$B106,'Daily Log'!$CL$18:$CL$1017),0) -> 0 | AK106: =IFERROR($E106*SUMIF('Daily Log'!$CN$18:$CN$1017,$B106,'Daily Log'!$CO$18:$CO$1017),0) -> 0
B107: LF18 91118:MAMITE FSH | D107: FFD -COLD BEVERAGE | E107: 1 | F107: 46 | G107: =IFERROR($E107*SUMIF('Daily Log'!$B$18:$B$1017,$B107,'Daily Log'!$C$18:$C$1017),0) -> 2 | H107: =IFERROR($E107*SUMIF('Daily Log'!$E$18:$E$1017,$B107,'Daily Log'!$F$18:$F$1017),0) -> 3 | I107: =IFERROR($E107*SUMIF('Daily Log'!$H$18:$H$1017,$B107,'Daily Log'!$I$18:$I$1017),0) -> 1 | J107: =IFERROR($E107*SUMIF('Daily Log'!$K$18:$K$1017,$B107,'Daily Log'!$L$18:$L$1017),0) -> 5 | K107: =IFERROR($E107*SUMIF('Daily Log'!$N$18:$N$1017,$B107,'Daily Log'!$O$18:$O$1017),0) -> 6 | L107: =IFERROR($E107*SUMIF('Daily Log'!$Q$18:$Q$1017,$B107,'Daily Log'!$R$18:$R$1017),0) -> 2 | M107: =IFERROR($E107*SUMIF('Daily Log'!$T$18:$T$1017,$B107,'Daily Log'!$U$18:$U$1017),0) -> 2 | N107: =IFERROR($E107*SUMIF('Daily Log'!$W$18:$W$1017,$B107,'Daily Log'!$X$18:$X$1017),0) -> 4 | O107: =IFERROR($E107*SUMIF('Daily Log'!$Z$18:$Z$1017,$B107,'Daily Log'!$AA$18:$AA$1017),0) -> 4 | P107: =IFERROR($E107*SUMIF('Daily Log'!$AC$18:$AC$1017,$B107,'Daily Log'!$AD$18:$AD$1017),0) -> 0 | Q107: =IFERROR($E107*SUMIF('Daily Log'!$AF$18:$AF$1017,$B107,'Daily Log'!$AG$18:$AG$1017),0) -> 0 | R107: =IFERROR($E107*SUMIF('Daily Log'!$AI$18:$AI$1017,$B107,'Daily Log'!$AJ$18:$AJ$1017),0) -> 0 | S107: =IFERROR($E107*SUMIF('Daily Log'!$AL$18:$AL$1017,$B107,'Daily Log'!$AM$18:$AM$1017),0) -> 1 | T107: =IFERROR($E107*SUMIF('Daily Log'!$AO$18:$AO$1017,$B107,'Daily Log'!$AP$18:$AP$1017),0) -> 1 | U107: =IFERROR($E107*SUMIF('Daily Log'!$AR$18:$AR$1017,$B107,'Daily Log'!$AS$18:$AS$1017),0) -> 1 | V107: =IFERROR($E107*SUMIF('Daily Log'!$AU$18:$AU$1017,$B107,'Daily Log'!$AV$18:$AV$1017),0) -> 1 | W107: =IFERROR($E107*SUMIF('Daily Log'!$AX$18:$AX$1017,$B107,'Daily Log'!$AY$18:$AY$1017),0) -> 0 | X107: =IFERROR($E107*SUMIF('Daily Log'!$BA$18:$BA$1017,$B107,'Daily Log'!$BB$18:$BB$1017),0) -> 0 | Y107: =IFERROR($E107*SUMIF('Daily Log'!$BD$18:$BD$1017,$B107,'Daily Log'!$BE$18:$BE$1017),0) -> 0 | Z107: =IFERROR($E107*SUMIF('Daily Log'!$BG$18:$BG$1017,$B107,'Daily Log'!$BH$18:$BH$1017),0) -> 0 | AA107: =IFERROR($E107*SUMIF('Daily Log'!$BJ$18:$BJ$1017,$B107,'Daily Log'!$BK$18:$BK$1017),0) -> 2 | AB107: =IFERROR($E107*SUMIF('Daily Log'!$BM$18:$BM$1017,$B107,'Daily Log'!$BN$18:$BN$1017),0) -> 2 | AC107: =IFERROR($E107*SUMIF('Daily Log'!$BP$18:$BP$1017,$B107,'Daily Log'!$BQ$18:$BQ$1017),0) -> 1 | AD107: =IFERROR($E107*SUMIF('Daily Log'!$BS$18:$BS$1017,$B107,'Daily Log'!$BT$18:$BT$1017),0) -> 1 | AE107: =IFERROR($E107*SUMIF('Daily Log'!$BV$18:$BV$1017,$B107,'Daily Log'!$BW$18:$BW$1017),0) -> 0 | AF107: =IFERROR($E107*SUMIF('Daily Log'!$BY$18:$BY$1017,$B107,'Daily Log'!$BZ$18:$BZ$1017),0) -> 2 | AG107: =IFERROR($E107*SUMIF('Daily Log'!$CB$18:$CB$1017,$B107,'Daily Log'!$CC$18:$CC$1017),0) -> 3 | AH107: =IFERROR($E107*SUMIF('Daily Log'!$CE$18:$CE$1017,$B107,'Daily Log'!$CF$18:$CF$1017),0) -> 2 | AI107: =IFERROR($E107*SUMIF('Daily Log'!$CH$18:$CH$1017,$B107,'Daily Log'!$CI$18:$CI$1017),0) -> 0 | AJ107: =IFERROR($E107*SUMIF('Daily Log'!$CK$18:$CK$1017,$B107,'Daily Log'!$CL$18:$CL$1017),0) -> 0 | AK107: =IFERROR($E107*SUMIF('Daily Log'!$CN$18:$CN$1017,$B107,'Daily Log'!$CO$18:$CO$1017),0) -> 0
B108: LF19 91119:BUTTER FSH | D108: FFD -COLD BEVERAGE | E108: 1 | F108: 75 | G108: =IFERROR($E108*SUMIF('Daily Log'!$B$18:$B$1017,$B108,'Daily Log'!$C$18:$C$1017),0) -> 0 | H108: =IFERROR($E108*SUMIF('Daily Log'!$E$18:$E$1017,$B108,'Daily Log'!$F$18:$F$1017),0) -> 6 | I108: =IFERROR($E108*SUMIF('Daily Log'!$H$18:$H$1017,$B108,'Daily Log'!$I$18:$I$1017),0) -> 2 | J108: =IFERROR($E108*SUMIF('Daily Log'!$K$18:$K$1017,$B108,'Daily Log'!$L$18:$L$1017),0) -> 4 | K108: =IFERROR($E108*SUMIF('Daily Log'!$N$18:$N$1017,$B108,'Daily Log'!$O$18:$O$1017),0) -> 4 | L108: =IFERROR($E108*SUMIF('Daily Log'!$Q$18:$Q$1017,$B108,'Daily Log'!$R$18:$R$1017),0) -> 0 | M108: =IFERROR($E108*SUMIF('Daily Log'!$T$18:$T$1017,$B108,'Daily Log'!$U$18:$U$1017),0) -> 8 | N108: =IFERROR($E108*SUMIF('Daily Log'!$W$18:$W$1017,$B108,'Daily Log'!$X$18:$X$1017),0) -> 9 | O108: =IFERROR($E108*SUMIF('Daily Log'!$Z$18:$Z$1017,$B108,'Daily Log'!$AA$18:$AA$1017),0) -> 5 | P108: =IFERROR($E108*SUMIF('Daily Log'!$AC$18:$AC$1017,$B108,'Daily Log'!$AD$18:$AD$1017),0) -> 2 | Q108: =IFERROR($E108*SUMIF('Daily Log'!$AF$18:$AF$1017,$B108,'Daily Log'!$AG$18:$AG$1017),0) -> 4 | R108: =IFERROR($E108*SUMIF('Daily Log'!$AI$18:$AI$1017,$B108,'Daily Log'!$AJ$18:$AJ$1017),0) -> 4 | S108: =IFERROR($E108*SUMIF('Daily Log'!$AL$18:$AL$1017,$B108,'Daily Log'!$AM$18:$AM$1017),0) -> 0 | T108: =IFERROR($E108*SUMIF('Daily Log'!$AO$18:$AO$1017,$B108,'Daily Log'!$AP$18:$AP$1017),0) -> 1 | U108: =IFERROR($E108*SUMIF('Daily Log'!$AR$18:$AR$1017,$B108,'Daily Log'!$AS$18:$AS$1017),0) -> 1 | V108: =IFERROR($E108*SUMIF('Daily Log'!$AU$18:$AU$1017,$B108,'Daily Log'!$AV$18:$AV$1017),0) -> 5 | W108: =IFERROR($E108*SUMIF('Daily Log'!$AX$18:$AX$1017,$B108,'Daily Log'!$AY$18:$AY$1017),0) -> 0 | X108: =IFERROR($E108*SUMIF('Daily Log'!$BA$18:$BA$1017,$B108,'Daily Log'!$BB$18:$BB$1017),0) -> 2 | Y108: =IFERROR($E108*SUMIF('Daily Log'!$BD$18:$BD$1017,$B108,'Daily Log'!$BE$18:$BE$1017),0) -> 0 | Z108: =IFERROR($E108*SUMIF('Daily Log'!$BG$18:$BG$1017,$B108,'Daily Log'!$BH$18:$BH$1017),0) -> 0 | AA108: =IFERROR($E108*SUMIF('Daily Log'!$BJ$18:$BJ$1017,$B108,'Daily Log'!$BK$18:$BK$1017),0) -> 3 | AB108: =IFERROR($E108*SUMIF('Daily Log'!$BM$18:$BM$1017,$B108,'Daily Log'!$BN$18:$BN$1017),0) -> 3 | AC108: =IFERROR($E108*SUMIF('Daily Log'!$BP$18:$BP$1017,$B108,'Daily Log'!$BQ$18:$BQ$1017),0) -> 3 | AD108: =IFERROR($E108*SUMIF('Daily Log'!$BS$18:$BS$1017,$B108,'Daily Log'!$BT$18:$BT$1017),0) -> 2 | AE108: =IFERROR($E108*SUMIF('Daily Log'!$BV$18:$BV$1017,$B108,'Daily Log'!$BW$18:$BW$1017),0) -> 0 | AF108: =IFERROR($E108*SUMIF('Daily Log'!$BY$18:$BY$1017,$B108,'Daily Log'!$BZ$18:$BZ$1017),0) -> 2 | AG108: =IFERROR($E108*SUMIF('Daily Log'!$CB$18:$CB$1017,$B108,'Daily Log'!$CC$18:$CC$1017),0) -> 1 | AH108: =IFERROR($E108*SUMIF('Daily Log'!$CE$18:$CE$1017,$B108,'Daily Log'!$CF$18:$CF$1017),0) -> 4 | AI108: =IFERROR($E108*SUMIF('Daily Log'!$CH$18:$CH$1017,$B108,'Daily Log'!$CI$18:$CI$1017),0) -> 0 | AJ108: =IFERROR($E108*SUMIF('Daily Log'!$CK$18:$CK$1017,$B108,'Daily Log'!$CL$18:$CL$1017),0) -> 0 | AK108: =IFERROR($E108*SUMIF('Daily Log'!$CN$18:$CN$1017,$B108,'Daily Log'!$CO$18:$CO$1017),0) -> 0
B109: RL01 71101:THAI CHK | D109: SIDE ORDER -SNACK | E109: 1 | F109: 0 | G109: =IFERROR($E109*SUMIF('Daily Log'!$B$18:$B$1017,$B109,'Daily Log'!$C$18:$C$1017),0) -> 0 | H109: =IFERROR($E109*SUMIF('Daily Log'!$E$18:$E$1017,$B109,'Daily Log'!$F$18:$F$1017),0) -> 0 | I109: =IFERROR($E109*SUMIF('Daily Log'!$H$18:$H$1017,$B109,'Daily Log'!$I$18:$I$1017),0) -> 0 | J109: =IFERROR($E109*SUMIF('Daily Log'!$K$18:$K$1017,$B109,'Daily Log'!$L$18:$L$1017),0) -> 0 | K109: =IFERROR($E109*SUMIF('Daily Log'!$N$18:$N$1017,$B109,'Daily Log'!$O$18:$O$1017),0) -> 0 | L109: =IFERROR($E109*SUMIF('Daily Log'!$Q$18:$Q$1017,$B109,'Daily Log'!$R$18:$R$1017),0) -> 0 | M109: =IFERROR($E109*SUMIF('Daily Log'!$T$18:$T$1017,$B109,'Daily Log'!$U$18:$U$1017),0) -> 0 | N109: =IFERROR($E109*SUMIF('Daily Log'!$W$18:$W$1017,$B109,'Daily Log'!$X$18:$X$1017),0) -> 0 | O109: =IFERROR($E109*SUMIF('Daily Log'!$Z$18:$Z$1017,$B109,'Daily Log'!$AA$18:$AA$1017),0) -> 0 | P109: =IFERROR($E109*SUMIF('Daily Log'!$AC$18:$AC$1017,$B109,'Daily Log'!$AD$18:$AD$1017),0) -> 0 | Q109: =IFERROR($E109*SUMIF('Daily Log'!$AF$18:$AF$1017,$B109,'Daily Log'!$AG$18:$AG$1017),0) -> 0 | R109: =IFERROR($E109*SUMIF('Daily Log'!$AI$18:$AI$1017,$B109,'Daily Log'!$AJ$18:$AJ$1017),0) -> 0 | S109: =IFERROR($E109*SUMIF('Daily Log'!$AL$18:$AL$1017,$B109,'Daily Log'!$AM$18:$AM$1017),0) -> 0 | T109: =IFERROR($E109*SUMIF('Daily Log'!$AO$18:$AO$1017,$B109,'Daily Log'!$AP$18:$AP$1017),0) -> 0 | U109: =IFERROR($E109*SUMIF('Daily Log'!$AR$18:$AR$1017,$B109,'Daily Log'!$AS$18:$AS$1017),0) -> 0 | V109: =IFERROR($E109*SUMIF('Daily Log'!$AU$18:$AU$1017,$B109,'Daily Log'!$AV$18:$AV$1017),0) -> 0 | W109: =IFERROR($E109*SUMIF('Daily Log'!$AX$18:$AX$1017,$B109,'Daily Log'!$AY$18:$AY$1017),0) -> 0 | X109: =IFERROR($E109*SUMIF('Daily Log'!$BA$18:$BA$1017,$B109,'Daily Log'!$BB$18:$BB$1017),0) -> 0 | Y109: =IFERROR($E109*SUMIF('Daily Log'!$BD$18:$BD$1017,$B109,'Daily Log'!$BE$18:$BE$1017),0) -> 0 | Z109: =IFERROR($E109*SUMIF('Daily Log'!$BG$18:$BG$1017,$B109,'Daily Log'!$BH$18:$BH$1017),0) -> 0 | AA109: =IFERROR($E109*SUMIF('Daily Log'!$BJ$18:$BJ$1017,$B109,'Daily Log'!$BK$18:$BK$1017),0) -> 0 | AB109: =IFERROR($E109*SUMIF('Daily Log'!$BM$18:$BM$1017,$B109,'Daily Log'!$BN$18:$BN$1017),0) -> 0 | AC109: =IFERROR($E109*SUMIF('Daily Log'!$BP$18:$BP$1017,$B109,'Daily Log'!$BQ$18:$BQ$1017),0) -> 0 | AD109: =IFERROR($E109*SUMIF('Daily Log'!$BS$18:$BS$1017,$B109,'Daily Log'!$BT$18:$BT$1017),0) -> 0 | AE109: =IFERROR($E109*SUMIF('Daily Log'!$BV$18:$BV$1017,$B109,'Daily Log'!$BW$18:$BW$1017),0) -> 0 | AF109: =IFERROR($E109*SUMIF('Daily Log'!$BY$18:$BY$1017,$B109,'Daily Log'!$BZ$18:$BZ$1017),0) -> 0 | AG109: =IFERROR($E109*SUMIF('Daily Log'!$CB$18:$CB$1017,$B109,'Daily Log'!$CC$18:$CC$1017),0) -> 0 | AH109: =IFERROR($E109*SUMIF('Daily Log'!$CE$18:$CE$1017,$B109,'Daily Log'!$CF$18:$CF$1017),0) -> 0 | AI109: =IFERROR($E109*SUMIF('Daily Log'!$CH$18:$CH$1017,$B109,'Daily Log'!$CI$18:$CI$1017),0) -> 0 | AJ109: =IFERROR($E109*SUMIF('Daily Log'!$CK$18:$CK$1017,$B109,'Daily Log'!$CL$18:$CL$1017),0) -> 0 | AK109: =IFERROR($E109*SUMIF('Daily Log'!$CN$18:$CN$1017,$B109,'Daily Log'!$CO$18:$CO$1017),0) -> 0
B110: RL02 71102:MAMITE CHK | D110: SIDE ORDER -SNACK | E110: 1 | F110: 0 | G110: =IFERROR($E110*SUMIF('Daily Log'!$B$18:$B$1017,$B110,'Daily Log'!$C$18:$C$1017),0) -> 0 | H110: =IFERROR($E110*SUMIF('Daily Log'!$E$18:$E$1017,$B110,'Daily Log'!$F$18:$F$1017),0) -> 0 | I110: =IFERROR($E110*SUMIF('Daily Log'!$H$18:$H$1017,$B110,'Daily Log'!$I$18:$I$1017),0) -> 0 | J110: =IFERROR($E110*SUMIF('Daily Log'!$K$18:$K$1017,$B110,'Daily Log'!$L$18:$L$1017),0) -> 0 | K110: =IFERROR($E110*SUMIF('Daily Log'!$N$18:$N$1017,$B110,'Daily Log'!$O$18:$O$1017),0) -> 0 | L110: =IFERROR($E110*SUMIF('Daily Log'!$Q$18:$Q$1017,$B110,'Daily Log'!$R$18:$R$1017),0) -> 0 | M110: =IFERROR($E110*SUMIF('Daily Log'!$T$18:$T$1017,$B110,'Daily Log'!$U$18:$U$1017),0) -> 0 | N110: =IFERROR($E110*SUMIF('Daily Log'!$W$18:$W$1017,$B110,'Daily Log'!$X$18:$X$1017),0) -> 0 | O110: =IFERROR($E110*SUMIF('Daily Log'!$Z$18:$Z$1017,$B110,'Daily Log'!$AA$18:$AA$1017),0) -> 0 | P110: =IFERROR($E110*SUMIF('Daily Log'!$AC$18:$AC$1017,$B110,'Daily Log'!$AD$18:$AD$1017),0) -> 0 | Q110: =IFERROR($E110*SUMIF('Daily Log'!$AF$18:$AF$1017,$B110,'Daily Log'!$AG$18:$AG$1017),0) -> 0 | R110: =IFERROR($E110*SUMIF('Daily Log'!$AI$18:$AI$1017,$B110,'Daily Log'!$AJ$18:$AJ$1017),0) -> 0 | S110: =IFERROR($E110*SUMIF('Daily Log'!$AL$18:$AL$1017,$B110,'Daily Log'!$AM$18:$AM$1017),0) -> 0 | T110: =IFERROR($E110*SUMIF('Daily Log'!$AO$18:$AO$1017,$B110,'Daily Log'!$AP$18:$AP$1017),0) -> 0 | U110: =IFERROR($E110*SUMIF('Daily Log'!$AR$18:$AR$1017,$B110,'Daily Log'!$AS$18:$AS$1017),0) -> 0 | V110: =IFERROR($E110*SUMIF('Daily Log'!$AU$18:$AU$1017,$B110,'Daily Log'!$AV$18:$AV$1017),0) -> 0 | W110: =IFERROR($E110*SUMIF('Daily Log'!$AX$18:$AX$1017,$B110,'Daily Log'!$AY$18:$AY$1017),0) -> 0 | X110: =IFERROR($E110*SUMIF('Daily Log'!$BA$18:$BA$1017,$B110,'Daily Log'!$BB$18:$BB$1017),0) -> 0 | Y110: =IFERROR($E110*SUMIF('Daily Log'!$BD$18:$BD$1017,$B110,'Daily Log'!$BE$18:$BE$1017),0) -> 0 | Z110: =IFERROR($E110*SUMIF('Daily Log'!$BG$18:$BG$1017,$B110,'Daily Log'!$BH$18:$BH$1017),0) -> 0 | AA110: =IFERROR($E110*SUMIF('Daily Log'!$BJ$18:$BJ$1017,$B110,'Daily Log'!$BK$18:$BK$1017),0) -> 0 | AB110: =IFERROR($E110*SUMIF('Daily Log'!$BM$18:$BM$1017,$B110,'Daily Log'!$BN$18:$BN$1017),0) -> 0 | AC110: =IFERROR($E110*SUMIF('Daily Log'!$BP$18:$BP$1017,$B110,'Daily Log'!$BQ$18:$BQ$1017),0) -> 0 | AD110: =IFERROR($E110*SUMIF('Daily Log'!$BS$18:$BS$1017,$B110,'Daily Log'!$BT$18:$BT$1017),0) -> 0 | AE110: =IFERROR($E110*SUMIF('Daily Log'!$BV$18:$BV$1017,$B110,'Daily Log'!$BW$18:$BW$1017),0) -> 0 | AF110: =IFERROR($E110*SUMIF('Daily Log'!$BY$18:$BY$1017,$B110,'Daily Log'!$BZ$18:$BZ$1017),0) -> 0 | AG110: =IFERROR($E110*SUMIF('Daily Log'!$CB$18:$CB$1017,$B110,'Daily Log'!$CC$18:$CC$1017),0) -> 0 | AH110: =IFERROR($E110*SUMIF('Daily Log'!$CE$18:$CE$1017,$B110,'Daily Log'!$CF$18:$CF$1017),0) -> 0 | AI110: =IFERROR($E110*SUMIF('Daily Log'!$CH$18:$CH$1017,$B110,'Daily Log'!$CI$18:$CI$1017),0) -> 0 | AJ110: =IFERROR($E110*SUMIF('Daily Log'!$CK$18:$CK$1017,$B110,'Daily Log'!$CL$18:$CL$1017),0) -> 0 | AK110: =IFERROR($E110*SUMIF('Daily Log'!$CN$18:$CN$1017,$B110,'Daily Log'!$CO$18:$CO$1017),0) -> 0
B111: RL05 71105:BUTTER CHK | D111: SIDE ORDER -SNACK | E111: 1 | F111: 0 | G111: =IFERROR($E111*SUMIF('Daily Log'!$B$18:$B$1017,$B111,'Daily Log'!$C$18:$C$1017),0) -> 0 | H111: =IFERROR($E111*SUMIF('Daily Log'!$E$18:$E$1017,$B111,'Daily Log'!$F$18:$F$1017),0) -> 0 | I111: =IFERROR($E111*SUMIF('Daily Log'!$H$18:$H$1017,$B111,'Daily Log'!$I$18:$I$1017),0) -> 0 | J111: =IFERROR($E111*SUMIF('Daily Log'!$K$18:$K$1017,$B111,'Daily Log'!$L$18:$L$1017),0) -> 0 | K111: =IFERROR($E111*SUMIF('Daily Log'!$N$18:$N$1017,$B111,'Daily Log'!$O$18:$O$1017),0) -> 0 | L111: =IFERROR($E111*SUMIF('Daily Log'!$Q$18:$Q$1017,$B111,'Daily Log'!$R$18:$R$1017),0) -> 0 | M111: =IFERROR($E111*SUMIF('Daily Log'!$T$18:$T$1017,$B111,'Daily Log'!$U$18:$U$1017),0) -> 0 | N111: =IFERROR($E111*SUMIF('Daily Log'!$W$18:$W$1017,$B111,'Daily Log'!$X$18:$X$1017),0) -> 0 | O111: =IFERROR($E111*SUMIF('Daily Log'!$Z$18:$Z$1017,$B111,'Daily Log'!$AA$18:$AA$1017),0) -> 0 | P111: =IFERROR($E111*SUMIF('Daily Log'!$AC$18:$AC$1017,$B111,'Daily Log'!$AD$18:$AD$1017),0) -> 0 | Q111: =IFERROR($E111*SUMIF('Daily Log'!$AF$18:$AF$1017,$B111,'Daily Log'!$AG$18:$AG$1017),0) -> 0 | R111: =IFERROR($E111*SUMIF('Daily Log'!$AI$18:$AI$1017,$B111,'Daily Log'!$AJ$18:$AJ$1017),0) -> 0 | S111: =IFERROR($E111*SUMIF('Daily Log'!$AL$18:$AL$1017,$B111,'Daily Log'!$AM$18:$AM$1017),0) -> 0 | T111: =IFERROR($E111*SUMIF('Daily Log'!$AO$18:$AO$1017,$B111,'Daily Log'!$AP$18:$AP$1017),0) -> 0 | U111: =IFERROR($E111*SUMIF('Daily Log'!$AR$18:$AR$1017,$B111,'Daily Log'!$AS$18:$AS$1017),0) -> 0 | V111: =IFERROR($E111*SUMIF('Daily Log'!$AU$18:$AU$1017,$B111,'Daily Log'!$AV$18:$AV$1017),0) -> 0 | W111: =IFERROR($E111*SUMIF('Daily Log'!$AX$18:$AX$1017,$B111,'Daily Log'!$AY$18:$AY$1017),0) -> 0 | X111: =IFERROR($E111*SUMIF('Daily Log'!$BA$18:$BA$1017,$B111,'Daily Log'!$BB$18:$BB$1017),0) -> 0 | Y111: =IFERROR($E111*SUMIF('Daily Log'!$BD$18:$BD$1017,$B111,'Daily Log'!$BE$18:$BE$1017),0) -> 0 | Z111: =IFERROR($E111*SUMIF('Daily Log'!$BG$18:$BG$1017,$B111,'Daily Log'!$BH$18:$BH$1017),0) -> 0 | AA111: =IFERROR($E111*SUMIF('Daily Log'!$BJ$18:$BJ$1017,$B111,'Daily Log'!$BK$18:$BK$1017),0) -> 0 | AB111: =IFERROR($E111*SUMIF('Daily Log'!$BM$18:$BM$1017,$B111,'Daily Log'!$BN$18:$BN$1017),0) -> 0 | AC111: =IFERROR($E111*SUMIF('Daily Log'!$BP$18:$BP$1017,$B111,'Daily Log'!$BQ$18:$BQ$1017),0) -> 0 | AD111: =IFERROR($E111*SUMIF('Daily Log'!$BS$18:$BS$1017,$B111,'Daily Log'!$BT$18:$BT$1017),0) -> 0 | AE111: =IFERROR($E111*SUMIF('Daily Log'!$BV$18:$BV$1017,$B111,'Daily Log'!$BW$18:$BW$1017),0) -> 0 | AF111: =IFERROR($E111*SUMIF('Daily Log'!$BY$18:$BY$1017,$B111,'Daily Log'!$BZ$18:$BZ$1017),0) -> 0 | AG111: =IFERROR($E111*SUMIF('Daily Log'!$CB$18:$CB$1017,$B111,'Daily Log'!$CC$18:$CC$1017),0) -> 0 | AH111: =IFERROR($E111*SUMIF('Daily Log'!$CE$18:$CE$1017,$B111,'Daily Log'!$CF$18:$CF$1017),0) -> 0 | AI111: =IFERROR($E111*SUMIF('Daily Log'!$CH$18:$CH$1017,$B111,'Daily Log'!$CI$18:$CI$1017),0) -> 0 | AJ111: =IFERROR($E111*SUMIF('Daily Log'!$CK$18:$CK$1017,$B111,'Daily Log'!$CL$18:$CL$1017),0) -> 0 | AK111: =IFERROR($E111*SUMIF('Daily Log'!$CN$18:$CN$1017,$B111,'Daily Log'!$CO$18:$CO$1017),0) -> 0
B112: RL17 71117:THAI FSH | D112: SIDE ORDER -SNACK | E112: 1 | F112: 0 | G112: =IFERROR($E112*SUMIF('Daily Log'!$B$18:$B$1017,$B112,'Daily Log'!$C$18:$C$1017),0) -> 0 | H112: =IFERROR($E112*SUMIF('Daily Log'!$E$18:$E$1017,$B112,'Daily Log'!$F$18:$F$1017),0) -> 0 | I112: =IFERROR($E112*SUMIF('Daily Log'!$H$18:$H$1017,$B112,'Daily Log'!$I$18:$I$1017),0) -> 0 | J112: =IFERROR($E112*SUMIF('Daily Log'!$K$18:$K$1017,$B112,'Daily Log'!$L$18:$L$1017),0) -> 0 | K112: =IFERROR($E112*SUMIF('Daily Log'!$N$18:$N$1017,$B112,'Daily Log'!$O$18:$O$1017),0) -> 0 | L112: =IFERROR($E112*SUMIF('Daily Log'!$Q$18:$Q$1017,$B112,'Daily Log'!$R$18:$R$1017),0) -> 0 | M112: =IFERROR($E112*SUMIF('Daily Log'!$T$18:$T$1017,$B112,'Daily Log'!$U$18:$U$1017),0) -> 0 | N112: =IFERROR($E112*SUMIF('Daily Log'!$W$18:$W$1017,$B112,'Daily Log'!$X$18:$X$1017),0) -> 0 | O112: =IFERROR($E112*SUMIF('Daily Log'!$Z$18:$Z$1017,$B112,'Daily Log'!$AA$18:$AA$1017),0) -> 0 | P112: =IFERROR($E112*SUMIF('Daily Log'!$AC$18:$AC$1017,$B112,'Daily Log'!$AD$18:$AD$1017),0) -> 0 | Q112: =IFERROR($E112*SUMIF('Daily Log'!$AF$18:$AF$1017,$B112,'Daily Log'!$AG$18:$AG$1017),0) -> 0 | R112: =IFERROR($E112*SUMIF('Daily Log'!$AI$18:$AI$1017,$B112,'Daily Log'!$AJ$18:$AJ$1017),0) -> 0 | S112: =IFERROR($E112*SUMIF('Daily Log'!$AL$18:$AL$1017,$B112,'Daily Log'!$AM$18:$AM$1017),0) -> 0 | T112: =IFERROR($E112*SUMIF('Daily Log'!$AO$18:$AO$1017,$B112,'Daily Log'!$AP$18:$AP$1017),0) -> 0 | U112: =IFERROR($E112*SUMIF('Daily Log'!$AR$18:$AR$1017,$B112,'Daily Log'!$AS$18:$AS$1017),0) -> 0 | V112: =IFERROR($E112*SUMIF('Daily Log'!$AU$18:$AU$1017,$B112,'Daily Log'!$AV$18:$AV$1017),0) -> 0 | W112: =IFERROR($E112*SUMIF('Daily Log'!$AX$18:$AX$1017,$B112,'Daily Log'!$AY$18:$AY$1017),0) -> 0 | X112: =IFERROR($E112*SUMIF('Daily Log'!$BA$18:$BA$1017,$B112,'Daily Log'!$BB$18:$BB$1017),0) -> 0 | Y112: =IFERROR($E112*SUMIF('Daily Log'!$BD$18:$BD$1017,$B112,'Daily Log'!$BE$18:$BE$1017),0) -> 0 | Z112: =IFERROR($E112*SUMIF('Daily Log'!$BG$18:$BG$1017,$B112,'Daily Log'!$BH$18:$BH$1017),0) -> 0 | AA112: =IFERROR($E112*SUMIF('Daily Log'!$BJ$18:$BJ$1017,$B112,'Daily Log'!$BK$18:$BK$1017),0) -> 0 | AB112: =IFERROR($E112*SUMIF('Daily Log'!$BM$18:$BM$1017,$B112,'Daily Log'!$BN$18:$BN$1017),0) -> 0 | AC112: =IFERROR($E112*SUMIF('Daily Log'!$BP$18:$BP$1017,$B112,'Daily Log'!$BQ$18:$BQ$1017),0) -> 0 | AD112: =IFERROR($E112*SUMIF('Daily Log'!$BS$18:$BS$1017,$B112,'Daily Log'!$BT$18:$BT$1017),0) -> 0 | AE112: =IFERROR($E112*SUMIF('Daily Log'!$BV$18:$BV$1017,$B112,'Daily Log'!$BW$18:$BW$1017),0) -> 0 | AF112: =IFERROR($E112*SUMIF('Daily Log'!$BY$18:$BY$1017,$B112,'Daily Log'!$BZ$18:$BZ$1017),0) -> 0 | AG112: =IFERROR($E112*SUMIF('Daily Log'!$CB$18:$CB$1017,$B112,'Daily Log'!$CC$18:$CC$1017),0) -> 0 | AH112: =IFERROR($E112*SUMIF('Daily Log'!$CE$18:$CE$1017,$B112,'Daily Log'!$CF$18:$CF$1017),0) -> 0 | AI112: =IFERROR($E112*SUMIF('Daily Log'!$CH$18:$CH$1017,$B112,'Daily Log'!$CI$18:$CI$1017),0) -> 0 | AJ112: =IFERROR($E112*SUMIF('Daily Log'!$CK$18:$CK$1017,$B112,'Daily Log'!$CL$18:$CL$1017),0) -> 0 | AK112: =IFERROR($E112*SUMIF('Daily Log'!$CN$18:$CN$1017,$B112,'Daily Log'!$CO$18:$CO$1017),0) -> 0
B113: RL18 71118:MAMITE FSH | D113: SNACK | E113: 1 | F113: 0 | G113: =IFERROR($E113*SUMIF('Daily Log'!$B$18:$B$1017,$B113,'Daily Log'!$C$18:$C$1017),0) -> 0 | H113: =IFERROR($E113*SUMIF('Daily Log'!$E$18:$E$1017,$B113,'Daily Log'!$F$18:$F$1017),0) -> 0 | I113: =IFERROR($E113*SUMIF('Daily Log'!$H$18:$H$1017,$B113,'Daily Log'!$I$18:$I$1017),0) -> 0 | J113: =IFERROR($E113*SUMIF('Daily Log'!$K$18:$K$1017,$B113,'Daily Log'!$L$18:$L$1017),0) -> 0 | K113: =IFERROR($E113*SUMIF('Daily Log'!$N$18:$N$1017,$B113,'Daily Log'!$O$18:$O$1017),0) -> 0 | L113: =IFERROR($E113*SUMIF('Daily Log'!$Q$18:$Q$1017,$B113,'Daily Log'!$R$18:$R$1017),0) -> 0 | M113: =IFERROR($E113*SUMIF('Daily Log'!$T$18:$T$1017,$B113,'Daily Log'!$U$18:$U$1017),0) -> 0 | N113: =IFERROR($E113*SUMIF('Daily Log'!$W$18:$W$1017,$B113,'Daily Log'!$X$18:$X$1017),0) -> 0 | O113: =IFERROR($E113*SUMIF('Daily Log'!$Z$18:$Z$1017,$B113,'Daily Log'!$AA$18:$AA$1017),0) -> 0 | P113: =IFERROR($E113*SUMIF('Daily Log'!$AC$18:$AC$1017,$B113,'Daily Log'!$AD$18:$AD$1017),0) -> 0 | Q113: =IFERROR($E113*SUMIF('Daily Log'!$AF$18:$AF$1017,$B113,'Daily Log'!$AG$18:$AG$1017),0) -> 0 | R113: =IFERROR($E113*SUMIF('Daily Log'!$AI$18:$AI$1017,$B113,'Daily Log'!$AJ$18:$AJ$1017),0) -> 0 | S113: =IFERROR($E113*SUMIF('Daily Log'!$AL$18:$AL$1017,$B113,'Daily Log'!$AM$18:$AM$1017),0) -> 0 | T113: =IFERROR($E113*SUMIF('Daily Log'!$AO$18:$AO$1017,$B113,'Daily Log'!$AP$18:$AP$1017),0) -> 0 | U113: =IFERROR($E113*SUMIF('Daily Log'!$AR$18:$AR$1017,$B113,'Daily Log'!$AS$18:$AS$1017),0) -> 0 | V113: =IFERROR($E113*SUMIF('Daily Log'!$AU$18:$AU$1017,$B113,'Daily Log'!$AV$18:$AV$1017),0) -> 0 | W113: =IFERROR($E113*SUMIF('Daily Log'!$AX$18:$AX$1017,$B113,'Daily Log'!$AY$18:$AY$1017),0) -> 0 | X113: =IFERROR($E113*SUMIF('Daily Log'!$BA$18:$BA$1017,$B113,'Daily Log'!$BB$18:$BB$1017),0) -> 0 | Y113: =IFERROR($E113*SUMIF('Daily Log'!$BD$18:$BD$1017,$B113,'Daily Log'!$BE$18:$BE$1017),0) -> 0 | Z113: =IFERROR($E113*SUMIF('Daily Log'!$BG$18:$BG$1017,$B113,'Daily Log'!$BH$18:$BH$1017),0) -> 0 | AA113: =IFERROR($E113*SUMIF('Daily Log'!$BJ$18:$BJ$1017,$B113,'Daily Log'!$BK$18:$BK$1017),0) -> 0 | AB113: =IFERROR($E113*SUMIF('Daily Log'!$BM$18:$BM$1017,$B113,'Daily Log'!$BN$18:$BN$1017),0) -> 0 | AC113: =IFERROR($E113*SUMIF('Daily Log'!$BP$18:$BP$1017,$B113,'Daily Log'!$BQ$18:$BQ$1017),0) -> 0 | AD113: =IFERROR($E113*SUMIF('Daily Log'!$BS$18:$BS$1017,$B113,'Daily Log'!$BT$18:$BT$1017),0) -> 0 | AE113: =IFERROR($E113*SUMIF('Daily Log'!$BV$18:$BV$1017,$B113,'Daily Log'!$BW$18:$BW$1017),0) -> 0 | AF113: =IFERROR($E113*SUMIF('Daily Log'!$BY$18:$BY$1017,$B113,'Daily Log'!$BZ$18:$BZ$1017),0) -> 0 | AG113: =IFERROR($E113*SUMIF('Daily Log'!$CB$18:$CB$1017,$B113,'Daily Log'!$CC$18:$CC$1017),0) -> 0 | AH113: =IFERROR($E113*SUMIF('Daily Log'!$CE$18:$CE$1017,$B113,'Daily Log'!$CF$18:$CF$1017),0) -> 0 | AI113: =IFERROR($E113*SUMIF('Daily Log'!$CH$18:$CH$1017,$B113,'Daily Log'!$CI$18:$CI$1017),0) -> 0 | AJ113: =IFERROR($E113*SUMIF('Daily Log'!$CK$18:$CK$1017,$B113,'Daily Log'!$CL$18:$CL$1017),0) -> 0 | AK113: =IFERROR($E113*SUMIF('Daily Log'!$CN$18:$CN$1017,$B113,'Daily Log'!$CO$18:$CO$1017),0) -> 0
B114: RL19 71119:BUTTER FSH | D114: SNACK | E114: 1 | F114: 0 | G114: =IFERROR($E114*SUMIF('Daily Log'!$B$18:$B$1017,$B114,'Daily Log'!$C$18:$C$1017),0) -> 0 | H114: =IFERROR($E114*SUMIF('Daily Log'!$E$18:$E$1017,$B114,'Daily Log'!$F$18:$F$1017),0) -> 0 | I114: =IFERROR($E114*SUMIF('Daily Log'!$H$18:$H$1017,$B114,'Daily Log'!$I$18:$I$1017),0) -> 0 | J114: =IFERROR($E114*SUMIF('Daily Log'!$K$18:$K$1017,$B114,'Daily Log'!$L$18:$L$1017),0) -> 0 | K114: =IFERROR($E114*SUMIF('Daily Log'!$N$18:$N$1017,$B114,'Daily Log'!$O$18:$O$1017),0) -> 0 | L114: =IFERROR($E114*SUMIF('Daily Log'!$Q$18:$Q$1017,$B114,'Daily Log'!$R$18:$R$1017),0) -> 0 | M114: =IFERROR($E114*SUMIF('Daily Log'!$T$18:$T$1017,$B114,'Daily Log'!$U$18:$U$1017),0) -> 0 | N114: =IFERROR($E114*SUMIF('Daily Log'!$W$18:$W$1017,$B114,'Daily Log'!$X$18:$X$1017),0) -> 0 | O114: =IFERROR($E114*SUMIF('Daily Log'!$Z$18:$Z$1017,$B114,'Daily Log'!$AA$18:$AA$1017),0) -> 0 | P114: =IFERROR($E114*SUMIF('Daily Log'!$AC$18:$AC$1017,$B114,'Daily Log'!$AD$18:$AD$1017),0) -> 0 | Q114: =IFERROR($E114*SUMIF('Daily Log'!$AF$18:$AF$1017,$B114,'Daily Log'!$AG$18:$AG$1017),0) -> 0 | R114: =IFERROR($E114*SUMIF('Daily Log'!$AI$18:$AI$1017,$B114,'Daily Log'!$AJ$18:$AJ$1017),0) -> 0 | S114: =IFERROR($E114*SUMIF('Daily Log'!$AL$18:$AL$1017,$B114,'Daily Log'!$AM$18:$AM$1017),0) -> 0 | T114: =IFERROR($E114*SUMIF('Daily Log'!$AO$18:$AO$1017,$B114,'Daily Log'!$AP$18:$AP$1017),0) -> 0 | U114: =IFERROR($E114*SUMIF('Daily Log'!$AR$18:$AR$1017,$B114,'Daily Log'!$AS$18:$AS$1017),0) -> 0 | V114: =IFERROR($E114*SUMIF('Daily Log'!$AU$18:$AU$1017,$B114,'Daily Log'!$AV$18:$AV$1017),0) -> 0 | W114: =IFERROR($E114*SUMIF('Daily Log'!$AX$18:$AX$1017,$B114,'Daily Log'!$AY$18:$AY$1017),0) -> 0 | X114: =IFERROR($E114*SUMIF('Daily Log'!$BA$18:$BA$1017,$B114,'Daily Log'!$BB$18:$BB$1017),0) -> 0 | Y114: =IFERROR($E114*SUMIF('Daily Log'!$BD$18:$BD$1017,$B114,'Daily Log'!$BE$18:$BE$1017),0) -> 0 | Z114: =IFERROR($E114*SUMIF('Daily Log'!$BG$18:$BG$1017,$B114,'Daily Log'!$BH$18:$BH$1017),0) -> 0 | AA114: =IFERROR($E114*SUMIF('Daily Log'!$BJ$18:$BJ$1017,$B114,'Daily Log'!$BK$18:$BK$1017),0) -> 0 | AB114: =IFERROR($E114*SUMIF('Daily Log'!$BM$18:$BM$1017,$B114,'Daily Log'!$BN$18:$BN$1017),0) -> 0 | AC114: =IFERROR($E114*SUMIF('Daily Log'!$BP$18:$BP$1017,$B114,'Daily Log'!$BQ$18:$BQ$1017),0) -> 0 | AD114: =IFERROR($E114*SUMIF('Daily Log'!$BS$18:$BS$1017,$B114,'Daily Log'!$BT$18:$BT$1017),0) -> 0 | AE114: =IFERROR($E114*SUMIF('Daily Log'!$BV$18:$BV$1017,$B114,'Daily Log'!$BW$18:$BW$1017),0) -> 0 | AF114: =IFERROR($E114*SUMIF('Daily Log'!$BY$18:$BY$1017,$B114,'Daily Log'!$BZ$18:$BZ$1017),0) -> 0 | AG114: =IFERROR($E114*SUMIF('Daily Log'!$CB$18:$CB$1017,$B114,'Daily Log'!$CC$18:$CC$1017),0) -> 0 | AH114: =IFERROR($E114*SUMIF('Daily Log'!$CE$18:$CE$1017,$B114,'Daily Log'!$CF$18:$CF$1017),0) -> 0 | AI114: =IFERROR($E114*SUMIF('Daily Log'!$CH$18:$CH$1017,$B114,'Daily Log'!$CI$18:$CI$1017),0) -> 0 | AJ114: =IFERROR($E114*SUMIF('Daily Log'!$CK$18:$CK$1017,$B114,'Daily Log'!$CL$18:$CL$1017),0) -> 0 | AK114: =IFERROR($E114*SUMIF('Daily Log'!$CN$18:$CN$1017,$B114,'Daily Log'!$CO$18:$CO$1017),0) -> 0
B115: AA02 1202:FREN FRIES | D115: SNACK | E115: 1 | F115: 135 | G115: =IFERROR($E115*SUMIF('Daily Log'!$B$18:$B$1017,$B115,'Daily Log'!$C$18:$C$1017),0) -> 3 | H115: =IFERROR($E115*SUMIF('Daily Log'!$E$18:$E$1017,$B115,'Daily Log'!$F$18:$F$1017),0) -> 9 | I115: =IFERROR($E115*SUMIF('Daily Log'!$H$18:$H$1017,$B115,'Daily Log'!$I$18:$I$1017),0) -> 5 | J115: =IFERROR($E115*SUMIF('Daily Log'!$K$18:$K$1017,$B115,'Daily Log'!$L$18:$L$1017),0) -> 5 | K115: =IFERROR($E115*SUMIF('Daily Log'!$N$18:$N$1017,$B115,'Daily Log'!$O$18:$O$1017),0) -> 6 | L115: =IFERROR($E115*SUMIF('Daily Log'!$Q$18:$Q$1017,$B115,'Daily Log'!$R$18:$R$1017),0) -> 1 | M115: =IFERROR($E115*SUMIF('Daily Log'!$T$18:$T$1017,$B115,'Daily Log'!$U$18:$U$1017),0) -> 3 | N115: =IFERROR($E115*SUMIF('Daily Log'!$W$18:$W$1017,$B115,'Daily Log'!$X$18:$X$1017),0) -> 11 | O115: =IFERROR($E115*SUMIF('Daily Log'!$Z$18:$Z$1017,$B115,'Daily Log'!$AA$18:$AA$1017),0) -> 7 | P115: =IFERROR($E115*SUMIF('Daily Log'!$AC$18:$AC$1017,$B115,'Daily Log'!$AD$18:$AD$1017),0) -> 2 | Q115: =IFERROR($E115*SUMIF('Daily Log'!$AF$18:$AF$1017,$B115,'Daily Log'!$AG$18:$AG$1017),0) -> 4 | R115: =IFERROR($E115*SUMIF('Daily Log'!$AI$18:$AI$1017,$B115,'Daily Log'!$AJ$18:$AJ$1017),0) -> 3 | S115: =IFERROR($E115*SUMIF('Daily Log'!$AL$18:$AL$1017,$B115,'Daily Log'!$AM$18:$AM$1017),0) -> 8 | T115: =IFERROR($E115*SUMIF('Daily Log'!$AO$18:$AO$1017,$B115,'Daily Log'!$AP$18:$AP$1017),0) -> 1 | U115: =IFERROR($E115*SUMIF('Daily Log'!$AR$18:$AR$1017,$B115,'Daily Log'!$AS$18:$AS$1017),0) -> 4 | V115: =IFERROR($E115*SUMIF('Daily Log'!$AU$18:$AU$1017,$B115,'Daily Log'!$AV$18:$AV$1017),0) -> 4 | W115: =IFERROR($E115*SUMIF('Daily Log'!$AX$18:$AX$1017,$B115,'Daily Log'!$AY$18:$AY$1017),0) -> 2 | X115: =IFERROR($E115*SUMIF('Daily Log'!$BA$18:$BA$1017,$B115,'Daily Log'!$BB$18:$BB$1017),0) -> 3 | Y115: =IFERROR($E115*SUMIF('Daily Log'!$BD$18:$BD$1017,$B115,'Daily Log'!$BE$18:$BE$1017),0) -> 9 | Z115: =IFERROR($E115*SUMIF('Daily Log'!$BG$18:$BG$1017,$B115,'Daily Log'!$BH$18:$BH$1017),0) -> 5 | AA115: =IFERROR($E115*SUMIF('Daily Log'!$BJ$18:$BJ$1017,$B115,'Daily Log'!$BK$18:$BK$1017),0) -> 9 | AB115: =IFERROR($E115*SUMIF('Daily Log'!$BM$18:$BM$1017,$B115,'Daily Log'!$BN$18:$BN$1017),0) -> 2 | AC115: =IFERROR($E115*SUMIF('Daily Log'!$BP$18:$BP$1017,$B115,'Daily Log'!$BQ$18:$BQ$1017),0) -> 6 | AD115: =IFERROR($E115*SUMIF('Daily Log'!$BS$18:$BS$1017,$B115,'Daily Log'!$BT$18:$BT$1017),0) -> 6 | AE115: =IFERROR($E115*SUMIF('Daily Log'!$BV$18:$BV$1017,$B115,'Daily Log'!$BW$18:$BW$1017),0) -> 4 | AF115: =IFERROR($E115*SUMIF('Daily Log'!$BY$18:$BY$1017,$B115,'Daily Log'!$BZ$18:$BZ$1017),0) -> 3 | AG115: =IFERROR($E115*SUMIF('Daily Log'!$CB$18:$CB$1017,$B115,'Daily Log'!$CC$18:$CC$1017),0) -> 4 | AH115: =IFERROR($E115*SUMIF('Daily Log'!$CE$18:$CE$1017,$B115,'Daily Log'!$CF$18:$CF$1017),0) -> 6 | AI115: =IFERROR($E115*SUMIF('Daily Log'!$CH$18:$CH$1017,$B115,'Daily Log'!$CI$18:$CI$1017),0) -> 0 | AJ115: =IFERROR($E115*SUMIF('Daily Log'!$CK$18:$CK$1017,$B115,'Daily Log'!$CL$18:$CL$1017),0) -> 0 | AK115: =IFERROR($E115*SUMIF('Daily Log'!$CN$18:$CN$1017,$B115,'Daily Log'!$CO$18:$CO$1017),0) -> 0
B116: AA04 1204:FSH BALL | D116: SNACK | E116: 1 | F116: 6 | G116: =IFERROR($E116*SUMIF('Daily Log'!$B$18:$B$1017,$B116,'Daily Log'!$C$18:$C$1017),0) -> 1 | H116: =IFERROR($E116*SUMIF('Daily Log'!$E$18:$E$1017,$B116,'Daily Log'!$F$18:$F$1017),0) -> 0 | I116: =IFERROR($E116*SUMIF('Daily Log'!$H$18:$H$1017,$B116,'Daily Log'!$I$18:$I$1017),0) -> 0 | J116: =IFERROR($E116*SUMIF('Daily Log'!$K$18:$K$1017,$B116,'Daily Log'!$L$18:$L$1017),0) -> 0 | K116: =IFERROR($E116*SUMIF('Daily Log'!$N$18:$N$1017,$B116,'Daily Log'!$O$18:$O$1017),0) -> 0 | L116: =IFERROR($E116*SUMIF('Daily Log'!$Q$18:$Q$1017,$B116,'Daily Log'!$R$18:$R$1017),0) -> 0 | M116: =IFERROR($E116*SUMIF('Daily Log'!$T$18:$T$1017,$B116,'Daily Log'!$U$18:$U$1017),0) -> 0 | N116: =IFERROR($E116*SUMIF('Daily Log'!$W$18:$W$1017,$B116,'Daily Log'!$X$18:$X$1017),0) -> 0 | O116: =IFERROR($E116*SUMIF('Daily Log'!$Z$18:$Z$1017,$B116,'Daily Log'!$AA$18:$AA$1017),0) -> 0 | P116: =IFERROR($E116*SUMIF('Daily Log'!$AC$18:$AC$1017,$B116,'Daily Log'!$AD$18:$AD$1017),0) -> 1 | Q116: =IFERROR($E116*SUMIF('Daily Log'!$AF$18:$AF$1017,$B116,'Daily Log'!$AG$18:$AG$1017),0) -> 0 | R116: =IFERROR($E116*SUMIF('Daily Log'!$AI$18:$AI$1017,$B116,'Daily Log'!$AJ$18:$AJ$1017),0) -> 0 | S116: =IFERROR($E116*SUMIF('Daily Log'!$AL$18:$AL$1017,$B116,'Daily Log'!$AM$18:$AM$1017),0) -> 0 | T116: =IFERROR($E116*SUMIF('Daily Log'!$AO$18:$AO$1017,$B116,'Daily Log'!$AP$18:$AP$1017),0) -> 0 | U116: =IFERROR($E116*SUMIF('Daily Log'!$AR$18:$AR$1017,$B116,'Daily Log'!$AS$18:$AS$1017),0) -> 0 | V116: =IFERROR($E116*SUMIF('Daily Log'!$AU$18:$AU$1017,$B116,'Daily Log'!$AV$18:$AV$1017),0) -> 0 | W116: =IFERROR($E116*SUMIF('Daily Log'!$AX$18:$AX$1017,$B116,'Daily Log'!$AY$18:$AY$1017),0) -> 0 | X116: =IFERROR($E116*SUMIF('Daily Log'!$BA$18:$BA$1017,$B116,'Daily Log'!$BB$18:$BB$1017),0) -> 0 | Y116: =IFERROR($E116*SUMIF('Daily Log'!$BD$18:$BD$1017,$B116,'Daily Log'!$BE$18:$BE$1017),0) -> 0 | Z116: =IFERROR($E116*SUMIF('Daily Log'!$BG$18:$BG$1017,$B116,'Daily Log'!$BH$18:$BH$1017),0) -> 1 | AA116: =IFERROR($E116*SUMIF('Daily Log'!$BJ$18:$BJ$1017,$B116,'Daily Log'!$BK$18:$BK$1017),0) -> 0 | AB116: =IFERROR($E116*SUMIF('Daily Log'!$BM$18:$BM$1017,$B116,'Daily Log'!$BN$18:$BN$1017),0) -> 1 | AC116: =IFERROR($E116*SUMIF('Daily Log'!$BP$18:$BP$1017,$B116,'Daily Log'!$BQ$18:$BQ$1017),0) -> 0 | AD116: =IFERROR($E116*SUMIF('Daily Log'!$BS$18:$BS$1017,$B116,'Daily Log'!$BT$18:$BT$1017),0) -> 1 | AE116: =IFERROR($E116*SUMIF('Daily Log'!$BV$18:$BV$1017,$B116,'Daily Log'!$BW$18:$BW$1017),0) -> 0 | AF116: =IFERROR($E116*SUMIF('Daily Log'!$BY$18:$BY$1017,$B116,'Daily Log'!$BZ$18:$BZ$1017),0) -> 1 | AG116: =IFERROR($E116*SUMIF('Daily Log'!$CB$18:$CB$1017,$B116,'Daily Log'!$CC$18:$CC$1017),0) -> 0 | AH116: =IFERROR($E116*SUMIF('Daily Log'!$CE$18:$CE$1017,$B116,'Daily Log'!$CF$18:$CF$1017),0) -> 0 | AI116: =IFERROR($E116*SUMIF('Daily Log'!$CH$18:$CH$1017,$B116,'Daily Log'!$CI$18:$CI$1017),0) -> 0 | AJ116: =IFERROR($E116*SUMIF('Daily Log'!$CK$18:$CK$1017,$B116,'Daily Log'!$CL$18:$CL$1017),0) -> 0 | AK116: =IFERROR($E116*SUMIF('Daily Log'!$CN$18:$CN$1017,$B116,'Daily Log'!$CO$18:$CO$1017),0) -> 0
B117: AA06 1206:SPRING RL | D117: SNACK | E117: 1 | F117: 1 | G117: =IFERROR($E117*SUMIF('Daily Log'!$B$18:$B$1017,$B117,'Daily Log'!$C$18:$C$1017),0) -> 0 | H117: =IFERROR($E117*SUMIF('Daily Log'!$E$18:$E$1017,$B117,'Daily Log'!$F$18:$F$1017),0) -> 0 | I117: =IFERROR($E117*SUMIF('Daily Log'!$H$18:$H$1017,$B117,'Daily Log'!$I$18:$I$1017),0) -> 0 | J117: =IFERROR($E117*SUMIF('Daily Log'!$K$18:$K$1017,$B117,'Daily Log'!$L$18:$L$1017),0) -> 0 | K117: =IFERROR($E117*SUMIF('Daily Log'!$N$18:$N$1017,$B117,'Daily Log'!$O$18:$O$1017),0) -> 0 | L117: =IFERROR($E117*SUMIF('Daily Log'!$Q$18:$Q$1017,$B117,'Daily Log'!$R$18:$R$1017),0) -> 0 | M117: =IFERROR($E117*SUMIF('Daily Log'!$T$18:$T$1017,$B117,'Daily Log'!$U$18:$U$1017),0) -> 0 | N117: =IFERROR($E117*SUMIF('Daily Log'!$W$18:$W$1017,$B117,'Daily Log'!$X$18:$X$1017),0) -> 0 | O117: =IFERROR($E117*SUMIF('Daily Log'!$Z$18:$Z$1017,$B117,'Daily Log'!$AA$18:$AA$1017),0) -> 0 | P117: =IFERROR($E117*SUMIF('Daily Log'!$AC$18:$AC$1017,$B117,'Daily Log'!$AD$18:$AD$1017),0) -> 0 | Q117: =IFERROR($E117*SUMIF('Daily Log'!$AF$18:$AF$1017,$B117,'Daily Log'!$AG$18:$AG$1017),0) -> 0 | R117: =IFERROR($E117*SUMIF('Daily Log'!$AI$18:$AI$1017,$B117,'Daily Log'!$AJ$18:$AJ$1017),0) -> 0 | S117: =IFERROR($E117*SUMIF('Daily Log'!$AL$18:$AL$1017,$B117,'Daily Log'!$AM$18:$AM$1017),0) -> 0 | T117: =IFERROR($E117*SUMIF('Daily Log'!$AO$18:$AO$1017,$B117,'Daily Log'!$AP$18:$AP$1017),0) -> 1 | U117: =IFERROR($E117*SUMIF('Daily Log'!$AR$18:$AR$1017,$B117,'Daily Log'!$AS$18:$AS$1017),0) -> 0 | V117: =IFERROR($E117*SUMIF('Daily Log'!$AU$18:$AU$1017,$B117,'Daily Log'!$AV$18:$AV$1017),0) -> 0 | W117: =IFERROR($E117*SUMIF('Daily Log'!$AX$18:$AX$1017,$B117,'Daily Log'!$AY$18:$AY$1017),0) -> 0 | X117: =IFERROR($E117*SUMIF('Daily Log'!$BA$18:$BA$1017,$B117,'Daily Log'!$BB$18:$BB$1017),0) -> 0 | Y117: =IFERROR($E117*SUMIF('Daily Log'!$BD$18:$BD$1017,$B117,'Daily Log'!$BE$18:$BE$1017),0) -> 0 | Z117: =IFERROR($E117*SUMIF('Daily Log'!$BG$18:$BG$1017,$B117,'Daily Log'!$BH$18:$BH$1017),0) -> 0 | AA117: =IFERROR($E117*SUMIF('Daily Log'!$BJ$18:$BJ$1017,$B117,'Daily Log'!$BK$18:$BK$1017),0) -> 0 | AB117: =IFERROR($E117*SUMIF('Daily Log'!$BM$18:$BM$1017,$B117,'Daily Log'!$BN$18:$BN$1017),0) -> 0 | AC117: =IFERROR($E117*SUMIF('Daily Log'!$BP$18:$BP$1017,$B117,'Daily Log'!$BQ$18:$BQ$1017),0) -> 0 | AD117: =IFERROR($E117*SUMIF('Daily Log'!$BS$18:$BS$1017,$B117,'Daily Log'!$BT$18:$BT$1017),0) -> 0 | AE117: =IFERROR($E117*SUMIF('Daily Log'!$BV$18:$BV$1017,$B117,'Daily Log'!$BW$18:$BW$1017),0) -> 0 | AF117: =IFERROR($E117*SUMIF('Daily Log'!$BY$18:$BY$1017,$B117,'Daily Log'!$BZ$18:$BZ$1017),0) -> 0 | AG117: =IFERROR($E117*SUMIF('Daily Log'!$CB$18:$CB$1017,$B117,'Daily Log'!$CC$18:$CC$1017),0) -> 0 | AH117: =IFERROR($E117*SUMIF('Daily Log'!$CE$18:$CE$1017,$B117,'Daily Log'!$CF$18:$CF$1017),0) -> 0 | AI117: =IFERROR($E117*SUMIF('Daily Log'!$CH$18:$CH$1017,$B117,'Daily Log'!$CI$18:$CI$1017),0) -> 0 | AJ117: =IFERROR($E117*SUMIF('Daily Log'!$CK$18:$CK$1017,$B117,'Daily Log'!$CL$18:$CL$1017),0) -> 0 | AK117: =IFERROR($E117*SUMIF('Daily Log'!$CN$18:$CN$1017,$B117,'Daily Log'!$CO$18:$CO$1017),0) -> 0
B118: AA07 1207:SAUSG | D118: SNACK | E118: 1 | F118: 18 | G118: =IFERROR($E118*SUMIF('Daily Log'!$B$18:$B$1017,$B118,'Daily Log'!$C$18:$C$1017),0) -> 0 | H118: =IFERROR($E118*SUMIF('Daily Log'!$E$18:$E$1017,$B118,'Daily Log'!$F$18:$F$1017),0) -> 0 | I118: =IFERROR($E118*SUMIF('Daily Log'!$H$18:$H$1017,$B118,'Daily Log'!$I$18:$I$1017),0) -> 0 | J118: =IFERROR($E118*SUMIF('Daily Log'!$K$18:$K$1017,$B118,'Daily Log'!$L$18:$L$1017),0) -> 0 | K118: =IFERROR($E118*SUMIF('Daily Log'!$N$18:$N$1017,$B118,'Daily Log'!$O$18:$O$1017),0) -> 0 | L118: =IFERROR($E118*SUMIF('Daily Log'!$Q$18:$Q$1017,$B118,'Daily Log'!$R$18:$R$1017),0) -> 0 | M118: =IFERROR($E118*SUMIF('Daily Log'!$T$18:$T$1017,$B118,'Daily Log'!$U$18:$U$1017),0) -> 0 | N118: =IFERROR($E118*SUMIF('Daily Log'!$W$18:$W$1017,$B118,'Daily Log'!$X$18:$X$1017),0) -> 0 | O118: =IFERROR($E118*SUMIF('Daily Log'!$Z$18:$Z$1017,$B118,'Daily Log'!$AA$18:$AA$1017),0) -> 0 | P118: =IFERROR($E118*SUMIF('Daily Log'!$AC$18:$AC$1017,$B118,'Daily Log'!$AD$18:$AD$1017),0) -> 0 | Q118: =IFERROR($E118*SUMIF('Daily Log'!$AF$18:$AF$1017,$B118,'Daily Log'!$AG$18:$AG$1017),0) -> 2 | R118: =IFERROR($E118*SUMIF('Daily Log'!$AI$18:$AI$1017,$B118,'Daily Log'!$AJ$18:$AJ$1017),0) -> 1 | S118: =IFERROR($E118*SUMIF('Daily Log'!$AL$18:$AL$1017,$B118,'Daily Log'!$AM$18:$AM$1017),0) -> 2 | T118: =IFERROR($E118*SUMIF('Daily Log'!$AO$18:$AO$1017,$B118,'Daily Log'!$AP$18:$AP$1017),0) -> 0 | U118: =IFERROR($E118*SUMIF('Daily Log'!$AR$18:$AR$1017,$B118,'Daily Log'!$AS$18:$AS$1017),0) -> 3 | V118: =IFERROR($E118*SUMIF('Daily Log'!$AU$18:$AU$1017,$B118,'Daily Log'!$AV$18:$AV$1017),0) -> 1 | W118: =IFERROR($E118*SUMIF('Daily Log'!$AX$18:$AX$1017,$B118,'Daily Log'!$AY$18:$AY$1017),0) -> 1 | X118: =IFERROR($E118*SUMIF('Daily Log'!$BA$18:$BA$1017,$B118,'Daily Log'!$BB$18:$BB$1017),0) -> 0 | Y118: =IFERROR($E118*SUMIF('Daily Log'!$BD$18:$BD$1017,$B118,'Daily Log'!$BE$18:$BE$1017),0) -> 0 | Z118: =IFERROR($E118*SUMIF('Daily Log'!$BG$18:$BG$1017,$B118,'Daily Log'!$BH$18:$BH$1017),0) -> 0 | AA118: =IFERROR($E118*SUMIF('Daily Log'!$BJ$18:$BJ$1017,$B118,'Daily Log'!$BK$18:$BK$1017),0) -> 2 | AB118: =IFERROR($E118*SUMIF('Daily Log'!$BM$18:$BM$1017,$B118,'Daily Log'!$BN$18:$BN$1017),0) -> 1 | AC118: =IFERROR($E118*SUMIF('Daily Log'!$BP$18:$BP$1017,$B118,'Daily Log'!$BQ$18:$BQ$1017),0) -> 0 | AD118: =IFERROR($E118*SUMIF('Daily Log'!$BS$18:$BS$1017,$B118,'Daily Log'!$BT$18:$BT$1017),0) -> 0 | AE118: =IFERROR($E118*SUMIF('Daily Log'!$BV$18:$BV$1017,$B118,'Daily Log'!$BW$18:$BW$1017),0) -> 0 | AF118: =IFERROR($E118*SUMIF('Daily Log'!$BY$18:$BY$1017,$B118,'Daily Log'!$BZ$18:$BZ$1017),0) -> 2 | AG118: =IFERROR($E118*SUMIF('Daily Log'!$CB$18:$CB$1017,$B118,'Daily Log'!$CC$18:$CC$1017),0) -> 1 | AH118: =IFERROR($E118*SUMIF('Daily Log'!$CE$18:$CE$1017,$B118,'Daily Log'!$CF$18:$CF$1017),0) -> 2 | AI118: =IFERROR($E118*SUMIF('Daily Log'!$CH$18:$CH$1017,$B118,'Daily Log'!$CI$18:$CI$1017),0) -> 0 | AJ118: =IFERROR($E118*SUMIF('Daily Log'!$CK$18:$CK$1017,$B118,'Daily Log'!$CL$18:$CL$1017),0) -> 0 | AK118: =IFERROR($E118*SUMIF('Daily Log'!$CN$18:$CN$1017,$B118,'Daily Log'!$CO$18:$CO$1017),0) -> 0
B119: AA08 1208:HOTDOG BUN | D119: SNACK | E119: 1 | F119: 0 | G119: =IFERROR($E119*SUMIF('Daily Log'!$B$18:$B$1017,$B119,'Daily Log'!$C$18:$C$1017),0) -> 0 | H119: =IFERROR($E119*SUMIF('Daily Log'!$E$18:$E$1017,$B119,'Daily Log'!$F$18:$F$1017),0) -> 0 | I119: =IFERROR($E119*SUMIF('Daily Log'!$H$18:$H$1017,$B119,'Daily Log'!$I$18:$I$1017),0) -> 0 | J119: =IFERROR($E119*SUMIF('Daily Log'!$K$18:$K$1017,$B119,'Daily Log'!$L$18:$L$1017),0) -> 0 | K119: =IFERROR($E119*SUMIF('Daily Log'!$N$18:$N$1017,$B119,'Daily Log'!$O$18:$O$1017),0) -> 0 | L119: =IFERROR($E119*SUMIF('Daily Log'!$Q$18:$Q$1017,$B119,'Daily Log'!$R$18:$R$1017),0) -> 0 | M119: =IFERROR($E119*SUMIF('Daily Log'!$T$18:$T$1017,$B119,'Daily Log'!$U$18:$U$1017),0) -> 0 | N119: =IFERROR($E119*SUMIF('Daily Log'!$W$18:$W$1017,$B119,'Daily Log'!$X$18:$X$1017),0) -> 0 | O119: =IFERROR($E119*SUMIF('Daily Log'!$Z$18:$Z$1017,$B119,'Daily Log'!$AA$18:$AA$1017),0) -> 0 | P119: =IFERROR($E119*SUMIF('Daily Log'!$AC$18:$AC$1017,$B119,'Daily Log'!$AD$18:$AD$1017),0) -> 0 | Q119: =IFERROR($E119*SUMIF('Daily Log'!$AF$18:$AF$1017,$B119,'Daily Log'!$AG$18:$AG$1017),0) -> 0 | R119: =IFERROR($E119*SUMIF('Daily Log'!$AI$18:$AI$1017,$B119,'Daily Log'!$AJ$18:$AJ$1017),0) -> 0 | S119: =IFERROR($E119*SUMIF('Daily Log'!$AL$18:$AL$1017,$B119,'Daily Log'!$AM$18:$AM$1017),0) -> 0 | T119: =IFERROR($E119*SUMIF('Daily Log'!$AO$18:$AO$1017,$B119,'Daily Log'!$AP$18:$AP$1017),0) -> 0 | U119: =IFERROR($E119*SUMIF('Daily Log'!$AR$18:$AR$1017,$B119,'Daily Log'!$AS$18:$AS$1017),0) -> 0 | V119: =IFERROR($E119*SUMIF('Daily Log'!$AU$18:$AU$1017,$B119,'Daily Log'!$AV$18:$AV$1017),0) -> 0 | W119: =IFERROR($E119*SUMIF('Daily Log'!$AX$18:$AX$1017,$B119,'Daily Log'!$AY$18:$AY$1017),0) -> 0 | X119: =IFERROR($E119*SUMIF('Daily Log'!$BA$18:$BA$1017,$B119,'Daily Log'!$BB$18:$BB$1017),0) -> 0 | Y119: =IFERROR($E119*SUMIF('Daily Log'!$BD$18:$BD$1017,$B119,'Daily Log'!$BE$18:$BE$1017),0) -> 0 | Z119: =IFERROR($E119*SUMIF('Daily Log'!$BG$18:$BG$1017,$B119,'Daily Log'!$BH$18:$BH$1017),0) -> 0 | AA119: =IFERROR($E119*SUMIF('Daily Log'!$BJ$18:$BJ$1017,$B119,'Daily Log'!$BK$18:$BK$1017),0) -> 0 | AB119: =IFERROR($E119*SUMIF('Daily Log'!$BM$18:$BM$1017,$B119,'Daily Log'!$BN$18:$BN$1017),0) -> 0 | AC119: =IFERROR($E119*SUMIF('Daily Log'!$BP$18:$BP$1017,$B119,'Daily Log'!$BQ$18:$BQ$1017),0) -> 0 | AD119: =IFERROR($E119*SUMIF('Daily Log'!$BS$18:$BS$1017,$B119,'Daily Log'!$BT$18:$BT$1017),0) -> 0 | AE119: =IFERROR($E119*SUMIF('Daily Log'!$BV$18:$BV$1017,$B119,'Daily Log'!$BW$18:$BW$1017),0) -> 0 | AF119: =IFERROR($E119*SUMIF('Daily Log'!$BY$18:$BY$1017,$B119,'Daily Log'!$BZ$18:$BZ$1017),0) -> 0 | AG119: =IFERROR($E119*SUMIF('Daily Log'!$CB$18:$CB$1017,$B119,'Daily Log'!$CC$18:$CC$1017),0) -> 0 | AH119: =IFERROR($E119*SUMIF('Daily Log'!$CE$18:$CE$1017,$B119,'Daily Log'!$CF$18:$CF$1017),0) -> 0 | AI119: =IFERROR($E119*SUMIF('Daily Log'!$CH$18:$CH$1017,$B119,'Daily Log'!$CI$18:$CI$1017),0) -> 0 | AJ119: =IFERROR($E119*SUMIF('Daily Log'!$CK$18:$CK$1017,$B119,'Daily Log'!$CL$18:$CL$1017),0) -> 0 | AK119: =IFERROR($E119*SUMIF('Daily Log'!$CN$18:$CN$1017,$B119,'Daily Log'!$CO$18:$CO$1017),0) -> 0
B120: AA09 1209:SF TF | D120: SNACK | E120: 1 | F120: 36 | G120: =IFERROR($E120*SUMIF('Daily Log'!$B$18:$B$1017,$B120,'Daily Log'!$C$18:$C$1017),0) -> 0 | H120: =IFERROR($E120*SUMIF('Daily Log'!$E$18:$E$1017,$B120,'Daily Log'!$F$18:$F$1017),0) -> 0 | I120: =IFERROR($E120*SUMIF('Daily Log'!$H$18:$H$1017,$B120,'Daily Log'!$I$18:$I$1017),0) -> 3 | J120: =IFERROR($E120*SUMIF('Daily Log'!$K$18:$K$1017,$B120,'Daily Log'!$L$18:$L$1017),0) -> 2 | K120: =IFERROR($E120*SUMIF('Daily Log'!$N$18:$N$1017,$B120,'Daily Log'!$O$18:$O$1017),0) -> 2 | L120: =IFERROR($E120*SUMIF('Daily Log'!$Q$18:$Q$1017,$B120,'Daily Log'!$R$18:$R$1017),0) -> 0 | M120: =IFERROR($E120*SUMIF('Daily Log'!$T$18:$T$1017,$B120,'Daily Log'!$U$18:$U$1017),0) -> 1 | N120: =IFERROR($E120*SUMIF('Daily Log'!$W$18:$W$1017,$B120,'Daily Log'!$X$18:$X$1017),0) -> 2 | O120: =IFERROR($E120*SUMIF('Daily Log'!$Z$18:$Z$1017,$B120,'Daily Log'!$AA$18:$AA$1017),0) -> 1 | P120: =IFERROR($E120*SUMIF('Daily Log'!$AC$18:$AC$1017,$B120,'Daily Log'!$AD$18:$AD$1017),0) -> 0 | Q120: =IFERROR($E120*SUMIF('Daily Log'!$AF$18:$AF$1017,$B120,'Daily Log'!$AG$18:$AG$1017),0) -> 0 | R120: =IFERROR($E120*SUMIF('Daily Log'!$AI$18:$AI$1017,$B120,'Daily Log'!$AJ$18:$AJ$1017),0) -> 0 | S120: =IFERROR($E120*SUMIF('Daily Log'!$AL$18:$AL$1017,$B120,'Daily Log'!$AM$18:$AM$1017),0) -> 1 | T120: =IFERROR($E120*SUMIF('Daily Log'!$AO$18:$AO$1017,$B120,'Daily Log'!$AP$18:$AP$1017),0) -> 0 | U120: =IFERROR($E120*SUMIF('Daily Log'!$AR$18:$AR$1017,$B120,'Daily Log'!$AS$18:$AS$1017),0) -> 0 | V120: =IFERROR($E120*SUMIF('Daily Log'!$AU$18:$AU$1017,$B120,'Daily Log'!$AV$18:$AV$1017),0) -> 0 | W120: =IFERROR($E120*SUMIF('Daily Log'!$AX$18:$AX$1017,$B120,'Daily Log'!$AY$18:$AY$1017),0) -> 3 | X120: =IFERROR($E120*SUMIF('Daily Log'!$BA$18:$BA$1017,$B120,'Daily Log'!$BB$18:$BB$1017),0) -> 3 | Y120: =IFERROR($E120*SUMIF('Daily Log'!$BD$18:$BD$1017,$B120,'Daily Log'!$BE$18:$BE$1017),0) -> 1 | Z120: =IFERROR($E120*SUMIF('Daily Log'!$BG$18:$BG$1017,$B120,'Daily Log'!$BH$18:$BH$1017),0) -> 1 | AA120: =IFERROR($E120*SUMIF('Daily Log'!$BJ$18:$BJ$1017,$B120,'Daily Log'!$BK$18:$BK$1017),0) -> 3 | AB120: =IFERROR($E120*SUMIF('Daily Log'!$BM$18:$BM$1017,$B120,'Daily Log'!$BN$18:$BN$1017),0) -> 5 | AC120: =IFERROR($E120*SUMIF('Daily Log'!$BP$18:$BP$1017,$B120,'Daily Log'!$BQ$18:$BQ$1017),0) -> 3 | AD120: =IFERROR($E120*SUMIF('Daily Log'!$BS$18:$BS$1017,$B120,'Daily Log'!$BT$18:$BT$1017),0) -> 1 | AE120: =IFERROR($E120*SUMIF('Daily Log'!$BV$18:$BV$1017,$B120,'Daily Log'!$BW$18:$BW$1017),0) -> 2 | AF120: =IFERROR($E120*SUMIF('Daily Log'!$BY$18:$BY$1017,$B120,'Daily Log'!$BZ$18:$BZ$1017),0) -> 0 | AG120: =IFERROR($E120*SUMIF('Daily Log'!$CB$18:$CB$1017,$B120,'Daily Log'!$CC$18:$CC$1017),0) -> 2 | AH120: =IFERROR($E120*SUMIF('Daily Log'!$CE$18:$CE$1017,$B120,'Daily Log'!$CF$18:$CF$1017),0) -> 0 | AI120: =IFERROR($E120*SUMIF('Daily Log'!$CH$18:$CH$1017,$B120,'Daily Log'!$CI$18:$CI$1017),0) -> 0 | AJ120: =IFERROR($E120*SUMIF('Daily Log'!$CK$18:$CK$1017,$B120,'Daily Log'!$CL$18:$CL$1017),0) -> 0 | AK120: =IFERROR($E120*SUMIF('Daily Log'!$CN$18:$CN$1017,$B120,'Daily Log'!$CO$18:$CO$1017),0) -> 0
B121: AA10 1210:SALAD RL | D121: SIDE ORDER -COLD BEVERAGE | E121: 1 | F121: 15 | G121: =IFERROR($E121*SUMIF('Daily Log'!$B$18:$B$1017,$B121,'Daily Log'!$C$18:$C$1017),0) -> 0 | H121: =IFERROR($E121*SUMIF('Daily Log'!$E$18:$E$1017,$B121,'Daily Log'!$F$18:$F$1017),0) -> 1 | I121: =IFERROR($E121*SUMIF('Daily Log'!$H$18:$H$1017,$B121,'Daily Log'!$I$18:$I$1017),0) -> 1 | J121: =IFERROR($E121*SUMIF('Daily Log'!$K$18:$K$1017,$B121,'Daily Log'!$L$18:$L$1017),0) -> 0 | K121: =IFERROR($E121*SUMIF('Daily Log'!$N$18:$N$1017,$B121,'Daily Log'!$O$18:$O$1017),0) -> 0 | L121: =IFERROR($E121*SUMIF('Daily Log'!$Q$18:$Q$1017,$B121,'Daily Log'!$R$18:$R$1017),0) -> 1 | M121: =IFERROR($E121*SUMIF('Daily Log'!$T$18:$T$1017,$B121,'Daily Log'!$U$18:$U$1017),0) -> 0 | N121: =IFERROR($E121*SUMIF('Daily Log'!$W$18:$W$1017,$B121,'Daily Log'!$X$18:$X$1017),0) -> 2 | O121: =IFERROR($E121*SUMIF('Daily Log'!$Z$18:$Z$1017,$B121,'Daily Log'!$AA$18:$AA$1017),0) -> 0 | P121: =IFERROR($E121*SUMIF('Daily Log'!$AC$18:$AC$1017,$B121,'Daily Log'!$AD$18:$AD$1017),0) -> 1 | Q121: =IFERROR($E121*SUMIF('Daily Log'!$AF$18:$AF$1017,$B121,'Daily Log'!$AG$18:$AG$1017),0) -> 0 | R121: =IFERROR($E121*SUMIF('Daily Log'!$AI$18:$AI$1017,$B121,'Daily Log'!$AJ$18:$AJ$1017),0) -> 1 | S121: =IFERROR($E121*SUMIF('Daily Log'!$AL$18:$AL$1017,$B121,'Daily Log'!$AM$18:$AM$1017),0) -> 1 | T121: =IFERROR($E121*SUMIF('Daily Log'!$AO$18:$AO$1017,$B121,'Daily Log'!$AP$18:$AP$1017),0) -> 0 | U121: =IFERROR($E121*SUMIF('Daily Log'!$AR$18:$AR$1017,$B121,'Daily Log'!$AS$18:$AS$1017),0) -> 0 | V121: =IFERROR($E121*SUMIF('Daily Log'!$AU$18:$AU$1017,$B121,'Daily Log'!$AV$18:$AV$1017),0) -> 1 | W121: =IFERROR($E121*SUMIF('Daily Log'!$AX$18:$AX$1017,$B121,'Daily Log'!$AY$18:$AY$1017),0) -> 0 | X121: =IFERROR($E121*SUMIF('Daily Log'!$BA$18:$BA$1017,$B121,'Daily Log'!$BB$18:$BB$1017),0) -> 1 | Y121: =IFERROR($E121*SUMIF('Daily Log'!$BD$18:$BD$1017,$B121,'Daily Log'!$BE$18:$BE$1017),0) -> 0 | Z121: =IFERROR($E121*SUMIF('Daily Log'!$BG$18:$BG$1017,$B121,'Daily Log'!$BH$18:$BH$1017),0) -> 0 | AA121: =IFERROR($E121*SUMIF('Daily Log'!$BJ$18:$BJ$1017,$B121,'Daily Log'!$BK$18:$BK$1017),0) -> 0 | AB121: =IFERROR($E121*SUMIF('Daily Log'!$BM$18:$BM$1017,$B121,'Daily Log'!$BN$18:$BN$1017),0) -> 1 | AC121: =IFERROR($E121*SUMIF('Daily Log'!$BP$18:$BP$1017,$B121,'Daily Log'!$BQ$18:$BQ$1017),0) -> 1 | AD121: =IFERROR($E121*SUMIF('Daily Log'!$BS$18:$BS$1017,$B121,'Daily Log'!$BT$18:$BT$1017),0) -> 0 | AE121: =IFERROR($E121*SUMIF('Daily Log'!$BV$18:$BV$1017,$B121,'Daily Log'!$BW$18:$BW$1017),0) -> 0 | AF121: =IFERROR($E121*SUMIF('Daily Log'!$BY$18:$BY$1017,$B121,'Daily Log'!$BZ$18:$BZ$1017),0) -> 1 | AG121: =IFERROR($E121*SUMIF('Daily Log'!$CB$18:$CB$1017,$B121,'Daily Log'!$CC$18:$CC$1017),0) -> 0 | AH121: =IFERROR($E121*SUMIF('Daily Log'!$CE$18:$CE$1017,$B121,'Daily Log'!$CF$18:$CF$1017),0) -> 2 | AI121: =IFERROR($E121*SUMIF('Daily Log'!$CH$18:$CH$1017,$B121,'Daily Log'!$CI$18:$CI$1017),0) -> 0 | AJ121: =IFERROR($E121*SUMIF('Daily Log'!$CK$18:$CK$1017,$B121,'Daily Log'!$CL$18:$CL$1017),0) -> 0 | AK121: =IFERROR($E121*SUMIF('Daily Log'!$CN$18:$CN$1017,$B121,'Daily Log'!$CO$18:$CO$1017),0) -> 0
B122: AA11 1211:BBQ CHK | D122: SIDE ORDER -ASIAN CRUISE | E122: 1 | F122: 6 | G122: =IFERROR($E122*SUMIF('Daily Log'!$B$18:$B$1017,$B122,'Daily Log'!$C$18:$C$1017),0) -> 0 | H122: =IFERROR($E122*SUMIF('Daily Log'!$E$18:$E$1017,$B122,'Daily Log'!$F$18:$F$1017),0) -> 0 | I122: =IFERROR($E122*SUMIF('Daily Log'!$H$18:$H$1017,$B122,'Daily Log'!$I$18:$I$1017),0) -> 0 | J122: =IFERROR($E122*SUMIF('Daily Log'!$K$18:$K$1017,$B122,'Daily Log'!$L$18:$L$1017),0) -> 0 | K122: =IFERROR($E122*SUMIF('Daily Log'!$N$18:$N$1017,$B122,'Daily Log'!$O$18:$O$1017),0) -> 1 | L122: =IFERROR($E122*SUMIF('Daily Log'!$Q$18:$Q$1017,$B122,'Daily Log'!$R$18:$R$1017),0) -> 0 | M122: =IFERROR($E122*SUMIF('Daily Log'!$T$18:$T$1017,$B122,'Daily Log'!$U$18:$U$1017),0) -> 0 | N122: =IFERROR($E122*SUMIF('Daily Log'!$W$18:$W$1017,$B122,'Daily Log'!$X$18:$X$1017),0) -> 0 | O122: =IFERROR($E122*SUMIF('Daily Log'!$Z$18:$Z$1017,$B122,'Daily Log'!$AA$18:$AA$1017),0) -> 0 | P122: =IFERROR($E122*SUMIF('Daily Log'!$AC$18:$AC$1017,$B122,'Daily Log'!$AD$18:$AD$1017),0) -> 0 | Q122: =IFERROR($E122*SUMIF('Daily Log'!$AF$18:$AF$1017,$B122,'Daily Log'!$AG$18:$AG$1017),0) -> 0 | R122: =IFERROR($E122*SUMIF('Daily Log'!$AI$18:$AI$1017,$B122,'Daily Log'!$AJ$18:$AJ$1017),0) -> 0 | S122: =IFERROR($E122*SUMIF('Daily Log'!$AL$18:$AL$1017,$B122,'Daily Log'!$AM$18:$AM$1017),0) -> 0 | T122: =IFERROR($E122*SUMIF('Daily Log'!$AO$18:$AO$1017,$B122,'Daily Log'!$AP$18:$AP$1017),0) -> 0 | U122: =IFERROR($E122*SUMIF('Daily Log'!$AR$18:$AR$1017,$B122,'Daily Log'!$AS$18:$AS$1017),0) -> 1 | V122: =IFERROR($E122*SUMIF('Daily Log'!$AU$18:$AU$1017,$B122,'Daily Log'!$AV$18:$AV$1017),0) -> 0 | W122: =IFERROR($E122*SUMIF('Daily Log'!$AX$18:$AX$1017,$B122,'Daily Log'!$AY$18:$AY$1017),0) -> 0 | X122: =IFERROR($E122*SUMIF('Daily Log'!$BA$18:$BA$1017,$B122,'Daily Log'!$BB$18:$BB$1017),0) -> 0 | Y122: =IFERROR($E122*SUMIF('Daily Log'!$BD$18:$BD$1017,$B122,'Daily Log'!$BE$18:$BE$1017),0) -> 0 | Z122: =IFERROR($E122*SUMIF('Daily Log'!$BG$18:$BG$1017,$B122,'Daily Log'!$BH$18:$BH$1017),0) -> 0 | AA122: =IFERROR($E122*SUMIF('Daily Log'!$BJ$18:$BJ$1017,$B122,'Daily Log'!$BK$18:$BK$1017),0) -> 0 | AB122: =IFERROR($E122*SUMIF('Daily Log'!$BM$18:$BM$1017,$B122,'Daily Log'!$BN$18:$BN$1017),0) -> 1 | AC122: =IFERROR($E122*SUMIF('Daily Log'!$BP$18:$BP$1017,$B122,'Daily Log'!$BQ$18:$BQ$1017),0) -> 0 | AD122: =IFERROR($E122*SUMIF('Daily Log'!$BS$18:$BS$1017,$B122,'Daily Log'!$BT$18:$BT$1017),0) -> 1 | AE122: =IFERROR($E122*SUMIF('Daily Log'!$BV$18:$BV$1017,$B122,'Daily Log'!$BW$18:$BW$1017),0) -> 0 | AF122: =IFERROR($E122*SUMIF('Daily Log'!$BY$18:$BY$1017,$B122,'Daily Log'!$BZ$18:$BZ$1017),0) -> 2 | AG122: =IFERROR($E122*SUMIF('Daily Log'!$CB$18:$CB$1017,$B122,'Daily Log'!$CC$18:$CC$1017),0) -> 0 | AH122: =IFERROR($E122*SUMIF('Daily Log'!$CE$18:$CE$1017,$B122,'Daily Log'!$CF$18:$CF$1017),0) -> 0 | AI122: =IFERROR($E122*SUMIF('Daily Log'!$CH$18:$CH$1017,$B122,'Daily Log'!$CI$18:$CI$1017),0) -> 0 | AJ122: =IFERROR($E122*SUMIF('Daily Log'!$CK$18:$CK$1017,$B122,'Daily Log'!$CL$18:$CL$1017),0) -> 0 | AK122: =IFERROR($E122*SUMIF('Daily Log'!$CN$18:$CN$1017,$B122,'Daily Log'!$CO$18:$CO$1017),0) -> 0
B123: AA32 1302:NUGGET | D123: SIDE ORDER -ASIAN CRUISE | E123: 1 | F123: 70 | G123: =IFERROR($E123*SUMIF('Daily Log'!$B$18:$B$1017,$B123,'Daily Log'!$C$18:$C$1017),0) -> 4 | H123: =IFERROR($E123*SUMIF('Daily Log'!$E$18:$E$1017,$B123,'Daily Log'!$F$18:$F$1017),0) -> 1 | I123: =IFERROR($E123*SUMIF('Daily Log'!$H$18:$H$1017,$B123,'Daily Log'!$I$18:$I$1017),0) -> 4 | J123: =IFERROR($E123*SUMIF('Daily Log'!$K$18:$K$1017,$B123,'Daily Log'!$L$18:$L$1017),0) -> 3 | K123: =IFERROR($E123*SUMIF('Daily Log'!$N$18:$N$1017,$B123,'Daily Log'!$O$18:$O$1017),0) -> 0 | L123: =IFERROR($E123*SUMIF('Daily Log'!$Q$18:$Q$1017,$B123,'Daily Log'!$R$18:$R$1017),0) -> 1 | M123: =IFERROR($E123*SUMIF('Daily Log'!$T$18:$T$1017,$B123,'Daily Log'!$U$18:$U$1017),0) -> 0 | N123: =IFERROR($E123*SUMIF('Daily Log'!$W$18:$W$1017,$B123,'Daily Log'!$X$18:$X$1017),0) -> 0 | O123: =IFERROR($E123*SUMIF('Daily Log'!$Z$18:$Z$1017,$B123,'Daily Log'!$AA$18:$AA$1017),0) -> 4 | P123: =IFERROR($E123*SUMIF('Daily Log'!$AC$18:$AC$1017,$B123,'Daily Log'!$AD$18:$AD$1017),0) -> 0 | Q123: =IFERROR($E123*SUMIF('Daily Log'!$AF$18:$AF$1017,$B123,'Daily Log'!$AG$18:$AG$1017),0) -> 2 | R123: =IFERROR($E123*SUMIF('Daily Log'!$AI$18:$AI$1017,$B123,'Daily Log'!$AJ$18:$AJ$1017),0) -> 3 | S123: =IFERROR($E123*SUMIF('Daily Log'!$AL$18:$AL$1017,$B123,'Daily Log'!$AM$18:$AM$1017),0) -> 4 | T123: =IFERROR($E123*SUMIF('Daily Log'!$AO$18:$AO$1017,$B123,'Daily Log'!$AP$18:$AP$1017),0) -> 1 | U123: =IFERROR($E123*SUMIF('Daily Log'!$AR$18:$AR$1017,$B123,'Daily Log'!$AS$18:$AS$1017),0) -> 5 | V123: =IFERROR($E123*SUMIF('Daily Log'!$AU$18:$AU$1017,$B123,'Daily Log'!$AV$18:$AV$1017),0) -> 3 | W123: =IFERROR($E123*SUMIF('Daily Log'!$AX$18:$AX$1017,$B123,'Daily Log'!$AY$18:$AY$1017),0) -> 4 | X123: =IFERROR($E123*SUMIF('Daily Log'!$BA$18:$BA$1017,$B123,'Daily Log'!$BB$18:$BB$1017),0) -> 5 | Y123: =IFERROR($E123*SUMIF('Daily Log'!$BD$18:$BD$1017,$B123,'Daily Log'!$BE$18:$BE$1017),0) -> 5 | Z123: =IFERROR($E123*SUMIF('Daily Log'!$BG$18:$BG$1017,$B123,'Daily Log'!$BH$18:$BH$1017),0) -> 1 | AA123: =IFERROR($E123*SUMIF('Daily Log'!$BJ$18:$BJ$1017,$B123,'Daily Log'!$BK$18:$BK$1017),0) -> 4 | AB123: =IFERROR($E123*SUMIF('Daily Log'!$BM$18:$BM$1017,$B123,'Daily Log'!$BN$18:$BN$1017),0) -> 4 | AC123: =IFERROR($E123*SUMIF('Daily Log'!$BP$18:$BP$1017,$B123,'Daily Log'!$BQ$18:$BQ$1017),0) -> 0 | AD123: =IFERROR($E123*SUMIF('Daily Log'!$BS$18:$BS$1017,$B123,'Daily Log'!$BT$18:$BT$1017),0) -> 0 | AE123: =IFERROR($E123*SUMIF('Daily Log'!$BV$18:$BV$1017,$B123,'Daily Log'!$BW$18:$BW$1017),0) -> 1 | AF123: =IFERROR($E123*SUMIF('Daily Log'!$BY$18:$BY$1017,$B123,'Daily Log'!$BZ$18:$BZ$1017),0) -> 1 | AG123: =IFERROR($E123*SUMIF('Daily Log'!$CB$18:$CB$1017,$B123,'Daily Log'!$CC$18:$CC$1017),0) -> 5 | AH123: =IFERROR($E123*SUMIF('Daily Log'!$CE$18:$CE$1017,$B123,'Daily Log'!$CF$18:$CF$1017),0) -> 5 | AI123: =IFERROR($E123*SUMIF('Daily Log'!$CH$18:$CH$1017,$B123,'Daily Log'!$CI$18:$CI$1017),0) -> 0 | AJ123: =IFERROR($E123*SUMIF('Daily Log'!$CK$18:$CK$1017,$B123,'Daily Log'!$CL$18:$CL$1017),0) -> 0 | AK123: =IFERROR($E123*SUMIF('Daily Log'!$CN$18:$CN$1017,$B123,'Daily Log'!$CO$18:$CO$1017),0) -> 0
B124: AA33 1303:CHK WING | D124: SIDE ORDER -ASIAN CRUISE | E124: 1 | F124: 60 | G124: =IFERROR($E124*SUMIF('Daily Log'!$B$18:$B$1017,$B124,'Daily Log'!$C$18:$C$1017),0) -> 1 | H124: =IFERROR($E124*SUMIF('Daily Log'!$E$18:$E$1017,$B124,'Daily Log'!$F$18:$F$1017),0) -> 4 | I124: =IFERROR($E124*SUMIF('Daily Log'!$H$18:$H$1017,$B124,'Daily Log'!$I$18:$I$1017),0) -> 2 | J124: =IFERROR($E124*SUMIF('Daily Log'!$K$18:$K$1017,$B124,'Daily Log'!$L$18:$L$1017),0) -> 4 | K124: =IFERROR($E124*SUMIF('Daily Log'!$N$18:$N$1017,$B124,'Daily Log'!$O$18:$O$1017),0) -> 0 | L124: =IFERROR($E124*SUMIF('Daily Log'!$Q$18:$Q$1017,$B124,'Daily Log'!$R$18:$R$1017),0) -> 0 | M124: =IFERROR($E124*SUMIF('Daily Log'!$T$18:$T$1017,$B124,'Daily Log'!$U$18:$U$1017),0) -> 2 | N124: =IFERROR($E124*SUMIF('Daily Log'!$W$18:$W$1017,$B124,'Daily Log'!$X$18:$X$1017),0) -> 2 | O124: =IFERROR($E124*SUMIF('Daily Log'!$Z$18:$Z$1017,$B124,'Daily Log'!$AA$18:$AA$1017),0) -> 0 | P124: =IFERROR($E124*SUMIF('Daily Log'!$AC$18:$AC$1017,$B124,'Daily Log'!$AD$18:$AD$1017),0) -> 0 | Q124: =IFERROR($E124*SUMIF('Daily Log'!$AF$18:$AF$1017,$B124,'Daily Log'!$AG$18:$AG$1017),0) -> 0 | R124: =IFERROR($E124*SUMIF('Daily Log'!$AI$18:$AI$1017,$B124,'Daily Log'!$AJ$18:$AJ$1017),0) -> 4 | S124: =IFERROR($E124*SUMIF('Daily Log'!$AL$18:$AL$1017,$B124,'Daily Log'!$AM$18:$AM$1017),0) -> 7 | T124: =IFERROR($E124*SUMIF('Daily Log'!$AO$18:$AO$1017,$B124,'Daily Log'!$AP$18:$AP$1017),0) -> 3 | U124: =IFERROR($E124*SUMIF('Daily Log'!$AR$18:$AR$1017,$B124,'Daily Log'!$AS$18:$AS$1017),0) -> 1 | V124: =IFERROR($E124*SUMIF('Daily Log'!$AU$18:$AU$1017,$B124,'Daily Log'!$AV$18:$AV$1017),0) -> 1 | W124: =IFERROR($E124*SUMIF('Daily Log'!$AX$18:$AX$1017,$B124,'Daily Log'!$AY$18:$AY$1017),0) -> 3 | X124: =IFERROR($E124*SUMIF('Daily Log'!$BA$18:$BA$1017,$B124,'Daily Log'!$BB$18:$BB$1017),0) -> 3 | Y124: =IFERROR($E124*SUMIF('Daily Log'!$BD$18:$BD$1017,$B124,'Daily Log'!$BE$18:$BE$1017),0) -> 0 | Z124: =IFERROR($E124*SUMIF('Daily Log'!$BG$18:$BG$1017,$B124,'Daily Log'!$BH$18:$BH$1017),0) -> 1 | AA124: =IFERROR($E124*SUMIF('Daily Log'!$BJ$18:$BJ$1017,$B124,'Daily Log'!$BK$18:$BK$1017),0) -> 6 | AB124: =IFERROR($E124*SUMIF('Daily Log'!$BM$18:$BM$1017,$B124,'Daily Log'!$BN$18:$BN$1017),0) -> 5 | AC124: =IFERROR($E124*SUMIF('Daily Log'!$BP$18:$BP$1017,$B124,'Daily Log'!$BQ$18:$BQ$1017),0) -> 1 | AD124: =IFERROR($E124*SUMIF('Daily Log'!$BS$18:$BS$1017,$B124,'Daily Log'!$BT$18:$BT$1017),0) -> 1 | AE124: =IFERROR($E124*SUMIF('Daily Log'!$BV$18:$BV$1017,$B124,'Daily Log'!$BW$18:$BW$1017),0) -> 5 | AF124: =IFERROR($E124*SUMIF('Daily Log'!$BY$18:$BY$1017,$B124,'Daily Log'!$BZ$18:$BZ$1017),0) -> 1 | AG124: =IFERROR($E124*SUMIF('Daily Log'!$CB$18:$CB$1017,$B124,'Daily Log'!$CC$18:$CC$1017),0) -> 2 | AH124: =IFERROR($E124*SUMIF('Daily Log'!$CE$18:$CE$1017,$B124,'Daily Log'!$CF$18:$CF$1017),0) -> 1 | AI124: =IFERROR($E124*SUMIF('Daily Log'!$CH$18:$CH$1017,$B124,'Daily Log'!$CI$18:$CI$1017),0) -> 0 | AJ124: =IFERROR($E124*SUMIF('Daily Log'!$CK$18:$CK$1017,$B124,'Daily Log'!$CL$18:$CL$1017),0) -> 0 | AK124: =IFERROR($E124*SUMIF('Daily Log'!$CN$18:$CN$1017,$B124,'Daily Log'!$CO$18:$CO$1017),0) -> 0
B125: AA38 1308:MC RING | D125: ASIAN CRUISE | E125: 1 | F125: 12 | G125: =IFERROR($E125*SUMIF('Daily Log'!$B$18:$B$1017,$B125,'Daily Log'!$C$18:$C$1017),0) -> 0 | H125: =IFERROR($E125*SUMIF('Daily Log'!$E$18:$E$1017,$B125,'Daily Log'!$F$18:$F$1017),0) -> 2 | I125: =IFERROR($E125*SUMIF('Daily Log'!$H$18:$H$1017,$B125,'Daily Log'!$I$18:$I$1017),0) -> 0 | J125: =IFERROR($E125*SUMIF('Daily Log'!$K$18:$K$1017,$B125,'Daily Log'!$L$18:$L$1017),0) -> 1 | K125: =IFERROR($E125*SUMIF('Daily Log'!$N$18:$N$1017,$B125,'Daily Log'!$O$18:$O$1017),0) -> 1 | L125: =IFERROR($E125*SUMIF('Daily Log'!$Q$18:$Q$1017,$B125,'Daily Log'!$R$18:$R$1017),0) -> 0 | M125: =IFERROR($E125*SUMIF('Daily Log'!$T$18:$T$1017,$B125,'Daily Log'!$U$18:$U$1017),0) -> 0 | N125: =IFERROR($E125*SUMIF('Daily Log'!$W$18:$W$1017,$B125,'Daily Log'!$X$18:$X$1017),0) -> 0 | O125: =IFERROR($E125*SUMIF('Daily Log'!$Z$18:$Z$1017,$B125,'Daily Log'!$AA$18:$AA$1017),0) -> 1 | P125: =IFERROR($E125*SUMIF('Daily Log'!$AC$18:$AC$1017,$B125,'Daily Log'!$AD$18:$AD$1017),0) -> 0 | Q125: =IFERROR($E125*SUMIF('Daily Log'!$AF$18:$AF$1017,$B125,'Daily Log'!$AG$18:$AG$1017),0) -> 0 | R125: =IFERROR($E125*SUMIF('Daily Log'!$AI$18:$AI$1017,$B125,'Daily Log'!$AJ$18:$AJ$1017),0) -> 0 | S125: =IFERROR($E125*SUMIF('Daily Log'!$AL$18:$AL$1017,$B125,'Daily Log'!$AM$18:$AM$1017),0) -> 0 | T125: =IFERROR($E125*SUMIF('Daily Log'!$AO$18:$AO$1017,$B125,'Daily Log'!$AP$18:$AP$1017),0) -> 2 | U125: =IFERROR($E125*SUMIF('Daily Log'!$AR$18:$AR$1017,$B125,'Daily Log'!$AS$18:$AS$1017),0) -> 0 | V125: =IFERROR($E125*SUMIF('Daily Log'!$AU$18:$AU$1017,$B125,'Daily Log'!$AV$18:$AV$1017),0) -> 0 | W125: =IFERROR($E125*SUMIF('Daily Log'!$AX$18:$AX$1017,$B125,'Daily Log'!$AY$18:$AY$1017),0) -> 0 | X125: =IFERROR($E125*SUMIF('Daily Log'!$BA$18:$BA$1017,$B125,'Daily Log'!$BB$18:$BB$1017),0) -> 0 | Y125: =IFERROR($E125*SUMIF('Daily Log'!$BD$18:$BD$1017,$B125,'Daily Log'!$BE$18:$BE$1017),0) -> 0 | Z125: =IFERROR($E125*SUMIF('Daily Log'!$BG$18:$BG$1017,$B125,'Daily Log'!$BH$18:$BH$1017),0) -> 0 | AA125: =IFERROR($E125*SUMIF('Daily Log'!$BJ$18:$BJ$1017,$B125,'Daily Log'!$BK$18:$BK$1017),0) -> 2 | AB125: =IFERROR($E125*SUMIF('Daily Log'!$BM$18:$BM$1017,$B125,'Daily Log'!$BN$18:$BN$1017),0) -> 0 | AC125: =IFERROR($E125*SUMIF('Daily Log'!$BP$18:$BP$1017,$B125,'Daily Log'!$BQ$18:$BQ$1017),0) -> 2 | AD125: =IFERROR($E125*SUMIF('Daily Log'!$BS$18:$BS$1017,$B125,'Daily Log'!$BT$18:$BT$1017),0) -> 0 | AE125: =IFERROR($E125*SUMIF('Daily Log'!$BV$18:$BV$1017,$B125,'Daily Log'!$BW$18:$BW$1017),0) -> 1 | AF125: =IFERROR($E125*SUMIF('Daily Log'!$BY$18:$BY$1017,$B125,'Daily Log'!$BZ$18:$BZ$1017),0) -> 0 | AG125: =IFERROR($E125*SUMIF('Daily Log'!$CB$18:$CB$1017,$B125,'Daily Log'!$CC$18:$CC$1017),0) -> 0 | AH125: =IFERROR($E125*SUMIF('Daily Log'!$CE$18:$CE$1017,$B125,'Daily Log'!$CF$18:$CF$1017),0) -> 0 | AI125: =IFERROR($E125*SUMIF('Daily Log'!$CH$18:$CH$1017,$B125,'Daily Log'!$CI$18:$CI$1017),0) -> 0 | AJ125: =IFERROR($E125*SUMIF('Daily Log'!$CK$18:$CK$1017,$B125,'Daily Log'!$CL$18:$CL$1017),0) -> 0 | AK125: =IFERROR($E125*SUMIF('Daily Log'!$CN$18:$CN$1017,$B125,'Daily Log'!$CO$18:$CO$1017),0) -> 0
B126: AA39 1309:MC S.FRIES | D126: ASIAN CRUISE | E126: 1 | F126: 23 | G126: =IFERROR($E126*SUMIF('Daily Log'!$B$18:$B$1017,$B126,'Daily Log'!$C$18:$C$1017),0) -> 0 | H126: =IFERROR($E126*SUMIF('Daily Log'!$E$18:$E$1017,$B126,'Daily Log'!$F$18:$F$1017),0) -> 2 | I126: =IFERROR($E126*SUMIF('Daily Log'!$H$18:$H$1017,$B126,'Daily Log'!$I$18:$I$1017),0) -> 0 | J126: =IFERROR($E126*SUMIF('Daily Log'!$K$18:$K$1017,$B126,'Daily Log'!$L$18:$L$1017),0) -> 1 | K126: =IFERROR($E126*SUMIF('Daily Log'!$N$18:$N$1017,$B126,'Daily Log'!$O$18:$O$1017),0) -> 0 | L126: =IFERROR($E126*SUMIF('Daily Log'!$Q$18:$Q$1017,$B126,'Daily Log'!$R$18:$R$1017),0) -> 0 | M126: =IFERROR($E126*SUMIF('Daily Log'!$T$18:$T$1017,$B126,'Daily Log'!$U$18:$U$1017),0) -> 1 | N126: =IFERROR($E126*SUMIF('Daily Log'!$W$18:$W$1017,$B126,'Daily Log'!$X$18:$X$1017),0) -> 4 | O126: =IFERROR($E126*SUMIF('Daily Log'!$Z$18:$Z$1017,$B126,'Daily Log'!$AA$18:$AA$1017),0) -> 1 | P126: =IFERROR($E126*SUMIF('Daily Log'!$AC$18:$AC$1017,$B126,'Daily Log'!$AD$18:$AD$1017),0) -> 0 | Q126: =IFERROR($E126*SUMIF('Daily Log'!$AF$18:$AF$1017,$B126,'Daily Log'!$AG$18:$AG$1017),0) -> 0 | R126: =IFERROR($E126*SUMIF('Daily Log'!$AI$18:$AI$1017,$B126,'Daily Log'!$AJ$18:$AJ$1017),0) -> 3 | S126: =IFERROR($E126*SUMIF('Daily Log'!$AL$18:$AL$1017,$B126,'Daily Log'!$AM$18:$AM$1017),0) -> 0 | T126: =IFERROR($E126*SUMIF('Daily Log'!$AO$18:$AO$1017,$B126,'Daily Log'!$AP$18:$AP$1017),0) -> 1 | U126: =IFERROR($E126*SUMIF('Daily Log'!$AR$18:$AR$1017,$B126,'Daily Log'!$AS$18:$AS$1017),0) -> 0 | V126: =IFERROR($E126*SUMIF('Daily Log'!$AU$18:$AU$1017,$B126,'Daily Log'!$AV$18:$AV$1017),0) -> 1 | W126: =IFERROR($E126*SUMIF('Daily Log'!$AX$18:$AX$1017,$B126,'Daily Log'!$AY$18:$AY$1017),0) -> 0 | X126: =IFERROR($E126*SUMIF('Daily Log'!$BA$18:$BA$1017,$B126,'Daily Log'!$BB$18:$BB$1017),0) -> 1 | Y126: =IFERROR($E126*SUMIF('Daily Log'!$BD$18:$BD$1017,$B126,'Daily Log'!$BE$18:$BE$1017),0) -> 2 | Z126: =IFERROR($E126*SUMIF('Daily Log'!$BG$18:$BG$1017,$B126,'Daily Log'!$BH$18:$BH$1017),0) -> 0 | AA126: =IFERROR($E126*SUMIF('Daily Log'!$BJ$18:$BJ$1017,$B126,'Daily Log'!$BK$18:$BK$1017),0) -> 2 | AB126: =IFERROR($E126*SUMIF('Daily Log'!$BM$18:$BM$1017,$B126,'Daily Log'!$BN$18:$BN$1017),0) -> 0 | AC126: =IFERROR($E126*SUMIF('Daily Log'!$BP$18:$BP$1017,$B126,'Daily Log'!$BQ$18:$BQ$1017),0) -> 1 | AD126: =IFERROR($E126*SUMIF('Daily Log'!$BS$18:$BS$1017,$B126,'Daily Log'!$BT$18:$BT$1017),0) -> 0 | AE126: =IFERROR($E126*SUMIF('Daily Log'!$BV$18:$BV$1017,$B126,'Daily Log'!$BW$18:$BW$1017),0) -> 0 | AF126: =IFERROR($E126*SUMIF('Daily Log'!$BY$18:$BY$1017,$B126,'Daily Log'!$BZ$18:$BZ$1017),0) -> 0 | AG126: =IFERROR($E126*SUMIF('Daily Log'!$CB$18:$CB$1017,$B126,'Daily Log'!$CC$18:$CC$1017),0) -> 1 | AH126: =IFERROR($E126*SUMIF('Daily Log'!$CE$18:$CE$1017,$B126,'Daily Log'!$CF$18:$CF$1017),0) -> 2 | AI126: =IFERROR($E126*SUMIF('Daily Log'!$CH$18:$CH$1017,$B126,'Daily Log'!$CI$18:$CI$1017),0) -> 0 | AJ126: =IFERROR($E126*SUMIF('Daily Log'!$CK$18:$CK$1017,$B126,'Daily Log'!$CL$18:$CL$1017),0) -> 0 | AK126: =IFERROR($E126*SUMIF('Daily Log'!$CN$18:$CN$1017,$B126,'Daily Log'!$CO$18:$CO$1017),0) -> 0
B127: AA40 1310:MC HP SMIL | D127: ASIAN CRUISE | E127: 1 | F127: 6 | G127: =IFERROR($E127*SUMIF('Daily Log'!$B$18:$B$1017,$B127,'Daily Log'!$C$18:$C$1017),0) -> 0 | H127: =IFERROR($E127*SUMIF('Daily Log'!$E$18:$E$1017,$B127,'Daily Log'!$F$18:$F$1017),0) -> 0 | I127: =IFERROR($E127*SUMIF('Daily Log'!$H$18:$H$1017,$B127,'Daily Log'!$I$18:$I$1017),0) -> 0 | J127: =IFERROR($E127*SUMIF('Daily Log'!$K$18:$K$1017,$B127,'Daily Log'!$L$18:$L$1017),0) -> 1 | K127: =IFERROR($E127*SUMIF('Daily Log'!$N$18:$N$1017,$B127,'Daily Log'!$O$18:$O$1017),0) -> 0 | L127: =IFERROR($E127*SUMIF('Daily Log'!$Q$18:$Q$1017,$B127,'Daily Log'!$R$18:$R$1017),0) -> 0 | M127: =IFERROR($E127*SUMIF('Daily Log'!$T$18:$T$1017,$B127,'Daily Log'!$U$18:$U$1017),0) -> 0 | N127: =IFERROR($E127*SUMIF('Daily Log'!$W$18:$W$1017,$B127,'Daily Log'!$X$18:$X$1017),0) -> 0 | O127: =IFERROR($E127*SUMIF('Daily Log'!$Z$18:$Z$1017,$B127,'Daily Log'!$AA$18:$AA$1017),0) -> 0 | P127: =IFERROR($E127*SUMIF('Daily Log'!$AC$18:$AC$1017,$B127,'Daily Log'!$AD$18:$AD$1017),0) -> 0 | Q127: =IFERROR($E127*SUMIF('Daily Log'!$AF$18:$AF$1017,$B127,'Daily Log'!$AG$18:$AG$1017),0) -> 1 | R127: =IFERROR($E127*SUMIF('Daily Log'!$AI$18:$AI$1017,$B127,'Daily Log'!$AJ$18:$AJ$1017),0) -> 0 | S127: =IFERROR($E127*SUMIF('Daily Log'!$AL$18:$AL$1017,$B127,'Daily Log'!$AM$18:$AM$1017),0) -> 0 | T127: =IFERROR($E127*SUMIF('Daily Log'!$AO$18:$AO$1017,$B127,'Daily Log'!$AP$18:$AP$1017),0) -> 0 | U127: =IFERROR($E127*SUMIF('Daily Log'!$AR$18:$AR$1017,$B127,'Daily Log'!$AS$18:$AS$1017),0) -> 1 | V127: =IFERROR($E127*SUMIF('Daily Log'!$AU$18:$AU$1017,$B127,'Daily Log'!$AV$18:$AV$1017),0) -> 0 | W127: =IFERROR($E127*SUMIF('Daily Log'!$AX$18:$AX$1017,$B127,'Daily Log'!$AY$18:$AY$1017),0) -> 0 | X127: =IFERROR($E127*SUMIF('Daily Log'!$BA$18:$BA$1017,$B127,'Daily Log'!$BB$18:$BB$1017),0) -> 0 | Y127: =IFERROR($E127*SUMIF('Daily Log'!$BD$18:$BD$1017,$B127,'Daily Log'!$BE$18:$BE$1017),0) -> 0 | Z127: =IFERROR($E127*SUMIF('Daily Log'!$BG$18:$BG$1017,$B127,'Daily Log'!$BH$18:$BH$1017),0) -> 0 | AA127: =IFERROR($E127*SUMIF('Daily Log'!$BJ$18:$BJ$1017,$B127,'Daily Log'!$BK$18:$BK$1017),0) -> 0 | AB127: =IFERROR($E127*SUMIF('Daily Log'!$BM$18:$BM$1017,$B127,'Daily Log'!$BN$18:$BN$1017),0) -> 0 | AC127: =IFERROR($E127*SUMIF('Daily Log'!$BP$18:$BP$1017,$B127,'Daily Log'!$BQ$18:$BQ$1017),0) -> 1 | AD127: =IFERROR($E127*SUMIF('Daily Log'!$BS$18:$BS$1017,$B127,'Daily Log'!$BT$18:$BT$1017),0) -> 0 | AE127: =IFERROR($E127*SUMIF('Daily Log'!$BV$18:$BV$1017,$B127,'Daily Log'!$BW$18:$BW$1017),0) -> 0 | AF127: =IFERROR($E127*SUMIF('Daily Log'!$BY$18:$BY$1017,$B127,'Daily Log'!$BZ$18:$BZ$1017),0) -> 0 | AG127: =IFERROR($E127*SUMIF('Daily Log'!$CB$18:$CB$1017,$B127,'Daily Log'!$CC$18:$CC$1017),0) -> 0 | AH127: =IFERROR($E127*SUMIF('Daily Log'!$CE$18:$CE$1017,$B127,'Daily Log'!$CF$18:$CF$1017),0) -> 2 | AI127: =IFERROR($E127*SUMIF('Daily Log'!$CH$18:$CH$1017,$B127,'Daily Log'!$CI$18:$CI$1017),0) -> 0 | AJ127: =IFERROR($E127*SUMIF('Daily Log'!$CK$18:$CK$1017,$B127,'Daily Log'!$CL$18:$CL$1017),0) -> 0 | AK127: =IFERROR($E127*SUMIF('Daily Log'!$CN$18:$CN$1017,$B127,'Daily Log'!$CO$18:$CO$1017),0) -> 0
B128: AA41 1311:MC HSH BRW | D128: ASIAN CRUISE | E128: 1 | F128: 7 | G128: =IFERROR($E128*SUMIF('Daily Log'!$B$18:$B$1017,$B128,'Daily Log'!$C$18:$C$1017),0) -> 0 | H128: =IFERROR($E128*SUMIF('Daily Log'!$E$18:$E$1017,$B128,'Daily Log'!$F$18:$F$1017),0) -> 0 | I128: =IFERROR($E128*SUMIF('Daily Log'!$H$18:$H$1017,$B128,'Daily Log'!$I$18:$I$1017),0) -> 0 | J128: =IFERROR($E128*SUMIF('Daily Log'!$K$18:$K$1017,$B128,'Daily Log'!$L$18:$L$1017),0) -> 0 | K128: =IFERROR($E128*SUMIF('Daily Log'!$N$18:$N$1017,$B128,'Daily Log'!$O$18:$O$1017),0) -> 0 | L128: =IFERROR($E128*SUMIF('Daily Log'!$Q$18:$Q$1017,$B128,'Daily Log'!$R$18:$R$1017),0) -> 0 | M128: =IFERROR($E128*SUMIF('Daily Log'!$T$18:$T$1017,$B128,'Daily Log'!$U$18:$U$1017),0) -> 0 | N128: =IFERROR($E128*SUMIF('Daily Log'!$W$18:$W$1017,$B128,'Daily Log'!$X$18:$X$1017),0) -> 0 | O128: =IFERROR($E128*SUMIF('Daily Log'!$Z$18:$Z$1017,$B128,'Daily Log'!$AA$18:$AA$1017),0) -> 1 | P128: =IFERROR($E128*SUMIF('Daily Log'!$AC$18:$AC$1017,$B128,'Daily Log'!$AD$18:$AD$1017),0) -> 0 | Q128: =IFERROR($E128*SUMIF('Daily Log'!$AF$18:$AF$1017,$B128,'Daily Log'!$AG$18:$AG$1017),0) -> 0 | R128: =IFERROR($E128*SUMIF('Daily Log'!$AI$18:$AI$1017,$B128,'Daily Log'!$AJ$18:$AJ$1017),0) -> 0 | S128: =IFERROR($E128*SUMIF('Daily Log'!$AL$18:$AL$1017,$B128,'Daily Log'!$AM$18:$AM$1017),0) -> 0 | T128: =IFERROR($E128*SUMIF('Daily Log'!$AO$18:$AO$1017,$B128,'Daily Log'!$AP$18:$AP$1017),0) -> 1 | U128: =IFERROR($E128*SUMIF('Daily Log'!$AR$18:$AR$1017,$B128,'Daily Log'!$AS$18:$AS$1017),0) -> 0 | V128: =IFERROR($E128*SUMIF('Daily Log'!$AU$18:$AU$1017,$B128,'Daily Log'!$AV$18:$AV$1017),0) -> 1 | W128: =IFERROR($E128*SUMIF('Daily Log'!$AX$18:$AX$1017,$B128,'Daily Log'!$AY$18:$AY$1017),0) -> 0 | X128: =IFERROR($E128*SUMIF('Daily Log'!$BA$18:$BA$1017,$B128,'Daily Log'!$BB$18:$BB$1017),0) -> 0 | Y128: =IFERROR($E128*SUMIF('Daily Log'!$BD$18:$BD$1017,$B128,'Daily Log'!$BE$18:$BE$1017),0) -> 2 | Z128: =IFERROR($E128*SUMIF('Daily Log'!$BG$18:$BG$1017,$B128,'Daily Log'!$BH$18:$BH$1017),0) -> 0 | AA128: =IFERROR($E128*SUMIF('Daily Log'!$BJ$18:$BJ$1017,$B128,'Daily Log'!$BK$18:$BK$1017),0) -> 0 | AB128: =IFERROR($E128*SUMIF('Daily Log'!$BM$18:$BM$1017,$B128,'Daily Log'!$BN$18:$BN$1017),0) -> 0 | AC128: =IFERROR($E128*SUMIF('Daily Log'!$BP$18:$BP$1017,$B128,'Daily Log'!$BQ$18:$BQ$1017),0) -> 1 | AD128: =IFERROR($E128*SUMIF('Daily Log'!$BS$18:$BS$1017,$B128,'Daily Log'!$BT$18:$BT$1017),0) -> 0 | AE128: =IFERROR($E128*SUMIF('Daily Log'!$BV$18:$BV$1017,$B128,'Daily Log'!$BW$18:$BW$1017),0) -> 0 | AF128: =IFERROR($E128*SUMIF('Daily Log'!$BY$18:$BY$1017,$B128,'Daily Log'!$BZ$18:$BZ$1017),0) -> 1 | AG128: =IFERROR($E128*SUMIF('Daily Log'!$CB$18:$CB$1017,$B128,'Daily Log'!$CC$18:$CC$1017),0) -> 0 | AH128: =IFERROR($E128*SUMIF('Daily Log'!$CE$18:$CE$1017,$B128,'Daily Log'!$CF$18:$CF$1017),0) -> 0 | AI128: =IFERROR($E128*SUMIF('Daily Log'!$CH$18:$CH$1017,$B128,'Daily Log'!$CI$18:$CI$1017),0) -> 0 | AJ128: =IFERROR($E128*SUMIF('Daily Log'!$CK$18:$CK$1017,$B128,'Daily Log'!$CL$18:$CL$1017),0) -> 0 | AK128: =IFERROR($E128*SUMIF('Daily Log'!$CN$18:$CN$1017,$B128,'Daily Log'!$CO$18:$CO$1017),0) -> 0
B129: AF02 91202:FREN FRIES | D129: ASIAN CRUISE | E129: 1 | F129: 59 | G129: =IFERROR($E129*SUMIF('Daily Log'!$B$18:$B$1017,$B129,'Daily Log'!$C$18:$C$1017),0) -> 2 | H129: =IFERROR($E129*SUMIF('Daily Log'!$E$18:$E$1017,$B129,'Daily Log'!$F$18:$F$1017),0) -> 2 | I129: =IFERROR($E129*SUMIF('Daily Log'!$H$18:$H$1017,$B129,'Daily Log'!$I$18:$I$1017),0) -> 10 | J129: =IFERROR($E129*SUMIF('Daily Log'!$K$18:$K$1017,$B129,'Daily Log'!$L$18:$L$1017),0) -> 10 | K129: =IFERROR($E129*SUMIF('Daily Log'!$N$18:$N$1017,$B129,'Daily Log'!$O$18:$O$1017),0) -> 3 | L129: =IFERROR($E129*SUMIF('Daily Log'!$Q$18:$Q$1017,$B129,'Daily Log'!$R$18:$R$1017),0) -> 2 | M129: =IFERROR($E129*SUMIF('Daily Log'!$T$18:$T$1017,$B129,'Daily Log'!$U$18:$U$1017),0) -> 6 | N129: =IFERROR($E129*SUMIF('Daily Log'!$W$18:$W$1017,$B129,'Daily Log'!$X$18:$X$1017),0) -> 5 | O129: =IFERROR($E129*SUMIF('Daily Log'!$Z$18:$Z$1017,$B129,'Daily Log'!$AA$18:$AA$1017),0) -> 3 | P129: =IFERROR($E129*SUMIF('Daily Log'!$AC$18:$AC$1017,$B129,'Daily Log'!$AD$18:$AD$1017),0) -> 0 | Q129: =IFERROR($E129*SUMIF('Daily Log'!$AF$18:$AF$1017,$B129,'Daily Log'!$AG$18:$AG$1017),0) -> 0 | R129: =IFERROR($E129*SUMIF('Daily Log'!$AI$18:$AI$1017,$B129,'Daily Log'!$AJ$18:$AJ$1017),0) -> 1 | S129: =IFERROR($E129*SUMIF('Daily Log'!$AL$18:$AL$1017,$B129,'Daily Log'!$AM$18:$AM$1017),0) -> 1 | T129: =IFERROR($E129*SUMIF('Daily Log'!$AO$18:$AO$1017,$B129,'Daily Log'!$AP$18:$AP$1017),0) -> 6 | U129: =IFERROR($E129*SUMIF('Daily Log'!$AR$18:$AR$1017,$B129,'Daily Log'!$AS$18:$AS$1017),0) -> 1 | V129: =IFERROR($E129*SUMIF('Daily Log'!$AU$18:$AU$1017,$B129,'Daily Log'!$AV$18:$AV$1017),0) -> 2 | W129: =IFERROR($E129*SUMIF('Daily Log'!$AX$18:$AX$1017,$B129,'Daily Log'!$AY$18:$AY$1017),0) -> 0 | X129: =IFERROR($E129*SUMIF('Daily Log'!$BA$18:$BA$1017,$B129,'Daily Log'!$BB$18:$BB$1017),0) -> 0 | Y129: =IFERROR($E129*SUMIF('Daily Log'!$BD$18:$BD$1017,$B129,'Daily Log'!$BE$18:$BE$1017),0) -> 0 | Z129: =IFERROR($E129*SUMIF('Daily Log'!$BG$18:$BG$1017,$B129,'Daily Log'!$BH$18:$BH$1017),0) -> 1 | AA129: =IFERROR($E129*SUMIF('Daily Log'!$BJ$18:$BJ$1017,$B129,'Daily Log'!$BK$18:$BK$1017),0) -> 2 | AB129: =IFERROR($E129*SUMIF('Daily Log'!$BM$18:$BM$1017,$B129,'Daily Log'!$BN$18:$BN$1017),0) -> 2 | AC129: =IFERROR($E129*SUMIF('Daily Log'!$BP$18:$BP$1017,$B129,'Daily Log'!$BQ$18:$BQ$1017),0) -> 0 | AD129: =IFERROR($E129*SUMIF('Daily Log'!$BS$18:$BS$1017,$B129,'Daily Log'!$BT$18:$BT$1017),0) -> 0 | AE129: =IFERROR($E129*SUMIF('Daily Log'!$BV$18:$BV$1017,$B129,'Daily Log'!$BW$18:$BW$1017),0) -> 0 | AF129: =IFERROR($E129*SUMIF('Daily Log'!$BY$18:$BY$1017,$B129,'Daily Log'!$BZ$18:$BZ$1017),0) -> 0 | AG129: =IFERROR($E129*SUMIF('Daily Log'!$CB$18:$CB$1017,$B129,'Daily Log'!$CC$18:$CC$1017),0) -> 0 | AH129: =IFERROR($E129*SUMIF('Daily Log'!$CE$18:$CE$1017,$B129,'Daily Log'!$CF$18:$CF$1017),0) -> 0 | AI129: =IFERROR($E129*SUMIF('Daily Log'!$CH$18:$CH$1017,$B129,'Daily Log'!$CI$18:$CI$1017),0) -> 0 | AJ129: =IFERROR($E129*SUMIF('Daily Log'!$CK$18:$CK$1017,$B129,'Daily Log'!$CL$18:$CL$1017),0) -> 0 | AK129: =IFERROR($E129*SUMIF('Daily Log'!$CN$18:$CN$1017,$B129,'Daily Log'!$CO$18:$CO$1017),0) -> 0
B130: AF04 91204:FSH BALL | D130: ASIAN CRUISE | E130: 1 | F130: 5 | G130: =IFERROR($E130*SUMIF('Daily Log'!$B$18:$B$1017,$B130,'Daily Log'!$C$18:$C$1017),0) -> 0 | H130: =IFERROR($E130*SUMIF('Daily Log'!$E$18:$E$1017,$B130,'Daily Log'!$F$18:$F$1017),0) -> 0 | I130: =IFERROR($E130*SUMIF('Daily Log'!$H$18:$H$1017,$B130,'Daily Log'!$I$18:$I$1017),0) -> 0 | J130: =IFERROR($E130*SUMIF('Daily Log'!$K$18:$K$1017,$B130,'Daily Log'!$L$18:$L$1017),0) -> 0 | K130: =IFERROR($E130*SUMIF('Daily Log'!$N$18:$N$1017,$B130,'Daily Log'!$O$18:$O$1017),0) -> 0 | L130: =IFERROR($E130*SUMIF('Daily Log'!$Q$18:$Q$1017,$B130,'Daily Log'!$R$18:$R$1017),0) -> 0 | M130: =IFERROR($E130*SUMIF('Daily Log'!$T$18:$T$1017,$B130,'Daily Log'!$U$18:$U$1017),0) -> 0 | N130: =IFERROR($E130*SUMIF('Daily Log'!$W$18:$W$1017,$B130,'Daily Log'!$X$18:$X$1017),0) -> 0 | O130: =IFERROR($E130*SUMIF('Daily Log'!$Z$18:$Z$1017,$B130,'Daily Log'!$AA$18:$AA$1017),0) -> 0 | P130: =IFERROR($E130*SUMIF('Daily Log'!$AC$18:$AC$1017,$B130,'Daily Log'!$AD$18:$AD$1017),0) -> 0 | Q130: =IFERROR($E130*SUMIF('Daily Log'!$AF$18:$AF$1017,$B130,'Daily Log'!$AG$18:$AG$1017),0) -> 0 | R130: =IFERROR($E130*SUMIF('Daily Log'!$AI$18:$AI$1017,$B130,'Daily Log'!$AJ$18:$AJ$1017),0) -> 0 | S130: =IFERROR($E130*SUMIF('Daily Log'!$AL$18:$AL$1017,$B130,'Daily Log'!$AM$18:$AM$1017),0) -> 0 | T130: =IFERROR($E130*SUMIF('Daily Log'!$AO$18:$AO$1017,$B130,'Daily Log'!$AP$18:$AP$1017),0) -> 1 | U130: =IFERROR($E130*SUMIF('Daily Log'!$AR$18:$AR$1017,$B130,'Daily Log'!$AS$18:$AS$1017),0) -> 1 | V130: =IFERROR($E130*SUMIF('Daily Log'!$AU$18:$AU$1017,$B130,'Daily Log'!$AV$18:$AV$1017),0) -> 0 | W130: =IFERROR($E130*SUMIF('Daily Log'!$AX$18:$AX$1017,$B130,'Daily Log'!$AY$18:$AY$1017),0) -> 0 | X130: =IFERROR($E130*SUMIF('Daily Log'!$BA$18:$BA$1017,$B130,'Daily Log'!$BB$18:$BB$1017),0) -> 0 | Y130: =IFERROR($E130*SUMIF('Daily Log'!$BD$18:$BD$1017,$B130,'Daily Log'!$BE$18:$BE$1017),0) -> 0 | Z130: =IFERROR($E130*SUMIF('Daily Log'!$BG$18:$BG$1017,$B130,'Daily Log'!$BH$18:$BH$1017),0) -> 0 | AA130: =IFERROR($E130*SUMIF('Daily Log'!$BJ$18:$BJ$1017,$B130,'Daily Log'!$BK$18:$BK$1017),0) -> 0 | AB130: =IFERROR($E130*SUMIF('Daily Log'!$BM$18:$BM$1017,$B130,'Daily Log'!$BN$18:$BN$1017),0) -> 1 | AC130: =IFERROR($E130*SUMIF('Daily Log'!$BP$18:$BP$1017,$B130,'Daily Log'!$BQ$18:$BQ$1017),0) -> 1 | AD130: =IFERROR($E130*SUMIF('Daily Log'!$BS$18:$BS$1017,$B130,'Daily Log'!$BT$18:$BT$1017),0) -> 1 | AE130: =IFERROR($E130*SUMIF('Daily Log'!$BV$18:$BV$1017,$B130,'Daily Log'!$BW$18:$BW$1017),0) -> 0 | AF130: =IFERROR($E130*SUMIF('Daily Log'!$BY$18:$BY$1017,$B130,'Daily Log'!$BZ$18:$BZ$1017),0) -> 0 | AG130: =IFERROR($E130*SUMIF('Daily Log'!$CB$18:$CB$1017,$B130,'Daily Log'!$CC$18:$CC$1017),0) -> 0 | AH130: =IFERROR($E130*SUMIF('Daily Log'!$CE$18:$CE$1017,$B130,'Daily Log'!$CF$18:$CF$1017),0) -> 0 | AI130: =IFERROR($E130*SUMIF('Daily Log'!$CH$18:$CH$1017,$B130,'Daily Log'!$CI$18:$CI$1017),0) -> 0 | AJ130: =IFERROR($E130*SUMIF('Daily Log'!$CK$18:$CK$1017,$B130,'Daily Log'!$CL$18:$CL$1017),0) -> 0 | AK130: =IFERROR($E130*SUMIF('Daily Log'!$CN$18:$CN$1017,$B130,'Daily Log'!$CO$18:$CO$1017),0) -> 0
B131: AF06 91206:SPRING RL | D131: SIDE ORDER -COLD BEVERAGE | E131: 1 | F131: 2 | G131: =IFERROR($E131*SUMIF('Daily Log'!$B$18:$B$1017,$B131,'Daily Log'!$C$18:$C$1017),0) -> 0 | H131: =IFERROR($E131*SUMIF('Daily Log'!$E$18:$E$1017,$B131,'Daily Log'!$F$18:$F$1017),0) -> 0 | I131: =IFERROR($E131*SUMIF('Daily Log'!$H$18:$H$1017,$B131,'Daily Log'!$I$18:$I$1017),0) -> 0 | J131: =IFERROR($E131*SUMIF('Daily Log'!$K$18:$K$1017,$B131,'Daily Log'!$L$18:$L$1017),0) -> 0 | K131: =IFERROR($E131*SUMIF('Daily Log'!$N$18:$N$1017,$B131,'Daily Log'!$O$18:$O$1017),0) -> 0 | L131: =IFERROR($E131*SUMIF('Daily Log'!$Q$18:$Q$1017,$B131,'Daily Log'!$R$18:$R$1017),0) -> 0 | M131: =IFERROR($E131*SUMIF('Daily Log'!$T$18:$T$1017,$B131,'Daily Log'!$U$18:$U$1017),0) -> 0 | N131: =IFERROR($E131*SUMIF('Daily Log'!$W$18:$W$1017,$B131,'Daily Log'!$X$18:$X$1017),0) -> 1 | O131: =IFERROR($E131*SUMIF('Daily Log'!$Z$18:$Z$1017,$B131,'Daily Log'!$AA$18:$AA$1017),0) -> 0 | P131: =IFERROR($E131*SUMIF('Daily Log'!$AC$18:$AC$1017,$B131,'Daily Log'!$AD$18:$AD$1017),0) -> 0 | Q131: =IFERROR($E131*SUMIF('Daily Log'!$AF$18:$AF$1017,$B131,'Daily Log'!$AG$18:$AG$1017),0) -> 0 | R131: =IFERROR($E131*SUMIF('Daily Log'!$AI$18:$AI$1017,$B131,'Daily Log'!$AJ$18:$AJ$1017),0) -> 0 | S131: =IFERROR($E131*SUMIF('Daily Log'!$AL$18:$AL$1017,$B131,'Daily Log'!$AM$18:$AM$1017),0) -> 0 | T131: =IFERROR($E131*SUMIF('Daily Log'!$AO$18:$AO$1017,$B131,'Daily Log'!$AP$18:$AP$1017),0) -> 0 | U131: =IFERROR($E131*SUMIF('Daily Log'!$AR$18:$AR$1017,$B131,'Daily Log'!$AS$18:$AS$1017),0) -> 0 | V131: =IFERROR($E131*SUMIF('Daily Log'!$AU$18:$AU$1017,$B131,'Daily Log'!$AV$18:$AV$1017),0) -> 0 | W131: =IFERROR($E131*SUMIF('Daily Log'!$AX$18:$AX$1017,$B131,'Daily Log'!$AY$18:$AY$1017),0) -> 0 | X131: =IFERROR($E131*SUMIF('Daily Log'!$BA$18:$BA$1017,$B131,'Daily Log'!$BB$18:$BB$1017),0) -> 0 | Y131: =IFERROR($E131*SUMIF('Daily Log'!$BD$18:$BD$1017,$B131,'Daily Log'!$BE$18:$BE$1017),0) -> 0 | Z131: =IFERROR($E131*SUMIF('Daily Log'!$BG$18:$BG$1017,$B131,'Daily Log'!$BH$18:$BH$1017),0) -> 1 | AA131: =IFERROR($E131*SUMIF('Daily Log'!$BJ$18:$BJ$1017,$B131,'Daily Log'!$BK$18:$BK$1017),0) -> 0 | AB131: =IFERROR($E131*SUMIF('Daily Log'!$BM$18:$BM$1017,$B131,'Daily Log'!$BN$18:$BN$1017),0) -> 0 | AC131: =IFERROR($E131*SUMIF('Daily Log'!$BP$18:$BP$1017,$B131,'Daily Log'!$BQ$18:$BQ$1017),0) -> 0 | AD131: =IFERROR($E131*SUMIF('Daily Log'!$BS$18:$BS$1017,$B131,'Daily Log'!$BT$18:$BT$1017),0) -> 0 | AE131: =IFERROR($E131*SUMIF('Daily Log'!$BV$18:$BV$1017,$B131,'Daily Log'!$BW$18:$BW$1017),0) -> 0 | AF131: =IFERROR($E131*SUMIF('Daily Log'!$BY$18:$BY$1017,$B131,'Daily Log'!$BZ$18:$BZ$1017),0) -> 0 | AG131: =IFERROR($E131*SUMIF('Daily Log'!$CB$18:$CB$1017,$B131,'Daily Log'!$CC$18:$CC$1017),0) -> 0 | AH131: =IFERROR($E131*SUMIF('Daily Log'!$CE$18:$CE$1017,$B131,'Daily Log'!$CF$18:$CF$1017),0) -> 0 | AI131: =IFERROR($E131*SUMIF('Daily Log'!$CH$18:$CH$1017,$B131,'Daily Log'!$CI$18:$CI$1017),0) -> 0 | AJ131: =IFERROR($E131*SUMIF('Daily Log'!$CK$18:$CK$1017,$B131,'Daily Log'!$CL$18:$CL$1017),0) -> 0 | AK131: =IFERROR($E131*SUMIF('Daily Log'!$CN$18:$CN$1017,$B131,'Daily Log'!$CO$18:$CO$1017),0) -> 0
